Workbook

Sheet INTRO
C1: The current version should be used in countries endemic for Loasis
B2: PC Joint Reporting Form v.3.1 (L)
B4: The purpose of this template Joint Reporting Form (JRF) - available as an Excel file - is to provide national health authorities and data managers with a standardized tool to address these reporting challenges, facilitate integration and thereby further contribute to improving overall programme management. This template aims to standardize national reporting of programme implementation outcomes, improve availability and coordination of preventive chemotherapy data across the World Health Organization regions. National authorities are requested to complete this form for submission to the World Health Organization any time before 15 August of the current year for reporting data on PC interventions implemented during the previous year.
B6: Structure of the application (worksheets):
B8: INTRO | C8: This worksheet includes guides on how to complete the joint reporting form and information about status of PC for endemic diseases in the country
B9: COUNTRY_INFO | C9: This worksheet includes information about administrative structure of the country, population by age group, status of endemicity for each disease, population requiring PC, planned interventions and interventions implemented
B10: MDA1, MDA4, MDA3, T1, T2 and T3 | C10: These worksheets include information about endemic districts targeted for treatment with specified PC medicines, treatment plan, and number of people who received treatment by age group
B11: DISTRICT | C11: This worksheet includes summary of people treated by disease at the level of implementation. If data by gender is available, it requires to enter.
B12: SUMMARY | C12: This worksheet includes summary of people treated by disease and by PC intervention. Before generating the report (run macros) please select the disease for which you need the report. Follow the same rule to generate various reports. This worksheet should be printed and submitted as a Joint Report (see the instruction for submission in the SUMMARY worksheet).
B14: Instruction for data entry
B16: Most of the cells in the above-mentioned worksheets include formula that are calculated automatically according to the treatment policy recommended by WHO for each disease. See the link http://www.who.int/neglected_diseases/preventive_chemotherapy/pct_manual/en/index.html
B18: Please enter your data into the cells according to their colour code:
C20: White - cell is not protected. Please enter the value of the requested indicator.
C22: Yellow - cell is protected and includes name of indicator. No data entry required.
C24: Orange - cell is not protected and includes a drop-down menu. Please select the value from the drop-down list.
C27: Green - cell is not protected and includes formula. Please change the value only if your data are different from those that are calculated automatically.
C30: Blue - cell is protected and includes formula. No data entry required.
B32: Country data
B34: COUNTRY | E34: DRC | G34: CD | H34: COD
B36: Year of reporting data | E36: 2022
B38: Is country endemic for lymphatic filariasis (LF)? | E38: Endemic
B40: Is country endemic for onchocerciasis (ONCHO)? | E40: Endemic
B42: Is country endemic for soil-transmitted helminthiases (STH)? | E42: Endemic
B44: Is country endemic for schistosomiasis (SCH)? | E44: Endemic
B46: How many administrative units in the country? | E46: 519
B47: If demographical data at the second administrative level are not available by age group, please enter the proportion (%) of population by age group in the country. If data are available, please leave these cells blank.
B48: 1-4 years age | C48: Preschool-age children (PreSAC)
B49: 5-14 years age | C49: School-age children (SAC)
B50: 15 years + | C50: Adults

Sheet COUNTRY_INFO
A1: COUNTRY INFORMATION
A2: Administrative structure, population by age group, endemicity status, planned interventions and interventions implemented | V2: 1.0317
A4: TOTAL | D4: =SUM(D$9:D$999) -> 113305935 | E4: =SUM(E$9:E$999) -> 13683270 | F4: =SUM(F$9:F$999) -> 39245855 | G4: =SUM(G$9:G$999) -> 55832817.48 | M4: =SUM(M$9:M$999) -> 45243848 | N4: =SUM(N$9:N$999) -> 54801844 | O4: =SUM(O$9:O$999) -> 26830345 | P4: =SUM(P$9:P$999) -> 16951174.16
A6: Country administrative structure | D6: Population | H6: Endemicity | M6: Population requiring PC | Q6: Number of treatment rounds planned for the year | U6: PC implemented | AD6: mda1 | AE6: mda4 | AF6: mda3 | AG6: t1 | AH6: t2 | AI6: t3r1 | AN6: *pop2021
A7: Country | B7: Province/State | C7: District | D7: Total | E7: PreSAC | F7: SAC | G7: Adults | H7: LF | I7: Oncho | J7: STH | K7: SCH | L7: Loa | M7: LF | N7: Oncho | O7: STH | P7: SCH | Q7: LF | R7: Oncho | S7: STH | T7: SCH | U7: ROUND 1 | V7: ROUND2 | W7: x | X7: x | Y7: ID_ID | Z7: IU_Name | AA7: x | AB7: x | AC7: x | AD7: x | AE7: x | AF7: x | AG7: x | AH7: x | AI7: x | AJ7: x | AK7: x | AL7: x | AM7: x | AN7: x | AO7: x | AP7: x | AQ7: x | AR7: x | AS7: x | AT7: x | AU7: x | AV7: x | AW7: x | AX7: x | AY7: x | AZ7: x | BA7: x | BB7: x | BC7: x | BD7: x | BE7: x | BF7: x | BG7: x | BH7: x | BI7: x | BJ7: x | BK7: x | BL7: x | BM7: x | BN7: x | BO7: x | BP7: x | BQ7: x | BR7: x | BS7: x
A9: =IF(INTRO!$E$34<>0,INTRO!$E$34,"") -> DRC | B9: BAS UELE | C9: Aketi | D9: 169476 | E9: 20337 | F9: 59317 | G9: 83043 | H9: 1 | I9: 1 | J9: 1 | K9: 1 | L9: 0 | M9: =IF(INTRO!$E$38="Endemic", IF($H9>0, IF($H9=4,"Unknown", IF($H9=99,"Stopped", $D9)), 0),"Not required") -> 169476 | N9: =IF(INTRO!$E$40="Endemic", IF($I9>0, IF($I9=4,"Unknown",IF($I9=99,"Stopped", $D9)), 0),"Not required") -> 169476 | O9: =IF(INTRO!$E$42="Endemic", IF(AND($J9>1,$J9<5), IF($J9=4, "Unknown", E9+F9), 0),"Not required") -> 0 | P9: =IF(INTRO!$E$44="Endemic", IF(AND($K9>0,$K9<5), IF($K9=4,"Unknown", IF($K9=1, $F9*0.33, IF($K9=2, $F9*0.5+$G9*0.2, SUM(F9:G9)))), 0),"Not required") -> 19574.61 | Q9: 1 | R9: 1 | S9: 0 | T9: 0 | U9: MDA1 (IVM+ALB) | Y9: 14216 | Z9: Aketi | AD9: ='MDA1'!K9 -> 59317 | AE9: ='MDA4'!K9 -> 0 | AF9: ='MDA3'!I9 -> 0 | AG9: ='T1'!M9 -> 0 | AH9: ='T2'!K9 -> 0 | AI9: =T3_R1!L9 -> 0 | AK9: ='MDA3'!L9 -> 0 | AN9: =_xlfn.XLOOKUP($Y9,[1]COUNTRY_INFO!$Y$9:$Y$527,[1]COUNTRY_INFO!D$9:D$527) -> 153781 | AO9: =_xlfn.XLOOKUP($Y9,[1]COUNTRY_INFO!$Y$9:$Y$527,[1]COUNTRY_INFO!E$9:E$527) -> 18607.541 | AP9: =_xlfn.XLOOKUP($Y9,[1]COUNTRY_INFO!$Y$9:$Y$527,[1]COUNTRY_INFO!F$9:F$527) -> 50503 | AQ9: =_xlfn.XLOOKUP($Y9,[1]COUNTRY_INFO!$Y$9:$Y$527,[1]COUNTRY_INFO!G$9:G$527) -> 78673 | AR9: =(D9-AN9)/AN9*100 -> 10.20607227 | AS9: =(E9-AO9)/AO9*100 -> 9.294398438 | AT9: 17.45242857 | AU9: 5.55463755 | AY9: 1 | AZ9: 1 | BA9: 1 | BB9: 1 | BC9: 0 | BD9: =AY9=H9 -> TRUE | BE9: =AZ9=I9 -> TRUE | BF9: TRUE | BG9: TRUE | BH9: TRUE
A10: =IF(INTRO!$E$34<>0,INTRO!$E$34,"") -> DRC | B10: BAS UELE | C10: Ango | D10: 134171 | E10: 16100 | F10: 46960 | G10: 65744 | H10: 0 | I10: 1 | J10: 3 | K10: 1 | L10: 0 | M10: =IF(INTRO!$E$38="Endemic", IF($H10>0, IF($H10=4,"Unknown", IF($H10=99,"Stopped", $D10)), 0),"Not required") -> 0 | N10: =IF(INTRO!$E$40="Endemic", IF($I10>0, IF($I10=4,"Unknown",IF($I10=99,"Stopped", $D10)), 0),"Not required") -> 134171 | O10: =IF(INTRO!$E$42="Endemic", IF(AND($J10>1,$J10<5), IF($J10=4, "Unknown", E10+F10), 0),"Not required") -> 63060 | P10: =IF(INTRO!$E$44="Endemic", IF(AND($K10>0,$K10<5), IF($K10=4,"Unknown", IF($K10=1, $F10*0.33, IF($K10=2, $F10*0.5+$G10*0.2, SUM(F10:G10)))), 0),"Not required") -> 15496.8 | Q10: 0 | R10: 1 | S10: 1 | T10: 0 | U10: MDA3 (IVM) | V10: T3 (ALB/MBD) | Y10: 14217 | Z10: Ango | AD10: ='MDA1'!K10 -> 0 | AE10: ='MDA4'!K10 -> 0 | AF10: ='MDA3'!I10 -> 43660 | AG10: ='T1'!M10 -> 0 | AH10: ='T2'!K10 -> 0 | AI10: =T3_R1!L10 -> 41367 | AK10: ='MDA3'!L10 -> 0 | AN10: =_xlfn.XLOOKUP($Y10,[1]COUNTRY_INFO!$Y$9:$Y$527,[1]COUNTRY_INFO!D$9:D$527) -> 187592 | AO10: =_xlfn.XLOOKUP($Y10,[1]COUNTRY_INFO!$Y$9:$Y$527,[1]COUNTRY_INFO!E$9:E$527) -> 22698.912 | AP10: =_xlfn.XLOOKUP($Y10,[1]COUNTRY_INFO!$Y$9:$Y$527,[1]COUNTRY_INFO!F$9:F$527) -> 61238 | AQ10: =_xlfn.XLOOKUP($Y10,[1]COUNTRY_INFO!$Y$9:$Y$527,[1]COUNTRY_INFO!G$9:G$527) -> 96339 | AR10: =(D10-AN10)/AN10*100 -> -28.47722717 | AS10: =(E10-AO10)/AO10*100 -> -29.0714903 | AT10: =(F10-AP10)/AP10*100 -> -23.31558836 | AU10: =(G10-AQ10)/AQ10*100 -> -31.75764747 | AV10: pb | AY10: 0 | AZ10: 1 | BA10: 3 | BB10: 1 | BC10: 0 | BD10: =AY10=H10 -> TRUE | BE10: =AZ10=I10 -> TRUE | BF10: =BA10=J10 -> TRUE | BG10: =BB10=K10 -> TRUE | BH10: =BC10=L10 -> TRUE
A11: =IF(INTRO!$E$34<>0,INTRO!$E$34,"") -> DRC | B11: BAS UELE | C11: Bili 1 | D11: 67591 | E11: 8111 | F11: 23657 | G11: 33119 | H11: 0 | I11: 1 | J11: 2 | K11: 1 | L11: 0 | M11: =IF(INTRO!$E$38="Endemic", IF($H11>0, IF($H11=4,"Unknown", IF($H11=99,"Stopped", $D11)), 0),"Not required") -> 0 | N11: =IF(INTRO!$E$40="Endemic", IF($I11>0, IF($I11=4,"Unknown",IF($I11=99,"Stopped", $D11)), 0),"Not required") -> 67591 | O11: =IF(INTRO!$E$42="Endemic", IF(AND($J11>1,$J11<5), IF($J11=4, "Unknown", E11+F11), 0),"Not required") -> 31768 | P11: =IF(INTRO!$E$44="Endemic", IF(AND($K11>0,$K11<5), IF($K11=4,"Unknown", IF($K11=1, $F11*0.33, IF($K11=2, $F11*0.5+$G11*0.2, SUM(F11:G11)))), 0),"Not required") -> 7806.81 | Q11: 0 | R11: 1 | S11: 1 | T11: 0 | U11: MDA3 (IVM) | V11: T3 (ALB/MBD) | Y11: 14229 | Z11: Bili (Bas Ueles) | AD11: ='MDA1'!K11 -> 0 | AE11: ='MDA4'!K11 -> 0 | AF11: ='MDA3'!I11 -> 21985 | AG11: ='T1'!M11 -> 0 | AH11: ='T2'!K11 -> 0 | AI11: =T3_R1!L11 -> 18953 | AK11: ='MDA3'!L11 -> 0 | AN11: =_xlfn.XLOOKUP($Y11,[1]COUNTRY_INFO!$Y$9:$Y$527,[1]COUNTRY_INFO!D$9:D$527) -> 77961 | AO11: =_xlfn.XLOOKUP($Y11,[1]COUNTRY_INFO!$Y$9:$Y$527,[1]COUNTRY_INFO!E$9:E$527) -> 9433.521 | AP11: =_xlfn.XLOOKUP($Y11,[1]COUNTRY_INFO!$Y$9:$Y$527,[1]COUNTRY_INFO!F$9:F$527) -> 27533 | AQ11: =_xlfn.XLOOKUP($Y11,[1]COUNTRY_INFO!$Y$9:$Y$527,[1]COUNTRY_INFO!G$9:G$527) -> 37954 | AR11: -13.30152256 | AS11: -14.01937834 | AT11: -14.07765227 | AU11: -12.73910523 | AY11: 0 | AZ11: 1 | BA11: 2 | BB11: 1 | BC11: 0 | BD11: TRUE | BE11: TRUE | BF11: TRUE | BG11: TRUE | BH11: TRUE
A12: =IF(INTRO!$E$34<>0,INTRO!$E$34,"") -> DRC | B12: BAS UELE | C12: Bondo | D12: 162472 | E12: 19497 | F12: 56865 | G12: 79611 | H12: 1 | I12: 1 | J12: 2 | K12: 2 | L12: 0 | M12: =IF(INTRO!$E$38="Endemic", IF($H12>0, IF($H12=4,"Unknown", IF($H12=99,"Stopped", $D12)), 0),"Not required") -> 162472 | N12: =IF(INTRO!$E$40="Endemic", IF($I12>0, IF($I12=4,"Unknown",IF($I12=99,"Stopped", $D12)), 0),"Not required") -> 162472 | O12: =IF(INTRO!$E$42="Endemic", IF(AND($J12>1,$J12<5), IF($J12=4, "Unknown", E12+F12), 0),"Not required") -> 76362 | P12: =IF(INTRO!$E$44="Endemic", IF(AND($K12>0,$K12<5), IF($K12=4,"Unknown", IF($K12=1, $F12*0.33, IF($K12=2, $F12*0.5+$G12*0.2, SUM(F12:G12)))), 0),"Not required") -> 44354.7 | Q12: 1 | R12: 1 | S12: 1 | T12: 1 | U12: MDA1 (IVM+ALB) | V12: T2 (PZQ) | Y12: 14232 | Z12: Bondo | AD12: ='MDA1'!K12 -> 52983 | AE12: ='MDA4'!K12 -> 0 | AF12: ='MDA3'!I12 -> 0 | AG12: ='T1'!M12 -> 0 | AH12: ='T2'!K12 -> 40160 | AI12: =T3_R1!L12 -> 0 | AK12: ='MDA3'!L12 -> 0 | AN12: =_xlfn.XLOOKUP($Y12,[1]COUNTRY_INFO!$Y$9:$Y$527,[1]COUNTRY_INFO!D$9:D$527) -> 159967 | AO12: =_xlfn.XLOOKUP($Y12,[1]COUNTRY_INFO!$Y$9:$Y$527,[1]COUNTRY_INFO!E$9:E$527) -> 19356.287 | AP12: =_xlfn.XLOOKUP($Y12,[1]COUNTRY_INFO!$Y$9:$Y$527,[1]COUNTRY_INFO!F$9:F$527) -> 53924 | AQ12: =_xlfn.XLOOKUP($Y12,[1]COUNTRY_INFO!$Y$9:$Y$527,[1]COUNTRY_INFO!G$9:G$527) -> 80448 | AR12: 1.565947977 | AS12: 0.7269627693 | AT12: 5.453972257 | AU12: -1.040423628 | AY12: 1 | AZ12: 1 | BA12: 2 | BB12: 2 | BC12: 0 | BD12: TRUE | BE12: TRUE | BF12: TRUE | BG12: TRUE | BH12: TRUE
A13: =IF(INTRO!$E$34<>0,INTRO!$E$34,"") -> DRC | B13: BAS UELE | C13: Buta | D13: 240237 | E13: 28828 | F13: 84083 | G13: 117716 | H13: 1 | I13: 1 | J13: 2 | K13: 3 | L13: 0 | M13: =IF(INTRO!$E$38="Endemic", IF($H13>0, IF($H13=4,"Unknown", IF($H13=99,"Stopped", $D13)), 0),"Not required") -> 240237 | N13: =IF(INTRO!$E$40="Endemic", IF($I13>0, IF($I13=4,"Unknown",IF($I13=99,"Stopped", $D13)), 0),"Not required") -> 240237 | O13: =IF(INTRO!$E$42="Endemic", IF(AND($J13>1,$J13<5), IF($J13=4, "Unknown", E13+F13), 0),"Not required") -> 112911 | P13: =IF(INTRO!$E$44="Endemic", IF(AND($K13>0,$K13<5), IF($K13=4,"Unknown", IF($K13=1, $F13*0.33, IF($K13=2, $F13*0.5+$G13*0.2, SUM(F13:G13)))), 0),"Not required") -> 201799 | Q13: 1 | R13: 1 | S13: 1 | T13: 1 | U13: MDA1 (IVM+ALB) | V13: T2 (PZQ) | Y13: 14234 | Z13: Buta | AD13: ='MDA1'!K13 -> 79613 | AE13: ='MDA4'!K13 -> 0 | AF13: ='MDA3'!I13 -> 0 | AG13: ='T1'!M13 -> 0 | AH13: ='T2'!K13 -> 68338 | AI13: =T3_R1!L13 -> 0 | AK13: ='MDA3'!L13 -> 0 | AN13: =_xlfn.XLOOKUP($Y13,[1]COUNTRY_INFO!$Y$9:$Y$527,[1]COUNTRY_INFO!D$9:D$527) -> 224316 | AO13: =_xlfn.XLOOKUP($Y13,[1]COUNTRY_INFO!$Y$9:$Y$527,[1]COUNTRY_INFO!E$9:E$527) -> 27142.676 | AP13: =_xlfn.XLOOKUP($Y13,[1]COUNTRY_INFO!$Y$9:$Y$527,[1]COUNTRY_INFO!F$9:F$527) -> 78030 | AQ13: =_xlfn.XLOOKUP($Y13,[1]COUNTRY_INFO!$Y$9:$Y$527,[1]COUNTRY_INFO!G$9:G$527) -> 110395 | AR13: 7.097576633 | AS13: 6.209129859 | AT13: 7.757272844 | AU13: 6.631640926 | AY13: 1 | AZ13: 1 | BA13: 2 | BB13: 3 | BC13: 0 | BD13: TRUE | BE13: TRUE | BF13: TRUE | BG13: TRUE | BH13: TRUE
A14: =IF(INTRO!$E$34<>0,INTRO!$E$34,"") -> DRC | B14: BAS UELE | C14: Dingela | D14: 146955 | E14: 17635 | F14: 51434 | G14: 72008 | H14: 0 | I14: 1 | J14: 3 | K14: 1 | L14: 0 | M14: =IF(INTRO!$E$38="Endemic", IF($H14>0, IF($H14=4,"Unknown", IF($H14=99,"Stopped", $D14)), 0),"Not required") -> 0 | N14: =IF(INTRO!$E$40="Endemic", IF($I14>0, IF($I14=4,"Unknown",IF($I14=99,"Stopped", $D14)), 0),"Not required") -> 146955 | O14: =IF(INTRO!$E$42="Endemic", IF(AND($J14>1,$J14<5), IF($J14=4, "Unknown", E14+F14), 0),"Not required") -> 69069 | P14: =IF(INTRO!$E$44="Endemic", IF(AND($K14>0,$K14<5), IF($K14=4,"Unknown", IF($K14=1, $F14*0.33, IF($K14=2, $F14*0.5+$G14*0.2, SUM(F14:G14)))), 0),"Not required") -> 16973.22 | Q14: 0 | R14: 1 | S14: 1 | T14: 0 | U14: MDA3 (IVM) | V14: T3 (ALB/MBD) | Y14: 14241 | Z14: Dingela | AD14: ='MDA1'!K14 -> 0 | AE14: ='MDA4'!K14 -> 0 | AF14: ='MDA3'!I14 -> 49463 | AG14: ='T1'!M14 -> 0 | AH14: ='T2'!K14 -> 0 | AI14: =T3_R1!L14 -> 43230 | AK14: ='MDA3'!L14 -> 0 | AN14: =_xlfn.XLOOKUP($Y14,[1]COUNTRY_INFO!$Y$9:$Y$527,[1]COUNTRY_INFO!D$9:D$527) -> 148478 | AO14: =_xlfn.XLOOKUP($Y14,[1]COUNTRY_INFO!$Y$9:$Y$527,[1]COUNTRY_INFO!E$9:E$527) -> 17965.358 | AP14: =_xlfn.XLOOKUP($Y14,[1]COUNTRY_INFO!$Y$9:$Y$527,[1]COUNTRY_INFO!F$9:F$527) -> 45905 | AQ14: =_xlfn.XLOOKUP($Y14,[1]COUNTRY_INFO!$Y$9:$Y$527,[1]COUNTRY_INFO!G$9:G$527) -> 78817 | AR14: -1.025741187 | AS14: -1.838861213 | AT14: 12.0444396 | AU14: -8.638999201 | AY14: 0 | AZ14: 1 | BA14: 3 | BB14: 1 | BC14: 0 | BD14: TRUE | BE14: TRUE | BF14: TRUE | BG14: TRUE | BH14: TRUE
A15: =IF(INTRO!$E$34<>0,INTRO!$E$34,"") -> DRC | B15: BAS UELE | C15: Likati | D15: 88158 | E15: 10579 | F15: 30855 | G15: 43198 | H15: 1 | I15: 1 | J15: 1 | K15: 3 | L15: 0 | M15: =IF(INTRO!$E$38="Endemic", IF($H15>0, IF($H15=4,"Unknown", IF($H15=99,"Stopped", $D15)), 0),"Not required") -> 88158 | N15: =IF(INTRO!$E$40="Endemic", IF($I15>0, IF($I15=4,"Unknown",IF($I15=99,"Stopped", $D15)), 0),"Not required") -> 88158 | O15: =IF(INTRO!$E$42="Endemic", IF(AND($J15>1,$J15<5), IF($J15=4, "Unknown", E15+F15), 0),"Not required") -> 0 | P15: =IF(INTRO!$E$44="Endemic", IF(AND($K15>0,$K15<5), IF($K15=4,"Unknown", IF($K15=1, $F15*0.33, IF($K15=2, $F15*0.5+$G15*0.2, SUM(F15:G15)))), 0),"Not required") -> 74053 | Q15: 1 | R15: 1 | S15: 0 | T15: 1 | U15: MDA1 (IVM+ALB) | V15: T2 (PZQ) | Y15: 14252 | Z15: Likati | AD15: ='MDA1'!K15 -> 29449 | AE15: ='MDA4'!K15 -> 0 | AF15: ='MDA3'!I15 -> 0 | AG15: ='T1'!M15 -> 0 | AH15: ='T2'!K15 -> 20609 | AI15: =T3_R1!L15 -> 0 | AK15: ='MDA3'!L15 -> 0 | AN15: =_xlfn.XLOOKUP($Y15,[1]COUNTRY_INFO!$Y$9:$Y$527,[1]COUNTRY_INFO!D$9:D$527) -> 85505 | AO15: =_xlfn.XLOOKUP($Y15,[1]COUNTRY_INFO!$Y$9:$Y$527,[1]COUNTRY_INFO!E$9:E$527) -> 10346.305 | AP15: =_xlfn.XLOOKUP($Y15,[1]COUNTRY_INFO!$Y$9:$Y$527,[1]COUNTRY_INFO!F$9:F$527) -> 29924 | AQ15: =_xlfn.XLOOKUP($Y15,[1]COUNTRY_INFO!$Y$9:$Y$527,[1]COUNTRY_INFO!G$9:G$527) -> 41900 | AR15: 3.10274253 | AS15: 2.249063796 | AT15: 3.111215078 | AU15: 3.097852029 | AY15: 1 | AZ15: 1 | BA15: 1 | BB15: 3 | BC15: 0 | BD15: TRUE | BE15: TRUE | BF15: TRUE | BG15: TRUE | BH15: TRUE
A16: =IF(INTRO!$E$34<>0,INTRO!$E$34,"") -> DRC | B16: BAS UELE | C16: Monga | D16: 102168 | E16: 12260 | F16: 35759 | G16: 50062 | H16: 1 | I16: 1 | J16: 2 | K16: 2 | L16: 0 | M16: =IF(INTRO!$E$38="Endemic", IF($H16>0, IF($H16=4,"Unknown", IF($H16=99,"Stopped", $D16)), 0),"Not required") -> 102168 | N16: =IF(INTRO!$E$40="Endemic", IF($I16>0, IF($I16=4,"Unknown",IF($I16=99,"Stopped", $D16)), 0),"Not required") -> 102168 | O16: =IF(INTRO!$E$42="Endemic", IF(AND($J16>1,$J16<5), IF($J16=4, "Unknown", E16+F16), 0),"Not required") -> 48019 | P16: =IF(INTRO!$E$44="Endemic", IF(AND($K16>0,$K16<5), IF($K16=4,"Unknown", IF($K16=1, $F16*0.33, IF($K16=2, $F16*0.5+$G16*0.2, SUM(F16:G16)))), 0),"Not required") -> 27891.9 | Q16: 1 | R16: 1 | S16: 1 | T16: 1 | U16: MDA1 (IVM+ALB) | V16: T2 (PZQ) | Y16: 14266 | Z16: Monga | AD16: ='MDA1'!K16 -> 33113 | AE16: ='MDA4'!K16 -> 0 | AF16: ='MDA3'!I16 -> 0 | AG16: ='T1'!M16 -> 0 | AH16: ='T2'!K16 -> 30690 | AI16: =T3_R1!L16 -> 0 | AK16: ='MDA3'!L16 -> 0 | AN16: =_xlfn.XLOOKUP($Y16,[1]COUNTRY_INFO!$Y$9:$Y$527,[1]COUNTRY_INFO!D$9:D$527) -> 94644 | AO16: =_xlfn.XLOOKUP($Y16,[1]COUNTRY_INFO!$Y$9:$Y$527,[1]COUNTRY_INFO!E$9:E$527) -> 11451.884 | AP16: =_xlfn.XLOOKUP($Y16,[1]COUNTRY_INFO!$Y$9:$Y$527,[1]COUNTRY_INFO!F$9:F$527) -> 31816 | AQ16: =_xlfn.XLOOKUP($Y16,[1]COUNTRY_INFO!$Y$9:$Y$527,[1]COUNTRY_INFO!G$9:G$527) -> 47685 | AR16: 7.949790795 | AS16: 7.056620553 | AT16: 12.39313553 | AU16: 4.984796057 | AY16: 1 | AZ16: 1 | BA16: 2 | BB16: 2 | BC16: 0 | BD16: TRUE | BE16: TRUE | BF16: TRUE | BG16: TRUE | BH16: TRUE
A17: =IF(INTRO!$E$34<>0,INTRO!$E$34,"") -> DRC | B17: BAS UELE | C17: Poko | D17: 155716 | E17: 18686 | F17: 54501 | G17: 76300 | H17: 1 | I17: 1 | J17: 2 | K17: 2 | L17: 0 | M17: =IF(INTRO!$E$38="Endemic", IF($H17>0, IF($H17=4,"Unknown", IF($H17=99,"Stopped", $D17)), 0),"Not required") -> 155716 | N17: =IF(INTRO!$E$40="Endemic", IF($I17>0, IF($I17=4,"Unknown",IF($I17=99,"Stopped", $D17)), 0),"Not required") -> 155716 | O17: =IF(INTRO!$E$42="Endemic", IF(AND($J17>1,$J17<5), IF($J17=4, "Unknown", E17+F17), 0),"Not required") -> 73187 | P17: =IF(INTRO!$E$44="Endemic", IF(AND($K17>0,$K17<5), IF($K17=4,"Unknown", IF($K17=1, $F17*0.33, IF($K17=2, $F17*0.5+$G17*0.2, SUM(F17:G17)))), 0),"Not required") -> 42510.5 | Q17: 1 | R17: 1 | S17: 1 | T17: 1 | U17: MDA1 (IVM+ALB) | V17: T2 (PZQ) | Y17: 14276 | Z17: Poko | AD17: ='MDA1'!K17 -> 52867 | AE17: ='MDA4'!K17 -> 0 | AF17: ='MDA3'!I17 -> 0 | AG17: ='T1'!M17 -> 0 | AH17: ='T2'!K17 -> 31252 | AI17: =T3_R1!L17 -> 0 | AK17: ='MDA3'!L17 -> 0 | AN17: =_xlfn.XLOOKUP($Y17,[1]COUNTRY_INFO!$Y$9:$Y$527,[1]COUNTRY_INFO!D$9:D$527) -> 146573 | AO17: =_xlfn.XLOOKUP($Y17,[1]COUNTRY_INFO!$Y$9:$Y$527,[1]COUNTRY_INFO!E$9:E$527) -> 17735.653 | AP17: =_xlfn.XLOOKUP($Y17,[1]COUNTRY_INFO!$Y$9:$Y$527,[1]COUNTRY_INFO!F$9:F$527) -> 47232 | AQ17: =_xlfn.XLOOKUP($Y17,[1]COUNTRY_INFO!$Y$9:$Y$527,[1]COUNTRY_INFO!G$9:G$527) -> 75889 | AR17: 6.237847353 | AS17: 5.358398701 | AT17: 15.38998984 | AU17: 0.5415804662 | AY17: 1 | AZ17: 1 | BA17: 2 | BB17: 2 | BC17: 0 | BD17: TRUE | BE17: TRUE | BF17: TRUE | BG17: TRUE | BH17: TRUE
A18: =IF(INTRO!$E$34<>0,INTRO!$E$34,"") -> DRC | B18: BAS UELE | C18: Titule | D18: 97243 | E18: 11669 | F18: 54098 | G18: 27586 | H18: 0 | I18: 1 | J18: 3 | K18: 2 | L18: 0 | M18: =IF(INTRO!$E$38="Endemic", IF($H18>0, IF($H18=4,"Unknown", IF($H18=99,"Stopped", $D18)), 0),"Not required") -> 0 | N18: =IF(INTRO!$E$40="Endemic", IF($I18>0, IF($I18=4,"Unknown",IF($I18=99,"Stopped", $D18)), 0),"Not required") -> 97243 | O18: =IF(INTRO!$E$42="Endemic", IF(AND($J18>1,$J18<5), IF($J18=4, "Unknown", E18+F18), 0),"Not required") -> 65767 | P18: =IF(INTRO!$E$44="Endemic", IF(AND($K18>0,$K18<5), IF($K18=4,"Unknown", IF($K18=1, $F18*0.33, IF($K18=2, $F18*0.5+$G18*0.2, SUM(F18:G18)))), 0),"Not required") -> 32566.2 | Q18: 0 | R18: 1 | S18: 1 | T18: 1 | U18: MDA3 (IVM) | V18: T1 (PZQ+ALB/MBD) | Y18: 14282 | Z18: Titule | AD18: ='MDA1'!K18 -> 0 | AE18: ='MDA4'!K18 -> 0 | AF18: ='MDA3'!I18 -> 53963 | AG18: ='T1'!M18 -> 40729 | AH18: ='T2'!K18 -> 0 | AI18: =T3_R1!L18 -> 0 | AK18: ='MDA3'!L18 -> 0 | AN18: =_xlfn.XLOOKUP($Y18,[1]COUNTRY_INFO!$Y$9:$Y$527,[1]COUNTRY_INFO!D$9:D$527) -> 94322 | AO18: =_xlfn.XLOOKUP($Y18,[1]COUNTRY_INFO!$Y$9:$Y$527,[1]COUNTRY_INFO!E$9:E$527) -> 11413.442 | AP18: =_xlfn.XLOOKUP($Y18,[1]COUNTRY_INFO!$Y$9:$Y$527,[1]COUNTRY_INFO!F$9:F$527) -> 33013 | AQ18: =_xlfn.XLOOKUP($Y18,[1]COUNTRY_INFO!$Y$9:$Y$527,[1]COUNTRY_INFO!G$9:G$527) -> 46217 | AR18: 3.096838489 | AS18: 2.239096672 | AT18: 63.86877897 | AU18: -40.3120064 | AY18: 0 | AZ18: 1 | BA18: 3 | BB18: 2 | BC18: 0 | BD18: TRUE | BE18: TRUE | BF18: TRUE | BG18: TRUE | BH18: TRUE
A19: =IF(INTRO!$E$34<>0,INTRO!$E$34,"") -> DRC | B19: BAS UELE | C19: Viadana | D19: 127266 | E19: 15272 | F19: 44543 | G19: 62360 | H19: 1 | I19: 1 | J19: 3 | K19: 1 | L19: 0 | M19: =IF(INTRO!$E$38="Endemic", IF($H19>0, IF($H19=4,"Unknown", IF($H19=99,"Stopped", $D19)), 0),"Not required") -> 127266 | N19: =IF(INTRO!$E$40="Endemic", IF($I19>0, IF($I19=4,"Unknown",IF($I19=99,"Stopped", $D19)), 0),"Not required") -> 127266 | O19: =IF(INTRO!$E$42="Endemic", IF(AND($J19>1,$J19<5), IF($J19=4, "Unknown", E19+F19), 0),"Not required") -> 59815 | P19: =IF(INTRO!$E$44="Endemic", IF(AND($K19>0,$K19<5), IF($K19=4,"Unknown", IF($K19=1, $F19*0.33, IF($K19=2, $F19*0.5+$G19*0.2, SUM(F19:G19)))), 0),"Not required") -> 14699.19 | Q19: 1 | R19: 1 | S19: 1 | T19: 0 | U19: MDA1 (IVM+ALB) | Y19: 14285 | Z19: Viadana | AD19: ='MDA1'!K19 -> 43149 | AE19: ='MDA4'!K19 -> 0 | AF19: ='MDA3'!I19 -> 0 | AG19: ='T1'!M19 -> 0 | AH19: ='T2'!K19 -> 0 | AI19: =T3_R1!L19 -> 0 | AK19: ='MDA3'!L19 -> 0 | AN19: =_xlfn.XLOOKUP($Y19,[1]COUNTRY_INFO!$Y$9:$Y$527,[1]COUNTRY_INFO!D$9:D$527) -> 125065 | AO19: =_xlfn.XLOOKUP($Y19,[1]COUNTRY_INFO!$Y$9:$Y$527,[1]COUNTRY_INFO!E$9:E$527) -> 15132.465 | AP19: =_xlfn.XLOOKUP($Y19,[1]COUNTRY_INFO!$Y$9:$Y$527,[1]COUNTRY_INFO!F$9:F$527) -> 33881 | AQ19: =_xlfn.XLOOKUP($Y19,[1]COUNTRY_INFO!$Y$9:$Y$527,[1]COUNTRY_INFO!G$9:G$527) -> 71174 | AR19: 1.75988486 | AS19: 0.9220903534 | AT19: 31.46896491 | AU19: -12.38373563 | AY19: 1 | AZ19: 1 | BA19: 3 | BB19: 1 | BC19: 0 | BD19: TRUE | BE19: TRUE | BF19: TRUE | BG19: TRUE | BH19: TRUE
A20: =IF(INTRO!$E$34<>0,INTRO!$E$34,"") -> DRC | B20: EQUATEUR | C20: Basankusu | D20: 293611 | E20: 35233 | F20: 102764 | G20: 143869 | H20: 1 | I20: 1 | J20: 3 | K20: 0 | L20: 0 | M20: =IF(INTRO!$E$38="Endemic", IF($H20>0, IF($H20=4,"Unknown", IF($H20=99,"Stopped", $D20)), 0),"Not required") -> 293611 | N20: =IF(INTRO!$E$40="Endemic", IF($I20>0, IF($I20=4,"Unknown",IF($I20=99,"Stopped", $D20)), 0),"Not required") -> 293611 | O20: =IF(INTRO!$E$42="Endemic", IF(AND($J20>1,$J20<5), IF($J20=4, "Unknown", E20+F20), 0),"Not required") -> 137997 | P20: =IF(INTRO!$E$44="Endemic", IF(AND($K20>0,$K20<5), IF($K20=4,"Unknown", IF($K20=1, $F20*0.33, IF($K20=2, $F20*0.5+$G20*0.2, SUM(F20:G20)))), 0),"Not required") -> 0 | Q20: 1 | R20: 1 | S20: 1 | T20: 0 | U20: MDA1 (IVM+ALB) | Y20: 13901 | Z20: Basankusu | AD20: ='MDA1'!K20 -> 97421 | AE20: ='MDA4'!K20 -> 0 | AF20: ='MDA3'!I20 -> 0 | AG20: ='T1'!M20 -> 0 | AH20: ='T2'!K20 -> 0 | AI20: =T3_R1!L20 -> 0 | AK20: ='MDA3'!L20 -> 0 | AN20: =_xlfn.XLOOKUP($Y20,[1]COUNTRY_INFO!$Y$9:$Y$527,[1]COUNTRY_INFO!D$9:D$527) -> 285059 | AO20: =_xlfn.XLOOKUP($Y20,[1]COUNTRY_INFO!$Y$9:$Y$527,[1]COUNTRY_INFO!E$9:E$527) -> 34491.699 | AP20: =_xlfn.XLOOKUP($Y20,[1]COUNTRY_INFO!$Y$9:$Y$527,[1]COUNTRY_INFO!F$9:F$527) -> 98889 | AQ20: =_xlfn.XLOOKUP($Y20,[1]COUNTRY_INFO!$Y$9:$Y$527,[1]COUNTRY_INFO!G$9:G$527) -> 140561 | AR20: 3.000080685 | AS20: 2.149215671 | AT20: 3.918534923 | AU20: 2.353426626 | AY20: 1 | AZ20: 1 | BA20: 3 | BB20: 0 | BC20: 0 | BD20: TRUE | BE20: TRUE | BF20: TRUE | BG20: TRUE | BH20: TRUE
A21: =IF(INTRO!$E$34<>0,INTRO!$E$34,"") -> DRC | B21: EQUATEUR | C21: Bikoro | D21: 182558 | E21: 21907 | F21: 63895 | G21: 89453.72 | H21: 1 | I21: 4 | J21: 3 | K21: 1 | L21: 1 | M21: =IF(INTRO!$E$38="Endemic", IF($H21>0, IF($H21=4,"Unknown", IF($H21=99,"Stopped", $D21)), 0),"Not required") -> 182558 | N21: =IF(INTRO!$E$40="Endemic", IF($I21>0, IF($I21=4,"Unknown",IF($I21=99,"Stopped", $D21)), 0),"Not required") -> Unknown | O21: =IF(INTRO!$E$42="Endemic", IF(AND($J21>1,$J21<5), IF($J21=4, "Unknown", E21+F21), 0),"Not required") -> 85802 | P21: =IF(INTRO!$E$44="Endemic", IF(AND($K21>0,$K21<5), IF($K21=4,"Unknown", IF($K21=1, $F21*0.33, IF($K21=2, $F21*0.5+$G21*0.2, SUM(F21:G21)))), 0),"Not required") -> 21085.35 | Q21: 1 | R21: 0 | S21: 2 | T21: 0 | U21: MDA4 (ALB/2*ALB) | Y21: 13902 | Z21: Bikoro | AD21: ='MDA1'!K21 -> 0 | AE21: ='MDA4'!K21 -> 59971 | AF21: ='MDA3'!I21 -> 0 | AG21: ='T1'!M21 -> 0 | AH21: ='T2'!K21 -> 0 | AI21: =T3_R1!L21 -> 0 | AK21: ='MDA3'!L21 -> 0 | AN21: =_xlfn.XLOOKUP($Y21,[1]COUNTRY_INFO!$Y$9:$Y$527,[1]COUNTRY_INFO!D$9:D$527) -> 177241 | AO21: =_xlfn.XLOOKUP($Y21,[1]COUNTRY_INFO!$Y$9:$Y$527,[1]COUNTRY_INFO!E$9:E$527) -> 21446.161 | AP21: =_xlfn.XLOOKUP($Y21,[1]COUNTRY_INFO!$Y$9:$Y$527,[1]COUNTRY_INFO!F$9:F$527) -> 60536 | AQ21: =_xlfn.XLOOKUP($Y21,[1]COUNTRY_INFO!$Y$9:$Y$527,[1]COUNTRY_INFO!G$9:G$527) -> 88346.44 | AR21: 2.999870233 | AS21: 2.14881815 | AT21: 5.548764372 | AU21: 1.253338561 | AY21: 1 | AZ21: 4 | BA21: 3 | BB21: 1 | BC21: 1 | BD21: TRUE | BE21: TRUE | BF21: TRUE | BG21: TRUE | BH21: TRUE
A22: =IF(INTRO!$E$34<>0,INTRO!$E$34,"") -> DRC | B22: EQUATEUR | C22: Bolenge | D22: 122449 | E22: 14694 | F22: 42857 | G22: 60000 | H22: 0 | I22: 1 | J22: 3 | K22: 1 | L22: 0 | M22: =IF(INTRO!$E$38="Endemic", IF($H22>0, IF($H22=4,"Unknown", IF($H22=99,"Stopped", $D22)), 0),"Not required") -> 0 | N22: =IF(INTRO!$E$40="Endemic", IF($I22>0, IF($I22=4,"Unknown",IF($I22=99,"Stopped", $D22)), 0),"Not required") -> 122449 | O22: =IF(INTRO!$E$42="Endemic", IF(AND($J22>1,$J22<5), IF($J22=4, "Unknown", E22+F22), 0),"Not required") -> 57551 | P22: =IF(INTRO!$E$44="Endemic", IF(AND($K22>0,$K22<5), IF($K22=4,"Unknown", IF($K22=1, $F22*0.33, IF($K22=2, $F22*0.5+$G22*0.2, SUM(F22:G22)))), 0),"Not required") -> 14142.81 | Q22: 0 | R22: 1 | S22: 1 | T22: 0 | U22: MDA3 (IVM) | V22: T3 (ALB/MBD) | Y22: 13909 | Z22: Bolenge | AD22: ='MDA1'!K22 -> 0 | AE22: ='MDA4'!K22 -> 0 | AF22: ='MDA3'!I22 -> 39006 | AG22: ='T1'!M22 -> 0 | AH22: ='T2'!K22 -> 0 | AI22: =T3_R1!L22 -> 33516 | AK22: ='MDA3'!L22 -> 0 | AN22: =_xlfn.XLOOKUP($Y22,[1]COUNTRY_INFO!$Y$9:$Y$527,[1]COUNTRY_INFO!D$9:D$527) -> 118883 | AO22: =_xlfn.XLOOKUP($Y22,[1]COUNTRY_INFO!$Y$9:$Y$527,[1]COUNTRY_INFO!E$9:E$527) -> 14384.563 | AP22: =_xlfn.XLOOKUP($Y22,[1]COUNTRY_INFO!$Y$9:$Y$527,[1]COUNTRY_INFO!F$9:F$527) -> 41166 | AQ22: =_xlfn.XLOOKUP($Y22,[1]COUNTRY_INFO!$Y$9:$Y$527,[1]COUNTRY_INFO!G$9:G$527) -> 58696 | AR22: 2.99958783 | AS22: 2.151174144 | AT22: 4.10775883 | AU22: 2.221616464 | AY22: 0 | AZ22: 1 | BA22: 3 | BB22: 1 | BC22: 0 | BD22: TRUE | BE22: TRUE | BF22: TRUE | BG22: TRUE | BH22: TRUE
A23: =IF(INTRO!$E$34<>0,INTRO!$E$34,"") -> DRC | B23: EQUATEUR | C23: Bolomba | D23: 332152 | E23: 39858 | F23: 116253 | G23: 162755 | H23: 1 | I23: 1 | J23: 3 | K23: 1 | L23: 0 | M23: =IF(INTRO!$E$38="Endemic", IF($H23>0, IF($H23=4,"Unknown", IF($H23=99,"Stopped", $D23)), 0),"Not required") -> 332152 | N23: =IF(INTRO!$E$40="Endemic", IF($I23>0, IF($I23=4,"Unknown",IF($I23=99,"Stopped", $D23)), 0),"Not required") -> 332152 | O23: =IF(INTRO!$E$42="Endemic", IF(AND($J23>1,$J23<5), IF($J23=4, "Unknown", E23+F23), 0),"Not required") -> 156111 | P23: =IF(INTRO!$E$44="Endemic", IF(AND($K23>0,$K23<5), IF($K23=4,"Unknown", IF($K23=1, $F23*0.33, IF($K23=2, $F23*0.5+$G23*0.2, SUM(F23:G23)))), 0),"Not required") -> 38363.49 | Q23: 1 | R23: 1 | S23: 1 | T23: 0 | U23: MDA1 (IVM+ALB) | Y23: 13910 | Z23: Bolomba | AD23: ='MDA1'!K23 -> 111198 | AE23: ='MDA4'!K23 -> 0 | AF23: ='MDA3'!I23 -> 0 | AG23: ='T1'!M23 -> 0 | AH23: ='T2'!K23 -> 0 | AI23: =T3_R1!L23 -> 0 | AK23: ='MDA3'!L23 -> 0 | AN23: =_xlfn.XLOOKUP($Y23,[1]COUNTRY_INFO!$Y$9:$Y$527,[1]COUNTRY_INFO!D$9:D$527) -> 322478 | AO23: =_xlfn.XLOOKUP($Y23,[1]COUNTRY_INFO!$Y$9:$Y$527,[1]COUNTRY_INFO!E$9:E$527) -> 39019.358 | AP23: =_xlfn.XLOOKUP($Y23,[1]COUNTRY_INFO!$Y$9:$Y$527,[1]COUNTRY_INFO!F$9:F$527) -> 112792 | AQ23: =_xlfn.XLOOKUP($Y23,[1]COUNTRY_INFO!$Y$9:$Y$527,[1]COUNTRY_INFO!G$9:G$527) -> 158090 | AR23: 2.999894566 | AS23: 2.14929728 | AT23: 3.068480034 | AU23: 2.950850781 | AY23: 1 | AZ23: 1 | BA23: 3 | BB23: 1 | BC23: 0 | BD23: TRUE | BE23: TRUE | BF23: TRUE | BG23: TRUE | BH23: TRUE
A24: =IF(INTRO!$E$34<>0,INTRO!$E$34,"") -> DRC | B24: EQUATEUR | C24: Bomongo | D24: 129999 | E24: 15600 | F24: 45500 | G24: 63699.16 | H24: 1 | I24: 4 | J24: 2 | K24: 2 | L24: 1 | M24: =IF(INTRO!$E$38="Endemic", IF($H24>0, IF($H24=4,"Unknown", IF($H24=99,"Stopped", $D24)), 0),"Not required") -> 129999 | N24: =IF(INTRO!$E$40="Endemic", IF($I24>0, IF($I24=4,"Unknown",IF($I24=99,"Stopped", $D24)), 0),"Not required") -> Unknown | O24: =IF(INTRO!$E$42="Endemic", IF(AND($J24>1,$J24<5), IF($J24=4, "Unknown", E24+F24), 0),"Not required") -> 61100 | P24: =IF(INTRO!$E$44="Endemic", IF(AND($K24>0,$K24<5), IF($K24=4,"Unknown", IF($K24=1, $F24*0.33, IF($K24=2, $F24*0.5+$G24*0.2, SUM(F24:G24)))), 0),"Not required") -> 35489.832 | Q24: 1 | R24: 0 | S24: 2 | T24: 1 | U24: MDA4 (ALB/2*ALB) | V24: T2 (PZQ) | Y24: 13912 | Z24: Bomongo | AD24: ='MDA1'!K24 -> 0 | AE24: ='MDA4'!K24 -> 36510 | AF24: ='MDA3'!I24 -> 0 | AG24: ='T1'!M24 -> 0 | AH24: ='T2'!K24 -> 43355 | AI24: =T3_R1!L24 -> 0 | AK24: ='MDA3'!L24 -> 0 | AN24: =_xlfn.XLOOKUP($Y24,[1]COUNTRY_INFO!$Y$9:$Y$527,[1]COUNTRY_INFO!D$9:D$527) -> 126213 | AO24: =_xlfn.XLOOKUP($Y24,[1]COUNTRY_INFO!$Y$9:$Y$527,[1]COUNTRY_INFO!E$9:E$527) -> 15271.773 | AP24: =_xlfn.XLOOKUP($Y24,[1]COUNTRY_INFO!$Y$9:$Y$527,[1]COUNTRY_INFO!F$9:F$527) -> 44259 | AQ24: =_xlfn.XLOOKUP($Y24,[1]COUNTRY_INFO!$Y$9:$Y$527,[1]COUNTRY_INFO!G$9:G$527) -> 61759.92 | AR24: 2.999690999 | AS24: 2.149239646 | AT24: 2.803949479 | AU24: 3.139965207 | AY24: 1 | AZ24: 4 | BA24: 2 | BB24: 2 | BC24: 1 | BD24: TRUE | BE24: TRUE | BF24: TRUE | BG24: TRUE | BH24: TRUE
A25: =IF(INTRO!$E$34<>0,INTRO!$E$34,"") -> DRC | B25: EQUATEUR | C25: Djombo | D25: 148706 | E25: 17845 | F25: 52047 | G25: 72866 | H25: 1 | I25: 1 | J25: 3 | K25: 1 | L25: 0 | M25: =IF(INTRO!$E$38="Endemic", IF($H25>0, IF($H25=4,"Unknown", IF($H25=99,"Stopped", $D25)), 0),"Not required") -> 148706 | N25: =IF(INTRO!$E$40="Endemic", IF($I25>0, IF($I25=4,"Unknown",IF($I25=99,"Stopped", $D25)), 0),"Not required") -> 148706 | O25: =IF(INTRO!$E$42="Endemic", IF(AND($J25>1,$J25<5), IF($J25=4, "Unknown", E25+F25), 0),"Not required") -> 69892 | P25: =IF(INTRO!$E$44="Endemic", IF(AND($K25>0,$K25<5), IF($K25=4,"Unknown", IF($K25=1, $F25*0.33, IF($K25=2, $F25*0.5+$G25*0.2, SUM(F25:G25)))), 0),"Not required") -> 17175.51 | Q25: 1 | R25: 1 | S25: 1 | T25: 0 | U25: MDA1 (IVM+ALB) | Y25: 13925 | Z25: Djombo | AD25: ='MDA1'!K25 -> 51653 | AE25: ='MDA4'!K25 -> 0 | AF25: ='MDA3'!I25 -> 0 | AG25: ='T1'!M25 -> 0 | AH25: ='T2'!K25 -> 0 | AI25: =T3_R1!L25 -> 0 | AK25: ='MDA3'!L25 -> 0 | AN25: =_xlfn.XLOOKUP($Y25,[1]COUNTRY_INFO!$Y$9:$Y$527,[1]COUNTRY_INFO!D$9:D$527) -> 144375 | AO25: =_xlfn.XLOOKUP($Y25,[1]COUNTRY_INFO!$Y$9:$Y$527,[1]COUNTRY_INFO!E$9:E$527) -> 17469.375 | AP25: =_xlfn.XLOOKUP($Y25,[1]COUNTRY_INFO!$Y$9:$Y$527,[1]COUNTRY_INFO!F$9:F$527) -> 47327 | AQ25: =_xlfn.XLOOKUP($Y25,[1]COUNTRY_INFO!$Y$9:$Y$527,[1]COUNTRY_INFO!G$9:G$527) -> 73948 | AR25: 2.99982684 | AS25: 2.150191406 | AT25: 9.973165424 | AU25: -1.46319035 | AY25: 1 | AZ25: 1 | BA25: 3 | BB25: 1 | BC25: 0 | BD25: TRUE | BE25: TRUE | BF25: TRUE | BG25: TRUE | BH25: TRUE
A26: =IF(INTRO!$E$34<>0,INTRO!$E$34,"") -> DRC | B26: EQUATEUR | C26: Iboko | D26: 138962 | E26: 16675 | F26: 48637 | G26: 68091 | H26: 0 | I26: 4 | J26: 2 | K26: 1 | L26: 0 | M26: =IF(INTRO!$E$38="Endemic", IF($H26>0, IF($H26=4,"Unknown", IF($H26=99,"Stopped", $D26)), 0),"Not required") -> 0 | N26: =IF(INTRO!$E$40="Endemic", IF($I26>0, IF($I26=4,"Unknown",IF($I26=99,"Stopped", $D26)), 0),"Not required") -> Unknown | O26: =IF(INTRO!$E$42="Endemic", IF(AND($J26>1,$J26<5), IF($J26=4, "Unknown", E26+F26), 0),"Not required") -> 65312 | P26: =IF(INTRO!$E$44="Endemic", IF(AND($K26>0,$K26<5), IF($K26=4,"Unknown", IF($K26=1, $F26*0.33, IF($K26=2, $F26*0.5+$G26*0.2, SUM(F26:G26)))), 0),"Not required") -> 16050.21 | Q26: 0 | R26: 0 | S26: 1 | T26: 0 | U26: T3 (ALB/MBD) | Y26: 13928 | Z26: Iboko | AD26: ='MDA1'!K26 -> 0 | AE26: ='MDA4'!K26 -> 0 | AF26: ='MDA3'!I26 -> 0 | AG26: ='T1'!M26 -> 0 | AH26: ='T2'!K26 -> 0 | AI26: =T3_R1!L26 -> 39274 | AK26: ='MDA3'!L26 -> 0 | AN26: =_xlfn.XLOOKUP($Y26,[1]COUNTRY_INFO!$Y$9:$Y$527,[1]COUNTRY_INFO!D$9:D$527) -> 134915 | AO26: =_xlfn.XLOOKUP($Y26,[1]COUNTRY_INFO!$Y$9:$Y$527,[1]COUNTRY_INFO!E$9:E$527) -> 16324.315 | AP26: =_xlfn.XLOOKUP($Y26,[1]COUNTRY_INFO!$Y$9:$Y$527,[1]COUNTRY_INFO!F$9:F$527) -> 47288 | AQ26: =_xlfn.XLOOKUP($Y26,[1]COUNTRY_INFO!$Y$9:$Y$527,[1]COUNTRY_INFO!G$9:G$527) -> 66041 | AR26: 2.999666457 | AS26: 2.148237154 | AT26: 2.852732194 | AU26: 3.104132281 | AY26: 0 | AZ26: 4 | BA26: 2 | BB26: 1 | BC26: 0 | BD26: TRUE | BE26: TRUE | BF26: TRUE | BG26: TRUE | BH26: TRUE
A27: =IF(INTRO!$E$34<>0,INTRO!$E$34,"") -> DRC | B27: EQUATEUR | C27: Ingende | D27: 180753 | E27: 21690 | F27: 63264 | G27: 88569 | H27: 1 | I27: 1 | J27: 3 | K27: 1 | L27: 0 | M27: =IF(INTRO!$E$38="Endemic", IF($H27>0, IF($H27=4,"Unknown", IF($H27=99,"Stopped", $D27)), 0),"Not required") -> 180753 | N27: =IF(INTRO!$E$40="Endemic", IF($I27>0, IF($I27=4,"Unknown",IF($I27=99,"Stopped", $D27)), 0),"Not required") -> 180753 | O27: =IF(INTRO!$E$42="Endemic", IF(AND($J27>1,$J27<5), IF($J27=4, "Unknown", E27+F27), 0),"Not required") -> 84954 | P27: =IF(INTRO!$E$44="Endemic", IF(AND($K27>0,$K27<5), IF($K27=4,"Unknown", IF($K27=1, $F27*0.33, IF($K27=2, $F27*0.5+$G27*0.2, SUM(F27:G27)))), 0),"Not required") -> 20877.12 | Q27: 1 | R27: 1 | S27: 1 | T27: 0 | U27: MDA1 (IVM+ALB) | Y27: 13930 | Z27: Ingende | AD27: ='MDA1'!K27 -> 62747 | AE27: ='MDA4'!K27 -> 0 | AF27: ='MDA3'!I27 -> 0 | AG27: ='T1'!M27 -> 0 | AH27: ='T2'!K27 -> 0 | AI27: =T3_R1!L27 -> 0 | AK27: ='MDA3'!L27 -> 0 | AN27: =_xlfn.XLOOKUP($Y27,[1]COUNTRY_INFO!$Y$9:$Y$527,[1]COUNTRY_INFO!D$9:D$527) -> 175488 | AO27: =_xlfn.XLOOKUP($Y27,[1]COUNTRY_INFO!$Y$9:$Y$527,[1]COUNTRY_INFO!E$9:E$527) -> 21233.968 | AP27: =_xlfn.XLOOKUP($Y27,[1]COUNTRY_INFO!$Y$9:$Y$527,[1]COUNTRY_INFO!F$9:F$527) -> 61623 | AQ27: =_xlfn.XLOOKUP($Y27,[1]COUNTRY_INFO!$Y$9:$Y$527,[1]COUNTRY_INFO!G$9:G$527) -> 85787 | AR27: 3.000205142 | AS27: 2.147653232 | AT27: 2.662966749 | AU27: 3.242915593 | AY27: 1 | AZ27: 1 | BA27: 3 | BB27: 1 | BC27: 0 | BD27: TRUE | BE27: TRUE | BF27: TRUE | BG27: TRUE | BH27: TRUE
A28: =IF(INTRO!$E$34<>0,INTRO!$E$34,"") -> DRC | B28: EQUATEUR | C28: Irebu | D28: 47936 | E28: 5752 | F28: 16778 | G28: 23488 | H28: 0 | I28: 4 | J28: 1 | K28: 1 | L28: 0 | M28: =IF(INTRO!$E$38="Endemic", IF($H28>0, IF($H28=4,"Unknown", IF($H28=99,"Stopped", $D28)), 0),"Not required") -> 0 | N28: =IF(INTRO!$E$40="Endemic", IF($I28>0, IF($I28=4,"Unknown",IF($I28=99,"Stopped", $D28)), 0),"Not required") -> Unknown | O28: =IF(INTRO!$E$42="Endemic", IF(AND($J28>1,$J28<5), IF($J28=4, "Unknown", E28+F28), 0),"Not required") -> 0 | P28: =IF(INTRO!$E$44="Endemic", IF(AND($K28>0,$K28<5), IF($K28=4,"Unknown", IF($K28=1, $F28*0.33, IF($K28=2, $F28*0.5+$G28*0.2, SUM(F28:G28)))), 0),"Not required") -> 5536.74 | Q28: 0 | R28: 0 | S28: 0 | T28: 0 | Y28: 13931 | Z28: Irebu | AD28: ='MDA1'!K28 -> 0 | AE28: ='MDA4'!K28 -> 0 | AF28: ='MDA3'!I28 -> 0 | AG28: ='T1'!M28 -> 0 | AH28: ='T2'!K28 -> 0 | AI28: =T3_R1!L28 -> 0 | AK28: ='MDA3'!L28 -> 0 | AN28: =_xlfn.XLOOKUP($Y28,[1]COUNTRY_INFO!$Y$9:$Y$527,[1]COUNTRY_INFO!D$9:D$527) -> 45184 | AO28: =_xlfn.XLOOKUP($Y28,[1]COUNTRY_INFO!$Y$9:$Y$527,[1]COUNTRY_INFO!E$9:E$527) -> 5466.824 | AP28: =_xlfn.XLOOKUP($Y28,[1]COUNTRY_INFO!$Y$9:$Y$527,[1]COUNTRY_INFO!F$9:F$527) -> 15775 | AQ28: =_xlfn.XLOOKUP($Y28,[1]COUNTRY_INFO!$Y$9:$Y$527,[1]COUNTRY_INFO!G$9:G$527) -> 22180 | AR28: 6.090651558 | AS28: 5.216484013 | AT28: 6.358161648 | AU28: 5.897204689 | AY28: 0 | AZ28: 4 | BA28: 1 | BB28: 1 | BC28: 0 | BD28: TRUE | BE28: TRUE | BF28: TRUE | BG28: TRUE | BH28: TRUE
A29: =IF(INTRO!$E$34<>0,INTRO!$E$34,"") -> DRC | B29: EQUATEUR | C29: Lilanga Bobangi | D29: 97453 | E29: 11694 | F29: 34109 | G29: 47752 | H29: 0 | I29: 4 | J29: 2 | K29: 2 | L29: 0 | M29: =IF(INTRO!$E$38="Endemic", IF($H29>0, IF($H29=4,"Unknown", IF($H29=99,"Stopped", $D29)), 0),"Not required") -> 0 | N29: =IF(INTRO!$E$40="Endemic", IF($I29>0, IF($I29=4,"Unknown",IF($I29=99,"Stopped", $D29)), 0),"Not required") -> Unknown | O29: =IF(INTRO!$E$42="Endemic", IF(AND($J29>1,$J29<5), IF($J29=4, "Unknown", E29+F29), 0),"Not required") -> 45803 | P29: =IF(INTRO!$E$44="Endemic", IF(AND($K29>0,$K29<5), IF($K29=4,"Unknown", IF($K29=1, $F29*0.33, IF($K29=2, $F29*0.5+$G29*0.2, SUM(F29:G29)))), 0),"Not required") -> 26604.9 | Q29: 0 | R29: 0 | S29: 1 | T29: 1 | U29: T1 (PZQ+ALB/MBD) | Y29: 13966 | Z29: Lilanga Bobangi | AD29: ='MDA1'!K29 -> 0 | AE29: ='MDA4'!K29 -> 0 | AF29: ='MDA3'!I29 -> 0 | AG29: ='T1'!M29 -> 33664 | AH29: ='T2'!K29 -> 0 | AI29: =T3_R1!L29 -> 0 | AK29: ='MDA3'!L29 -> 0 | AN29: =_xlfn.XLOOKUP($Y29,[1]COUNTRY_INFO!$Y$9:$Y$527,[1]COUNTRY_INFO!D$9:D$527) -> 97177 | AO29: =_xlfn.XLOOKUP($Y29,[1]COUNTRY_INFO!$Y$9:$Y$527,[1]COUNTRY_INFO!E$9:E$527) -> 11758.097 | AP29: =_xlfn.XLOOKUP($Y29,[1]COUNTRY_INFO!$Y$9:$Y$527,[1]COUNTRY_INFO!F$9:F$527) -> 34713 | AQ29: =_xlfn.XLOOKUP($Y29,[1]COUNTRY_INFO!$Y$9:$Y$527,[1]COUNTRY_INFO!G$9:G$527) -> 46916 | AR29: 0.2840178231 | AS29: -0.5451307299 | AT29: -1.739982139 | AU29: 1.781908091 | AY29: 0 | AZ29: 4 | BA29: 2 | BB29: 2 | BC29: 0 | BD29: TRUE | BE29: TRUE | BF29: TRUE | BG29: TRUE | BH29: TRUE
A30: =IF(INTRO!$E$34<>0,INTRO!$E$34,"") -> DRC | B30: EQUATEUR | C30: Lotumbe | D30: 133432 | E30: 16012 | F30: 46701 | G30: 65382 | H30: 0 | I30: 1 | J30: 3 | K30: 0 | L30: 0 | M30: =IF(INTRO!$E$38="Endemic", IF($H30>0, IF($H30=4,"Unknown", IF($H30=99,"Stopped", $D30)), 0),"Not required") -> 0 | N30: =IF(INTRO!$E$40="Endemic", IF($I30>0, IF($I30=4,"Unknown",IF($I30=99,"Stopped", $D30)), 0),"Not required") -> 133432 | O30: =IF(INTRO!$E$42="Endemic", IF(AND($J30>1,$J30<5), IF($J30=4, "Unknown", E30+F30), 0),"Not required") -> 62713 | P30: =IF(INTRO!$E$44="Endemic", IF(AND($K30>0,$K30<5), IF($K30=4,"Unknown", IF($K30=1, $F30*0.33, IF($K30=2, $F30*0.5+$G30*0.2, SUM(F30:G30)))), 0),"Not required") -> 0 | Q30: 0 | R30: 1 | S30: 1 | T30: 0 | U30: MDA3 (IVM) | V30: T3 (ALB/MBD) | Y30: 13939 | Z30: Lotumbe | AD30: ='MDA1'!K30 -> 0 | AE30: ='MDA4'!K30 -> 0 | AF30: ='MDA3'!I30 -> 46686 | AG30: ='T1'!M30 -> 0 | AH30: ='T2'!K30 -> 0 | AI30: =T3_R1!L30 -> 32400 | AK30: ='MDA3'!L30 -> 0 | AN30: =_xlfn.XLOOKUP($Y30,[1]COUNTRY_INFO!$Y$9:$Y$527,[1]COUNTRY_INFO!D$9:D$527) -> 141938 | AO30: =_xlfn.XLOOKUP($Y30,[1]COUNTRY_INFO!$Y$9:$Y$527,[1]COUNTRY_INFO!E$9:E$527) -> 17174.418 | AP30: =_xlfn.XLOOKUP($Y30,[1]COUNTRY_INFO!$Y$9:$Y$527,[1]COUNTRY_INFO!F$9:F$527) -> 49413 | AQ30: =_xlfn.XLOOKUP($Y30,[1]COUNTRY_INFO!$Y$9:$Y$527,[1]COUNTRY_INFO!G$9:G$527) -> 69815 | AR30: -5.992757401 | AS30: -6.768310868 | AT30: -5.488434218 | AU30: -6.34963833 | AY30: 0 | AZ30: 1 | BA30: 3 | BB30: 0 | BC30: 0 | BD30: TRUE | BE30: TRUE | BF30: TRUE | BG30: TRUE | BH30: TRUE
A31: =IF(INTRO!$E$34<>0,INTRO!$E$34,"") -> DRC | B31: EQUATEUR | C31: Lukolela | D31: 189722 | E31: 22767 | F31: 66403 | G31: 92963 | H31: 0 | I31: 4 | J31: 1 | K31: 2 | L31: 0 | M31: =IF(INTRO!$E$38="Endemic", IF($H31>0, IF($H31=4,"Unknown", IF($H31=99,"Stopped", $D31)), 0),"Not required") -> 0 | N31: =IF(INTRO!$E$40="Endemic", IF($I31>0, IF($I31=4,"Unknown",IF($I31=99,"Stopped", $D31)), 0),"Not required") -> Unknown | O31: u | P31: =IF(INTRO!$E$44="Endemic", IF(AND($K31>0,$K31<5), IF($K31=4,"Unknown", IF($K31=1, $F31*0.33, IF($K31=2, $F31*0.5+$G31*0.2, SUM(F31:G31)))), 0),"Not required") -> 51794.1 | Q31: 0 | R31: 0 | S31: 0 | T31: 1 | U31: T2 (PZQ) | Y31: 13940 | Z31: Lukolela | AD31: ='MDA1'!K31 -> 0 | AE31: ='MDA4'!K31 -> 0 | AF31: ='MDA3'!I31 -> 0 | AG31: ='T1'!M31 -> 0 | AH31: ='T2'!K31 -> 61638 | AI31: =T3_R1!L31 -> 0 | AK31: ='MDA3'!L31 -> 0 | AN31: =_xlfn.XLOOKUP($Y31,[1]COUNTRY_INFO!$Y$9:$Y$527,[1]COUNTRY_INFO!D$9:D$527) -> 178831 | AO31: =_xlfn.XLOOKUP($Y31,[1]COUNTRY_INFO!$Y$9:$Y$527,[1]COUNTRY_INFO!E$9:E$527) -> 21638.591 | AP31: =_xlfn.XLOOKUP($Y31,[1]COUNTRY_INFO!$Y$9:$Y$527,[1]COUNTRY_INFO!F$9:F$527) -> 62591 | AQ31: =_xlfn.XLOOKUP($Y31,[1]COUNTRY_INFO!$Y$9:$Y$527,[1]COUNTRY_INFO!G$9:G$527) -> 87627 | AR31: 6.09010742 | AS31: 5.214798875 | AT31: 6.090332476 | AU31: 6.089447316 | AY31: 0 | AZ31: 4 | BA31: 1 | BB31: 2 | BC31: 0 | BD31: TRUE | BE31: TRUE | BF31: TRUE | BG31: TRUE | BH31: TRUE
A32: =IF(INTRO!$E$34<>0,INTRO!$E$34,"") -> DRC | B32: EQUATEUR | C32: Makanza | D32: 146196 | E32: 17543 | F32: 51169 | G32: 71636 | H32: 0 | I32: 4 | J32: 2 | K32: 0 | L32: 0 | M32: =IF(INTRO!$E$38="Endemic", IF($H32>0, IF($H32=4,"Unknown", IF($H32=99,"Stopped", $D32)), 0),"Not required") -> 0 | N32: =IF(INTRO!$E$40="Endemic", IF($I32>0, IF($I32=4,"Unknown",IF($I32=99,"Stopped", $D32)), 0),"Not required") -> Unknown | O32: =IF(INTRO!$E$42="Endemic", IF(AND($J32>1,$J32<5), IF($J32=4, "Unknown", E32+F32), 0),"Not required") -> 68712 | P32: =IF(INTRO!$E$44="Endemic", IF(AND($K32>0,$K32<5), IF($K32=4,"Unknown", IF($K32=1, $F32*0.33, IF($K32=2, $F32*0.5+$G32*0.2, SUM(F32:G32)))), 0),"Not required") -> 0 | Q32: 0 | R32: 0 | S32: 1 | T32: 0 | U32: T3 (ALB/MBD) | Y32: 13942 | Z32: Makanza | AD32: ='MDA1'!K32 -> 0 | AE32: ='MDA4'!K32 -> 0 | AF32: ='MDA3'!I32 -> 0 | AG32: ='T1'!M32 -> 0 | AH32: ='T2'!K32 -> 0 | AI32: =T3_R1!L32 -> 41937 | AK32: ='MDA3'!L32 -> 0 | AN32: =_xlfn.XLOOKUP($Y32,[1]COUNTRY_INFO!$Y$9:$Y$527,[1]COUNTRY_INFO!D$9:D$527) -> 140116 | AO32: =_xlfn.XLOOKUP($Y32,[1]COUNTRY_INFO!$Y$9:$Y$527,[1]COUNTRY_INFO!E$9:E$527) -> 16954.476 | AP32: =_xlfn.XLOOKUP($Y32,[1]COUNTRY_INFO!$Y$9:$Y$527,[1]COUNTRY_INFO!F$9:F$527) -> 47517 | AQ32: =_xlfn.XLOOKUP($Y32,[1]COUNTRY_INFO!$Y$9:$Y$527,[1]COUNTRY_INFO!G$9:G$527) -> 70180 | AR32: 4.339261755 | AS32: 3.471201351 | AT32: 7.685670392 | AU32: 2.074665147 | AY32: 0 | AZ32: 4 | BA32: 2 | BB32: 0 | BC32: 0 | BD32: TRUE | BE32: TRUE | BF32: TRUE | BG32: TRUE | BH32: TRUE
A33: =IF(INTRO!$E$34<>0,INTRO!$E$34,"") -> DRC | B33: EQUATEUR | C33: Mampoko | D33: 146196 | E33: 18640 | F33: 51169 | G33: 70174 | H33: 1 | I33: 1 | J33: 0 | K33: 0 | L33: 0 | M33: =IF(INTRO!$E$38="Endemic", IF($H33>0, IF($H33=4,"Unknown", IF($H33=99,"Stopped", $D33)), 0),"Not required") -> 146196 | N33: =IF(INTRO!$E$40="Endemic", IF($I33>0, IF($I33=4,"Unknown",IF($I33=99,"Stopped", $D33)), 0),"Not required") -> 146196 | O33: =IF(INTRO!$E$42="Endemic", IF(AND($J33>1,$J33<5), IF($J33=4, "Unknown", E33+F33), 0),"Not required") -> 0 | P33: =IF(INTRO!$E$44="Endemic", IF(AND($K33>0,$K33<5), IF($K33=4,"Unknown", IF($K33=1, $F33*0.33, IF($K33=2, $F33*0.5+$G33*0.2, SUM(F33:G33)))), 0),"Not required") -> 0 | Q33: 1 | R33: 1 | S33: 0 | T33: 0 | U33: MDA1 (IVM+ALB) | Y33: 13941 | Z33: Mampoko | AD33: ='MDA1'!K33 -> 46220 | AE33: ='MDA4'!K33 -> 0 | AF33: ='MDA3'!I33 -> 0 | AG33: ='T1'!M33 -> 0 | AH33: ='T2'!K33 -> 0 | AI33: =T3_R1!L33 -> 0 | AK33: ='MDA3'!L33 -> 0 | AN33: =_xlfn.XLOOKUP($Y33,[1]COUNTRY_INFO!$Y$9:$Y$527,[1]COUNTRY_INFO!D$9:D$527) -> 129546 | AO33: =_xlfn.XLOOKUP($Y33,[1]COUNTRY_INFO!$Y$9:$Y$527,[1]COUNTRY_INFO!E$9:E$527) -> 16970.706 | AP33: =_xlfn.XLOOKUP($Y33,[1]COUNTRY_INFO!$Y$9:$Y$527,[1]COUNTRY_INFO!F$9:F$527) -> 46235 | AQ33: =_xlfn.XLOOKUP($Y33,[1]COUNTRY_INFO!$Y$9:$Y$527,[1]COUNTRY_INFO!G$9:G$527) -> 61288 | AR33: 12.85257746 | AS33: 9.836326196 | AT33: 10.67156916 | AU33: 14.49875995 | AY33: 1 | AZ33: 1 | BA33: 0 | BB33: 0 | BC33: 0 | BD33: TRUE | BE33: TRUE | BF33: TRUE | BG33: TRUE | BH33: TRUE
A34: =IF(INTRO!$E$34<>0,INTRO!$E$34,"") -> DRC | B34: EQUATEUR | C34: Mbandaka | D34: 262696 | E34: 31523 | F34: 91944 | G34: 128720.64 | H34: 1 | I34: 4 | J34: 1 | K34: 1 | L34: 1 | M34: =IF(INTRO!$E$38="Endemic", IF($H34>0, IF($H34=4,"Unknown", IF($H34=99,"Stopped", $D34)), 0),"Not required") -> 262696 | N34: =IF(INTRO!$E$40="Endemic", IF($I34>0, IF($I34=4,"Unknown",IF($I34=99,"Stopped", $D34)), 0),"Not required") -> Unknown | O34: =IF(INTRO!$E$42="Endemic", IF(AND($J34>1,$J34<5), IF($J34=4, "Unknown", E34+F34), 0),"Not required") -> 0 | P34: =IF(INTRO!$E$44="Endemic", IF(AND($K34>0,$K34<5), IF($K34=4,"Unknown", IF($K34=1, $F34*0.33, IF($K34=2, $F34*0.5+$G34*0.2, SUM(F34:G34)))), 0),"Not required") -> 30341.52 | Q34: 1 | R34: 0 | S34: 0 | T34: 0 | U34: MDA4 (ALB/2*ALB) | Y34: 13944 | Z34: Mbandaka | AD34: ='MDA1'!K34 -> 0 | AE34: ='MDA4'!K34 -> 89891 | AF34: ='MDA3'!I34 -> 0 | AG34: ='T1'!M34 -> 0 | AH34: ='T2'!K34 -> 0 | AI34: =T3_R1!L34 -> 0 | AK34: ='MDA3'!L34 -> 0 | AN34: =_xlfn.XLOOKUP($Y34,[1]COUNTRY_INFO!$Y$9:$Y$527,[1]COUNTRY_INFO!D$9:D$527) -> 255045 | AO34: =_xlfn.XLOOKUP($Y34,[1]COUNTRY_INFO!$Y$9:$Y$527,[1]COUNTRY_INFO!E$9:E$527) -> 30860.445 | AP34: =_xlfn.XLOOKUP($Y34,[1]COUNTRY_INFO!$Y$9:$Y$527,[1]COUNTRY_INFO!F$9:F$527) -> 89621 | AQ34: =_xlfn.XLOOKUP($Y34,[1]COUNTRY_INFO!$Y$9:$Y$527,[1]COUNTRY_INFO!G$9:G$527) -> 124616.8 | AR34: 2.999862769 | AS34: 2.146939229 | AT34: 2.592026422 | AU34: 3.293167534 | AY34: 1 | AZ34: 4 | BA34: 1 | BB34: 1 | BC34: 1 | BD34: TRUE | BE34: TRUE | BF34: TRUE | BG34: TRUE | BH34: TRUE
A35: =IF(INTRO!$E$34<>0,INTRO!$E$34,"") -> DRC | B35: EQUATEUR | C35: Monieka | D35: 95689 | E35: 12200 | F35: 33491 | G35: 45931 | H35: 1 | I35: 1 | J35: 1 | K35: 1 | L35: 0 | M35: =IF(INTRO!$E$38="Endemic", IF($H35>0, IF($H35=4,"Unknown", IF($H35=99,"Stopped", $D35)), 0),"Not required") -> 95689 | N35: =IF(INTRO!$E$40="Endemic", IF($I35>0, IF($I35=4,"Unknown",IF($I35=99,"Stopped", $D35)), 0),"Not required") -> 95689 | O35: =IF(INTRO!$E$42="Endemic", IF(AND($J35>1,$J35<5), IF($J35=4, "Unknown", E35+F35), 0),"Not required") -> 0 | P35: =IF(INTRO!$E$44="Endemic", IF(AND($K35>0,$K35<5), IF($K35=4,"Unknown", IF($K35=1, $F35*0.33, IF($K35=2, $F35*0.5+$G35*0.2, SUM(F35:G35)))), 0),"Not required") -> 11052.03 | Q35: 1 | R35: 1 | S35: 0 | T35: 0 | U35: MDA1 (IVM+ALB) | Y35: 13950 | Z35: Monieka | AD35: ='MDA1'!K35 -> 33491 | AE35: ='MDA4'!K35 -> 0 | AF35: ='MDA3'!I35 -> 0 | AG35: ='T1'!M35 -> 0 | AH35: ='T2'!K35 -> 0 | AI35: =T3_R1!L35 -> 0 | AK35: ='MDA3'!L35 -> 0 | AN35: =_xlfn.XLOOKUP($Y35,[1]COUNTRY_INFO!$Y$9:$Y$527,[1]COUNTRY_INFO!D$9:D$527) -> 92902 | AO35: =_xlfn.XLOOKUP($Y35,[1]COUNTRY_INFO!$Y$9:$Y$527,[1]COUNTRY_INFO!E$9:E$527) -> 12169.822 | AP35: =_xlfn.XLOOKUP($Y35,[1]COUNTRY_INFO!$Y$9:$Y$527,[1]COUNTRY_INFO!F$9:F$527) -> 35829 | AQ35: =_xlfn.XLOOKUP($Y35,[1]COUNTRY_INFO!$Y$9:$Y$527,[1]COUNTRY_INFO!G$9:G$527) -> 41280 | AR35: 2.999935416 | AS35: 0.247974046 | AT35: -6.525440286 | AU35: 11.26695736 | AY35: 1 | AZ35: 1 | BA35: 1 | BB35: 1 | BC35: 0 | BD35: TRUE | BE35: TRUE | BF35: TRUE | BG35: TRUE | BH35: TRUE
A36: =IF(INTRO!$E$34<>0,INTRO!$E$34,"") -> DRC | B36: EQUATEUR | C36: Ntondo | D36: 82288 | E36: 9874 | F36: 28801 | G36: 40320.92 | H36: 1 | I36: 4 | J36: 3 | K36: 2 | L36: 1 | M36: =IF(INTRO!$E$38="Endemic", IF($H36>0, IF($H36=4,"Unknown", IF($H36=99,"Stopped", $D36)), 0),"Not required") -> 82288 | N36: =IF(INTRO!$E$40="Endemic", IF($I36>0, IF($I36=4,"Unknown",IF($I36=99,"Stopped", $D36)), 0),"Not required") -> Unknown | O36: =IF(INTRO!$E$42="Endemic", IF(AND($J36>1,$J36<5), IF($J36=4, "Unknown", E36+F36), 0),"Not required") -> 38675 | P36: =IF(INTRO!$E$44="Endemic", IF(AND($K36>0,$K36<5), IF($K36=4,"Unknown", IF($K36=1, $F36*0.33, IF($K36=2, $F36*0.5+$G36*0.2, SUM(F36:G36)))), 0),"Not required") -> 22464.684 | Q36: 1 | R36: 0 | S36: 2 | T36: 1 | U36: MDA4 (ALB/2*ALB) | V36: T2 (PZQ) | Y36: 13953 | Z36: Ntondo | AD36: ='MDA1'!K36 -> 0 | AE36: ='MDA4'!K36 -> 38014 | AF36: ='MDA3'!I36 -> 0 | AG36: ='T1'!M36 -> 0 | AH36: ='T2'!K36 -> 26620 | AI36: =T3_R1!L36 -> 0 | AK36: ='MDA3'!L36 -> 0 | AN36: =_xlfn.XLOOKUP($Y36,[1]COUNTRY_INFO!$Y$9:$Y$527,[1]COUNTRY_INFO!D$9:D$527) -> 79891 | AO36: =_xlfn.XLOOKUP($Y36,[1]COUNTRY_INFO!$Y$9:$Y$527,[1]COUNTRY_INFO!E$9:E$527) -> 9666.811 | AP36: =_xlfn.XLOOKUP($Y36,[1]COUNTRY_INFO!$Y$9:$Y$527,[1]COUNTRY_INFO!F$9:F$527) -> 27963 | AQ36: =_xlfn.XLOOKUP($Y36,[1]COUNTRY_INFO!$Y$9:$Y$527,[1]COUNTRY_INFO!G$9:G$527) -> 39145.44 | AR36: 3.00033796 | AS36: 2.143302481 | AT36: 2.996817223 | AU36: 3.00285295 | AY36: 1 | AZ36: 4 | BA36: 3 | BB36: 2 | BC36: 1 | BD36: TRUE | BE36: TRUE | BF36: TRUE | BG36: TRUE | BH36: TRUE
A37: =IF(INTRO!$E$34<>0,INTRO!$E$34,"") -> DRC | B37: EQUATEUR | C37: Wangata | D37: 198658 | E37: 23839 | F37: 69530 | G37: 97343 | H37: 1 | I37: 1 | J37: 3 | K37: 1 | L37: 0 | M37: =IF(INTRO!$E$38="Endemic", IF($H37>0, IF($H37=4,"Unknown", IF($H37=99,"Stopped", $D37)), 0),"Not required") -> 198658 | N37: =IF(INTRO!$E$40="Endemic", IF($I37>0, IF($I37=4,"Unknown",IF($I37=99,"Stopped", $D37)), 0),"Not required") -> 198658 | O37: =IF(INTRO!$E$42="Endemic", IF(AND($J37>1,$J37<5), IF($J37=4, "Unknown", E37+F37), 0),"Not required") -> 93369 | P37: =IF(INTRO!$E$44="Endemic", IF(AND($K37>0,$K37<5), IF($K37=4,"Unknown", IF($K37=1, $F37*0.33, IF($K37=2, $F37*0.5+$G37*0.2, SUM(F37:G37)))), 0),"Not required") -> 22944.9 | Q37: 1 | R37: 1 | S37: 1 | T37: 0 | U37: MDA1 (IVM+ALB) | Y37: 13957 | Z37: Wangata | AD37: ='MDA1'!K37 -> 64129 | AE37: ='MDA4'!K37 -> 0 | AF37: ='MDA3'!I37 -> 0 | AG37: ='T1'!M37 -> 0 | AH37: ='T2'!K37 -> 0 | AI37: =T3_R1!L37 -> 0 | AK37: ='MDA3'!L37 -> 0 | AN37: =_xlfn.XLOOKUP($Y37,[1]COUNTRY_INFO!$Y$9:$Y$527,[1]COUNTRY_INFO!D$9:D$527) -> 192872 | AO37: =_xlfn.XLOOKUP($Y37,[1]COUNTRY_INFO!$Y$9:$Y$527,[1]COUNTRY_INFO!E$9:E$527) -> 23337.992 | AP37: =_xlfn.XLOOKUP($Y37,[1]COUNTRY_INFO!$Y$9:$Y$527,[1]COUNTRY_INFO!F$9:F$527) -> 68299 | AQ37: =_xlfn.XLOOKUP($Y37,[1]COUNTRY_INFO!$Y$9:$Y$527,[1]COUNTRY_INFO!G$9:G$527) -> 93713 | AR37: 2.999917043 | AS37: 2.146748529 | AT37: 1.802368995 | AU37: 3.873528753 | AY37: 1 | AZ37: 1 | BA37: 3 | BB37: 1 | BC37: 0 | BD37: TRUE | BE37: TRUE | BF37: TRUE | BG37: TRUE | BH37: TRUE
A38: =IF(INTRO!$E$34<>0,INTRO!$E$34,"") -> DRC | B38: Haut Katanga | C38: Kafubu | D38: 127092 | E38: 15251 | F38: 34745 | G38: 72012 | H38: 0 | I38: 1 | J38: 1 | K38: 1 | L38: 0 | M38: =IF(INTRO!$E$38="Endemic", IF($H38>0, IF($H38=4,"Unknown", IF($H38=99,"Stopped", $D38)), 0),"Not required") -> 0 | N38: =IF(INTRO!$E$40="Endemic", IF($I38>0, IF($I38=4,"Unknown",IF($I38=99,"Stopped", $D38)), 0),"Not required") -> 127092 | O38: =IF(INTRO!$E$42="Endemic", IF(AND($J38>1,$J38<5), IF($J38=4, "Unknown", E38+F38), 0),"Not required") -> 0 | P38: =IF(INTRO!$E$44="Endemic", IF(AND($K38>0,$K38<5), IF($K38=4,"Unknown", IF($K38=1, $F38*0.33, IF($K38=2, $F38*0.5+$G38*0.2, SUM(F38:G38)))), 0),"Not required") -> 11465.85 | Q38: 0 | R38: 1 | S38: 0 | T38: 0 | U38: MDA3 (IVM) | Y38: 14071 | Z38: Kafubu | AD38: ='MDA1'!K38 -> 0 | AE38: ='MDA4'!K38 -> 0 | AF38: ='MDA3'!I38 -> 34745 | AG38: ='T1'!M38 -> 0 | AH38: ='T2'!K38 -> 0 | AI38: =T3_R1!L38 -> 0 | AK38: ='MDA3'!L38 -> 0 | AN38: =_xlfn.XLOOKUP($Y38,[1]COUNTRY_INFO!$Y$9:$Y$527,[1]COUNTRY_INFO!D$9:D$527) -> 121860 | AO38: =_xlfn.XLOOKUP($Y38,[1]COUNTRY_INFO!$Y$9:$Y$527,[1]COUNTRY_INFO!E$9:E$527) -> 14745.46 | AP38: =_xlfn.XLOOKUP($Y38,[1]COUNTRY_INFO!$Y$9:$Y$527,[1]COUNTRY_INFO!F$9:F$527) -> 46142 | AQ38: =_xlfn.XLOOKUP($Y38,[1]COUNTRY_INFO!$Y$9:$Y$527,[1]COUNTRY_INFO!G$9:G$527) -> 56220 | AR38: 4.293451502 | AS38: 3.428445094 | AT38: -24.69983963 | AU38: 28.08964781 | AY38: 0 | AZ38: 1 | BA38: 1 | BB38: 1 | BC38: 0 | BD38: TRUE | BE38: TRUE | BF38: TRUE | BG38: TRUE | BH38: TRUE
A39: =IF(INTRO!$E$34<>0,INTRO!$E$34,"") -> DRC | B39: Haut Katanga | C39: Kamalondo | D39: 60712 | E39: 7285 | F39: 25860 | G39: 25138 | H39: 0 | I39: 4 | J39: 2 | K39: 1 | L39: 0 | M39: =IF(INTRO!$E$38="Endemic", IF($H39>0, IF($H39=4,"Unknown", IF($H39=99,"Stopped", $D39)), 0),"Not required") -> 0 | N39: =IF(INTRO!$E$40="Endemic", IF($I39>0, IF($I39=4,"Unknown",IF($I39=99,"Stopped", $D39)), 0),"Not required") -> Unknown | O39: =IF(INTRO!$E$42="Endemic", IF(AND($J39>1,$J39<5), IF($J39=4, "Unknown", E39+F39), 0),"Not required") -> 33145 | P39: =IF(INTRO!$E$44="Endemic", IF(AND($K39>0,$K39<5), IF($K39=4,"Unknown", IF($K39=1, $F39*0.33, IF($K39=2, $F39*0.5+$G39*0.2, SUM(F39:G39)))), 0),"Not required") -> 8533.8 | Q39: 0 | R39: 0 | S39: 1 | T39: 0 | U39: T3 (ALB/MBD) | Y39: 14074 | Z39: Kamalondo | AD39: ='MDA1'!K39 -> 0 | AE39: ='MDA4'!K39 -> 0 | AF39: ='MDA3'!I39 -> 0 | AG39: ='T1'!M39 -> 0 | AH39: ='T2'!K39 -> 0 | AI39: =T3_R1!L39 -> 24839 | AK39: ='MDA3'!L39 -> 0 | AN39: =_xlfn.XLOOKUP($Y39,[1]COUNTRY_INFO!$Y$9:$Y$527,[1]COUNTRY_INFO!D$9:D$527) -> 57227 | AO39: =_xlfn.XLOOKUP($Y39,[1]COUNTRY_INFO!$Y$9:$Y$527,[1]COUNTRY_INFO!E$9:E$527) -> 6924.147 | AP39: =_xlfn.XLOOKUP($Y39,[1]COUNTRY_INFO!$Y$9:$Y$527,[1]COUNTRY_INFO!F$9:F$527) -> 25911 | AQ39: =_xlfn.XLOOKUP($Y39,[1]COUNTRY_INFO!$Y$9:$Y$527,[1]COUNTRY_INFO!G$9:G$527) -> 22160 | AR39: 6.089782795 | AS39: 5.211515585 | AT39: -0.1968276022 | AU39: 13.43862816 | AY39: 0 | AZ39: 4 | BA39: 2 | BB39: 1 | BC39: 0 | BD39: TRUE | BE39: TRUE | BF39: TRUE | BG39: TRUE | BH39: TRUE
A40: =IF(INTRO!$E$34<>0,INTRO!$E$34,"") -> DRC | B40: Haut Katanga | C40: Kambove | D40: 146790 | E40: 17614 | F40: 51377 | G40: 71927 | H40: 0 | I40: 4 | J40: 1 | K40: 0 | L40: 0 | M40: =IF(INTRO!$E$38="Endemic", IF($H40>0, IF($H40=4,"Unknown", IF($H40=99,"Stopped", $D40)), 0),"Not required") -> 0 | N40: =IF(INTRO!$E$40="Endemic", IF($I40>0, IF($I40=4,"Unknown",IF($I40=99,"Stopped", $D40)), 0),"Not required") -> Unknown | O40: =IF(INTRO!$E$42="Endemic", IF(AND($J40>1,$J40<5), IF($J40=4, "Unknown", E40+F40), 0),"Not required") -> 0 | P40: =IF(INTRO!$E$44="Endemic", IF(AND($K40>0,$K40<5), IF($K40=4,"Unknown", IF($K40=1, $F40*0.33, IF($K40=2, $F40*0.5+$G40*0.2, SUM(F40:G40)))), 0),"Not required") -> 0 | Q40: 0 | R40: 0 | S40: 0 | T40: 0 | Y40: 14075 | Z40: Kambove | AD40: ='MDA1'!K40 -> 0 | AE40: ='MDA4'!K40 -> 0 | AF40: ='MDA3'!I40 -> 0 | AG40: ='T1'!M40 -> 0 | AH40: ='T2'!K40 -> 0 | AI40: =T3_R1!L40 -> 0 | AK40: ='MDA3'!L40 -> 0 | AN40: =_xlfn.XLOOKUP($Y40,[1]COUNTRY_INFO!$Y$9:$Y$527,[1]COUNTRY_INFO!D$9:D$527) -> 138364 | AO40: =_xlfn.XLOOKUP($Y40,[1]COUNTRY_INFO!$Y$9:$Y$527,[1]COUNTRY_INFO!E$9:E$527) -> 16741.804 | AP40: =_xlfn.XLOOKUP($Y40,[1]COUNTRY_INFO!$Y$9:$Y$527,[1]COUNTRY_INFO!F$9:F$527) -> 48427 | AQ40: =_xlfn.XLOOKUP($Y40,[1]COUNTRY_INFO!$Y$9:$Y$527,[1]COUNTRY_INFO!G$9:G$527) -> 67799 | AR40: 6.089734324 | AS40: 5.20968947 | AT40: 6.091643092 | AU40: 6.088585377 | AY40: 0 | AZ40: 4 | BA40: 1 | BB40: 0 | BC40: 0 | BD40: TRUE | BE40: TRUE | BF40: TRUE | BG40: TRUE | BH40: TRUE
A41: =IF(INTRO!$E$34<>0,INTRO!$E$34,"") -> DRC | B41: Haut Katanga | C41: Kampemba | D41: 512293 | E41: 61475 | F41: 179303 | G41: 251023 | H41: 0 | I41: 4 | J41: 0 | K41: 2 | L41: 0 | M41: =IF(INTRO!$E$38="Endemic", IF($H41>0, IF($H41=4,"Unknown", IF($H41=99,"Stopped", $D41)), 0),"Not required") -> 0 | N41: =IF(INTRO!$E$40="Endemic", IF($I41>0, IF($I41=4,"Unknown",IF($I41=99,"Stopped", $D41)), 0),"Not required") -> Unknown | O41: =IF(INTRO!$E$42="Endemic", IF(AND($J41>1,$J41<5), IF($J41=4, "Unknown", E41+F41), 0),"Not required") -> 0 | P41: =IF(INTRO!$E$44="Endemic", IF(AND($K41>0,$K41<5), IF($K41=4,"Unknown", IF($K41=1, $F41*0.33, IF($K41=2, $F41*0.5+$G41*0.2, SUM(F41:G41)))), 0),"Not required") -> 139856.1 | Q41: 0 | R41: 0 | S41: 0 | T41: 1 | U41: T2 (PZQ) | Y41: 14080 | Z41: Kampemba | AD41: ='MDA1'!K41 -> 0 | AE41: ='MDA4'!K41 -> 0 | AF41: ='MDA3'!I41 -> 0 | AG41: ='T1'!M41 -> 0 | AH41: ='T2'!K41 -> 171115 | AI41: =T3_R1!L41 -> 0 | AK41: ='MDA3'!L41 -> 0 | AN41: =_xlfn.XLOOKUP($Y41,[1]COUNTRY_INFO!$Y$9:$Y$527,[1]COUNTRY_INFO!D$9:D$527) -> 482885 | AO41: =_xlfn.XLOOKUP($Y41,[1]COUNTRY_INFO!$Y$9:$Y$527,[1]COUNTRY_INFO!E$9:E$527) -> 58429.485 | AP41: =_xlfn.XLOOKUP($Y41,[1]COUNTRY_INFO!$Y$9:$Y$527,[1]COUNTRY_INFO!F$9:F$527) -> 169010 | AQ41: =_xlfn.XLOOKUP($Y41,[1]COUNTRY_INFO!$Y$9:$Y$527,[1]COUNTRY_INFO!G$9:G$527) -> 236613 | AR41: 6.090062851 | AS41: 5.212291363 | AT41: 6.090172179 | AU41: 6.090113392 | AY41: 0 | AZ41: 4 | BA41: 0 | BB41: 2 | BC41: 0 | BD41: TRUE | BE41: TRUE | BF41: TRUE | BG41: TRUE | BH41: TRUE
A42: =IF(INTRO!$E$34<>0,INTRO!$E$34,"") -> DRC | B42: Haut Katanga | C42: Kapolobwe | D42: 186468 | E42: 22376 | F42: 65264 | G42: 91369 | H42: 0 | I42: 4 | J42: 0 | K42: 2 | L42: 0 | M42: =IF(INTRO!$E$38="Endemic", IF($H42>0, IF($H42=4,"Unknown", IF($H42=99,"Stopped", $D42)), 0),"Not required") -> 0 | N42: =IF(INTRO!$E$40="Endemic", IF($I42>0, IF($I42=4,"Unknown",IF($I42=99,"Stopped", $D42)), 0),"Not required") -> Unknown | O42: =IF(INTRO!$E$42="Endemic", IF(AND($J42>1,$J42<5), IF($J42=4, "Unknown", E42+F42), 0),"Not required") -> 0 | P42: =IF(INTRO!$E$44="Endemic", IF(AND($K42>0,$K42<5), IF($K42=4,"Unknown", IF($K42=1, $F42*0.33, IF($K42=2, $F42*0.5+$G42*0.2, SUM(F42:G42)))), 0),"Not required") -> 50905.8 | Q42: 0 | R42: 0 | S42: 0 | T42: 0 | Y42: 14081 | Z42: Kapolobwe | AD42: ='MDA1'!K42 -> 0 | AE42: ='MDA4'!K42 -> 0 | AF42: ='MDA3'!I42 -> 0 | AG42: ='T1'!M42 -> 0 | AH42: ='T2'!K42 -> 0 | AI42: =T3_R1!L42 -> 0 | AK42: ='MDA3'!L42 -> 0 | AN42: =_xlfn.XLOOKUP($Y42,[1]COUNTRY_INFO!$Y$9:$Y$527,[1]COUNTRY_INFO!D$9:D$527) -> 186468 | AO42: =_xlfn.XLOOKUP($Y42,[1]COUNTRY_INFO!$Y$9:$Y$527,[1]COUNTRY_INFO!E$9:E$527) -> 22562.748 | AP42: =_xlfn.XLOOKUP($Y42,[1]COUNTRY_INFO!$Y$9:$Y$527,[1]COUNTRY_INFO!F$9:F$527) -> 76696 | AQ42: =_xlfn.XLOOKUP($Y42,[1]COUNTRY_INFO!$Y$9:$Y$527,[1]COUNTRY_INFO!G$9:G$527) -> 79937 | AR42: 0 | AS42: -0.8276828691 | AT42: -14.90560134 | AU42: 14.30126224 | AY42: 0 | AZ42: 4 | BA42: 0 | BB42: 2 | BC42: 0 | BD42: TRUE | BE42: TRUE | BF42: TRUE | BG42: TRUE | BH42: TRUE
A43: =IF(INTRO!$E$34<>0,INTRO!$E$34,"") -> DRC | B43: Haut Katanga | C43: Kasenga | D43: 191984 | E43: 23038 | F43: 67194 | G43: 94073 | H43: 99 | I43: 4 | J43: 1 | K43: 2 | L43: 0 | M43: =IF(INTRO!$E$38="Endemic", IF($H43>0, IF($H43=4,"Unknown", IF($H43=99,"Stopped", $D43)), 0),"Not required") -> Stopped | N43: =IF(INTRO!$E$40="Endemic", IF($I43>0, IF($I43=4,"Unknown",IF($I43=99,"Stopped", $D43)), 0),"Not required") -> Unknown | O43: =IF(INTRO!$E$42="Endemic", IF(AND($J43>1,$J43<5), IF($J43=4, "Unknown", E43+F43), 0),"Not required") -> 0 | P43: =IF(INTRO!$E$44="Endemic", IF(AND($K43>0,$K43<5), IF($K43=4,"Unknown", IF($K43=1, $F43*0.33, IF($K43=2, $F43*0.5+$G43*0.2, SUM(F43:G43)))), 0),"Not required") -> 52411.6 | Q43: 0 | R43: 0 | S43: 0 | T43: 0 | Y43: 14083 | Z43: Kasenga | AD43: ='MDA1'!K43 -> 0 | AE43: ='MDA4'!K43 -> 0 | AF43: ='MDA3'!I43 -> 0 | AG43: ='T1'!M43 -> 0 | AH43: ='T2'!K43 -> 0 | AI43: =T3_R1!L43 -> 0 | AK43: ='MDA3'!L43 -> 0 | AN43: =_xlfn.XLOOKUP($Y43,[1]COUNTRY_INFO!$Y$9:$Y$527,[1]COUNTRY_INFO!D$9:D$527) -> 180963 | AO43: =_xlfn.XLOOKUP($Y43,[1]COUNTRY_INFO!$Y$9:$Y$527,[1]COUNTRY_INFO!E$9:E$527) -> 21896.443 | AP43: =_xlfn.XLOOKUP($Y43,[1]COUNTRY_INFO!$Y$9:$Y$527,[1]COUNTRY_INFO!F$9:F$527) -> 62285 | AQ43: =_xlfn.XLOOKUP($Y43,[1]COUNTRY_INFO!$Y$9:$Y$527,[1]COUNTRY_INFO!G$9:G$527) -> 89724 | AR43: 6.090195233 | AS43: 5.213435808 | AT43: 7.881512403 | AU43: 4.847086621 | AY43: 99 | AZ43: 4 | BA43: 1 | BB43: 2 | BC43: 0 | BD43: TRUE | BE43: TRUE | BF43: TRUE | BG43: TRUE | BH43: TRUE
A44: =IF(INTRO!$E$34<>0,INTRO!$E$34,"") -> DRC | B44: Haut Katanga | C44: Kashobwe | D44: 189093 | E44: 22691 | F44: 66183 | G44: 92655 | H44: 0 | I44: 4 | J44: 1 | K44: 2 | L44: 0 | M44: =IF(INTRO!$E$38="Endemic", IF($H44>0, IF($H44=4,"Unknown", IF($H44=99,"Stopped", $D44)), 0),"Not required") -> 0 | N44: =IF(INTRO!$E$40="Endemic", IF($I44>0, IF($I44=4,"Unknown",IF($I44=99,"Stopped", $D44)), 0),"Not required") -> Unknown | O44: =IF(INTRO!$E$42="Endemic", IF(AND($J44>1,$J44<5), IF($J44=4, "Unknown", E44+F44), 0),"Not required") -> 0 | P44: =IF(INTRO!$E$44="Endemic", IF(AND($K44>0,$K44<5), IF($K44=4,"Unknown", IF($K44=1, $F44*0.33, IF($K44=2, $F44*0.5+$G44*0.2, SUM(F44:G44)))), 0),"Not required") -> 51622.5 | Q44: 0 | R44: 0 | S44: 0 | T44: 1 | U44: T2 (PZQ) | Y44: 14337 | Z44: Kashobwe | AD44: ='MDA1'!K44 -> 0 | AE44: ='MDA4'!K44 -> 0 | AF44: ='MDA3'!I44 -> 0 | AG44: ='T1'!M44 -> 0 | AH44: ='T2'!K44 -> 54807 | AI44: =T3_R1!L44 -> 0 | AK44: ='MDA3'!L44 -> 0 | AN44: =_xlfn.XLOOKUP($Y44,[1]COUNTRY_INFO!$Y$9:$Y$527,[1]COUNTRY_INFO!D$9:D$527) -> 178238 | AO44: =_xlfn.XLOOKUP($Y44,[1]COUNTRY_INFO!$Y$9:$Y$527,[1]COUNTRY_INFO!E$9:E$527) -> 21566.718 | AP44: =_xlfn.XLOOKUP($Y44,[1]COUNTRY_INFO!$Y$9:$Y$527,[1]COUNTRY_INFO!F$9:F$527) -> 62383 | AQ44: =_xlfn.XLOOKUP($Y44,[1]COUNTRY_INFO!$Y$9:$Y$527,[1]COUNTRY_INFO!G$9:G$527) -> 87337 | AR44: 6.090171568 | AS44: 5.213041688 | AT44: 6.091403107 | AU44: 6.08905733 | AY44: 0 | AZ44: 4 | BA44: 1 | BB44: 2 | BC44: 0 | BD44: TRUE | BE44: TRUE | BF44: TRUE | BG44: TRUE | BH44: TRUE
A45: =IF(INTRO!$E$34<>0,INTRO!$E$34,"") -> DRC | B45: Haut Katanga | C45: Katuba | D45: 222987 | E45: 35678 | F45: 68926 | G45: 118383 | H45: 0 | I45: 4 | J45: 2 | K45: 0 | L45: 0 | M45: =IF(INTRO!$E$38="Endemic", IF($H45>0, IF($H45=4,"Unknown", IF($H45=99,"Stopped", $D45)), 0),"Not required") -> 0 | N45: =IF(INTRO!$E$40="Endemic", IF($I45>0, IF($I45=4,"Unknown",IF($I45=99,"Stopped", $D45)), 0),"Not required") -> Unknown | O45: =IF(INTRO!$E$42="Endemic", IF(AND($J45>1,$J45<5), IF($J45=4, "Unknown", E45+F45), 0),"Not required") -> 104604 | P45: =IF(INTRO!$E$44="Endemic", IF(AND($K45>0,$K45<5), IF($K45=4,"Unknown", IF($K45=1, $F45*0.33, IF($K45=2, $F45*0.5+$G45*0.2, SUM(F45:G45)))), 0),"Not required") -> 0 | Q45: 0 | R45: 0 | S45: 1 | T45: 0 | U45: T3 (ALB/MBD) | Y45: 14085 | Z45: Katuba | AD45: ='MDA1'!K45 -> 0 | AE45: ='MDA4'!K45 -> 0 | AF45: ='MDA3'!I45 -> 0 | AG45: ='T1'!M45 -> 0 | AH45: ='T2'!K45 -> 0 | AI45: =T3_R1!L45 -> 65830 | AK45: ='MDA3'!L45 -> 0 | AN45: =_xlfn.XLOOKUP($Y45,[1]COUNTRY_INFO!$Y$9:$Y$527,[1]COUNTRY_INFO!D$9:D$527) -> 210187 | AO45: =_xlfn.XLOOKUP($Y45,[1]COUNTRY_INFO!$Y$9:$Y$527,[1]COUNTRY_INFO!E$9:E$527) -> 25432.707 | AP45: =_xlfn.XLOOKUP($Y45,[1]COUNTRY_INFO!$Y$9:$Y$527,[1]COUNTRY_INFO!F$9:F$527) -> 67893 | AQ45: =_xlfn.XLOOKUP($Y45,[1]COUNTRY_INFO!$Y$9:$Y$527,[1]COUNTRY_INFO!G$9:G$527) -> 108664 | AR45: 6.08981526 | AS45: 40.28392652 | AT45: 1.521511791 | AU45: 8.944084517 | AV45: pb | AY45: 0 | AZ45: 4 | BA45: 2 | BB45: 0 | BC45: 0 | BD45: TRUE | BE45: TRUE | BF45: TRUE | BG45: TRUE | BH45: TRUE
A46: =IF(INTRO!$E$34<>0,INTRO!$E$34,"") -> DRC | B46: Haut Katanga | C46: Kenya | D46: 220455 | E46: 28108 | F46: 78681 | G46: 104297 | H46: 1 | I46: 4 | J46: 1 | K46: 0 | L46: 0 | M46: =IF(INTRO!$E$38="Endemic", IF($H46>0, IF($H46=4,"Unknown", IF($H46=99,"Stopped", $D46)), 0),"Not required") -> 220455 | N46: =IF(INTRO!$E$40="Endemic", IF($I46>0, IF($I46=4,"Unknown",IF($I46=99,"Stopped", $D46)), 0),"Not required") -> Unknown | O46: =IF(INTRO!$E$42="Endemic", IF(AND($J46>1,$J46<5), IF($J46=4, "Unknown", E46+F46), 0),"Not required") -> 0 | P46: =IF(INTRO!$E$44="Endemic", IF(AND($K46>0,$K46<5), IF($K46=4,"Unknown", IF($K46=1, $F46*0.33, IF($K46=2, $F46*0.5+$G46*0.2, SUM(F46:G46)))), 0),"Not required") -> 0 | Q46: 1 | R46: 0 | S46: 0 | T46: 0 | U46: MDA1 (IVM+ALB) | Y46: 14087 | Z46: Kenya | AD46: ='MDA1'!K46 -> 76541 | AE46: ='MDA4'!K46 -> 0 | AF46: ='MDA3'!I46 -> 0 | AG46: ='T1'!M46 -> 0 | AH46: ='T2'!K46 -> 0 | AI46: =T3_R1!L46 -> 0 | AK46: ='MDA3'!L46 -> 0 | AN46: =_xlfn.XLOOKUP($Y46,[1]COUNTRY_INFO!$Y$9:$Y$527,[1]COUNTRY_INFO!D$9:D$527) -> 210712 | AO46: =_xlfn.XLOOKUP($Y46,[1]COUNTRY_INFO!$Y$9:$Y$527,[1]COUNTRY_INFO!E$9:E$527) -> 27603.232 | AP46: =_xlfn.XLOOKUP($Y46,[1]COUNTRY_INFO!$Y$9:$Y$527,[1]COUNTRY_INFO!F$9:F$527) -> 75203 | AQ46: =_xlfn.XLOOKUP($Y46,[1]COUNTRY_INFO!$Y$9:$Y$527,[1]COUNTRY_INFO!G$9:G$527) -> 99688 | AR46: 4.623846767 | AS46: 1.828655427 | AT46: 4.624815499 | AU46: 4.623425086 | AY46: 1 | AZ46: 4 | BA46: 1 | BB46: 0 | BC46: 0 | BD46: TRUE | BE46: TRUE | BF46: TRUE | BG46: TRUE | BH46: TRUE
A47: =IF(INTRO!$E$34<>0,INTRO!$E$34,"") -> DRC | B47: Haut Katanga | C47: Kikula | D47: 262530 | E47: 31504 | F47: 91886 | G47: 128639 | H47: 0 | I47: 4 | J47: 0 | K47: 1 | L47: 0 | M47: =IF(INTRO!$E$38="Endemic", IF($H47>0, IF($H47=4,"Unknown", IF($H47=99,"Stopped", $D47)), 0),"Not required") -> 0 | N47: =IF(INTRO!$E$40="Endemic", IF($I47>0, IF($I47=4,"Unknown",IF($I47=99,"Stopped", $D47)), 0),"Not required") -> Unknown | O47: =IF(INTRO!$E$42="Endemic", IF(AND($J47>1,$J47<5), IF($J47=4, "Unknown", E47+F47), 0),"Not required") -> 0 | P47: =IF(INTRO!$E$44="Endemic", IF(AND($K47>0,$K47<5), IF($K47=4,"Unknown", IF($K47=1, $F47*0.33, IF($K47=2, $F47*0.5+$G47*0.2, SUM(F47:G47)))), 0),"Not required") -> 30322.38 | Q47: 0 | R47: 0 | S47: 0 | T47: 0 | Y47: 14089 | Z47: Kikula | AD47: ='MDA1'!K47 -> 0 | AE47: ='MDA4'!K47 -> 0 | AF47: ='MDA3'!I47 -> 0 | AG47: ='T1'!M47 -> 0 | AH47: ='T2'!K47 -> 0 | AI47: =T3_R1!L47 -> 0 | AK47: ='MDA3'!L47 -> 0 | AN47: =_xlfn.XLOOKUP($Y47,[1]COUNTRY_INFO!$Y$9:$Y$527,[1]COUNTRY_INFO!D$9:D$527) -> 247460 | AO47: =_xlfn.XLOOKUP($Y47,[1]COUNTRY_INFO!$Y$9:$Y$527,[1]COUNTRY_INFO!E$9:E$527) -> 29943.06 | AP47: =_xlfn.XLOOKUP($Y47,[1]COUNTRY_INFO!$Y$9:$Y$527,[1]COUNTRY_INFO!F$9:F$527) -> 86611 | AQ47: =_xlfn.XLOOKUP($Y47,[1]COUNTRY_INFO!$Y$9:$Y$527,[1]COUNTRY_INFO!G$9:G$527) -> 121255 | AR47: 6.089873111 | AS47: 5.21302766 | AT47: 6.090450405 | AU47: 6.089645788 | AY47: 0 | AZ47: 4 | BA47: 0 | BB47: 1 | BC47: 0 | BD47: TRUE | BE47: TRUE | BF47: TRUE | BG47: TRUE | BH47: TRUE
A48: =IF(INTRO!$E$34<>0,INTRO!$E$34,"") -> DRC | B48: Haut Katanga | C48: Kilela Balanda | D48: 122333 | E48: 14680 | F48: 42817 | G48: 59943 | H48: 0 | I48: 4 | J48: 1 | K48: 1 | L48: 0 | M48: =IF(INTRO!$E$38="Endemic", IF($H48>0, IF($H48=4,"Unknown", IF($H48=99,"Stopped", $D48)), 0),"Not required") -> 0 | N48: =IF(INTRO!$E$40="Endemic", IF($I48>0, IF($I48=4,"Unknown",IF($I48=99,"Stopped", $D48)), 0),"Not required") -> Unknown | O48: =IF(INTRO!$E$42="Endemic", IF(AND($J48>1,$J48<5), IF($J48=4, "Unknown", E48+F48), 0),"Not required") -> 0 | P48: =IF(INTRO!$E$44="Endemic", IF(AND($K48>0,$K48<5), IF($K48=4,"Unknown", IF($K48=1, $F48*0.33, IF($K48=2, $F48*0.5+$G48*0.2, SUM(F48:G48)))), 0),"Not required") -> 14129.61 | Q48: 0 | R48: 0 | S48: 0 | T48: 0 | Y48: 14090 | Z48: Kilela Balanda | AD48: ='MDA1'!K48 -> 0 | AE48: ='MDA4'!K48 -> 0 | AF48: ='MDA3'!I48 -> 0 | AG48: ='T1'!M48 -> 0 | AH48: ='T2'!K48 -> 0 | AI48: =T3_R1!L48 -> 0 | AK48: ='MDA3'!L48 -> 0 | AN48: =_xlfn.XLOOKUP($Y48,[1]COUNTRY_INFO!$Y$9:$Y$527,[1]COUNTRY_INFO!D$9:D$527) -> 115311 | AO48: =_xlfn.XLOOKUP($Y48,[1]COUNTRY_INFO!$Y$9:$Y$527,[1]COUNTRY_INFO!E$9:E$527) -> 13952.871 | AP48: =_xlfn.XLOOKUP($Y48,[1]COUNTRY_INFO!$Y$9:$Y$527,[1]COUNTRY_INFO!F$9:F$527) -> 28604 | AQ48: =_xlfn.XLOOKUP($Y48,[1]COUNTRY_INFO!$Y$9:$Y$527,[1]COUNTRY_INFO!G$9:G$527) -> 68257 | AR48: 6.08961851 | AS48: 5.211321742 | AT48: 49.68885471 | AU48: -12.18043571 | AY48: 0 | AZ48: 4 | BA48: 1 | BB48: 1 | BC48: 0 | BD48: TRUE | BE48: TRUE | BF48: TRUE | BG48: TRUE | BH48: TRUE
A49: =IF(INTRO!$E$34<>0,INTRO!$E$34,"") -> DRC | B49: Haut Katanga | C49: Kilwa | D49: 383899 | E49: 46068 | F49: 134365 | G49: 188110 | H49: 1 | I49: 4 | J49: 1 | K49: 2 | L49: 0 | M49: =IF(INTRO!$E$38="Endemic", IF($H49>0, IF($H49=4,"Unknown", IF($H49=99,"Stopped", $D49)), 0),"Not required") -> 383899 | N49: =IF(INTRO!$E$40="Endemic", IF($I49>0, IF($I49=4,"Unknown",IF($I49=99,"Stopped", $D49)), 0),"Not required") -> Unknown | O49: =IF(INTRO!$E$42="Endemic", IF(AND($J49>1,$J49<5), IF($J49=4, "Unknown", E49+F49), 0),"Not required") -> 0 | P49: =IF(INTRO!$E$44="Endemic", IF(AND($K49>0,$K49<5), IF($K49=4,"Unknown", IF($K49=1, $F49*0.33, IF($K49=2, $F49*0.5+$G49*0.2, SUM(F49:G49)))), 0),"Not required") -> 104804.5 | Q49: 1 | R49: 0 | S49: 0 | T49: 0 | U49: MDA1 (IVM+ALB) | Y49: 14091 | Z49: Kilwa | AD49: ='MDA1'!K49 -> 134365 | AE49: ='MDA4'!K49 -> 0 | AF49: ='MDA3'!I49 -> 0 | AG49: ='T1'!M49 -> 0 | AH49: ='T2'!K49 -> 0 | AI49: =T3_R1!L49 -> 0 | AK49: ='MDA3'!L49 -> 0 | AN49: =_xlfn.XLOOKUP($Y49,[1]COUNTRY_INFO!$Y$9:$Y$527,[1]COUNTRY_INFO!D$9:D$527) -> 368449 | AO49: =_xlfn.XLOOKUP($Y49,[1]COUNTRY_INFO!$Y$9:$Y$527,[1]COUNTRY_INFO!E$9:E$527) -> 44582.489 | AP49: =_xlfn.XLOOKUP($Y49,[1]COUNTRY_INFO!$Y$9:$Y$527,[1]COUNTRY_INFO!F$9:F$527) -> 129071 | AQ49: =_xlfn.XLOOKUP($Y49,[1]COUNTRY_INFO!$Y$9:$Y$527,[1]COUNTRY_INFO!G$9:G$527) -> 180426 | AR49: 4.19325334 | AS49: 3.332050393 | AT49: 4.101618489 | AU49: 4.258809706 | AY49: 1 | AZ49: 4 | BA49: 1 | BB49: 2 | BC49: 0 | BD49: TRUE | BE49: TRUE | BF49: TRUE | BG49: TRUE | BH49: TRUE
A50: =IF(INTRO!$E$34<>0,INTRO!$E$34,"") -> DRC | B50: Haut Katanga | C50: Kipushi | D50: 212398 | E50: 25488 | F50: 74339 | G50: 104075 | H50: 1 | I50: 1 | J50: 1 | K50: 2 | L50: 0 | M50: =IF(INTRO!$E$38="Endemic", IF($H50>0, IF($H50=4,"Unknown", IF($H50=99,"Stopped", $D50)), 0),"Not required") -> 212398 | N50: =IF(INTRO!$E$40="Endemic", IF($I50>0, IF($I50=4,"Unknown",IF($I50=99,"Stopped", $D50)), 0),"Not required") -> 212398 | O50: =IF(INTRO!$E$42="Endemic", IF(AND($J50>1,$J50<5), IF($J50=4, "Unknown", E50+F50), 0),"Not required") -> 0 | P50: =IF(INTRO!$E$44="Endemic", IF(AND($K50>0,$K50<5), IF($K50=4,"Unknown", IF($K50=1, $F50*0.33, IF($K50=2, $F50*0.5+$G50*0.2, SUM(F50:G50)))), 0),"Not required") -> 57984.5 | Q50: 1 | R50: 1 | S50: 0 | T50: 0 | U50: MDA1 (IVM+ALB) | Y50: 14094 | Z50: Kipushi | AD50: ='MDA1'!K50 -> 74339 | AE50: ='MDA4'!K50 -> 0 | AF50: ='MDA3'!I50 -> 0 | AG50: ='T1'!M50 -> 0 | AH50: ='T2'!K50 -> 0 | AI50: =T3_R1!L50 -> 0 | AK50: ='MDA3'!L50 -> 0 | AN50: =_xlfn.XLOOKUP($Y50,[1]COUNTRY_INFO!$Y$9:$Y$527,[1]COUNTRY_INFO!D$9:D$527) -> 206276 | AO50: =_xlfn.XLOOKUP($Y50,[1]COUNTRY_INFO!$Y$9:$Y$527,[1]COUNTRY_INFO!E$9:E$527) -> 24959.236 | AP50: =_xlfn.XLOOKUP($Y50,[1]COUNTRY_INFO!$Y$9:$Y$527,[1]COUNTRY_INFO!F$9:F$527) -> 72139 | AQ50: =_xlfn.XLOOKUP($Y50,[1]COUNTRY_INFO!$Y$9:$Y$527,[1]COUNTRY_INFO!G$9:G$527) -> 101133 | AR50: 2.967868293 | AS50: 2.118510358 | AT50: 3.049668002 | AU50: 2.90904057 | AY50: 1 | AZ50: 1 | BA50: 1 | BB50: 2 | BC50: 0 | BD50: TRUE | BE50: TRUE | BF50: TRUE | BG50: TRUE | BH50: TRUE
A51: =IF(INTRO!$E$34<>0,INTRO!$E$34,"") -> DRC | B51: Haut Katanga | C51: Kisanga | D51: 352198 | E51: 44905 | F51: 125699 | G51: 166625 | H51: 1 | I51: 4 | J51: 1 | K51: 0 | L51: 0 | M51: =IF(INTRO!$E$38="Endemic", IF($H51>0, IF($H51=4,"Unknown", IF($H51=99,"Stopped", $D51)), 0),"Not required") -> 352198 | N51: =IF(INTRO!$E$40="Endemic", IF($I51>0, IF($I51=4,"Unknown",IF($I51=99,"Stopped", $D51)), 0),"Not required") -> Unknown | O51: =IF(INTRO!$E$42="Endemic", IF(AND($J51>1,$J51<5), IF($J51=4, "Unknown", E51+F51), 0),"Not required") -> 0 | P51: =IF(INTRO!$E$44="Endemic", IF(AND($K51>0,$K51<5), IF($K51=4,"Unknown", IF($K51=1, $F51*0.33, IF($K51=2, $F51*0.5+$G51*0.2, SUM(F51:G51)))), 0),"Not required") -> 0 | Q51: 1 | R51: 0 | S51: 0 | T51: 0 | U51: MDA1 (IVM+ALB) | Y51: 14095 | Z51: Kisanga | AD51: ='MDA1'!K51 -> 117792 | AE51: ='MDA4'!K51 -> 0 | AF51: ='MDA3'!I51 -> 0 | AG51: ='T1'!M51 -> 0 | AH51: ='T2'!K51 -> 0 | AI51: =T3_R1!L51 -> 0 | AK51: ='MDA3'!L51 -> 0 | AN51: =_xlfn.XLOOKUP($Y51,[1]COUNTRY_INFO!$Y$9:$Y$527,[1]COUNTRY_INFO!D$9:D$527) -> 333932 | AO51: =_xlfn.XLOOKUP($Y51,[1]COUNTRY_INFO!$Y$9:$Y$527,[1]COUNTRY_INFO!E$9:E$527) -> 43744.652 | AP51: =_xlfn.XLOOKUP($Y51,[1]COUNTRY_INFO!$Y$9:$Y$527,[1]COUNTRY_INFO!F$9:F$527) -> 119181 | AQ51: =_xlfn.XLOOKUP($Y51,[1]COUNTRY_INFO!$Y$9:$Y$527,[1]COUNTRY_INFO!G$9:G$527) -> 157983 | AR51: 5.469975923 | AS51: 2.652548247 | AT51: 5.468992541 | AU51: 5.47020882 | AY51: 1 | AZ51: 4 | BA51: 1 | BB51: 0 | BC51: 0 | BD51: TRUE | BE51: TRUE | BF51: TRUE | BG51: TRUE | BH51: TRUE
A52: =IF(INTRO!$E$34<>0,INTRO!$E$34,"") -> DRC | B52: Haut Katanga | C52: Kowe | D52: 59338 | E52: 9494 | F52: 24304 | G52: 28538 | H52: 0 | I52: 4 | J52: 2 | K52: 1 | L52: 0 | M52: =IF(INTRO!$E$38="Endemic", IF($H52>0, IF($H52=4,"Unknown", IF($H52=99,"Stopped", $D52)), 0),"Not required") -> 0 | N52: =IF(INTRO!$E$40="Endemic", IF($I52>0, IF($I52=4,"Unknown",IF($I52=99,"Stopped", $D52)), 0),"Not required") -> Unknown | O52: =IF(INTRO!$E$42="Endemic", IF(AND($J52>1,$J52<5), IF($J52=4, "Unknown", E52+F52), 0),"Not required") -> 33798 | P52: =IF(INTRO!$E$44="Endemic", IF(AND($K52>0,$K52<5), IF($K52=4,"Unknown", IF($K52=1, $F52*0.33, IF($K52=2, $F52*0.5+$G52*0.2, SUM(F52:G52)))), 0),"Not required") -> 8020.32 | Q52: 0 | R52: 0 | S52: 1 | T52: 0 | U52: T3 (ALB/MBD) | Y52: 14098 | Z52: Kowe | AD52: ='MDA1'!K52 -> 0 | AE52: ='MDA4'!K52 -> 0 | AF52: ='MDA3'!I52 -> 0 | AG52: ='T1'!M52 -> 0 | AH52: ='T2'!K52 -> 0 | AI52: =T3_R1!L52 -> 23698 | AK52: ='MDA3'!L52 -> 0 | AN52: =_xlfn.XLOOKUP($Y52,[1]COUNTRY_INFO!$Y$9:$Y$527,[1]COUNTRY_INFO!D$9:D$527) -> 55932 | AO52: =_xlfn.XLOOKUP($Y52,[1]COUNTRY_INFO!$Y$9:$Y$527,[1]COUNTRY_INFO!E$9:E$527) -> 6767.652 | AP52: =_xlfn.XLOOKUP($Y52,[1]COUNTRY_INFO!$Y$9:$Y$527,[1]COUNTRY_INFO!F$9:F$527) -> 19322 | AQ52: =_xlfn.XLOOKUP($Y52,[1]COUNTRY_INFO!$Y$9:$Y$527,[1]COUNTRY_INFO!G$9:G$527) -> 27661 | AR52: 6.089537295 | AS52: 40.28499101 | AT52: 25.78408032 | AU52: 3.170528904 | AV52: pb | AY52: 0 | AZ52: 4 | BA52: 2 | BB52: 1 | BC52: 0 | BD52: TRUE | BE52: TRUE | BF52: TRUE | BG52: TRUE | BH52: TRUE
A53: =IF(INTRO!$E$34<>0,INTRO!$E$34,"") -> DRC | B53: Haut Katanga | C53: Likasi | D53: 197313 | E53: 25157 | F53: 69060 | G53: 94710 | H53: 1 | I53: 4 | J53: 1 | K53: 0 | L53: 0 | M53: =IF(INTRO!$E$38="Endemic", IF($H53>0, IF($H53=4,"Unknown", IF($H53=99,"Stopped", $D53)), 0),"Not required") -> 197313 | N53: =IF(INTRO!$E$40="Endemic", IF($I53>0, IF($I53=4,"Unknown",IF($I53=99,"Stopped", $D53)), 0),"Not required") -> Unknown | O53: =IF(INTRO!$E$42="Endemic", IF(AND($J53>1,$J53<5), IF($J53=4, "Unknown", E53+F53), 0),"Not required") -> 0 | P53: =IF(INTRO!$E$44="Endemic", IF(AND($K53>0,$K53<5), IF($K53=4,"Unknown", IF($K53=1, $F53*0.33, IF($K53=2, $F53*0.5+$G53*0.2, SUM(F53:G53)))), 0),"Not required") -> 0 | Q53: 1 | R53: 0 | S53: 0 | T53: 0 | U53: MDA1 (IVM+ALB) | Y53: 14099 | Z53: Likasi | AD53: ='MDA1'!K53 -> 66332 | AE53: ='MDA4'!K53 -> 0 | AF53: ='MDA3'!I53 -> 0 | AG53: ='T1'!M53 -> 0 | AH53: ='T2'!K53 -> 0 | AI53: =T3_R1!L53 -> 0 | AK53: ='MDA3'!L53 -> 0 | AN53: =_xlfn.XLOOKUP($Y53,[1]COUNTRY_INFO!$Y$9:$Y$527,[1]COUNTRY_INFO!D$9:D$527) -> 186468 | AO53: =_xlfn.XLOOKUP($Y53,[1]COUNTRY_INFO!$Y$9:$Y$527,[1]COUNTRY_INFO!E$9:E$527) -> 24427.748 | AP53: =_xlfn.XLOOKUP($Y53,[1]COUNTRY_INFO!$Y$9:$Y$527,[1]COUNTRY_INFO!F$9:F$527) -> 66550 | AQ53: =_xlfn.XLOOKUP($Y53,[1]COUNTRY_INFO!$Y$9:$Y$527,[1]COUNTRY_INFO!G$9:G$527) -> 88218 | AR53: 5.816011326 | AS53: 2.985342734 | AT53: 3.771600301 | AU53: 7.359042372 | AY53: 1 | AZ53: 4 | BA53: 1 | BB53: 0 | BC53: 0 | BD53: TRUE | BE53: TRUE | BF53: TRUE | BG53: TRUE | BH53: TRUE
A54: =IF(INTRO!$E$34<>0,INTRO!$E$34,"") -> DRC | B54: Haut Katanga | C54: Lubumbashi | D54: 196386 | E54: 23566 | F54: 68735 | G54: 96229 | H54: 1 | I54: 4 | J54: 1 | K54: 1 | L54: 0 | M54: =IF(INTRO!$E$38="Endemic", IF($H54>0, IF($H54=4,"Unknown", IF($H54=99,"Stopped", $D54)), 0),"Not required") -> 196386 | N54: =IF(INTRO!$E$40="Endemic", IF($I54>0, IF($I54=4,"Unknown",IF($I54=99,"Stopped", $D54)), 0),"Not required") -> Unknown | O54: =IF(INTRO!$E$42="Endemic", IF(AND($J54>1,$J54<5), IF($J54=4, "Unknown", E54+F54), 0),"Not required") -> 0 | P54: =IF(INTRO!$E$44="Endemic", IF(AND($K54>0,$K54<5), IF($K54=4,"Unknown", IF($K54=1, $F54*0.33, IF($K54=2, $F54*0.5+$G54*0.2, SUM(F54:G54)))), 0),"Not required") -> 22682.55 | Q54: 1 | R54: 0 | S54: 0 | T54: 0 | U54: MDA1 (IVM+ALB) | Y54: 14102 | Z54: Lubumbashi | AD54: ='MDA1'!K54 -> 68735 | AE54: ='MDA4'!K54 -> 0 | AF54: ='MDA3'!I54 -> 0 | AG54: ='T1'!M54 -> 0 | AH54: ='T2'!K54 -> 0 | AI54: =T3_R1!L54 -> 0 | AK54: ='MDA3'!L54 -> 0 | AN54: =_xlfn.XLOOKUP($Y54,[1]COUNTRY_INFO!$Y$9:$Y$527,[1]COUNTRY_INFO!D$9:D$527) -> 189084 | AO54: =_xlfn.XLOOKUP($Y54,[1]COUNTRY_INFO!$Y$9:$Y$527,[1]COUNTRY_INFO!E$9:E$527) -> 22878.724 | AP54: =_xlfn.XLOOKUP($Y54,[1]COUNTRY_INFO!$Y$9:$Y$527,[1]COUNTRY_INFO!F$9:F$527) -> 66560 | AQ54: =_xlfn.XLOOKUP($Y54,[1]COUNTRY_INFO!$Y$9:$Y$527,[1]COUNTRY_INFO!G$9:G$527) -> 92271 | AR54: 3.861775719 | AS54: 3.003996202 | AT54: 3.267728365 | AU54: 4.289538425 | AY54: 1 | AZ54: 4 | BA54: 1 | BB54: 1 | BC54: 0 | BD54: TRUE | BE54: TRUE | BF54: TRUE | BG54: TRUE | BH54: TRUE
A55: =IF(INTRO!$E$34<>0,INTRO!$E$34,"") -> DRC | B55: Haut Katanga | C55: Lukafu | D55: 148495 | E55: 18933 | F55: 51973 | G55: 71278 | H55: 99 | I55: 4 | J55: 1 | K55: 2 | L55: 0 | M55: =IF(INTRO!$E$38="Endemic", IF($H55>0, IF($H55=4,"Unknown", IF($H55=99,"Stopped", $D55)), 0),"Not required") -> Stopped | N55: =IF(INTRO!$E$40="Endemic", IF($I55>0, IF($I55=4,"Unknown",IF($I55=99,"Stopped", $D55)), 0),"Not required") -> Unknown | O55: =IF(INTRO!$E$42="Endemic", IF(AND($J55>1,$J55<5), IF($J55=4, "Unknown", E55+F55), 0),"Not required") -> 0 | P55: =IF(INTRO!$E$44="Endemic", IF(AND($K55>0,$K55<5), IF($K55=4,"Unknown", IF($K55=1, $F55*0.33, IF($K55=2, $F55*0.5+$G55*0.2, SUM(F55:G55)))), 0),"Not required") -> 40242.1 | Q55: 0 | R55: 0 | S55: 0 | T55: 0 | Y55: 14103 | Z55: Lukafu | AD55: ='MDA1'!K55 -> 0 | AE55: ='MDA4'!K55 -> 0 | AF55: ='MDA3'!I55 -> 0 | AG55: ='T1'!M55 -> 0 | AH55: ='T2'!K55 -> 0 | AI55: =T3_R1!L55 -> 0 | AK55: ='MDA3'!L55 -> 0 | AN55: =_xlfn.XLOOKUP($Y55,[1]COUNTRY_INFO!$Y$9:$Y$527,[1]COUNTRY_INFO!D$9:D$527) -> 139971 | AO55: =_xlfn.XLOOKUP($Y55,[1]COUNTRY_INFO!$Y$9:$Y$527,[1]COUNTRY_INFO!E$9:E$527) -> 18336.131 | AP55: =_xlfn.XLOOKUP($Y55,[1]COUNTRY_INFO!$Y$9:$Y$527,[1]COUNTRY_INFO!F$9:F$527) -> 38596 | AQ55: =_xlfn.XLOOKUP($Y55,[1]COUNTRY_INFO!$Y$9:$Y$527,[1]COUNTRY_INFO!G$9:G$527) -> 77580 | AR55: 6.089832894 | AS55: 3.255152355 | AT55: 34.65903202 | AU55: -8.123227636 | AY55: 99 | AZ55: 4 | BA55: 1 | BB55: 2 | BC55: 0 | BD55: TRUE | BE55: TRUE | BF55: TRUE | BG55: TRUE | BH55: TRUE
A56: =IF(INTRO!$E$34<>0,INTRO!$E$34,"") -> DRC | B56: Haut Katanga | C56: Mitwaba | D56: 176790 | E56: 22540 | F56: 61877 | G56: 84859 | H56: 1 | I56: 1 | J56: 1 | K56: 1 | L56: 0 | M56: =IF(INTRO!$E$38="Endemic", IF($H56>0, IF($H56=4,"Unknown", IF($H56=99,"Stopped", $D56)), 0),"Not required") -> 176790 | N56: =IF(INTRO!$E$40="Endemic", IF($I56>0, IF($I56=4,"Unknown",IF($I56=99,"Stopped", $D56)), 0),"Not required") -> 176790 | O56: =IF(INTRO!$E$42="Endemic", IF(AND($J56>1,$J56<5), IF($J56=4, "Unknown", E56+F56), 0),"Not required") -> 0 | P56: =IF(INTRO!$E$44="Endemic", IF(AND($K56>0,$K56<5), IF($K56=4,"Unknown", IF($K56=1, $F56*0.33, IF($K56=2, $F56*0.5+$G56*0.2, SUM(F56:G56)))), 0),"Not required") -> 20419.41 | Q56: 1 | R56: 1 | S56: 0 | T56: 0 | U56: MDA1 (IVM+ALB) | Y56: 14109 | Z56: Mitwaba | AD56: ='MDA1'!K56 -> 57430 | AE56: ='MDA4'!K56 -> 0 | AF56: ='MDA3'!I56 -> 0 | AG56: ='T1'!M56 -> 0 | AH56: ='T2'!K56 -> 0 | AI56: =T3_R1!L56 -> 0 | AK56: ='MDA3'!L56 -> 0 | AN56: =_xlfn.XLOOKUP($Y56,[1]COUNTRY_INFO!$Y$9:$Y$527,[1]COUNTRY_INFO!D$9:D$527) -> 164213 | AO56: =_xlfn.XLOOKUP($Y56,[1]COUNTRY_INFO!$Y$9:$Y$527,[1]COUNTRY_INFO!E$9:E$527) -> 21511.693 | AP56: =_xlfn.XLOOKUP($Y56,[1]COUNTRY_INFO!$Y$9:$Y$527,[1]COUNTRY_INFO!F$9:F$527) -> 58608 | AQ56: =_xlfn.XLOOKUP($Y56,[1]COUNTRY_INFO!$Y$9:$Y$527,[1]COUNTRY_INFO!G$9:G$527) -> 77689 | AR56: 7.658955138 | AS56: 4.780223481 | AT56: 5.577736828 | AU56: 9.229105794 | AY56: 1 | AZ56: 1 | BA56: 1 | BB56: 1 | BC56: 0 | BD56: TRUE | BE56: TRUE | BF56: TRUE | BG56: TRUE | BH56: TRUE
A57: =IF(INTRO!$E$34<>0,INTRO!$E$34,"") -> DRC | B57: Haut Katanga | C57: Mufunga Sampwe | D57: 197338 | E57: 25160 | F57: 70430 | G57: 93361 | H57: 99 | I57: 1 | J57: 1 | K57: 0 | L57: 0 | M57: =IF(INTRO!$E$38="Endemic", IF($H57>0, IF($H57=4,"Unknown", IF($H57=99,"Stopped", $D57)), 0),"Not required") -> Stopped | N57: =IF(INTRO!$E$40="Endemic", IF($I57>0, IF($I57=4,"Unknown",IF($I57=99,"Stopped", $D57)), 0),"Not required") -> 197338 | O57: =IF(INTRO!$E$42="Endemic", IF(AND($J57>1,$J57<5), IF($J57=4, "Unknown", E57+F57), 0),"Not required") -> 0 | P57: =IF(INTRO!$E$44="Endemic", IF(AND($K57>0,$K57<5), IF($K57=4,"Unknown", IF($K57=1, $F57*0.33, IF($K57=2, $F57*0.5+$G57*0.2, SUM(F57:G57)))), 0),"Not required") -> 0 | Q57: 0 | R57: 1 | S57: 0 | T57: 0 | U57: MDA3 (IVM) | Y57: 14112 | Z57: Mufunga Sampwe | AD57: ='MDA1'!K57 -> 0 | AE57: ='MDA4'!K57 -> 0 | AF57: ='MDA3'!I57 -> 70430 | AG57: ='T1'!M57 -> 0 | AH57: ='T2'!K57 -> 0 | AI57: =T3_R1!L57 -> 0 | AK57: ='MDA3'!L57 -> 0 | AN57: =_xlfn.XLOOKUP($Y57,[1]COUNTRY_INFO!$Y$9:$Y$527,[1]COUNTRY_INFO!D$9:D$527) -> 186180 | AO57: =_xlfn.XLOOKUP($Y57,[1]COUNTRY_INFO!$Y$9:$Y$527,[1]COUNTRY_INFO!E$9:E$527) -> 24389.98 | AP57: =_xlfn.XLOOKUP($Y57,[1]COUNTRY_INFO!$Y$9:$Y$527,[1]COUNTRY_INFO!F$9:F$527) -> 66447 | AQ57: =_xlfn.XLOOKUP($Y57,[1]COUNTRY_INFO!$Y$9:$Y$527,[1]COUNTRY_INFO!G$9:G$527) -> 88082 | AR57: 5.993124933 | AS57: 3.15711616 | AT57: 5.994251057 | AU57: 5.99327899 | AY57: 99 | AZ57: 1 | BA57: 1 | BB57: 0 | BC57: 0 | BD57: TRUE | BE57: TRUE | BF57: TRUE | BG57: TRUE | BH57: TRUE
A58: =IF(INTRO!$E$34<>0,INTRO!$E$34,"") -> DRC | B58: Haut Katanga | C58: Mumbunda | D58: 180669 | E58: 21680 | F58: 63234 | G58: 88528 | H58: 0 | I58: 4 | J58: 1 | K58: 0 | L58: 0 | M58: =IF(INTRO!$E$38="Endemic", IF($H58>0, IF($H58=4,"Unknown", IF($H58=99,"Stopped", $D58)), 0),"Not required") -> 0 | N58: =IF(INTRO!$E$40="Endemic", IF($I58>0, IF($I58=4,"Unknown",IF($I58=99,"Stopped", $D58)), 0),"Not required") -> Unknown | O58: =IF(INTRO!$E$42="Endemic", IF(AND($J58>1,$J58<5), IF($J58=4, "Unknown", E58+F58), 0),"Not required") -> 0 | P58: =IF(INTRO!$E$44="Endemic", IF(AND($K58>0,$K58<5), IF($K58=4,"Unknown", IF($K58=1, $F58*0.33, IF($K58=2, $F58*0.5+$G58*0.2, SUM(F58:G58)))), 0),"Not required") -> 0 | Q58: 0 | R58: 0 | S58: 0 | T58: 0 | Y58: 14111 | Z58: Mumbunda | AD58: ='MDA1'!K58 -> 0 | AE58: ='MDA4'!K58 -> 0 | AF58: ='MDA3'!I58 -> 0 | AG58: ='T1'!M58 -> 0 | AH58: ='T2'!K58 -> 0 | AI58: =T3_R1!L58 -> 0 | AK58: ='MDA3'!L58 -> 0 | AN58: =_xlfn.XLOOKUP($Y58,[1]COUNTRY_INFO!$Y$9:$Y$527,[1]COUNTRY_INFO!D$9:D$527) -> 170298 | AO58: =_xlfn.XLOOKUP($Y58,[1]COUNTRY_INFO!$Y$9:$Y$527,[1]COUNTRY_INFO!E$9:E$527) -> 20606.378 | AP58: =_xlfn.XLOOKUP($Y58,[1]COUNTRY_INFO!$Y$9:$Y$527,[1]COUNTRY_INFO!F$9:F$527) -> 59604 | AQ58: =_xlfn.XLOOKUP($Y58,[1]COUNTRY_INFO!$Y$9:$Y$527,[1]COUNTRY_INFO!G$9:G$527) -> 83446 | AR58: 6.089912976 | AS58: 5.21014416 | AT58: 6.090195289 | AU58: 6.090166095 | AY58: 0 | AZ58: 4 | BA58: 1 | BB58: 0 | BC58: 0 | BD58: TRUE | BE58: TRUE | BF58: TRUE | BG58: TRUE | BH58: TRUE
A59: =IF(INTRO!$E$34<>0,INTRO!$E$34,"") -> DRC | B59: Haut Katanga | C59: Panda | D59: 104671 | E59: 12560 | F59: 36635 | G59: 51289 | H59: 0 | I59: 4 | J59: 1 | K59: 0 | L59: 0 | M59: =IF(INTRO!$E$38="Endemic", IF($H59>0, IF($H59=4,"Unknown", IF($H59=99,"Stopped", $D59)), 0),"Not required") -> 0 | N59: =IF(INTRO!$E$40="Endemic", IF($I59>0, IF($I59=4,"Unknown",IF($I59=99,"Stopped", $D59)), 0),"Not required") -> Unknown | O59: =IF(INTRO!$E$42="Endemic", IF(AND($J59>1,$J59<5), IF($J59=4, "Unknown", E59+F59), 0),"Not required") -> 0 | P59: =IF(INTRO!$E$44="Endemic", IF(AND($K59>0,$K59<5), IF($K59=4,"Unknown", IF($K59=1, $F59*0.33, IF($K59=2, $F59*0.5+$G59*0.2, SUM(F59:G59)))), 0),"Not required") -> 0 | Q59: 0 | R59: 0 | S59: 0 | T59: 0 | Y59: 14118 | Z59: Panda | AD59: ='MDA1'!K59 -> 0 | AE59: ='MDA4'!K59 -> 0 | AF59: ='MDA3'!I59 -> 0 | AG59: ='T1'!M59 -> 0 | AH59: ='T2'!K59 -> 0 | AI59: =T3_R1!L59 -> 0 | AK59: ='MDA3'!L59 -> 0 | AN59: =_xlfn.XLOOKUP($Y59,[1]COUNTRY_INFO!$Y$9:$Y$527,[1]COUNTRY_INFO!D$9:D$527) -> 98662 | AO59: =_xlfn.XLOOKUP($Y59,[1]COUNTRY_INFO!$Y$9:$Y$527,[1]COUNTRY_INFO!E$9:E$527) -> 11938.182 | AP59: =_xlfn.XLOOKUP($Y59,[1]COUNTRY_INFO!$Y$9:$Y$527,[1]COUNTRY_INFO!F$9:F$527) -> 34532 | AQ59: =_xlfn.XLOOKUP($Y59,[1]COUNTRY_INFO!$Y$9:$Y$527,[1]COUNTRY_INFO!G$9:G$527) -> 48344 | AR59: 6.090490766 | AS59: 5.208649022 | AT59: 6.090003475 | AU59: 6.09175906 | AY59: 0 | AZ59: 4 | BA59: 1 | BB59: 0 | BC59: 0 | BD59: TRUE | BE59: TRUE | BF59: TRUE | BG59: TRUE | BH59: TRUE
A60: =IF(INTRO!$E$34<>0,INTRO!$E$34,"") -> DRC | B60: Haut Katanga | C60: Pweto | D60: 341785 | E60: 41014 | F60: 119625 | G60: 167474 | H60: 0 | I60: 4 | J60: 1 | K60: 1 | L60: 0 | M60: =IF(INTRO!$E$38="Endemic", IF($H60>0, IF($H60=4,"Unknown", IF($H60=99,"Stopped", $D60)), 0),"Not required") -> 0 | N60: =IF(INTRO!$E$40="Endemic", IF($I60>0, IF($I60=4,"Unknown",IF($I60=99,"Stopped", $D60)), 0),"Not required") -> Unknown | O60: =IF(INTRO!$E$42="Endemic", IF(AND($J60>1,$J60<5), IF($J60=4, "Unknown", E60+F60), 0),"Not required") -> 0 | P60: =IF(INTRO!$E$44="Endemic", IF(AND($K60>0,$K60<5), IF($K60=4,"Unknown", IF($K60=1, $F60*0.33, IF($K60=2, $F60*0.5+$G60*0.2, SUM(F60:G60)))), 0),"Not required") -> 39476.25 | Q60: 0 | R60: 0 | S60: 0 | T60: 0 | Y60: 14119 | Z60: Pweto | AD60: ='MDA1'!K60 -> 0 | AE60: ='MDA4'!K60 -> 0 | AF60: ='MDA3'!I60 -> 0 | AG60: ='T1'!M60 -> 0 | AH60: ='T2'!K60 -> 0 | AI60: =T3_R1!L60 -> 0 | AK60: ='MDA3'!L60 -> 0 | AN60: =_xlfn.XLOOKUP($Y60,[1]COUNTRY_INFO!$Y$9:$Y$527,[1]COUNTRY_INFO!D$9:D$527) -> 322165 | AO60: =_xlfn.XLOOKUP($Y60,[1]COUNTRY_INFO!$Y$9:$Y$527,[1]COUNTRY_INFO!E$9:E$527) -> 38981.565 | AP60: =_xlfn.XLOOKUP($Y60,[1]COUNTRY_INFO!$Y$9:$Y$527,[1]COUNTRY_INFO!F$9:F$527) -> 108494 | AQ60: =_xlfn.XLOOKUP($Y60,[1]COUNTRY_INFO!$Y$9:$Y$527,[1]COUNTRY_INFO!G$9:G$527) -> 162125 | AR60: 6.090047026 | AS60: 5.213836335 | AT60: 10.25955352 | AU60: 3.299306091 | AY60: 0 | AZ60: 4 | BA60: 1 | BB60: 1 | BC60: 0 | BD60: TRUE | BE60: TRUE | BF60: TRUE | BG60: TRUE | BH60: TRUE
A61: =IF(INTRO!$E$34<>0,INTRO!$E$34,"") -> DRC | B61: Haut Katanga | C61: Ruashi | D61: 326445 | E61: 39173 | F61: 114256 | G61: 159958 | H61: 0 | I61: 4 | J61: 1 | K61: 0 | L61: 0 | M61: =IF(INTRO!$E$38="Endemic", IF($H61>0, IF($H61=4,"Unknown", IF($H61=99,"Stopped", $D61)), 0),"Not required") -> 0 | N61: =IF(INTRO!$E$40="Endemic", IF($I61>0, IF($I61=4,"Unknown",IF($I61=99,"Stopped", $D61)), 0),"Not required") -> Unknown | O61: =IF(INTRO!$E$42="Endemic", IF(AND($J61>1,$J61<5), IF($J61=4, "Unknown", E61+F61), 0),"Not required") -> 0 | P61: =IF(INTRO!$E$44="Endemic", IF(AND($K61>0,$K61<5), IF($K61=4,"Unknown", IF($K61=1, $F61*0.33, IF($K61=2, $F61*0.5+$G61*0.2, SUM(F61:G61)))), 0),"Not required") -> 0 | Q61: 0 | R61: 0 | S61: 0 | T61: 0 | Y61: 14120 | Z61: Ruashi | AD61: ='MDA1'!K61 -> 0 | AE61: ='MDA4'!K61 -> 0 | AF61: ='MDA3'!I61 -> 0 | AG61: ='T1'!M61 -> 0 | AH61: ='T2'!K61 -> 0 | AI61: =T3_R1!L61 -> 0 | AK61: ='MDA3'!L61 -> 0 | AN61: =_xlfn.XLOOKUP($Y61,[1]COUNTRY_INFO!$Y$9:$Y$527,[1]COUNTRY_INFO!D$9:D$527) -> 307706 | AO61: =_xlfn.XLOOKUP($Y61,[1]COUNTRY_INFO!$Y$9:$Y$527,[1]COUNTRY_INFO!E$9:E$527) -> 37232.466 | AP61: =_xlfn.XLOOKUP($Y61,[1]COUNTRY_INFO!$Y$9:$Y$527,[1]COUNTRY_INFO!F$9:F$527) -> 107697 | AQ61: =_xlfn.XLOOKUP($Y61,[1]COUNTRY_INFO!$Y$9:$Y$527,[1]COUNTRY_INFO!G$9:G$527) -> 150776 | AR61: 6.089903999 | AS61: 5.211940568 | AT61: 6.09023464 | AU61: 6.08982862 | AY61: 0 | AZ61: 4 | BA61: 1 | BB61: 0 | BC61: 0 | BD61: TRUE | BE61: TRUE | BF61: TRUE | BG61: TRUE | BH61: TRUE
A62: =IF(INTRO!$E$34<>0,INTRO!$E$34,"") -> DRC | B62: Haut Katanga | C62: Sakania | D62: 302914 | E62: 36349 | F62: 106020 | G62: 148428 | H62: 1 | I62: 4 | J62: 1 | K62: 2 | L62: 0 | M62: =IF(INTRO!$E$38="Endemic", IF($H62>0, IF($H62=4,"Unknown", IF($H62=99,"Stopped", $D62)), 0),"Not required") -> 302914 | N62: =IF(INTRO!$E$40="Endemic", IF($I62>0, IF($I62=4,"Unknown",IF($I62=99,"Stopped", $D62)), 0),"Not required") -> Unknown | O62: =IF(INTRO!$E$42="Endemic", IF(AND($J62>1,$J62<5), IF($J62=4, "Unknown", E62+F62), 0),"Not required") -> 0 | P62: =IF(INTRO!$E$44="Endemic", IF(AND($K62>0,$K62<5), IF($K62=4,"Unknown", IF($K62=1, $F62*0.33, IF($K62=2, $F62*0.5+$G62*0.2, SUM(F62:G62)))), 0),"Not required") -> 82695.6 | Q62: 1 | R62: 0 | S62: 0 | T62: 0 | U62: MDA1 (IVM+ALB) | Y62: 14121 | Z62: Sakania | AD62: ='MDA1'!K62 -> 106020 | AE62: ='MDA4'!K62 -> 0 | AF62: ='MDA3'!I62 -> 0 | AG62: ='T1'!M62 -> 0 | AH62: ='T2'!K62 -> 0 | AI62: =T3_R1!L62 -> 0 | AK62: ='MDA3'!L62 -> 0 | AN62: =_xlfn.XLOOKUP($Y62,[1]COUNTRY_INFO!$Y$9:$Y$527,[1]COUNTRY_INFO!D$9:D$527) -> 292139 | AO62: =_xlfn.XLOOKUP($Y62,[1]COUNTRY_INFO!$Y$9:$Y$527,[1]COUNTRY_INFO!E$9:E$527) -> 35348.579 | AP62: =_xlfn.XLOOKUP($Y62,[1]COUNTRY_INFO!$Y$9:$Y$527,[1]COUNTRY_INFO!F$9:F$527) -> 87648 | AQ62: =_xlfn.XLOOKUP($Y62,[1]COUNTRY_INFO!$Y$9:$Y$527,[1]COUNTRY_INFO!G$9:G$527) -> 157749 | AR62: 3.688312755 | AS62: 2.830159028 | AT62: 20.9611172 | AU62: -5.90875378 | AY62: 1 | AZ62: 4 | BA62: 1 | BB62: 2 | BC62: 0 | BD62: TRUE | BE62: TRUE | BF62: TRUE | BG62: TRUE | BH62: TRUE
A63: =IF(INTRO!$E$34<>0,INTRO!$E$34,"") -> DRC | B63: Haut Katanga | C63: Tshamilemba | D63: 295875 | E63: 35505 | F63: 103556 | G63: 144979 | H63: 0 | I63: 4 | J63: 1 | K63: 1 | L63: 0 | M63: =IF(INTRO!$E$38="Endemic", IF($H63>0, IF($H63=4,"Unknown", IF($H63=99,"Stopped", $D63)), 0),"Not required") -> 0 | N63: =IF(INTRO!$E$40="Endemic", IF($I63>0, IF($I63=4,"Unknown",IF($I63=99,"Stopped", $D63)), 0),"Not required") -> Unknown | O63: =IF(INTRO!$E$42="Endemic", IF(AND($J63>1,$J63<5), IF($J63=4, "Unknown", E63+F63), 0),"Not required") -> 0 | P63: =IF(INTRO!$E$44="Endemic", IF(AND($K63>0,$K63<5), IF($K63=4,"Unknown", IF($K63=1, $F63*0.33, IF($K63=2, $F63*0.5+$G63*0.2, SUM(F63:G63)))), 0),"Not required") -> 34173.48 | Q63: 0 | R63: 0 | S63: 0 | T63: 0 | Y63: 14124 | Z63: Tshamilemba | AD63: ='MDA1'!K63 -> 0 | AE63: ='MDA4'!K63 -> 0 | AF63: ='MDA3'!I63 -> 0 | AG63: ='T1'!M63 -> 0 | AH63: ='T2'!K63 -> 0 | AI63: =T3_R1!L63 -> 0 | AK63: ='MDA3'!L63 -> 0 | AN63: =_xlfn.XLOOKUP($Y63,[1]COUNTRY_INFO!$Y$9:$Y$527,[1]COUNTRY_INFO!D$9:D$527) -> 278891 | AO63: =_xlfn.XLOOKUP($Y63,[1]COUNTRY_INFO!$Y$9:$Y$527,[1]COUNTRY_INFO!E$9:E$527) -> 33746.251 | AP63: =_xlfn.XLOOKUP($Y63,[1]COUNTRY_INFO!$Y$9:$Y$527,[1]COUNTRY_INFO!F$9:F$527) -> 62012 | AQ63: =_xlfn.XLOOKUP($Y63,[1]COUNTRY_INFO!$Y$9:$Y$527,[1]COUNTRY_INFO!G$9:G$527) -> 172256 | AR63: 6.08983438 | AS63: 5.21168707 | AT63: 66.99348513 | AU63: -15.83515233 | AY63: 0 | AZ63: 4 | BA63: 1 | BB63: 1 | BC63: 0 | BD63: TRUE | BE63: TRUE | BF63: TRUE | BG63: TRUE | BH63: TRUE
A64: =IF(INTRO!$E$34<>0,INTRO!$E$34,"") -> DRC | B64: Haut Katanga | C64: Vangu | D64: 222040 | E64: 26644 | F64: 58040 | G64: 128474 | H64: 0 | I64: 4 | J64: 2 | K64: 1 | L64: 0 | M64: =IF(INTRO!$E$38="Endemic", IF($H64>0, IF($H64=4,"Unknown", IF($H64=99,"Stopped", $D64)), 0),"Not required") -> 0 | N64: =IF(INTRO!$E$40="Endemic", IF($I64>0, IF($I64=4,"Unknown",IF($I64=99,"Stopped", $D64)), 0),"Not required") -> Unknown | O64: =IF(INTRO!$E$42="Endemic", IF(AND($J64>1,$J64<5), IF($J64=4, "Unknown", E64+F64), 0),"Not required") -> 84684 | P64: =IF(INTRO!$E$44="Endemic", IF(AND($K64>0,$K64<5), IF($K64=4,"Unknown", IF($K64=1, $F64*0.33, IF($K64=2, $F64*0.5+$G64*0.2, SUM(F64:G64)))), 0),"Not required") -> 19153.2 | Q64: 0 | R64: 0 | S64: 1 | T64: 0 | U64: T3 (ALB/MBD) | Y64: 14125 | Z64: Vangu | AD64: ='MDA1'!K64 -> 0 | AE64: ='MDA4'!K64 -> 0 | AF64: ='MDA3'!I64 -> 0 | AG64: ='T1'!M64 -> 0 | AH64: ='T2'!K64 -> 0 | AI64: =T3_R1!L64 -> 56230 | AK64: ='MDA3'!L64 -> 0 | AN64: =_xlfn.XLOOKUP($Y64,[1]COUNTRY_INFO!$Y$9:$Y$527,[1]COUNTRY_INFO!D$9:D$527) -> 159075 | AO64: =_xlfn.XLOOKUP($Y64,[1]COUNTRY_INFO!$Y$9:$Y$527,[1]COUNTRY_INFO!E$9:E$527) -> 19248.075 | AP64: =_xlfn.XLOOKUP($Y64,[1]COUNTRY_INFO!$Y$9:$Y$527,[1]COUNTRY_INFO!F$9:F$527) -> 56335 | AQ64: =_xlfn.XLOOKUP($Y64,[1]COUNTRY_INFO!$Y$9:$Y$527,[1]COUNTRY_INFO!G$9:G$527) -> 77288 | AR64: 39.5819582 | AS64: 38.42423203 | AT64: 3.026537676 | AU64: 66.22761619 | AV64: pb | AY64: 0 | AZ64: 4 | BA64: 2 | BB64: 1 | BC64: 0 | BD64: TRUE | BE64: TRUE | BF64: TRUE | BG64: TRUE | BH64: TRUE
A65: =IF(INTRO!$E$34<>0,INTRO!$E$34,"") -> DRC | B65: HAUT LOMAMI | C65: Bukama | D65: 423429 | E65: 50812 | F65: 148200 | G65: 207480 | H65: 0 | I65: 4 | J65: 1 | K65: 2 | L65: 0 | M65: =IF(INTRO!$E$38="Endemic", IF($H65>0, IF($H65=4,"Unknown", IF($H65=99,"Stopped", $D65)), 0),"Not required") -> 0 | N65: =IF(INTRO!$E$40="Endemic", IF($I65>0, IF($I65=4,"Unknown",IF($I65=99,"Stopped", $D65)), 0),"Not required") -> Unknown | O65: =IF(INTRO!$E$42="Endemic", IF(AND($J65>1,$J65<5), IF($J65=4, "Unknown", E65+F65), 0),"Not required") -> 0 | P65: =IF(INTRO!$E$44="Endemic", IF(AND($K65>0,$K65<5), IF($K65=4,"Unknown", IF($K65=1, $F65*0.33, IF($K65=2, $F65*0.5+$G65*0.2, SUM(F65:G65)))), 0),"Not required") -> 115596 | Q65: 0 | R65: 0 | S65: 0 | T65: 0 | Y65: 14061 | Z65: Bukama | AD65: ='MDA1'!K65 -> 0 | AE65: ='MDA4'!K65 -> 0 | AF65: ='MDA3'!I65 -> 0 | AG65: ='T1'!M65 -> 0 | AH65: ='T2'!K65 -> 0 | AI65: =T3_R1!L65 -> 0 | AK65: ='MDA3'!L65 -> 0 | AN65: =_xlfn.XLOOKUP($Y65,[1]COUNTRY_INFO!$Y$9:$Y$527,[1]COUNTRY_INFO!D$9:D$527) -> 399122 | AO65: =_xlfn.XLOOKUP($Y65,[1]COUNTRY_INFO!$Y$9:$Y$527,[1]COUNTRY_INFO!E$9:E$527) -> 48294.242 | AP65: =_xlfn.XLOOKUP($Y65,[1]COUNTRY_INFO!$Y$9:$Y$527,[1]COUNTRY_INFO!F$9:F$527) -> 139205 | AQ65: =_xlfn.XLOOKUP($Y65,[1]COUNTRY_INFO!$Y$9:$Y$527,[1]COUNTRY_INFO!G$9:G$527) -> 196057 | AR65: 6.090117809 | AS65: 5.213370985 | AT65: 6.461693186 | AU65: 5.826366822 | AY65: 0 | AZ65: 4 | BA65: 1 | BB65: 2 | BC65: 0 | BD65: TRUE | BE65: TRUE | BF65: TRUE | BG65: TRUE | BH65: TRUE
A66: =IF(INTRO!$E$34<>0,INTRO!$E$34,"") -> DRC | B66: HAUT LOMAMI | C66: Butumba | D66: 248740 | E66: 29848 | F66: 87059 | G66: 121883 | H66: 0 | I66: 4 | J66: 1 | K66: 2 | L66: 0 | M66: =IF(INTRO!$E$38="Endemic", IF($H66>0, IF($H66=4,"Unknown", IF($H66=99,"Stopped", $D66)), 0),"Not required") -> 0 | N66: =IF(INTRO!$E$40="Endemic", IF($I66>0, IF($I66=4,"Unknown",IF($I66=99,"Stopped", $D66)), 0),"Not required") -> Unknown | O66: =IF(INTRO!$E$42="Endemic", IF(AND($J66>1,$J66<5), IF($J66=4, "Unknown", E66+F66), 0),"Not required") -> 0 | P66: =IF(INTRO!$E$44="Endemic", IF(AND($K66>0,$K66<5), IF($K66=4,"Unknown", IF($K66=1, $F66*0.33, IF($K66=2, $F66*0.5+$G66*0.2, SUM(F66:G66)))), 0),"Not required") -> 67906.1 | Q66: 0 | R66: 0 | S66: 0 | T66: 0 | Y66: 14063 | Z66: Butumba | AD66: ='MDA1'!K66 -> 0 | AE66: ='MDA4'!K66 -> 0 | AF66: ='MDA3'!I66 -> 0 | AG66: ='T1'!M66 -> 0 | AH66: ='T2'!K66 -> 0 | AI66: =T3_R1!L66 -> 0 | AK66: ='MDA3'!L66 -> 0 | AN66: =_xlfn.XLOOKUP($Y66,[1]COUNTRY_INFO!$Y$9:$Y$527,[1]COUNTRY_INFO!D$9:D$527) -> 234461 | AO66: =_xlfn.XLOOKUP($Y66,[1]COUNTRY_INFO!$Y$9:$Y$527,[1]COUNTRY_INFO!E$9:E$527) -> 28370.021 | AP66: =_xlfn.XLOOKUP($Y66,[1]COUNTRY_INFO!$Y$9:$Y$527,[1]COUNTRY_INFO!F$9:F$527) -> 82761 | AQ66: =_xlfn.XLOOKUP($Y66,[1]COUNTRY_INFO!$Y$9:$Y$527,[1]COUNTRY_INFO!G$9:G$527) -> 114186 | AR66: 6.090138658 | AS66: 5.209650708 | AT66: 5.19326736 | AU66: 6.74075631 | AY66: 0 | AZ66: 4 | BA66: 1 | BB66: 2 | BC66: 0 | BD66: TRUE | BE66: TRUE | BF66: TRUE | BG66: TRUE | BH66: TRUE
A67: =IF(INTRO!$E$34<>0,INTRO!$E$34,"") -> DRC | B67: HAUT LOMAMI | C67: Kabondo Dianda | D67: 311840 | E67: 37420 | F67: 109144 | G67: 152802 | H67: 0 | I67: 4 | J67: 1 | K67: 1 | L67: 0 | M67: =IF(INTRO!$E$38="Endemic", IF($H67>0, IF($H67=4,"Unknown", IF($H67=99,"Stopped", $D67)), 0),"Not required") -> 0 | N67: =IF(INTRO!$E$40="Endemic", IF($I67>0, IF($I67=4,"Unknown",IF($I67=99,"Stopped", $D67)), 0),"Not required") -> Unknown | O67: =IF(INTRO!$E$42="Endemic", IF(AND($J67>1,$J67<5), IF($J67=4, "Unknown", E67+F67), 0),"Not required") -> 0 | P67: =IF(INTRO!$E$44="Endemic", IF(AND($K67>0,$K67<5), IF($K67=4,"Unknown", IF($K67=1, $F67*0.33, IF($K67=2, $F67*0.5+$G67*0.2, SUM(F67:G67)))), 0),"Not required") -> 36017.52 | Q67: 0 | R67: 0 | S67: 0 | T67: 0 | Y67: 14068 | Z67: Kabondo Dianda | AD67: ='MDA1'!K67 -> 0 | AE67: ='MDA4'!K67 -> 0 | AF67: ='MDA3'!I67 -> 0 | AG67: ='T1'!M67 -> 0 | AH67: ='T2'!K67 -> 0 | AI67: =T3_R1!L67 -> 0 | AK67: ='MDA3'!L67 -> 0 | AN67: =_xlfn.XLOOKUP($Y67,[1]COUNTRY_INFO!$Y$9:$Y$527,[1]COUNTRY_INFO!D$9:D$527) -> 293939 | AO67: =_xlfn.XLOOKUP($Y67,[1]COUNTRY_INFO!$Y$9:$Y$527,[1]COUNTRY_INFO!E$9:E$527) -> 35566.379 | AP67: =_xlfn.XLOOKUP($Y67,[1]COUNTRY_INFO!$Y$9:$Y$527,[1]COUNTRY_INFO!F$9:F$527) -> 102879 | AQ67: =_xlfn.XLOOKUP($Y67,[1]COUNTRY_INFO!$Y$9:$Y$527,[1]COUNTRY_INFO!G$9:G$527) -> 144030 | AR67: 6.09003909 | AS67: 5.211722565 | AT67: 6.089678166 | AU67: 6.090397834 | AY67: 0 | AZ67: 4 | BA67: 1 | BB67: 1 | BC67: 0 | BD67: TRUE | BE67: TRUE | BF67: TRUE | BG67: TRUE | BH67: TRUE
A68: =IF(INTRO!$E$34<>0,INTRO!$E$34,"") -> DRC | B68: HAUT LOMAMI | C68: Kabongo | D68: 449608 | E68: 53953 | F68: 157363 | G68: 220308 | H68: 99 | I68: 4 | J68: 0 | K68: 2 | L68: 0 | M68: =IF(INTRO!$E$38="Endemic", IF($H68>0, IF($H68=4,"Unknown", IF($H68=99,"Stopped", $D68)), 0),"Not required") -> Stopped | N68: =IF(INTRO!$E$40="Endemic", IF($I68>0, IF($I68=4,"Unknown",IF($I68=99,"Stopped", $D68)), 0),"Not required") -> Unknown | O68: =IF(INTRO!$E$42="Endemic", IF(AND($J68>1,$J68<5), IF($J68=4, "Unknown", E68+F68), 0),"Not required") -> 0 | P68: =IF(INTRO!$E$44="Endemic", IF(AND($K68>0,$K68<5), IF($K68=4,"Unknown", IF($K68=1, $F68*0.33, IF($K68=2, $F68*0.5+$G68*0.2, SUM(F68:G68)))), 0),"Not required") -> 122743.1 | Q68: 0 | R68: 0 | S68: 0 | T68: 0 | Y68: 14069 | Z68: Kabongo | AD68: ='MDA1'!K68 -> 0 | AE68: ='MDA4'!K68 -> 0 | AF68: ='MDA3'!I68 -> 0 | AG68: ='T1'!M68 -> 0 | AH68: ='T2'!K68 -> 0 | AI68: =T3_R1!L68 -> 0 | AK68: ='MDA3'!L68 -> 0 | AN68: =_xlfn.XLOOKUP($Y68,[1]COUNTRY_INFO!$Y$9:$Y$527,[1]COUNTRY_INFO!D$9:D$527) -> 423799 | AO68: =_xlfn.XLOOKUP($Y68,[1]COUNTRY_INFO!$Y$9:$Y$527,[1]COUNTRY_INFO!E$9:E$527) -> 51279.839 | AP68: =_xlfn.XLOOKUP($Y68,[1]COUNTRY_INFO!$Y$9:$Y$527,[1]COUNTRY_INFO!F$9:F$527) -> 149304 | AQ68: =_xlfn.XLOOKUP($Y68,[1]COUNTRY_INFO!$Y$9:$Y$527,[1]COUNTRY_INFO!G$9:G$527) -> 206687 | AR68: 6.089915266 | AS68: 5.212888831 | AT68: 5.397712051 | AU68: 6.590158065 | AY68: 99 | AZ68: 4 | BA68: 0 | BB68: 2 | BC68: 0 | BD68: TRUE | BE68: TRUE | BF68: TRUE | BG68: TRUE | BH68: TRUE
A69: =IF(INTRO!$E$34<>0,INTRO!$E$34,"") -> DRC | B69: HAUT LOMAMI | C69: Kamina | D69: 369033 | E69: 44284 | F69: 125873 | G69: 184115 | H69: 0 | I69: 4 | J69: 2 | K69: 0 | L69: 0 | M69: =IF(INTRO!$E$38="Endemic", IF($H69>0, IF($H69=4,"Unknown", IF($H69=99,"Stopped", $D69)), 0),"Not required") -> 0 | N69: =IF(INTRO!$E$40="Endemic", IF($I69>0, IF($I69=4,"Unknown",IF($I69=99,"Stopped", $D69)), 0),"Not required") -> Unknown | O69: =IF(INTRO!$E$42="Endemic", IF(AND($J69>1,$J69<5), IF($J69=4, "Unknown", E69+F69), 0),"Not required") -> 170157 | P69: =IF(INTRO!$E$44="Endemic", IF(AND($K69>0,$K69<5), IF($K69=4,"Unknown", IF($K69=1, $F69*0.33, IF($K69=2, $F69*0.5+$G69*0.2, SUM(F69:G69)))), 0),"Not required") -> 0 | Q69: 0 | R69: 0 | S69: 1 | T69: 0 | U69: T3 (ALB/MBD) | Y69: 14076 | Z69: Kamina | AD69: ='MDA1'!K69 -> 0 | AE69: ='MDA4'!K69 -> 0 | AF69: ='MDA3'!I69 -> 0 | AG69: ='T1'!M69 -> 0 | AH69: ='T2'!K69 -> 0 | AI69: =T3_R1!L69 -> 121780 | AK69: ='MDA3'!L69 -> 0 | AN69: =_xlfn.XLOOKUP($Y69,[1]COUNTRY_INFO!$Y$9:$Y$527,[1]COUNTRY_INFO!D$9:D$527) -> 359386 | AO69: =_xlfn.XLOOKUP($Y69,[1]COUNTRY_INFO!$Y$9:$Y$527,[1]COUNTRY_INFO!E$9:E$527) -> 43485.946 | AP69: =_xlfn.XLOOKUP($Y69,[1]COUNTRY_INFO!$Y$9:$Y$527,[1]COUNTRY_INFO!F$9:F$527) -> 122856 | AQ69: =_xlfn.XLOOKUP($Y69,[1]COUNTRY_INFO!$Y$9:$Y$527,[1]COUNTRY_INFO!G$9:G$527) -> 179028 | AR69: 2.684300446 | AS69: 1.835199814 | AT69: 2.455720518 | AU69: 2.841454968 | AY69: 0 | AZ69: 4 | BA69: 2 | BB69: 0 | BC69: 0 | BD69: TRUE | BE69: TRUE | BF69: TRUE | BG69: TRUE | BH69: TRUE
A70: =IF(INTRO!$E$34<>0,INTRO!$E$34,"") -> DRC | B70: HAUT LOMAMI | C70: Kamina Base (Baka) | D70: 39004 | E70: 4973 | F70: 13920 | G70: 18453 | H70: 99 | I70: 4 | J70: 0 | K70: 0 | L70: 0 | M70: =IF(INTRO!$E$38="Endemic", IF($H70>0, IF($H70=4,"Unknown", IF($H70=99,"Stopped", $D70)), 0),"Not required") -> Stopped | N70: =IF(INTRO!$E$40="Endemic", IF($I70>0, IF($I70=4,"Unknown",IF($I70=99,"Stopped", $D70)), 0),"Not required") -> Unknown | O70: =IF(INTRO!$E$42="Endemic", IF(AND($J70>1,$J70<5), IF($J70=4, "Unknown", E70+F70), 0),"Not required") -> 0 | P70: =IF(INTRO!$E$44="Endemic", IF(AND($K70>0,$K70<5), IF($K70=4,"Unknown", IF($K70=1, $F70*0.33, IF($K70=2, $F70*0.5+$G70*0.2, SUM(F70:G70)))), 0),"Not required") -> 0 | Q70: 0 | R70: 0 | S70: 0 | T70: 0 | Y70: 14060 | Z70: Kamina Base (Baka) | AD70: ='MDA1'!K70 -> 0 | AE70: ='MDA4'!K70 -> 0 | AF70: ='MDA3'!I70 -> 0 | AG70: ='T1'!M70 -> 0 | AH70: ='T2'!K70 -> 0 | AI70: =T3_R1!L70 -> 0 | AK70: ='MDA3'!L70 -> 0 | AN70: =_xlfn.XLOOKUP($Y70,[1]COUNTRY_INFO!$Y$9:$Y$527,[1]COUNTRY_INFO!D$9:D$527) -> 36765 | AO70: =_xlfn.XLOOKUP($Y70,[1]COUNTRY_INFO!$Y$9:$Y$527,[1]COUNTRY_INFO!E$9:E$527) -> 4816.165 | AP70: =_xlfn.XLOOKUP($Y70,[1]COUNTRY_INFO!$Y$9:$Y$527,[1]COUNTRY_INFO!F$9:F$527) -> 13121 | AQ70: =_xlfn.XLOOKUP($Y70,[1]COUNTRY_INFO!$Y$9:$Y$527,[1]COUNTRY_INFO!G$9:G$527) -> 17394 | AR70: 6.09003128 | AS70: 3.25642913 | AT70: 6.089474888 | AU70: 6.088306313 | AY70: 99 | AZ70: 4 | BA70: 0 | BB70: 0 | BC70: 0 | BD70: TRUE | BE70: TRUE | BF70: TRUE | BG70: TRUE | BH70: TRUE
A71: =IF(INTRO!$E$34<>0,INTRO!$E$34,"") -> DRC | B71: HAUT LOMAMI | C71: Kaniama | D71: 360472 | E71: 45960 | F71: 128653 | G71: 170539 | H71: 99 | I71: 4 | J71: 0 | K71: 0 | L71: 0 | M71: =IF(INTRO!$E$38="Endemic", IF($H71>0, IF($H71=4,"Unknown", IF($H71=99,"Stopped", $D71)), 0),"Not required") -> Stopped | N71: =IF(INTRO!$E$40="Endemic", IF($I71>0, IF($I71=4,"Unknown",IF($I71=99,"Stopped", $D71)), 0),"Not required") -> Unknown | O71: =IF(INTRO!$E$42="Endemic", IF(AND($J71>1,$J71<5), IF($J71=4, "Unknown", E71+F71), 0),"Not required") -> 0 | P71: =IF(INTRO!$E$44="Endemic", IF(AND($K71>0,$K71<5), IF($K71=4,"Unknown", IF($K71=1, $F71*0.33, IF($K71=2, $F71*0.5+$G71*0.2, SUM(F71:G71)))), 0),"Not required") -> 0 | Q71: 0 | R71: 0 | S71: 0 | T71: 0 | Y71: 14077 | Z71: Kaniama | AD71: ='MDA1'!K71 -> 0 | AE71: ='MDA4'!K71 -> 0 | AF71: ='MDA3'!I71 -> 0 | AG71: ='T1'!M71 -> 0 | AH71: ='T2'!K71 -> 0 | AI71: =T3_R1!L71 -> 0 | AK71: ='MDA3'!L71 -> 0 | AN71: =_xlfn.XLOOKUP($Y71,[1]COUNTRY_INFO!$Y$9:$Y$527,[1]COUNTRY_INFO!D$9:D$527) -> 339779 | AO71: =_xlfn.XLOOKUP($Y71,[1]COUNTRY_INFO!$Y$9:$Y$527,[1]COUNTRY_INFO!E$9:E$527) -> 44510.619 | AP71: =_xlfn.XLOOKUP($Y71,[1]COUNTRY_INFO!$Y$9:$Y$527,[1]COUNTRY_INFO!F$9:F$527) -> 121267 | AQ71: =_xlfn.XLOOKUP($Y71,[1]COUNTRY_INFO!$Y$9:$Y$527,[1]COUNTRY_INFO!G$9:G$527) -> 160750 | AR71: 6.090135058 | AS71: 3.256258917 | AT71: 6.090692439 | AU71: 6.089580093 | AY71: 99 | AZ71: 4 | BA71: 0 | BB71: 0 | BC71: 0 | BD71: TRUE | BE71: TRUE | BF71: TRUE | BG71: TRUE | BH71: TRUE
A72: =IF(INTRO!$E$34<>0,INTRO!$E$34,"") -> DRC | B72: HAUT LOMAMI | C72: Kayamba | D72: 125506 | E72: 15061 | F72: 43927 | G72: 61498 | H72: 1 | I72: 1 | J72: 0 | K72: 2 | L72: 0 | M72: =IF(INTRO!$E$38="Endemic", IF($H72>0, IF($H72=4,"Unknown", IF($H72=99,"Stopped", $D72)), 0),"Not required") -> 125506 | N72: =IF(INTRO!$E$40="Endemic", IF($I72>0, IF($I72=4,"Unknown",IF($I72=99,"Stopped", $D72)), 0),"Not required") -> 125506 | O72: =IF(INTRO!$E$42="Endemic", IF(AND($J72>1,$J72<5), IF($J72=4, "Unknown", E72+F72), 0),"Not required") -> 0 | P72: =IF(INTRO!$E$44="Endemic", IF(AND($K72>0,$K72<5), IF($K72=4,"Unknown", IF($K72=1, $F72*0.33, IF($K72=2, $F72*0.5+$G72*0.2, SUM(F72:G72)))), 0),"Not required") -> 34263.1 | Q72: 1 | R72: 1 | S72: 0 | T72: 1 | U72: MDA1 (IVM+ALB) | V72: T2 (PZQ) | Y72: 14086 | Z72: Kayamba | AD72: ='MDA1'!K72 -> 40804 | AE72: ='MDA4'!K72 -> 0 | AF72: ='MDA3'!I72 -> 0 | AG72: ='T1'!M72 -> 0 | AH72: ='T2'!K72 -> 43263 | AI72: =T3_R1!L72 -> 0 | AK72: ='MDA3'!L72 -> 0 | AN72: =_xlfn.XLOOKUP($Y72,[1]COUNTRY_INFO!$Y$9:$Y$527,[1]COUNTRY_INFO!D$9:D$527) -> 120273 | AO72: =_xlfn.XLOOKUP($Y72,[1]COUNTRY_INFO!$Y$9:$Y$527,[1]COUNTRY_INFO!E$9:E$527) -> 14553.353 | AP72: =_xlfn.XLOOKUP($Y72,[1]COUNTRY_INFO!$Y$9:$Y$527,[1]COUNTRY_INFO!F$9:F$527) -> 43442 | AQ72: =_xlfn.XLOOKUP($Y72,[1]COUNTRY_INFO!$Y$9:$Y$527,[1]COUNTRY_INFO!G$9:G$527) -> 57587 | AR72: 4.350934956 | AS72: 3.488178978 | AT72: 1.116431104 | AU72: 6.791463351 | AY72: 1 | AZ72: 1 | BA72: 0 | BB72: 2 | BC72: 0 | BD72: TRUE | BE72: TRUE | BF72: TRUE | BG72: TRUE | BH72: TRUE
A73: =IF(INTRO!$E$34<>0,INTRO!$E$34,"") -> DRC | B73: HAUT LOMAMI | C73: Kinda | D73: 90496 | E73: 10859 | F73: 31674 | G73: 44343 | H73: 0 | I73: 4 | J73: 1 | K73: 2 | L73: 0 | M73: =IF(INTRO!$E$38="Endemic", IF($H73>0, IF($H73=4,"Unknown", IF($H73=99,"Stopped", $D73)), 0),"Not required") -> 0 | N73: =IF(INTRO!$E$40="Endemic", IF($I73>0, IF($I73=4,"Unknown",IF($I73=99,"Stopped", $D73)), 0),"Not required") -> Unknown | O73: =IF(INTRO!$E$42="Endemic", IF(AND($J73>1,$J73<5), IF($J73=4, "Unknown", E73+F73), 0),"Not required") -> 0 | P73: =IF(INTRO!$E$44="Endemic", IF(AND($K73>0,$K73<5), IF($K73=4,"Unknown", IF($K73=1, $F73*0.33, IF($K73=2, $F73*0.5+$G73*0.2, SUM(F73:G73)))), 0),"Not required") -> 24705.6 | Q73: 0 | R73: 0 | S73: 0 | T73: 0 | Y73: 14092 | Z73: Kinda | AD73: ='MDA1'!K73 -> 0 | AE73: ='MDA4'!K73 -> 0 | AF73: ='MDA3'!I73 -> 0 | AG73: ='T1'!M73 -> 0 | AH73: ='T2'!K73 -> 0 | AI73: =T3_R1!L73 -> 0 | AK73: ='MDA3'!L73 -> 0 | AN73: =_xlfn.XLOOKUP($Y73,[1]COUNTRY_INFO!$Y$9:$Y$527,[1]COUNTRY_INFO!D$9:D$527) -> 85301 | AO73: =_xlfn.XLOOKUP($Y73,[1]COUNTRY_INFO!$Y$9:$Y$527,[1]COUNTRY_INFO!E$9:E$527) -> 10321.261 | AP73: =_xlfn.XLOOKUP($Y73,[1]COUNTRY_INFO!$Y$9:$Y$527,[1]COUNTRY_INFO!F$9:F$527) -> 25286 | AQ73: =_xlfn.XLOOKUP($Y73,[1]COUNTRY_INFO!$Y$9:$Y$527,[1]COUNTRY_INFO!G$9:G$527) -> 46367 | AR73: 6.090198239 | AS73: 5.210012614 | AT73: 25.26299138 | AU73: -4.365173507 | AY73: 0 | AZ73: 4 | BA73: 1 | BB73: 2 | BC73: 0 | BD73: TRUE | BE73: TRUE | BF73: TRUE | BG73: TRUE | BH73: TRUE
A74: =IF(INTRO!$E$34<>0,INTRO!$E$34,"") -> DRC | B74: HAUT LOMAMI | C74: Kinkonja | D74: 324017 | E74: 38882 | F74: 113406 | G74: 158768 | H74: 0 | I74: 4 | J74: 1 | K74: 1 | L74: 0 | M74: =IF(INTRO!$E$38="Endemic", IF($H74>0, IF($H74=4,"Unknown", IF($H74=99,"Stopped", $D74)), 0),"Not required") -> 0 | N74: =IF(INTRO!$E$40="Endemic", IF($I74>0, IF($I74=4,"Unknown",IF($I74=99,"Stopped", $D74)), 0),"Not required") -> Unknown | O74: =IF(INTRO!$E$42="Endemic", IF(AND($J74>1,$J74<5), IF($J74=4, "Unknown", E74+F74), 0),"Not required") -> 0 | P74: =IF(INTRO!$E$44="Endemic", IF(AND($K74>0,$K74<5), IF($K74=4,"Unknown", IF($K74=1, $F74*0.33, IF($K74=2, $F74*0.5+$G74*0.2, SUM(F74:G74)))), 0),"Not required") -> 37423.98 | Q74: 0 | R74: 0 | S74: 0 | T74: 0 | Y74: 14093 | Z74: Kinkonja | AD74: ='MDA1'!K74 -> 0 | AE74: ='MDA4'!K74 -> 0 | AF74: ='MDA3'!I74 -> 0 | AG74: ='T1'!M74 -> 0 | AH74: ='T2'!K74 -> 0 | AI74: =T3_R1!L74 -> 0 | AK74: ='MDA3'!L74 -> 0 | AN74: =_xlfn.XLOOKUP($Y74,[1]COUNTRY_INFO!$Y$9:$Y$527,[1]COUNTRY_INFO!D$9:D$527) -> 305417 | AO74: =_xlfn.XLOOKUP($Y74,[1]COUNTRY_INFO!$Y$9:$Y$527,[1]COUNTRY_INFO!E$9:E$527) -> 36955.737 | AP74: =_xlfn.XLOOKUP($Y74,[1]COUNTRY_INFO!$Y$9:$Y$527,[1]COUNTRY_INFO!F$9:F$527) -> 106896 | AQ74: =_xlfn.XLOOKUP($Y74,[1]COUNTRY_INFO!$Y$9:$Y$527,[1]COUNTRY_INFO!G$9:G$527) -> 149654 | AR74: =(D74-AN74)/AN74*100 -> 6.090034281 | AS74: =(E74-AO74)/AO74*100 -> 5.212351739 | AT74: =(F74-AP74)/AP74*100 -> 6.090031432 | AU74: =(G74-AQ74)/AQ74*100 -> 6.09004771 | AY74: 0 | AZ74: 4 | BA74: 1 | BB74: 1 | BC74: 0 | BD74: =AY74=H74 -> TRUE | BE74: =AZ74=I74 -> TRUE | BF74: =BA74=J74 -> TRUE | BG74: =BB74=K74 -> TRUE | BH74: =BC74=L74 -> TRUE
A75: =IF(INTRO!$E$34<>0,INTRO!$E$34,"") -> DRC | B75: HAUT LOMAMI | C75: Kitenge | D75: 328215 | E75: 39385 | F75: 114875 | G75: 160825.6 | H75: 0 | I75: 1 | J75: 1 | K75: 0 | L75: 0 | M75: =IF(INTRO!$E$38="Endemic", IF($H75>0, IF($H75=4,"Unknown", IF($H75=99,"Stopped", $D75)), 0),"Not required") -> 0 | N75: =IF(INTRO!$E$40="Endemic", IF($I75>0, IF($I75=4,"Unknown",IF($I75=99,"Stopped", $D75)), 0),"Not required") -> 328215 | O75: =IF(INTRO!$E$42="Endemic", IF(AND($J75>1,$J75<5), IF($J75=4, "Unknown", E75+F75), 0),"Not required") -> 0 | P75: =IF(INTRO!$E$44="Endemic", IF(AND($K75>0,$K75<5), IF($K75=4,"Unknown", IF($K75=1, $F75*0.33, IF($K75=2, $F75*0.5+$G75*0.2, SUM(F75:G75)))), 0),"Not required") -> 0 | Q75: 0 | R75: 1 | S75: 0 | T75: 0 | U75: MDA3 (IVM) | Y75: 14096 | Z75: Kitenge | AD75: ='MDA1'!K75 -> 0 | AE75: ='MDA4'!K75 -> 0 | AF75: ='MDA3'!I75 -> 114875 | AG75: ='T1'!M75 -> 0 | AH75: ='T2'!K75 -> 0 | AI75: =T3_R1!L75 -> 0 | AK75: ='MDA3'!L75 -> 0 | AN75: =_xlfn.XLOOKUP($Y75,[1]COUNTRY_INFO!$Y$9:$Y$527,[1]COUNTRY_INFO!D$9:D$527) -> 322328 | AO75: =_xlfn.XLOOKUP($Y75,[1]COUNTRY_INFO!$Y$9:$Y$527,[1]COUNTRY_INFO!E$9:E$527) -> 39001.688 | AP75: =_xlfn.XLOOKUP($Y75,[1]COUNTRY_INFO!$Y$9:$Y$527,[1]COUNTRY_INFO!F$9:F$527) -> 116425 | AQ75: =_xlfn.XLOOKUP($Y75,[1]COUNTRY_INFO!$Y$9:$Y$527,[1]COUNTRY_INFO!G$9:G$527) -> 154330.52 | AR75: 1.826400437 | AS75: 0.9828087441 | AT75: -1.331329182 | AU75: 4.208551879 | AY75: 0 | AZ75: 1 | BA75: 1 | BB75: 0 | BC75: 0 | BD75: TRUE | BE75: TRUE | BF75: TRUE | BG75: TRUE | BH75: TRUE
A76: =IF(INTRO!$E$34<>0,INTRO!$E$34,"") -> DRC | B76: HAUT LOMAMI | C76: Lwamba | D76: 175239 | E76: 21028 | F76: 61334 | G76: 85867 | H76: 0 | I76: 4 | J76: 1 | K76: 1 | L76: 0 | M76: =IF(INTRO!$E$38="Endemic", IF($H76>0, IF($H76=4,"Unknown", IF($H76=99,"Stopped", $D76)), 0),"Not required") -> 0 | N76: =IF(INTRO!$E$40="Endemic", IF($I76>0, IF($I76=4,"Unknown",IF($I76=99,"Stopped", $D76)), 0),"Not required") -> Unknown | O76: =IF(INTRO!$E$42="Endemic", IF(AND($J76>1,$J76<5), IF($J76=4, "Unknown", E76+F76), 0),"Not required") -> 0 | P76: =IF(INTRO!$E$44="Endemic", IF(AND($K76>0,$K76<5), IF($K76=4,"Unknown", IF($K76=1, $F76*0.33, IF($K76=2, $F76*0.5+$G76*0.2, SUM(F76:G76)))), 0),"Not required") -> 20240.22 | Q76: 0 | R76: 0 | S76: 0 | T76: 0 | Y76: 14104 | Z76: Lwamba | AD76: ='MDA1'!K76 -> 0 | AE76: ='MDA4'!K76 -> 0 | AF76: ='MDA3'!I76 -> 0 | AG76: ='T1'!M76 -> 0 | AH76: ='T2'!K76 -> 0 | AI76: =T3_R1!L76 -> 0 | AK76: ='MDA3'!L76 -> 0 | AN76: =_xlfn.XLOOKUP($Y76,[1]COUNTRY_INFO!$Y$9:$Y$527,[1]COUNTRY_INFO!D$9:D$527) -> 165180 | AO76: =_xlfn.XLOOKUP($Y76,[1]COUNTRY_INFO!$Y$9:$Y$527,[1]COUNTRY_INFO!E$9:E$527) -> 19986.98 | AP76: =_xlfn.XLOOKUP($Y76,[1]COUNTRY_INFO!$Y$9:$Y$527,[1]COUNTRY_INFO!F$9:F$527) -> 57813 | AQ76: =_xlfn.XLOOKUP($Y76,[1]COUNTRY_INFO!$Y$9:$Y$527,[1]COUNTRY_INFO!G$9:G$527) -> 80938 | AR76: 6.089720305 | AS76: 5.208490727 | AT76: 6.090325705 | AU76: 6.089846549 | AY76: 0 | AZ76: 4 | BA76: 1 | BB76: 1 | BC76: 0 | BD76: TRUE | BE76: TRUE | BF76: TRUE | BG76: TRUE | BH76: TRUE
A77: =IF(INTRO!$E$34<>0,INTRO!$E$34,"") -> DRC | B77: HAUT LOMAMI | C77: Malemba Nkulu | D77: 419172 | E77: 50301 | F77: 146710 | G77: 205394 | H77: 0 | I77: 4 | J77: 1 | K77: 2 | L77: 0 | M77: =IF(INTRO!$E$38="Endemic", IF($H77>0, IF($H77=4,"Unknown", IF($H77=99,"Stopped", $D77)), 0),"Not required") -> 0 | N77: =IF(INTRO!$E$40="Endemic", IF($I77>0, IF($I77=4,"Unknown",IF($I77=99,"Stopped", $D77)), 0),"Not required") -> Unknown | O77: =IF(INTRO!$E$42="Endemic", IF(AND($J77>1,$J77<5), IF($J77=4, "Unknown", E77+F77), 0),"Not required") -> 0 | P77: =IF(INTRO!$E$44="Endemic", IF(AND($K77>0,$K77<5), IF($K77=4,"Unknown", IF($K77=1, $F77*0.33, IF($K77=2, $F77*0.5+$G77*0.2, SUM(F77:G77)))), 0),"Not required") -> 114433.8 | Q77: 0 | R77: 0 | S77: 0 | T77: 1 | U77: T2 (PZQ) | Y77: 14105 | Z77: Malemba Nkulu | AD77: ='MDA1'!K77 -> 0 | AE77: ='MDA4'!K77 -> 0 | AF77: ='MDA3'!I77 -> 0 | AG77: ='T1'!M77 -> 0 | AH77: ='T2'!K77 -> 120893 | AI77: =T3_R1!L77 -> 0 | AK77: ='MDA3'!L77 -> 0 | AN77: =_xlfn.XLOOKUP($Y77,[1]COUNTRY_INFO!$Y$9:$Y$527,[1]COUNTRY_INFO!D$9:D$527) -> 395110 | AO77: =_xlfn.XLOOKUP($Y77,[1]COUNTRY_INFO!$Y$9:$Y$527,[1]COUNTRY_INFO!E$9:E$527) -> 47808.71 | AP77: =_xlfn.XLOOKUP($Y77,[1]COUNTRY_INFO!$Y$9:$Y$527,[1]COUNTRY_INFO!F$9:F$527) -> 138289 | AQ77: =_xlfn.XLOOKUP($Y77,[1]COUNTRY_INFO!$Y$9:$Y$527,[1]COUNTRY_INFO!G$9:G$527) -> 193603 | AR77: 6.089949634 | AS77: 5.213045907 | AT77: 6.089421429 | AU77: 6.090298188 | AY77: 0 | AZ77: 4 | BA77: 1 | BB77: 2 | BC77: 0 | BD77: TRUE | BE77: TRUE | BF77: TRUE | BG77: TRUE | BH77: TRUE
A78: =IF(INTRO!$E$34<>0,INTRO!$E$34,"") -> DRC | B78: HAUT LOMAMI | C78: Mukanga | D78: 262624 | E78: 31515 | F78: 91918 | G78: 128686 | H78: 0 | I78: 4 | J78: 1 | K78: 2 | L78: 0 | M78: =IF(INTRO!$E$38="Endemic", IF($H78>0, IF($H78=4,"Unknown", IF($H78=99,"Stopped", $D78)), 0),"Not required") -> 0 | N78: =IF(INTRO!$E$40="Endemic", IF($I78>0, IF($I78=4,"Unknown",IF($I78=99,"Stopped", $D78)), 0),"Not required") -> Unknown | O78: =IF(INTRO!$E$42="Endemic", IF(AND($J78>1,$J78<5), IF($J78=4, "Unknown", E78+F78), 0),"Not required") -> 0 | P78: =IF(INTRO!$E$44="Endemic", IF(AND($K78>0,$K78<5), IF($K78=4,"Unknown", IF($K78=1, $F78*0.33, IF($K78=2, $F78*0.5+$G78*0.2, SUM(F78:G78)))), 0),"Not required") -> 71696.2 | Q78: 0 | R78: 0 | S78: 0 | T78: 1 | U78: T2 (PZQ) | Y78: 14113 | Z78: Mukanga | AD78: ='MDA1'!K78 -> 0 | AE78: ='MDA4'!K78 -> 0 | AF78: ='MDA3'!I78 -> 0 | AG78: ='T1'!M78 -> 0 | AH78: ='T2'!K78 -> 70348 | AI78: =T3_R1!L78 -> 0 | AK78: ='MDA3'!L78 -> 0 | AN78: =_xlfn.XLOOKUP($Y78,[1]COUNTRY_INFO!$Y$9:$Y$527,[1]COUNTRY_INFO!D$9:D$527) -> 247548 | AO78: =_xlfn.XLOOKUP($Y78,[1]COUNTRY_INFO!$Y$9:$Y$527,[1]COUNTRY_INFO!E$9:E$527) -> 29953.628 | AP78: =_xlfn.XLOOKUP($Y78,[1]COUNTRY_INFO!$Y$9:$Y$527,[1]COUNTRY_INFO!F$9:F$527) -> 86642 | AQ78: =_xlfn.XLOOKUP($Y78,[1]COUNTRY_INFO!$Y$9:$Y$527,[1]COUNTRY_INFO!G$9:G$527) -> 121298 | AR78: 6.090132015 | AS78: 5.21263067 | AT78: 6.089425452 | AU78: 6.090784679 | AY78: 0 | AZ78: 4 | BA78: 1 | BB78: 2 | BC78: 0 | BD78: TRUE | BE78: TRUE | BF78: TRUE | BG78: TRUE | BH78: TRUE
A79: =IF(INTRO!$E$34<>0,INTRO!$E$34,"") -> DRC | B79: HAUT LOMAMI | C79: Mulongo | D79: 346093 | E79: 41531 | F79: 121133 | G79: 169585 | H79: 0 | I79: 4 | J79: 1 | K79: 0 | L79: 0 | M79: =IF(INTRO!$E$38="Endemic", IF($H79>0, IF($H79=4,"Unknown", IF($H79=99,"Stopped", $D79)), 0),"Not required") -> 0 | N79: =IF(INTRO!$E$40="Endemic", IF($I79>0, IF($I79=4,"Unknown",IF($I79=99,"Stopped", $D79)), 0),"Not required") -> Unknown | O79: =IF(INTRO!$E$42="Endemic", IF(AND($J79>1,$J79<5), IF($J79=4, "Unknown", E79+F79), 0),"Not required") -> 0 | P79: =IF(INTRO!$E$44="Endemic", IF(AND($K79>0,$K79<5), IF($K79=4,"Unknown", IF($K79=1, $F79*0.33, IF($K79=2, $F79*0.5+$G79*0.2, SUM(F79:G79)))), 0),"Not required") -> 0 | Q79: 0 | R79: 0 | S79: 0 | T79: 0 | Y79: 14114 | Z79: Mulongo | AD79: ='MDA1'!K79 -> 0 | AE79: ='MDA4'!K79 -> 0 | AF79: ='MDA3'!I79 -> 0 | AG79: ='T1'!M79 -> 0 | AH79: ='T2'!K79 -> 0 | AI79: =T3_R1!L79 -> 0 | AK79: ='MDA3'!L79 -> 0 | AN79: =_xlfn.XLOOKUP($Y79,[1]COUNTRY_INFO!$Y$9:$Y$527,[1]COUNTRY_INFO!D$9:D$527) -> 326226 | AO79: =_xlfn.XLOOKUP($Y79,[1]COUNTRY_INFO!$Y$9:$Y$527,[1]COUNTRY_INFO!E$9:E$527) -> 39473.186 | AP79: =_xlfn.XLOOKUP($Y79,[1]COUNTRY_INFO!$Y$9:$Y$527,[1]COUNTRY_INFO!F$9:F$527) -> 114179 | AQ79: =_xlfn.XLOOKUP($Y79,[1]COUNTRY_INFO!$Y$9:$Y$527,[1]COUNTRY_INFO!G$9:G$527) -> 159851 | AR79: 6.089949912 | AS79: 5.213194597 | AT79: 6.090436945 | AU79: 6.089420773 | AY79: 0 | AZ79: 4 | BA79: 1 | BB79: 0 | BC79: 0 | BD79: TRUE | BE79: TRUE | BF79: TRUE | BG79: TRUE | BH79: TRUE
A80: =IF(INTRO!$E$34<>0,INTRO!$E$34,"") -> DRC | B80: HAUT LOMAMI | C80: Songa | D80: 238727 | E80: 28647 | F80: 83554 | G80: 116977 | H80: 1 | I80: 4 | J80: 2 | K80: 2 | L80: 0 | M80: =IF(INTRO!$E$38="Endemic", IF($H80>0, IF($H80=4,"Unknown", IF($H80=99,"Stopped", $D80)), 0),"Not required") -> 238727 | N80: =IF(INTRO!$E$40="Endemic", IF($I80>0, IF($I80=4,"Unknown",IF($I80=99,"Stopped", $D80)), 0),"Not required") -> Unknown | O80: =IF(INTRO!$E$42="Endemic", IF(AND($J80>1,$J80<5), IF($J80=4, "Unknown", E80+F80), 0),"Not required") -> 112201 | P80: =IF(INTRO!$E$44="Endemic", IF(AND($K80>0,$K80<5), IF($K80=4,"Unknown", IF($K80=1, $F80*0.33, IF($K80=2, $F80*0.5+$G80*0.2, SUM(F80:G80)))), 0),"Not required") -> 65172.4 | Q80: 1 | R80: 0 | S80: 1 | T80: 0 | U80: MDA1 (IVM+ALB) | Y80: 14123 | Z80: Songa | AD80: ='MDA1'!K80 -> 82909 | AE80: ='MDA4'!K80 -> 0 | AF80: ='MDA3'!I80 -> 0 | AG80: ='T1'!M80 -> 0 | AH80: ='T2'!K80 -> 0 | AI80: =T3_R1!L80 -> 0 | AK80: ='MDA3'!L80 -> 0 | AN80: =_xlfn.XLOOKUP($Y80,[1]COUNTRY_INFO!$Y$9:$Y$527,[1]COUNTRY_INFO!D$9:D$527) -> 220854 | AO80: =_xlfn.XLOOKUP($Y80,[1]COUNTRY_INFO!$Y$9:$Y$527,[1]COUNTRY_INFO!E$9:E$527) -> 26723.694 | AP80: =_xlfn.XLOOKUP($Y80,[1]COUNTRY_INFO!$Y$9:$Y$527,[1]COUNTRY_INFO!F$9:F$527) -> 78542 | AQ80: =_xlfn.XLOOKUP($Y80,[1]COUNTRY_INFO!$Y$9:$Y$527,[1]COUNTRY_INFO!G$9:G$527) -> 106975 | AR80: 8.09267661 | AS80: 7.197006522 | AT80: 6.381299178 | AU80: 9.349848095 | AY80: 1 | AZ80: 4 | BA80: 2 | BB80: 2 | BC80: 0 | BD80: TRUE | BE80: TRUE | BF80: TRUE | BG80: TRUE | BH80: TRUE
A81: =IF(INTRO!$E$34<>0,INTRO!$E$34,"") -> DRC | B81: HAUT UELE | C81: Aba | D81: 190602 | E81: 22872 | F81: 66711 | G81: 93394.68 | H81: 1 | I81: 4 | J81: 1 | K81: 1 | L81: 1 | M81: =IF(INTRO!$E$38="Endemic", IF($H81>0, IF($H81=4,"Unknown", IF($H81=99,"Stopped", $D81)), 0),"Not required") -> 190602 | N81: =IF(INTRO!$E$40="Endemic", IF($I81>0, IF($I81=4,"Unknown",IF($I81=99,"Stopped", $D81)), 0),"Not required") -> Unknown | O81: =IF(INTRO!$E$42="Endemic", IF(AND($J81>1,$J81<5), IF($J81=4, "Unknown", E81+F81), 0),"Not required") -> 0 | P81: =IF(INTRO!$E$44="Endemic", IF(AND($K81>0,$K81<5), IF($K81=4,"Unknown", IF($K81=1, $F81*0.33, IF($K81=2, $F81*0.5+$G81*0.2, SUM(F81:G81)))), 0),"Not required") -> 22014.63 | Q81: 1 | R81: 0 | S81: 0 | T81: 0 | U81: MDA4 (ALB/2*ALB) | Y81: 14213 | Z81: Aba | AD81: ='MDA1'!K81 -> 0 | AE81: ='MDA4'!K81 -> 66475 | AF81: ='MDA3'!I81 -> 0 | AG81: ='T1'!M81 -> 0 | AH81: ='T2'!K81 -> 0 | AI81: =T3_R1!L81 -> 0 | AK81: ='MDA3'!L81 -> 0 | AN81: =_xlfn.XLOOKUP($Y81,[1]COUNTRY_INFO!$Y$9:$Y$527,[1]COUNTRY_INFO!D$9:D$527) -> 156138 | AO81: =_xlfn.XLOOKUP($Y81,[1]COUNTRY_INFO!$Y$9:$Y$527,[1]COUNTRY_INFO!E$9:E$527) -> 18892.698 | AP81: =_xlfn.XLOOKUP($Y81,[1]COUNTRY_INFO!$Y$9:$Y$527,[1]COUNTRY_INFO!F$9:F$527) -> 54659 | AQ81: =_xlfn.XLOOKUP($Y81,[1]COUNTRY_INFO!$Y$9:$Y$527,[1]COUNTRY_INFO!G$9:G$527) -> 76496.92 | AR81: 22.07278177 | AS81: 21.06264547 | AT81: 22.04943376 | AU81: 22.08946452 | AV81: pb | AY81: 1 | AZ81: 4 | BA81: 1 | BB81: 1 | BC81: 1 | BD81: TRUE | BE81: TRUE | BF81: TRUE | BG81: TRUE | BH81: TRUE
A82: =IF(INTRO!$E$34<>0,INTRO!$E$34,"") -> DRC | B82: HAUT UELE | C82: Bomamangbetu | D82: 131067 | E82: 15728 | F82: 45873 | G82: 64223 | H82: 0 | I82: 1 | J82: 1 | K82: 1 | L82: 0 | M82: =IF(INTRO!$E$38="Endemic", IF($H82>0, IF($H82=4,"Unknown", IF($H82=99,"Stopped", $D82)), 0),"Not required") -> 0 | N82: =IF(INTRO!$E$40="Endemic", IF($I82>0, IF($I82=4,"Unknown",IF($I82=99,"Stopped", $D82)), 0),"Not required") -> 131067 | O82: =IF(INTRO!$E$42="Endemic", IF(AND($J82>1,$J82<5), IF($J82=4, "Unknown", E82+F82), 0),"Not required") -> 0 | P82: =IF(INTRO!$E$44="Endemic", IF(AND($K82>0,$K82<5), IF($K82=4,"Unknown", IF($K82=1, $F82*0.33, IF($K82=2, $F82*0.5+$G82*0.2, SUM(F82:G82)))), 0),"Not required") -> 15138.09 | Q82: 0 | R82: 1 | S82: 0 | T82: 0 | U82: MDA3 (IVM) | Y82: 14330 | Z82: Bomamangbetu | AD82: ='MDA1'!K82 -> 0 | AE82: ='MDA4'!K82 -> 0 | AF82: ='MDA3'!I82 -> 41660 | AG82: ='T1'!M82 -> 0 | AH82: ='T2'!K82 -> 0 | AI82: =T3_R1!L82 -> 0 | AK82: ='MDA3'!L82 -> 0 | AN82: =_xlfn.XLOOKUP($Y82,[1]COUNTRY_INFO!$Y$9:$Y$527,[1]COUNTRY_INFO!D$9:D$527) -> 119785 | AO82: =_xlfn.XLOOKUP($Y82,[1]COUNTRY_INFO!$Y$9:$Y$527,[1]COUNTRY_INFO!E$9:E$527) -> 14494.385 | AP82: =_xlfn.XLOOKUP($Y82,[1]COUNTRY_INFO!$Y$9:$Y$527,[1]COUNTRY_INFO!F$9:F$527) -> 41925 | AQ82: =_xlfn.XLOOKUP($Y82,[1]COUNTRY_INFO!$Y$9:$Y$527,[1]COUNTRY_INFO!G$9:G$527) -> 58694 | AR82: 9.418541554 | AS82: 8.510985461 | AT82: 9.416815742 | AU82: 9.420042935 | AY82: 0 | AZ82: 1 | BA82: 1 | BB82: 1 | BC82: 0 | BD82: TRUE | BE82: TRUE | BF82: TRUE | BG82: TRUE | BH82: TRUE
A83: =IF(INTRO!$E$34<>0,INTRO!$E$34,"") -> DRC | B83: HAUT UELE | C83: Doruma | D83: 80298 | E83: 9636 | F83: 28104 | G83: 39346.32 | H83: 1 | I83: 4 | J83: 1 | K83: 1 | L83: 1 | M83: =IF(INTRO!$E$38="Endemic", IF($H83>0, IF($H83=4,"Unknown", IF($H83=99,"Stopped", $D83)), 0),"Not required") -> 80298 | N83: =IF(INTRO!$E$40="Endemic", IF($I83>0, IF($I83=4,"Unknown",IF($I83=99,"Stopped", $D83)), 0),"Not required") -> Unknown | O83: =IF(INTRO!$E$42="Endemic", IF(AND($J83>1,$J83<5), IF($J83=4, "Unknown", E83+F83), 0),"Not required") -> 0 | P83: =IF(INTRO!$E$44="Endemic", IF(AND($K83>0,$K83<5), IF($K83=4,"Unknown", IF($K83=1, $F83*0.33, IF($K83=2, $F83*0.5+$G83*0.2, SUM(F83:G83)))), 0),"Not required") -> 9274.32 | Q83: 1 | R83: 0 | S83: 0 | T83: 0 | U83: MDA4 (ALB/2*ALB) | Y83: 14236 | Z83: Doruma | AD83: ='MDA1'!K83 -> 0 | AE83: ='MDA4'!K83 -> 27983 | AF83: ='MDA3'!I83 -> 0 | AG83: ='T1'!M83 -> 0 | AH83: ='T2'!K83 -> 0 | AI83: =T3_R1!L83 -> 0 | AK83: ='MDA3'!L83 -> 0 | AN83: =_xlfn.XLOOKUP($Y83,[1]COUNTRY_INFO!$Y$9:$Y$527,[1]COUNTRY_INFO!D$9:D$527) -> 78623 | AO83: =_xlfn.XLOOKUP($Y83,[1]COUNTRY_INFO!$Y$9:$Y$527,[1]COUNTRY_INFO!E$9:E$527) -> 9513.383 | AP83: =_xlfn.XLOOKUP($Y83,[1]COUNTRY_INFO!$Y$9:$Y$527,[1]COUNTRY_INFO!F$9:F$527) -> 27925 | AQ83: =_xlfn.XLOOKUP($Y83,[1]COUNTRY_INFO!$Y$9:$Y$527,[1]COUNTRY_INFO!G$9:G$527) -> 38118.32 | AR83: 2.130419852 | AS83: 1.288889557 | AT83: 0.6410026858 | AU83: 3.221548064 | AY83: 1 | AZ83: 4 | BA83: 1 | BB83: 1 | BC83: 1 | BD83: TRUE | BE83: TRUE | BF83: TRUE | BG83: TRUE | BH83: TRUE
A84: =IF(INTRO!$E$34<>0,INTRO!$E$34,"") -> DRC | B84: HAUT UELE | C84: Dungu | D84: 136303 | E84: 16356 | F84: 47706 | G84: 66789 | H84: 0 | I84: 1 | J84: 1 | K84: 1 | L84: 0 | M84: =IF(INTRO!$E$38="Endemic", IF($H84>0, IF($H84=4,"Unknown", IF($H84=99,"Stopped", $D84)), 0),"Not required") -> 0 | N84: =IF(INTRO!$E$40="Endemic", IF($I84>0, IF($I84=4,"Unknown",IF($I84=99,"Stopped", $D84)), 0),"Not required") -> 136303 | O84: =IF(INTRO!$E$42="Endemic", IF(AND($J84>1,$J84<5), IF($J84=4, "Unknown", E84+F84), 0),"Not required") -> 0 | P84: =IF(INTRO!$E$44="Endemic", IF(AND($K84>0,$K84<5), IF($K84=4,"Unknown", IF($K84=1, $F84*0.33, IF($K84=2, $F84*0.5+$G84*0.2, SUM(F84:G84)))), 0),"Not required") -> 15742.98 | Q84: 0 | R84: 1 | S84: 0 | T84: 0 | U84: MDA3 (IVM) | Y84: 14238 | Z84: Dungu | AD84: ='MDA1'!K84 -> 0 | AE84: ='MDA4'!K84 -> 0 | AF84: ='MDA3'!I84 -> 42375 | AG84: ='T1'!M84 -> 0 | AH84: ='T2'!K84 -> 0 | AI84: =T3_R1!L84 -> 0 | AK84: ='MDA3'!L84 -> 0 | AN84: =_xlfn.XLOOKUP($Y84,[1]COUNTRY_INFO!$Y$9:$Y$527,[1]COUNTRY_INFO!D$9:D$527) -> 135732 | AO84: =_xlfn.XLOOKUP($Y84,[1]COUNTRY_INFO!$Y$9:$Y$527,[1]COUNTRY_INFO!E$9:E$527) -> 16423.452 | AP84: =_xlfn.XLOOKUP($Y84,[1]COUNTRY_INFO!$Y$9:$Y$527,[1]COUNTRY_INFO!F$9:F$527) -> 48455 | AQ84: =_xlfn.XLOOKUP($Y84,[1]COUNTRY_INFO!$Y$9:$Y$527,[1]COUNTRY_INFO!G$9:G$527) -> 65560 | AR84: 0.420681932 | AS84: -0.4107053742 | AT84: -1.545764111 | AU84: 1.87461867 | AY84: 0 | AZ84: 1 | BA84: 1 | BB84: 1 | BC84: 0 | BD84: TRUE | BE84: TRUE | BF84: TRUE | BG84: TRUE | BH84: TRUE
A85: =IF(INTRO!$E$34<>0,INTRO!$E$34,"") -> DRC | B85: HAUT UELE | C85: Faradje | D85: 154353 | E85: 18522 | F85: 54024 | G85: 75633 | H85: 1 | I85: 1 | J85: 1 | K85: 1 | L85: 0 | M85: =IF(INTRO!$E$38="Endemic", IF($H85>0, IF($H85=4,"Unknown", IF($H85=99,"Stopped", $D85)), 0),"Not required") -> 154353 | N85: =IF(INTRO!$E$40="Endemic", IF($I85>0, IF($I85=4,"Unknown",IF($I85=99,"Stopped", $D85)), 0),"Not required") -> 154353 | O85: =IF(INTRO!$E$42="Endemic", IF(AND($J85>1,$J85<5), IF($J85=4, "Unknown", E85+F85), 0),"Not required") -> 0 | P85: =IF(INTRO!$E$44="Endemic", IF(AND($K85>0,$K85<5), IF($K85=4,"Unknown", IF($K85=1, $F85*0.33, IF($K85=2, $F85*0.5+$G85*0.2, SUM(F85:G85)))), 0),"Not required") -> 17827.92 | Q85: 1 | R85: 1 | S85: 0 | T85: 0 | U85: MDA1 (IVM+ALB) | Y85: 14239 | Z85: Faradje | AD85: ='MDA1'!K85 -> 54024 | AE85: ='MDA4'!K85 -> 0 | AF85: ='MDA3'!I85 -> 0 | AG85: ='T1'!M85 -> 0 | AH85: ='T2'!K85 -> 0 | AI85: =T3_R1!L85 -> 0 | AK85: ='MDA3'!L85 -> 0 | AN85: =_xlfn.XLOOKUP($Y85,[1]COUNTRY_INFO!$Y$9:$Y$527,[1]COUNTRY_INFO!D$9:D$527) -> 141832 | AO85: =_xlfn.XLOOKUP($Y85,[1]COUNTRY_INFO!$Y$9:$Y$527,[1]COUNTRY_INFO!E$9:E$527) -> 17161.552 | AP85: =_xlfn.XLOOKUP($Y85,[1]COUNTRY_INFO!$Y$9:$Y$527,[1]COUNTRY_INFO!F$9:F$527) -> 49733 | AQ85: =_xlfn.XLOOKUP($Y85,[1]COUNTRY_INFO!$Y$9:$Y$527,[1]COUNTRY_INFO!G$9:G$527) -> 69406 | AR85: 8.828050087 | AS85: 7.92730168 | AT85: 8.628073915 | AU85: 8.971846814 | AY85: 1 | AZ85: 1 | BA85: 1 | BB85: 1 | BC85: 0 | BD85: TRUE | BE85: TRUE | BF85: TRUE | BG85: TRUE | BH85: TRUE
A86: =IF(INTRO!$E$34<>0,INTRO!$E$34,"") -> DRC | B86: HAUT UELE | C86: Gombari | D86: 141755 | E86: 17011 | F86: 49614 | G86: 69460.2 | H86: 1 | I86: 4 | J86: 1 | K86: 1 | L86: 1 | M86: =IF(INTRO!$E$38="Endemic", IF($H86>0, IF($H86=4,"Unknown", IF($H86=99,"Stopped", $D86)), 0),"Not required") -> 141755 | N86: =IF(INTRO!$E$40="Endemic", IF($I86>0, IF($I86=4,"Unknown",IF($I86=99,"Stopped", $D86)), 0),"Not required") -> Unknown | O86: =IF(INTRO!$E$42="Endemic", IF(AND($J86>1,$J86<5), IF($J86=4, "Unknown", E86+F86), 0),"Not required") -> 0 | P86: =IF(INTRO!$E$44="Endemic", IF(AND($K86>0,$K86<5), IF($K86=4,"Unknown", IF($K86=1, $F86*0.33, IF($K86=2, $F86*0.5+$G86*0.2, SUM(F86:G86)))), 0),"Not required") -> 16372.62 | Q86: 1 | R86: 0 | S86: 0 | T86: 0 | U86: MDA4 (ALB/2*ALB) | Y86: 14243 | Z86: Gombari | AD86: ='MDA1'!K86 -> 0 | AE86: ='MDA4'!K86 -> 49583 | AF86: ='MDA3'!I86 -> 0 | AG86: ='T1'!M86 -> 0 | AH86: ='T2'!K86 -> 0 | AI86: =T3_R1!L86 -> 0 | AK86: ='MDA3'!L86 -> 0 | AN86: =_xlfn.XLOOKUP($Y86,[1]COUNTRY_INFO!$Y$9:$Y$527,[1]COUNTRY_INFO!D$9:D$527) -> 137193 | AO86: =_xlfn.XLOOKUP($Y86,[1]COUNTRY_INFO!$Y$9:$Y$527,[1]COUNTRY_INFO!E$9:E$527) -> 16600.353 | AP86: =_xlfn.XLOOKUP($Y86,[1]COUNTRY_INFO!$Y$9:$Y$527,[1]COUNTRY_INFO!F$9:F$527) -> 46636 | AQ86: =_xlfn.XLOOKUP($Y86,[1]COUNTRY_INFO!$Y$9:$Y$527,[1]COUNTRY_INFO!G$9:G$527) -> 68606.12 | AR86: 3.325242542 | AS86: 2.473724505 | AT86: 6.385624839 | AU86: 1.244903516 | AY86: 1 | AZ86: 4 | BA86: 1 | BB86: 1 | BC86: 1 | BD86: TRUE | BE86: TRUE | BF86: TRUE | BG86: TRUE | BH86: TRUE
A87: =IF(INTRO!$E$34<>0,INTRO!$E$34,"") -> DRC | B87: HAUT UELE | C87: Isiro | D87: 313851 | E87: 37662 | F87: 109848 | G87: 153787 | H87: 1 | I87: 1 | J87: 1 | K87: 2 | L87: 0 | M87: =IF(INTRO!$E$38="Endemic", IF($H87>0, IF($H87=4,"Unknown", IF($H87=99,"Stopped", $D87)), 0),"Not required") -> 313851 | N87: =IF(INTRO!$E$40="Endemic", IF($I87>0, IF($I87=4,"Unknown",IF($I87=99,"Stopped", $D87)), 0),"Not required") -> 313851 | O87: =IF(INTRO!$E$42="Endemic", IF(AND($J87>1,$J87<5), IF($J87=4, "Unknown", E87+F87), 0),"Not required") -> 0 | P87: =IF(INTRO!$E$44="Endemic", IF(AND($K87>0,$K87<5), IF($K87=4,"Unknown", IF($K87=1, $F87*0.33, IF($K87=2, $F87*0.5+$G87*0.2, SUM(F87:G87)))), 0),"Not required") -> 85681.4 | Q87: 1 | R87: 1 | S87: 0 | T87: 0 | U87: MDA1 (IVM+ALB) | Y87: 14245 | Z87: Isiro | AD87: ='MDA1'!K87 -> 109848 | AE87: ='MDA4'!K87 -> 0 | AF87: ='MDA3'!I87 -> 0 | AG87: ='T1'!M87 -> 0 | AH87: ='T2'!K87 -> 0 | AI87: =T3_R1!L87 -> 0 | AK87: ='MDA3'!L87 -> 0 | AN87: =_xlfn.XLOOKUP($Y87,[1]COUNTRY_INFO!$Y$9:$Y$527,[1]COUNTRY_INFO!D$9:D$527) -> 306788 | AO87: =_xlfn.XLOOKUP($Y87,[1]COUNTRY_INFO!$Y$9:$Y$527,[1]COUNTRY_INFO!E$9:E$527) -> 37121.268 | AP87: =_xlfn.XLOOKUP($Y87,[1]COUNTRY_INFO!$Y$9:$Y$527,[1]COUNTRY_INFO!F$9:F$527) -> 91875 | AQ87: =_xlfn.XLOOKUP($Y87,[1]COUNTRY_INFO!$Y$9:$Y$527,[1]COUNTRY_INFO!G$9:G$527) -> 165827 | AR87: 2.302241287 | AS87: 1.456663603 | AT87: 19.56244898 | AU87: -7.260578796 | AY87: 1 | AZ87: 1 | BA87: 1 | BB87: 2 | BC87: 0 | BD87: TRUE | BE87: TRUE | BF87: TRUE | BG87: TRUE | BH87: TRUE
A88: =IF(INTRO!$E$34<>0,INTRO!$E$34,"") -> DRC | B88: HAUT UELE | C88: Makoro | D88: 172830 | E88: 20740 | F88: 60491 | G88: 84686 | H88: 0 | I88: 1 | J88: 1 | K88: 1 | L88: 0 | M88: =IF(INTRO!$E$38="Endemic", IF($H88>0, IF($H88=4,"Unknown", IF($H88=99,"Stopped", $D88)), 0),"Not required") -> 0 | N88: =IF(INTRO!$E$40="Endemic", IF($I88>0, IF($I88=4,"Unknown",IF($I88=99,"Stopped", $D88)), 0),"Not required") -> 172830 | O88: =IF(INTRO!$E$42="Endemic", IF(AND($J88>1,$J88<5), IF($J88=4, "Unknown", E88+F88), 0),"Not required") -> 0 | P88: =IF(INTRO!$E$44="Endemic", IF(AND($K88>0,$K88<5), IF($K88=4,"Unknown", IF($K88=1, $F88*0.33, IF($K88=2, $F88*0.5+$G88*0.2, SUM(F88:G88)))), 0),"Not required") -> 19962.03 | Q88: 0 | R88: 1 | S88: 0 | T88: 0 | U88: MDA3 (IVM) | Y88: 14260 | Z88: Makoro | AD88: ='MDA1'!K88 -> 0 | AE88: ='MDA4'!K88 -> 0 | AF88: ='MDA3'!I88 -> 54535 | AG88: ='T1'!M88 -> 0 | AH88: ='T2'!K88 -> 0 | AI88: =T3_R1!L88 -> 0 | AK88: ='MDA3'!L88 -> 0 | AN88: =_xlfn.XLOOKUP($Y88,[1]COUNTRY_INFO!$Y$9:$Y$527,[1]COUNTRY_INFO!D$9:D$527) -> 170454 | AO88: =_xlfn.XLOOKUP($Y88,[1]COUNTRY_INFO!$Y$9:$Y$527,[1]COUNTRY_INFO!E$9:E$527) -> 20625.294 | AP88: =_xlfn.XLOOKUP($Y88,[1]COUNTRY_INFO!$Y$9:$Y$527,[1]COUNTRY_INFO!F$9:F$527) -> 60105 | AQ88: =_xlfn.XLOOKUP($Y88,[1]COUNTRY_INFO!$Y$9:$Y$527,[1]COUNTRY_INFO!G$9:G$527) -> 83076 | AR88: 1.393924461 | AS88: 0.5561423755 | AT88: 0.6422094668 | AU88: 1.937984496 | AY88: 0 | AZ88: 1 | BA88: 1 | BB88: 1 | BC88: 0 | BD88: TRUE | BE88: TRUE | BF88: TRUE | BG88: TRUE | BH88: TRUE
A89: =IF(INTRO!$E$34<>0,INTRO!$E$34,"") -> DRC | B89: HAUT UELE | C89: Niangara | D89: 116916 | E89: 14030 | F89: 40921 | G89: 57288 | H89: 1 | I89: 1 | J89: 1 | K89: 1 | L89: 0 | M89: =IF(INTRO!$E$38="Endemic", IF($H89>0, IF($H89=4,"Unknown", IF($H89=99,"Stopped", $D89)), 0),"Not required") -> 116916 | N89: =IF(INTRO!$E$40="Endemic", IF($I89>0, IF($I89=4,"Unknown",IF($I89=99,"Stopped", $D89)), 0),"Not required") -> 116916 | O89: =IF(INTRO!$E$42="Endemic", IF(AND($J89>1,$J89<5), IF($J89=4, "Unknown", E89+F89), 0),"Not required") -> 0 | P89: =IF(INTRO!$E$44="Endemic", IF(AND($K89>0,$K89<5), IF($K89=4,"Unknown", IF($K89=1, $F89*0.33, IF($K89=2, $F89*0.5+$G89*0.2, SUM(F89:G89)))), 0),"Not required") -> 13503.93 | Q89: 1 | R89: 1 | S89: 0 | T89: 0 | U89: MDA1 (IVM+ALB) | Y89: 14268 | Z89: Niangara | AD89: ='MDA1'!K89 -> 40921 | AE89: ='MDA4'!K89 -> 0 | AF89: ='MDA3'!I89 -> 0 | AG89: ='T1'!M89 -> 0 | AH89: ='T2'!K89 -> 0 | AI89: =T3_R1!L89 -> 0 | AK89: ='MDA3'!L89 -> 0 | AN89: =_xlfn.XLOOKUP($Y89,[1]COUNTRY_INFO!$Y$9:$Y$527,[1]COUNTRY_INFO!D$9:D$527) -> 116190 | AO89: =_xlfn.XLOOKUP($Y89,[1]COUNTRY_INFO!$Y$9:$Y$527,[1]COUNTRY_INFO!E$9:E$527) -> 14058.59 | AP89: =_xlfn.XLOOKUP($Y89,[1]COUNTRY_INFO!$Y$9:$Y$527,[1]COUNTRY_INFO!F$9:F$527) -> 40667 | AQ89: =_xlfn.XLOOKUP($Y89,[1]COUNTRY_INFO!$Y$9:$Y$527,[1]COUNTRY_INFO!G$9:G$527) -> 56933 | AR89: 0.6248386264 | AS89: -0.2033632107 | AT89: 0.6245850444 | AU89: 0.6235399505 | AY89: 1 | AZ89: 1 | BA89: 1 | BB89: 1 | BC89: 0 | BD89: TRUE | BE89: TRUE | BF89: TRUE | BG89: TRUE | BH89: TRUE
A90: =IF(INTRO!$E$34<>0,INTRO!$E$34,"") -> DRC | B90: HAUT UELE | C90: Pawa | D90: 205466 | E90: 24656 | F90: 71913 | G90: 100678 | H90: 1 | I90: 1 | J90: 0 | K90: 1 | L90: 0 | M90: =IF(INTRO!$E$38="Endemic", IF($H90>0, IF($H90=4,"Unknown", IF($H90=99,"Stopped", $D90)), 0),"Not required") -> 205466 | N90: =IF(INTRO!$E$40="Endemic", IF($I90>0, IF($I90=4,"Unknown",IF($I90=99,"Stopped", $D90)), 0),"Not required") -> 205466 | O90: =IF(INTRO!$E$42="Endemic", IF(AND($J90>1,$J90<5), IF($J90=4, "Unknown", E90+F90), 0),"Not required") -> 0 | P90: =IF(INTRO!$E$44="Endemic", IF(AND($K90>0,$K90<5), IF($K90=4,"Unknown", IF($K90=1, $F90*0.33, IF($K90=2, $F90*0.5+$G90*0.2, SUM(F90:G90)))), 0),"Not required") -> 23731.29 | Q90: 1 | R90: 1 | S90: 0 | T90: 0 | U90: MDA1 (IVM+ALB) | Y90: 14275 | Z90: Pawa | AD90: ='MDA1'!K90 -> 71913 | AE90: ='MDA4'!K90 -> 0 | AF90: ='MDA3'!I90 -> 0 | AG90: ='T1'!M90 -> 0 | AH90: ='T2'!K90 -> 0 | AI90: =T3_R1!L90 -> 0 | AK90: ='MDA3'!L90 -> 0 | AN90: =_xlfn.XLOOKUP($Y90,[1]COUNTRY_INFO!$Y$9:$Y$527,[1]COUNTRY_INFO!D$9:D$527) -> 201051 | AO90: =_xlfn.XLOOKUP($Y90,[1]COUNTRY_INFO!$Y$9:$Y$527,[1]COUNTRY_INFO!E$9:E$527) -> 24327.011 | AP90: =_xlfn.XLOOKUP($Y90,[1]COUNTRY_INFO!$Y$9:$Y$527,[1]COUNTRY_INFO!F$9:F$527) -> 71708 | AQ90: =_xlfn.XLOOKUP($Y90,[1]COUNTRY_INFO!$Y$9:$Y$527,[1]COUNTRY_INFO!G$9:G$527) -> 97175 | AR90: 2.195960229 | AS90: 1.352360962 | AT90: 0.2858816311 | AU90: 3.604836635 | AY90: 1 | AZ90: 1 | BA90: 0 | BB90: 1 | BC90: 0 | BD90: TRUE | BE90: TRUE | BF90: TRUE | BG90: TRUE | BH90: TRUE
A91: =IF(INTRO!$E$34<>0,INTRO!$E$34,"") -> DRC | B91: HAUT UELE | C91: Rungu | D91: 134477 | E91: 16137 | F91: 47067 | G91: 65894 | H91: 1 | I91: 1 | J91: 1 | K91: 1 | L91: 0 | M91: =IF(INTRO!$E$38="Endemic", IF($H91>0, IF($H91=4,"Unknown", IF($H91=99,"Stopped", $D91)), 0),"Not required") -> 134477 | N91: =IF(INTRO!$E$40="Endemic", IF($I91>0, IF($I91=4,"Unknown",IF($I91=99,"Stopped", $D91)), 0),"Not required") -> 134477 | O91: =IF(INTRO!$E$42="Endemic", IF(AND($J91>1,$J91<5), IF($J91=4, "Unknown", E91+F91), 0),"Not required") -> 0 | P91: =IF(INTRO!$E$44="Endemic", IF(AND($K91>0,$K91<5), IF($K91=4,"Unknown", IF($K91=1, $F91*0.33, IF($K91=2, $F91*0.5+$G91*0.2, SUM(F91:G91)))), 0),"Not required") -> 15532.11 | Q91: 1 | R91: 1 | S91: 0 | T91: 0 | U91: MDA1 (IVM+ALB) | Y91: 14279 | Z91: Rungu | AD91: ='MDA1'!K91 -> 47067 | AE91: ='MDA4'!K91 -> 0 | AF91: ='MDA3'!I91 -> 0 | AG91: ='T1'!M91 -> 0 | AH91: ='T2'!K91 -> 0 | AI91: =T3_R1!L91 -> 0 | AK91: ='MDA3'!L91 -> 0 | AN91: =_xlfn.XLOOKUP($Y91,[1]COUNTRY_INFO!$Y$9:$Y$527,[1]COUNTRY_INFO!D$9:D$527) -> 126397 | AO91: =_xlfn.XLOOKUP($Y91,[1]COUNTRY_INFO!$Y$9:$Y$527,[1]COUNTRY_INFO!E$9:E$527) -> 15294.517 | AP91: =_xlfn.XLOOKUP($Y91,[1]COUNTRY_INFO!$Y$9:$Y$527,[1]COUNTRY_INFO!F$9:F$527) -> 44239 | AQ91: =_xlfn.XLOOKUP($Y91,[1]COUNTRY_INFO!$Y$9:$Y$527,[1]COUNTRY_INFO!G$9:G$527) -> 61934 | AR91: 6.392556785 | AS91: 5.50839886 | AT91: 6.39254956 | AU91: 6.393903187 | AY91: 1 | AZ91: 1 | BA91: 1 | BB91: 1 | BC91: 0 | BD91: TRUE | BE91: TRUE | BF91: TRUE | BG91: TRUE | BH91: TRUE
A92: =IF(INTRO!$E$34<>0,INTRO!$E$34,"") -> DRC | B92: HAUT UELE | C92: Wamba | D92: 130758 | E92: 15691 | F92: 45765 | G92: 64072 | H92: 0 | I92: 1 | J92: 1 | K92: 1 | L92: 0 | M92: =IF(INTRO!$E$38="Endemic", IF($H92>0, IF($H92=4,"Unknown", IF($H92=99,"Stopped", $D92)), 0),"Not required") -> 0 | N92: =IF(INTRO!$E$40="Endemic", IF($I92>0, IF($I92=4,"Unknown",IF($I92=99,"Stopped", $D92)), 0),"Not required") -> 130758 | O92: =IF(INTRO!$E$42="Endemic", IF(AND($J92>1,$J92<5), IF($J92=4, "Unknown", E92+F92), 0),"Not required") -> 0 | P92: =IF(INTRO!$E$44="Endemic", IF(AND($K92>0,$K92<5), IF($K92=4,"Unknown", IF($K92=1, $F92*0.33, IF($K92=2, $F92*0.5+$G92*0.2, SUM(F92:G92)))), 0),"Not required") -> 15102.45 | Q92: 0 | R92: 1 | S92: 0 | T92: 0 | U92: MDA3 (IVM) | Y92: 14286 | Z92: Wamba | AD92: ='MDA1'!K92 -> 0 | AE92: ='MDA4'!K92 -> 0 | AF92: ='MDA3'!I92 -> 40179 | AG92: ='T1'!M92 -> 0 | AH92: ='T2'!K92 -> 0 | AI92: =T3_R1!L92 -> 0 | AK92: ='MDA3'!L92 -> 0 | AN92: =_xlfn.XLOOKUP($Y92,[1]COUNTRY_INFO!$Y$9:$Y$527,[1]COUNTRY_INFO!D$9:D$527) -> 132310 | AO92: =_xlfn.XLOOKUP($Y92,[1]COUNTRY_INFO!$Y$9:$Y$527,[1]COUNTRY_INFO!E$9:E$527) -> 16009.91 | AP92: =_xlfn.XLOOKUP($Y92,[1]COUNTRY_INFO!$Y$9:$Y$527,[1]COUNTRY_INFO!F$9:F$527) -> 46309 | AQ92: =_xlfn.XLOOKUP($Y92,[1]COUNTRY_INFO!$Y$9:$Y$527,[1]COUNTRY_INFO!G$9:G$527) -> 64831 | AR92: -1.173002796 | AS92: -1.991953734 | AT92: -1.174717657 | AU92: -1.170736222 | AY92: 0 | AZ92: 1 | BA92: 1 | BB92: 1 | BC92: 0 | BD92: TRUE | BE92: TRUE | BF92: TRUE | BG92: TRUE | BH92: TRUE
A93: =IF(INTRO!$E$34<>0,INTRO!$E$34,"") -> DRC | B93: HAUT UELE | C93: Wasta | D93: 316576 | E93: 37989 | F93: 110802 | G93: 155122 | H93: 1 | I93: 1 | J93: 1 | K93: 2 | L93: 0 | M93: =IF(INTRO!$E$38="Endemic", IF($H93>0, IF($H93=4,"Unknown", IF($H93=99,"Stopped", $D93)), 0),"Not required") -> 316576 | N93: =IF(INTRO!$E$40="Endemic", IF($I93>0, IF($I93=4,"Unknown",IF($I93=99,"Stopped", $D93)), 0),"Not required") -> 316576 | O93: =IF(INTRO!$E$42="Endemic", IF(AND($J93>1,$J93<5), IF($J93=4, "Unknown", E93+F93), 0),"Not required") -> 0 | P93: =IF(INTRO!$E$44="Endemic", IF(AND($K93>0,$K93<5), IF($K93=4,"Unknown", IF($K93=1, $F93*0.33, IF($K93=2, $F93*0.5+$G93*0.2, SUM(F93:G93)))), 0),"Not required") -> 86425.4 | Q93: 1 | R93: 1 | S93: 0 | T93: 0 | U93: MDA1 (IVM+ALB) | Y93: 14288 | Z93: Wasta | AD93: ='MDA1'!K93 -> 110802 | AE93: ='MDA4'!K93 -> 0 | AF93: ='MDA3'!I93 -> 0 | AG93: ='T1'!M93 -> 0 | AH93: ='T2'!K93 -> 0 | AI93: =T3_R1!L93 -> 0 | AK93: ='MDA3'!L93 -> 0 | AN93: =_xlfn.XLOOKUP($Y93,[1]COUNTRY_INFO!$Y$9:$Y$527,[1]COUNTRY_INFO!D$9:D$527) -> 317411 | AO93: =_xlfn.XLOOKUP($Y93,[1]COUNTRY_INFO!$Y$9:$Y$527,[1]COUNTRY_INFO!E$9:E$527) -> 38406.971 | AP93: =_xlfn.XLOOKUP($Y93,[1]COUNTRY_INFO!$Y$9:$Y$527,[1]COUNTRY_INFO!F$9:F$527) -> 111094 | AQ93: =_xlfn.XLOOKUP($Y93,[1]COUNTRY_INFO!$Y$9:$Y$527,[1]COUNTRY_INFO!G$9:G$527) -> 155531 | AR93: -0.2630658673 | AS93: -1.088268585 | AT93: -0.2628404774 | AU93: -0.2629700831 | AY93: 1 | AZ93: 1 | BA93: 1 | BB93: 2 | BC93: 0 | BD93: TRUE | BE93: TRUE | BF93: TRUE | BG93: TRUE | BH93: TRUE
A94: =IF(INTRO!$E$34<>0,INTRO!$E$34,"") -> DRC | B94: ITURI | C94: Adi | D94: 202141 | E94: 24257 | F94: 70749 | G94: 99049.44 | H94: 0 | I94: 1 | J94: 1 | K94: 0 | L94: 0 | M94: =IF(INTRO!$E$38="Endemic", IF($H94>0, IF($H94=4,"Unknown", IF($H94=99,"Stopped", $D94)), 0),"Not required") -> 0 | N94: =IF(INTRO!$E$40="Endemic", IF($I94>0, IF($I94=4,"Unknown",IF($I94=99,"Stopped", $D94)), 0),"Not required") -> 202141 | O94: =IF(INTRO!$E$42="Endemic", IF(AND($J94>1,$J94<5), IF($J94=4, "Unknown", E94+F94), 0),"Not required") -> 0 | P94: =IF(INTRO!$E$44="Endemic", IF(AND($K94>0,$K94<5), IF($K94=4,"Unknown", IF($K94=1, $F94*0.33, IF($K94=2, $F94*0.5+$G94*0.2, SUM(F94:G94)))), 0),"Not required") -> 0 | Q94: 0 | R94: 2 | S94: 0 | T94: 0 | U94: MDA3 (IVM) | Y94: 14214 | Z94: Adi | AD94: ='MDA1'!K94 -> 0 | AE94: ='MDA4'!K94 -> 0 | AF94: ='MDA3'!I94 -> 70749 | AG94: ='T1'!M94 -> 0 | AH94: ='T2'!K94 -> 0 | AI94: =T3_R1!L94 -> 0 | AK94: ='MDA3'!L94 -> 70376 | AN94: =_xlfn.XLOOKUP($Y94,[1]COUNTRY_INFO!$Y$9:$Y$527,[1]COUNTRY_INFO!D$9:D$527) -> 186700 | AO94: =_xlfn.XLOOKUP($Y94,[1]COUNTRY_INFO!$Y$9:$Y$527,[1]COUNTRY_INFO!E$9:E$527) -> 22590.7 | AP94: =_xlfn.XLOOKUP($Y94,[1]COUNTRY_INFO!$Y$9:$Y$527,[1]COUNTRY_INFO!F$9:F$527) -> 67436 | AQ94: =_xlfn.XLOOKUP($Y94,[1]COUNTRY_INFO!$Y$9:$Y$527,[1]COUNTRY_INFO!G$9:G$527) -> 89392 | AR94: 8.270487413 | AS94: 7.376044124 | AT94: 4.912806216 | AU94: 10.80347235 | AY94: 0 | AZ94: 1 | BA94: 1 | BB94: 0 | BC94: 0 | BD94: TRUE | BE94: TRUE | BF94: TRUE | BG94: TRUE | BH94: TRUE
A95: =IF(INTRO!$E$34<>0,INTRO!$E$34,"") -> DRC | B95: ITURI | C95: Adja | D95: 160481 | E95: 19258 | F95: 56168 | G95: 78636.04 | H95: 0 | I95: 1 | J95: 1 | K95: 0 | L95: 0 | M95: =IF(INTRO!$E$38="Endemic", IF($H95>0, IF($H95=4,"Unknown", IF($H95=99,"Stopped", $D95)), 0),"Not required") -> 0 | N95: =IF(INTRO!$E$40="Endemic", IF($I95>0, IF($I95=4,"Unknown",IF($I95=99,"Stopped", $D95)), 0),"Not required") -> 160481 | O95: =IF(INTRO!$E$42="Endemic", IF(AND($J95>1,$J95<5), IF($J95=4, "Unknown", E95+F95), 0),"Not required") -> 0 | P95: =IF(INTRO!$E$44="Endemic", IF(AND($K95>0,$K95<5), IF($K95=4,"Unknown", IF($K95=1, $F95*0.33, IF($K95=2, $F95*0.5+$G95*0.2, SUM(F95:G95)))), 0),"Not required") -> 0 | Q95: 0 | R95: 2 | S95: 0 | T95: 0 | U95: MDA3 (IVM) | Y95: 14215 | Z95: Adja | AD95: ='MDA1'!K95 -> 0 | AE95: ='MDA4'!K95 -> 0 | AF95: ='MDA3'!I95 -> 55587 | AG95: ='T1'!M95 -> 0 | AH95: ='T2'!K95 -> 0 | AI95: =T3_R1!L95 -> 0 | AK95: ='MDA3'!L95 -> 55102 | AN95: =_xlfn.XLOOKUP($Y95,[1]COUNTRY_INFO!$Y$9:$Y$527,[1]COUNTRY_INFO!D$9:D$527) -> 143282 | AO95: =_xlfn.XLOOKUP($Y95,[1]COUNTRY_INFO!$Y$9:$Y$527,[1]COUNTRY_INFO!E$9:E$527) -> 17337.122 | AP95: =_xlfn.XLOOKUP($Y95,[1]COUNTRY_INFO!$Y$9:$Y$527,[1]COUNTRY_INFO!F$9:F$527) -> 51753 | AQ95: =_xlfn.XLOOKUP($Y95,[1]COUNTRY_INFO!$Y$9:$Y$527,[1]COUNTRY_INFO!G$9:G$527) -> 68603.88 | AR95: 12.00360129 | AS95: 11.07956672 | AT95: 8.530906421 | AU95: 14.62331285 | AY95: 0 | AZ95: 1 | BA95: 1 | BB95: 0 | BC95: 0 | BD95: TRUE | BE95: TRUE | BF95: TRUE | BG95: TRUE | BH95: TRUE
A96: =IF(INTRO!$E$34<>0,INTRO!$E$34,"") -> DRC | B96: ITURI | C96: Angumu | D96: 263643 | E96: 33614 | F96: 92275 | G96: 126549 | H96: 1 | I96: 1 | J96: 0 | K96: 1 | L96: 0 | M96: =IF(INTRO!$E$38="Endemic", IF($H96>0, IF($H96=4,"Unknown", IF($H96=99,"Stopped", $D96)), 0),"Not required") -> 263643 | N96: =IF(INTRO!$E$40="Endemic", IF($I96>0, IF($I96=4,"Unknown",IF($I96=99,"Stopped", $D96)), 0),"Not required") -> 263643 | O96: =IF(INTRO!$E$42="Endemic", IF(AND($J96>1,$J96<5), IF($J96=4, "Unknown", E96+F96), 0),"Not required") -> 0 | P96: =IF(INTRO!$E$44="Endemic", IF(AND($K96>0,$K96<5), IF($K96=4,"Unknown", IF($K96=1, $F96*0.33, IF($K96=2, $F96*0.5+$G96*0.2, SUM(F96:G96)))), 0),"Not required") -> 30450.75 | Q96: 1 | R96: 2 | S96: 0 | T96: 1 | U96: MDA1 (IVM+ALB) | V96: T2 (PZQ) | Y96: 14218 | Z96: Angumu | AD96: ='MDA1'!K96 -> 88541 | AE96: ='MDA4'!K96 -> 0 | AF96: ='MDA3'!I96 -> 92198 | AG96: ='T1'!M96 -> 0 | AH96: ='T2'!K96 -> 66247 | AI96: =T3_R1!L96 -> 0 | AK96: ='MDA3'!L96 -> 0 | AL96: ='MDA1'!E96 -> NOV-DEC 2022 | AN96: =_xlfn.XLOOKUP($Y96,[1]COUNTRY_INFO!$Y$9:$Y$527,[1]COUNTRY_INFO!D$9:D$527) -> 219261 | AO96: =_xlfn.XLOOKUP($Y96,[1]COUNTRY_INFO!$Y$9:$Y$527,[1]COUNTRY_INFO!E$9:E$527) -> 28722.821 | AP96: =_xlfn.XLOOKUP($Y96,[1]COUNTRY_INFO!$Y$9:$Y$527,[1]COUNTRY_INFO!F$9:F$527) -> 78254 | AQ96: =_xlfn.XLOOKUP($Y96,[1]COUNTRY_INFO!$Y$9:$Y$527,[1]COUNTRY_INFO!G$9:G$527) -> 103733 | AR96: 20.24162984 | AS96: 17.0288949 | AT96: 17.91729496 | AU96: 21.99492929 | AV96: pb | AY96: 1 | AZ96: 1 | BA96: 0 | BB96: 1 | BC96: 0 | BD96: TRUE | BE96: TRUE | BF96: TRUE | BG96: TRUE | BH96: TRUE
A97: =IF(INTRO!$E$34<>0,INTRO!$E$34,"") -> DRC | B97: ITURI | C97: Ariwara | D97: 263818 | E97: 33637 | F97: 92336 | G97: 126633 | H97: 1 | I97: 4 | J97: 1 | K97: 0 | L97: 0 | M97: =IF(INTRO!$E$38="Endemic", IF($H97>0, IF($H97=4,"Unknown", IF($H97=99,"Stopped", $D97)), 0),"Not required") -> 263818 | N97: =IF(INTRO!$E$40="Endemic", IF($I97>0, IF($I97=4,"Unknown",IF($I97=99,"Stopped", $D97)), 0),"Not required") -> Unknown | O97: =IF(INTRO!$E$42="Endemic", IF(AND($J97>1,$J97<5), IF($J97=4, "Unknown", E97+F97), 0),"Not required") -> 0 | P97: =IF(INTRO!$E$44="Endemic", IF(AND($K97>0,$K97<5), IF($K97=4,"Unknown", IF($K97=1, $F97*0.33, IF($K97=2, $F97*0.5+$G97*0.2, SUM(F97:G97)))), 0),"Not required") -> 0 | Q97: 1 | R97: 0 | S97: 0 | T97: 0 | U97: MDA1 (IVM+ALB) | Y97: 14219 | Z97: Ariwara | AD97: ='MDA1'!K97 -> 87384 | AE97: ='MDA4'!K97 -> 0 | AF97: ='MDA3'!I97 -> 0 | AG97: ='T1'!M97 -> 0 | AH97: ='T2'!K97 -> 0 | AI97: =T3_R1!L97 -> 0 | AK97: ='MDA3'!L97 -> 0 | AN97: =_xlfn.XLOOKUP($Y97,[1]COUNTRY_INFO!$Y$9:$Y$527,[1]COUNTRY_INFO!D$9:D$527) -> 233866 | AO97: =_xlfn.XLOOKUP($Y97,[1]COUNTRY_INFO!$Y$9:$Y$527,[1]COUNTRY_INFO!E$9:E$527) -> 30636.226 | AP97: =_xlfn.XLOOKUP($Y97,[1]COUNTRY_INFO!$Y$9:$Y$527,[1]COUNTRY_INFO!F$9:F$527) -> 83467 | AQ97: =_xlfn.XLOOKUP($Y97,[1]COUNTRY_INFO!$Y$9:$Y$527,[1]COUNTRY_INFO!G$9:G$527) -> 110642 | AR97: 12.80733411 | AS97: 9.79485528 | AT97: 10.62575629 | AU97: 14.45292023 | AY97: 1 | AZ97: 4 | BA97: 1 | BB97: 0 | BC97: 0 | BD97: TRUE | BE97: TRUE | BF97: TRUE | BG97: TRUE | BH97: TRUE
A98: =IF(INTRO!$E$34<>0,INTRO!$E$34,"") -> DRC | B98: ITURI | C98: Aru | D98: 199052 | E98: 23886 | F98: 69668 | G98: 97536 | H98: 0 | I98: 4 | J98: 1 | K98: 2 | L98: 0 | M98: =IF(INTRO!$E$38="Endemic", IF($H98>0, IF($H98=4,"Unknown", IF($H98=99,"Stopped", $D98)), 0),"Not required") -> 0 | N98: =IF(INTRO!$E$40="Endemic", IF($I98>0, IF($I98=4,"Unknown",IF($I98=99,"Stopped", $D98)), 0),"Not required") -> Unknown | O98: =IF(INTRO!$E$42="Endemic", IF(AND($J98>1,$J98<5), IF($J98=4, "Unknown", E98+F98), 0),"Not required") -> 0 | P98: =IF(INTRO!$E$44="Endemic", IF(AND($K98>0,$K98<5), IF($K98=4,"Unknown", IF($K98=1, $F98*0.33, IF($K98=2, $F98*0.5+$G98*0.2, SUM(F98:G98)))), 0),"Not required") -> 54341.2 | Q98: 0 | R98: 0 | S98: 0 | T98: 1 | U98: T2 (PZQ) | Y98: 14220 | Z98: Aru | AD98: ='MDA1'!K98 -> 0 | AE98: ='MDA4'!K98 -> 0 | AF98: ='MDA3'!I98 -> 0 | AG98: ='T1'!M98 -> 0 | AH98: ='T2'!K98 -> 47232 | AI98: =T3_R1!L98 -> 0 | AK98: ='MDA3'!L98 -> 0 | AN98: =_xlfn.XLOOKUP($Y98,[1]COUNTRY_INFO!$Y$9:$Y$527,[1]COUNTRY_INFO!D$9:D$527) -> 187626 | AO98: =_xlfn.XLOOKUP($Y98,[1]COUNTRY_INFO!$Y$9:$Y$527,[1]COUNTRY_INFO!E$9:E$527) -> 22702.586 | AP98: =_xlfn.XLOOKUP($Y98,[1]COUNTRY_INFO!$Y$9:$Y$527,[1]COUNTRY_INFO!F$9:F$527) -> 65669 | AQ98: =_xlfn.XLOOKUP($Y98,[1]COUNTRY_INFO!$Y$9:$Y$527,[1]COUNTRY_INFO!G$9:G$527) -> 91937 | AR98: 6.089774338 | AS98: 5.2126837 | AT98: 6.089631333 | AU98: 6.090039919 | AY98: 0 | AZ98: 4 | BA98: 1 | BB98: 2 | BC98: 0 | BD98: TRUE | BE98: TRUE | BF98: TRUE | BG98: TRUE | BH98: TRUE
A99: =IF(INTRO!$E$34<>0,INTRO!$E$34,"") -> DRC | B99: ITURI | C99: Augnba | D99: 205820 | E99: 24698 | F99: 72037 | G99: 100851.8 | H99: 0 | I99: 1 | J99: 2 | K99: 1 | L99: 0 | M99: =IF(INTRO!$E$38="Endemic", IF($H99>0, IF($H99=4,"Unknown", IF($H99=99,"Stopped", $D99)), 0),"Not required") -> 0 | N99: =IF(INTRO!$E$40="Endemic", IF($I99>0, IF($I99=4,"Unknown",IF($I99=99,"Stopped", $D99)), 0),"Not required") -> 205820 | O99: =IF(INTRO!$E$42="Endemic", IF(AND($J99>1,$J99<5), IF($J99=4, "Unknown", E99+F99), 0),"Not required") -> 96735 | P99: =IF(INTRO!$E$44="Endemic", IF(AND($K99>0,$K99<5), IF($K99=4,"Unknown", IF($K99=1, $F99*0.33, IF($K99=2, $F99*0.5+$G99*0.2, SUM(F99:G99)))), 0),"Not required") -> 23772.21 | Q99: 0 | R99: 2 | S99: 1 | T99: 0 | U99: MDA3 (IVM) | V99: T3 (ALB/MBD) | Y99: 14221 | Z99: Augnba | AD99: ='MDA1'!K99 -> 0 | AE99: ='MDA4'!K99 -> 0 | AF99: ='MDA3'!I99 -> 71341 | AG99: ='T1'!M99 -> 0 | AH99: ='T2'!K99 -> 0 | AI99: =T3_R1!L99 -> 64037 | AK99: ='MDA3'!L99 -> 63019 | AN99: =_xlfn.XLOOKUP($Y99,[1]COUNTRY_INFO!$Y$9:$Y$527,[1]COUNTRY_INFO!D$9:D$527) -> 192767 | AO99: =_xlfn.XLOOKUP($Y99,[1]COUNTRY_INFO!$Y$9:$Y$527,[1]COUNTRY_INFO!E$9:E$527) -> 23324.807 | AP99: =_xlfn.XLOOKUP($Y99,[1]COUNTRY_INFO!$Y$9:$Y$527,[1]COUNTRY_INFO!F$9:F$527) -> 69627 | AQ99: =_xlfn.XLOOKUP($Y99,[1]COUNTRY_INFO!$Y$9:$Y$527,[1]COUNTRY_INFO!G$9:G$527) -> 92297.28 | AR99: 6.771387219 | AS99: 5.887264148 | AT99: 3.461300932 | AU99: 9.268442147 | AY99: 0 | AZ99: 1 | BA99: 2 | BB99: 1 | BC99: 0 | BD99: TRUE | BE99: TRUE | BF99: TRUE | BG99: TRUE | BH99: TRUE
A100: =IF(INTRO!$E$34<>0,INTRO!$E$34,"") -> DRC | B100: ITURI | C100: Bambu | D100: 115082 | E100: 14673 | F100: 40279 | G100: 55239 | H100: 1 | I100: 4 | J100: 1 | K100: 1 | L100: 0 | M100: =IF(INTRO!$E$38="Endemic", IF($H100>0, IF($H100=4,"Unknown", IF($H100=99,"Stopped", $D100)), 0),"Not required") -> 115082 | N100: =IF(INTRO!$E$40="Endemic", IF($I100>0, IF($I100=4,"Unknown",IF($I100=99,"Stopped", $D100)), 0),"Not required") -> Unknown | O100: =IF(INTRO!$E$42="Endemic", IF(AND($J100>1,$J100<5), IF($J100=4, "Unknown", E100+F100), 0),"Not required") -> 0 | P100: =IF(INTRO!$E$44="Endemic", IF(AND($K100>0,$K100<5), IF($K100=4,"Unknown", IF($K100=1, $F100*0.33, IF($K100=2, $F100*0.5+$G100*0.2, SUM(F100:G100)))), 0),"Not required") -> 13292.07 | Q100: 1 | R100: 0 | S100: 0 | T100: 0 | U100: MDA1 (IVM+ALB) | Y100: 14224 | Z100: Bambu | AD100: ='MDA1'!K100 -> 38998 | AE100: ='MDA4'!K100 -> 0 | AF100: ='MDA3'!I100 -> 0 | AG100: ='T1'!M100 -> 0 | AH100: ='T2'!K100 -> 0 | AI100: =T3_R1!L100 -> 0 | AK100: ='MDA3'!L100 -> 0 | AN100: =_xlfn.XLOOKUP($Y100,[1]COUNTRY_INFO!$Y$9:$Y$527,[1]COUNTRY_INFO!D$9:D$527) -> 125653 | AO100: =_xlfn.XLOOKUP($Y100,[1]COUNTRY_INFO!$Y$9:$Y$527,[1]COUNTRY_INFO!E$9:E$527) -> 16460.533 | AP100: =_xlfn.XLOOKUP($Y100,[1]COUNTRY_INFO!$Y$9:$Y$527,[1]COUNTRY_INFO!F$9:F$527) -> 44846 | AQ100: =_xlfn.XLOOKUP($Y100,[1]COUNTRY_INFO!$Y$9:$Y$527,[1]COUNTRY_INFO!G$9:G$527) -> 59446 | AR100: -8.412851265 | AS100: -10.85950862 | AT100: -10.18373991 | AU100: -7.077011069 | AY100: 1 | AZ100: 4 | BA100: 1 | BB100: 1 | BC100: 0 | BD100: TRUE | BE100: TRUE | BF100: TRUE | BG100: TRUE | BH100: TRUE
A101: =IF(INTRO!$E$34<>0,INTRO!$E$34,"") -> DRC | B101: ITURI | C101: Biringi | D101: 155857 | E101: 18703 | F101: 54550 | G101: 76370 | H101: 1 | I101: 1 | J101: 1 | K101: 2 | L101: 0 | M101: =IF(INTRO!$E$38="Endemic", IF($H101>0, IF($H101=4,"Unknown", IF($H101=99,"Stopped", $D101)), 0),"Not required") -> 155857 | N101: =IF(INTRO!$E$40="Endemic", IF($I101>0, IF($I101=4,"Unknown",IF($I101=99,"Stopped", $D101)), 0),"Not required") -> 155857 | O101: =IF(INTRO!$E$42="Endemic", IF(AND($J101>1,$J101<5), IF($J101=4, "Unknown", E101+F101), 0),"Not required") -> 0 | P101: =IF(INTRO!$E$44="Endemic", IF(AND($K101>0,$K101<5), IF($K101=4,"Unknown", IF($K101=1, $F101*0.33, IF($K101=2, $F101*0.5+$G101*0.2, SUM(F101:G101)))), 0),"Not required") -> 42549 | Q101: 1 | R101: 2 | S101: 0 | T101: 0 | U101: MDA1 (IVM+ALB) | Y101: 14230 | Z101: Biringi | AD101: ='MDA1'!K101 -> 54550 | AE101: ='MDA4'!K101 -> 0 | AF101: ='MDA3'!I101 -> 53419 | AG101: ='T1'!M101 -> 0 | AH101: ='T2'!K101 -> 0 | AI101: =T3_R1!L101 -> 0 | AK101: ='MDA3'!L101 -> 0 | AL101: ='MDA1'!E101 -> NOV-DEC 2022 | AN101: =_xlfn.XLOOKUP($Y101,[1]COUNTRY_INFO!$Y$9:$Y$527,[1]COUNTRY_INFO!D$9:D$527) -> 149649 | AO101: =_xlfn.XLOOKUP($Y101,[1]COUNTRY_INFO!$Y$9:$Y$527,[1]COUNTRY_INFO!E$9:E$527) -> 18107.689 | AP101: =_xlfn.XLOOKUP($Y101,[1]COUNTRY_INFO!$Y$9:$Y$527,[1]COUNTRY_INFO!F$9:F$527) -> 44892 | AQ101: =_xlfn.XLOOKUP($Y101,[1]COUNTRY_INFO!$Y$9:$Y$527,[1]COUNTRY_INFO!G$9:G$527) -> 80813 | AR101: 4.148373862 | AS101: 3.287614449 | AT101: 21.51385548 | AU101: -5.497877817 | AY101: 1 | AZ101: 1 | BA101: 1 | BB101: 2 | BC101: 0 | BD101: TRUE | BE101: TRUE | BF101: TRUE | BG101: TRUE | BH101: TRUE
A102: =IF(INTRO!$E$34<>0,INTRO!$E$34,"") -> DRC | B102: ITURI | C102: Boga | D102: 83611 | E102: 10033 | F102: 29264 | G102: 40969 | H102: 1 | I102: 1 | J102: 1 | K102: 2 | L102: 0 | M102: =IF(INTRO!$E$38="Endemic", IF($H102>0, IF($H102=4,"Unknown", IF($H102=99,"Stopped", $D102)), 0),"Not required") -> 83611 | N102: =IF(INTRO!$E$40="Endemic", IF($I102>0, IF($I102=4,"Unknown",IF($I102=99,"Stopped", $D102)), 0),"Not required") -> 83611 | O102: =IF(INTRO!$E$42="Endemic", IF(AND($J102>1,$J102<5), IF($J102=4, "Unknown", E102+F102), 0),"Not required") -> 0 | P102: =IF(INTRO!$E$44="Endemic", IF(AND($K102>0,$K102<5), IF($K102=4,"Unknown", IF($K102=1, $F102*0.33, IF($K102=2, $F102*0.5+$G102*0.2, SUM(F102:G102)))), 0),"Not required") -> 22825.8 | Q102: 1 | R102: 1 | S102: 0 | T102: 0 | U102: MDA1 (IVM+ALB) | Y102: 14231 | Z102: Boga | AD102: ='MDA1'!K102 -> 29264 | AE102: ='MDA4'!K102 -> 0 | AF102: ='MDA3'!I102 -> 0 | AG102: ='T1'!M102 -> 0 | AH102: ='T2'!K102 -> 0 | AI102: =T3_R1!L102 -> 0 | AK102: ='MDA3'!L102 -> 0 | AN102: =_xlfn.XLOOKUP($Y102,[1]COUNTRY_INFO!$Y$9:$Y$527,[1]COUNTRY_INFO!D$9:D$527) -> 82591 | AO102: =_xlfn.XLOOKUP($Y102,[1]COUNTRY_INFO!$Y$9:$Y$527,[1]COUNTRY_INFO!E$9:E$527) -> 9993.951 | AP102: =_xlfn.XLOOKUP($Y102,[1]COUNTRY_INFO!$Y$9:$Y$527,[1]COUNTRY_INFO!F$9:F$527) -> 28909 | AQ102: =_xlfn.XLOOKUP($Y102,[1]COUNTRY_INFO!$Y$9:$Y$527,[1]COUNTRY_INFO!G$9:G$527) -> 40467 | AR102: 1.235001392 | AS102: 0.3907263504 | AT102: 1.227991283 | AU102: 1.240516964 | AY102: 1 | AZ102: 1 | BA102: 1 | BB102: 2 | BC102: 0 | BD102: TRUE | BE102: TRUE | BF102: TRUE | BG102: TRUE | BH102: TRUE
A103: =IF(INTRO!$E$34<>0,INTRO!$E$34,"") -> DRC | B103: ITURI | C103: Bunia | D103: 385750 | E103: 49183 | F103: 135013 | G103: 185160 | H103: 1 | I103: 4 | J103: 1 | K103: 2 | L103: 0 | M103: =IF(INTRO!$E$38="Endemic", IF($H103>0, IF($H103=4,"Unknown", IF($H103=99,"Stopped", $D103)), 0),"Not required") -> 385750 | N103: =IF(INTRO!$E$40="Endemic", IF($I103>0, IF($I103=4,"Unknown",IF($I103=99,"Stopped", $D103)), 0),"Not required") -> Unknown | O103: =IF(INTRO!$E$42="Endemic", IF(AND($J103>1,$J103<5), IF($J103=4, "Unknown", E103+F103), 0),"Not required") -> 0 | P103: =IF(INTRO!$E$44="Endemic", IF(AND($K103>0,$K103<5), IF($K103=4,"Unknown", IF($K103=1, $F103*0.33, IF($K103=2, $F103*0.5+$G103*0.2, SUM(F103:G103)))), 0),"Not required") -> 104538.5 | Q103: 1 | R103: 0 | S103: 0 | T103: 1 | U103: MDA1 (IVM+ALB) | V103: T2 (PZQ) | Y103: 14233 | Z103: Bunia | AD103: ='MDA1'!K103 -> 114664 | AE103: ='MDA4'!K103 -> 0 | AF103: ='MDA3'!I103 -> 0 | AG103: ='T1'!M103 -> 0 | AH103: ='T2'!K103 -> 113961 | AI103: =T3_R1!L103 -> 0 | AK103: ='MDA3'!L103 -> 0 | AN103: =_xlfn.XLOOKUP($Y103,[1]COUNTRY_INFO!$Y$9:$Y$527,[1]COUNTRY_INFO!D$9:D$527) -> 410722 | AO103: =_xlfn.XLOOKUP($Y103,[1]COUNTRY_INFO!$Y$9:$Y$527,[1]COUNTRY_INFO!E$9:E$527) -> 53804.842 | AP103: =_xlfn.XLOOKUP($Y103,[1]COUNTRY_INFO!$Y$9:$Y$527,[1]COUNTRY_INFO!F$9:F$527) -> 146587 | AQ103: =_xlfn.XLOOKUP($Y103,[1]COUNTRY_INFO!$Y$9:$Y$527,[1]COUNTRY_INFO!G$9:G$527) -> 194312 | AR103: -6.080024932 | AS103: -8.590011286 | AT103: -7.895652411 | AU103: -4.709951007 | AY103: 1 | AZ103: 4 | BA103: 1 | BB103: 2 | BC103: 0 | BD103: TRUE | BE103: TRUE | BF103: TRUE | BG103: TRUE | BH103: TRUE
A104: =IF(INTRO!$E$34<>0,INTRO!$E$34,"") -> DRC | B104: ITURI | C104: Damas | D104: 126651 | E104: 16148 | F104: 44328 | G104: 60792 | H104: 1 | I104: 1 | J104: 1 | K104: 1 | L104: 0 | M104: =IF(INTRO!$E$38="Endemic", IF($H104>0, IF($H104=4,"Unknown", IF($H104=99,"Stopped", $D104)), 0),"Not required") -> 126651 | N104: =IF(INTRO!$E$40="Endemic", IF($I104>0, IF($I104=4,"Unknown",IF($I104=99,"Stopped", $D104)), 0),"Not required") -> 126651 | O104: =IF(INTRO!$E$42="Endemic", IF(AND($J104>1,$J104<5), IF($J104=4, "Unknown", E104+F104), 0),"Not required") -> 0 | P104: =IF(INTRO!$E$44="Endemic", IF(AND($K104>0,$K104<5), IF($K104=4,"Unknown", IF($K104=1, $F104*0.33, IF($K104=2, $F104*0.5+$G104*0.2, SUM(F104:G104)))), 0),"Not required") -> 14628.24 | Q104: 1 | R104: 1 | S104: 0 | T104: 0 | U104: MDA1 (IVM+ALB) | Y104: 14235 | Z104: Damas | AD104: ='MDA1'!K104 -> 41446 | AE104: ='MDA4'!K104 -> 0 | AF104: ='MDA3'!I104 -> 0 | AG104: ='T1'!M104 -> 0 | AH104: ='T2'!K104 -> 0 | AI104: =T3_R1!L104 -> 0 | AK104: ='MDA3'!L104 -> 0 | AN104: =_xlfn.XLOOKUP($Y104,[1]COUNTRY_INFO!$Y$9:$Y$527,[1]COUNTRY_INFO!D$9:D$527) -> 132850 | AO104: =_xlfn.XLOOKUP($Y104,[1]COUNTRY_INFO!$Y$9:$Y$527,[1]COUNTRY_INFO!E$9:E$527) -> 17402.85 | AP104: =_xlfn.XLOOKUP($Y104,[1]COUNTRY_INFO!$Y$9:$Y$527,[1]COUNTRY_INFO!F$9:F$527) -> 47414 | AQ104: =_xlfn.XLOOKUP($Y104,[1]COUNTRY_INFO!$Y$9:$Y$527,[1]COUNTRY_INFO!G$9:G$527) -> 62852 | AR104: -4.666164848 | AS104: -7.210600563 | AT104: -6.508626144 | AU104: -3.27754089 | AY104: 1 | AZ104: 1 | BA104: 1 | BB104: 1 | BC104: 0 | BD104: TRUE | BE104: TRUE | BF104: TRUE | BG104: TRUE | BH104: TRUE
A105: =IF(INTRO!$E$34<>0,INTRO!$E$34,"") -> DRC | B105: ITURI | C105: Drodro | D105: 101788 | E105: 12214 | F105: 35626 | G105: 49876 | H105: 0 | I105: 4 | J105: 1 | K105: 2 | L105: 0 | M105: =IF(INTRO!$E$38="Endemic", IF($H105>0, IF($H105=4,"Unknown", IF($H105=99,"Stopped", $D105)), 0),"Not required") -> 0 | N105: =IF(INTRO!$E$40="Endemic", IF($I105>0, IF($I105=4,"Unknown",IF($I105=99,"Stopped", $D105)), 0),"Not required") -> Unknown | O105: =IF(INTRO!$E$42="Endemic", IF(AND($J105>1,$J105<5), IF($J105=4, "Unknown", E105+F105), 0),"Not required") -> 0 | P105: =IF(INTRO!$E$44="Endemic", IF(AND($K105>0,$K105<5), IF($K105=4,"Unknown", IF($K105=1, $F105*0.33, IF($K105=2, $F105*0.5+$G105*0.2, SUM(F105:G105)))), 0),"Not required") -> 27788.2 | Q105: 0 | R105: 0 | S105: 0 | T105: 1 | U105: T2 (PZQ) | Y105: 14237 | Z105: Drodro | AD105: ='MDA1'!K105 -> 0 | AE105: ='MDA4'!K105 -> 0 | AF105: ='MDA3'!I105 -> 0 | AG105: ='T1'!M105 -> 0 | AH105: ='T2'!K105 -> 24918 | AI105: =T3_R1!L105 -> 0 | AK105: ='MDA3'!L105 -> 0 | AN105: =_xlfn.XLOOKUP($Y105,[1]COUNTRY_INFO!$Y$9:$Y$527,[1]COUNTRY_INFO!D$9:D$527) -> 95945 | AO105: =_xlfn.XLOOKUP($Y105,[1]COUNTRY_INFO!$Y$9:$Y$527,[1]COUNTRY_INFO!E$9:E$527) -> 11609.145 | AP105: =_xlfn.XLOOKUP($Y105,[1]COUNTRY_INFO!$Y$9:$Y$527,[1]COUNTRY_INFO!F$9:F$527) -> 33581 | AQ105: =_xlfn.XLOOKUP($Y105,[1]COUNTRY_INFO!$Y$9:$Y$527,[1]COUNTRY_INFO!G$9:G$527) -> 47013 | AR105: 6.089947366 | AS105: 5.210159749 | AT105: 6.089753134 | AU105: 6.089804948 | AY105: 0 | AZ105: 4 | BA105: 1 | BB105: 2 | BC105: 0 | BD105: TRUE | BE105: TRUE | BF105: TRUE | BG105: TRUE | BH105: TRUE
A106: =IF(INTRO!$E$34<>0,INTRO!$E$34,"") -> DRC | B106: ITURI | C106: Fataki | D106: 145015 | E106: 18490 | F106: 50755 | G106: 69607 | H106: 1 | I106: 4 | J106: 1 | K106: 1 | L106: 0 | M106: =IF(INTRO!$E$38="Endemic", IF($H106>0, IF($H106=4,"Unknown", IF($H106=99,"Stopped", $D106)), 0),"Not required") -> 145015 | N106: =IF(INTRO!$E$40="Endemic", IF($I106>0, IF($I106=4,"Unknown",IF($I106=99,"Stopped", $D106)), 0),"Not required") -> Unknown | O106: =IF(INTRO!$E$42="Endemic", IF(AND($J106>1,$J106<5), IF($J106=4, "Unknown", E106+F106), 0),"Not required") -> 0 | P106: =IF(INTRO!$E$44="Endemic", IF(AND($K106>0,$K106<5), IF($K106=4,"Unknown", IF($K106=1, $F106*0.33, IF($K106=2, $F106*0.5+$G106*0.2, SUM(F106:G106)))), 0),"Not required") -> 16749.15 | Q106: 1 | R106: 0 | S106: 0 | T106: 1 | U106: MDA1 (IVM+ALB) | V106: T2 (PZQ) | Y106: 14240 | Z106: Fataki | AD106: ='MDA1'!K106 -> 44062 | AE106: ='MDA4'!K106 -> 0 | AF106: ='MDA3'!I106 -> 0 | AG106: ='T1'!M106 -> 0 | AH106: ='T2'!K106 -> 19504 | AI106: =T3_R1!L106 -> 0 | AK106: ='MDA3'!L106 -> 0 | AN106: =_xlfn.XLOOKUP($Y106,[1]COUNTRY_INFO!$Y$9:$Y$527,[1]COUNTRY_INFO!D$9:D$527) -> 119187 | AO106: =_xlfn.XLOOKUP($Y106,[1]COUNTRY_INFO!$Y$9:$Y$527,[1]COUNTRY_INFO!E$9:E$527) -> 15613.707 | AP106: =_xlfn.XLOOKUP($Y106,[1]COUNTRY_INFO!$Y$9:$Y$527,[1]COUNTRY_INFO!F$9:F$527) -> 42538 | AQ106: =_xlfn.XLOOKUP($Y106,[1]COUNTRY_INFO!$Y$9:$Y$527,[1]COUNTRY_INFO!G$9:G$527) -> 56387 | AR106: 21.67014859 | AS106: 18.42158944 | AT106: 19.31684611 | AU106: 23.44512033 | AV106: pb | AY106: 1 | AZ106: 4 | BA106: 1 | BB106: 1 | BC106: 0 | BD106: TRUE | BE106: TRUE | BF106: TRUE | BG106: TRUE | BH106: TRUE
A107: =IF(INTRO!$E$34<>0,INTRO!$E$34,"") -> DRC | B107: ITURI | C107: Gethy | D107: 217060 | E107: 26047 | F107: 75971 | G107: 106359 | H107: 0 | I107: 1 | J107: 1 | K107: 2 | L107: 0 | M107: =IF(INTRO!$E$38="Endemic", IF($H107>0, IF($H107=4,"Unknown", IF($H107=99,"Stopped", $D107)), 0),"Not required") -> 0 | N107: =IF(INTRO!$E$40="Endemic", IF($I107>0, IF($I107=4,"Unknown",IF($I107=99,"Stopped", $D107)), 0),"Not required") -> 217060 | O107: =IF(INTRO!$E$42="Endemic", IF(AND($J107>1,$J107<5), IF($J107=4, "Unknown", E107+F107), 0),"Not required") -> 0 | P107: =IF(INTRO!$E$44="Endemic", IF(AND($K107>0,$K107<5), IF($K107=4,"Unknown", IF($K107=1, $F107*0.33, IF($K107=2, $F107*0.5+$G107*0.2, SUM(F107:G107)))), 0),"Not required") -> 59257.3 | Q107: 0 | R107: 1 | S107: 0 | T107: 0 | U107: MDA3 (IVM) | Y107: 14242 | Z107: Gethy | AD107: ='MDA1'!K107 -> 0 | AE107: ='MDA4'!K107 -> 0 | AF107: ='MDA3'!I107 -> 71540 | AG107: ='T1'!M107 -> 0 | AH107: ='T2'!K107 -> 0 | AI107: =T3_R1!L107 -> 0 | AK107: ='MDA3'!L107 -> 0 | AN107: =_xlfn.XLOOKUP($Y107,[1]COUNTRY_INFO!$Y$9:$Y$527,[1]COUNTRY_INFO!D$9:D$527) -> 206271 | AO107: =_xlfn.XLOOKUP($Y107,[1]COUNTRY_INFO!$Y$9:$Y$527,[1]COUNTRY_INFO!E$9:E$527) -> 24958.431 | AP107: =_xlfn.XLOOKUP($Y107,[1]COUNTRY_INFO!$Y$9:$Y$527,[1]COUNTRY_INFO!F$9:F$527) -> 68395 | AQ107: =_xlfn.XLOOKUP($Y107,[1]COUNTRY_INFO!$Y$9:$Y$527,[1]COUNTRY_INFO!G$9:G$527) -> 104873 | AR107: 5.230497743 | AS107: 4.361528175 | AT107: 11.0768331 | AU107: 1.416951932 | AY107: 0 | AZ107: 1 | BA107: 1 | BB107: 2 | BC107: 0 | BD107: TRUE | BE107: TRUE | BF107: TRUE | BG107: TRUE | BH107: TRUE
A108: =IF(INTRO!$E$34<>0,INTRO!$E$34,"") -> DRC | B108: ITURI | C108: Jiba | D108: 111884 | E108: 13426 | F108: 39159 | G108: 54824 | H108: 1 | I108: 4 | J108: 1 | K108: 1 | L108: 0 | M108: =IF(INTRO!$E$38="Endemic", IF($H108>0, IF($H108=4,"Unknown", IF($H108=99,"Stopped", $D108)), 0),"Not required") -> 111884 | N108: =IF(INTRO!$E$40="Endemic", IF($I108>0, IF($I108=4,"Unknown",IF($I108=99,"Stopped", $D108)), 0),"Not required") -> Unknown | O108: =IF(INTRO!$E$42="Endemic", IF(AND($J108>1,$J108<5), IF($J108=4, "Unknown", E108+F108), 0),"Not required") -> 0 | P108: =IF(INTRO!$E$44="Endemic", IF(AND($K108>0,$K108<5), IF($K108=4,"Unknown", IF($K108=1, $F108*0.33, IF($K108=2, $F108*0.5+$G108*0.2, SUM(F108:G108)))), 0),"Not required") -> 12922.47 | Q108: 1 | R108: 0 | S108: 0 | T108: 0 | U108: MDA1 (IVM+ALB) | Y108: 14246 | Z108: Jiba | AD108: ='MDA1'!K108 -> 39159 | AE108: ='MDA4'!K108 -> 0 | AF108: ='MDA3'!I108 -> 0 | AG108: ='T1'!M108 -> 0 | AH108: ='T2'!K108 -> 0 | AI108: =T3_R1!L108 -> 0 | AK108: ='MDA3'!L108 -> 0 | AN108: =_xlfn.XLOOKUP($Y108,[1]COUNTRY_INFO!$Y$9:$Y$527,[1]COUNTRY_INFO!D$9:D$527) -> 129982 | AO108: =_xlfn.XLOOKUP($Y108,[1]COUNTRY_INFO!$Y$9:$Y$527,[1]COUNTRY_INFO!E$9:E$527) -> 15727.702 | AP108: =_xlfn.XLOOKUP($Y108,[1]COUNTRY_INFO!$Y$9:$Y$527,[1]COUNTRY_INFO!F$9:F$527) -> 45494 | AQ108: =_xlfn.XLOOKUP($Y108,[1]COUNTRY_INFO!$Y$9:$Y$527,[1]COUNTRY_INFO!G$9:G$527) -> 63691 | AR108: -13.92346633 | AS108: -14.63469997 | AT108: -13.92491318 | AU108: -13.92190419 | AY108: 1 | AZ108: 4 | BA108: 1 | BB108: 1 | BC108: 0 | BD108: TRUE | BE108: TRUE | BF108: TRUE | BG108: TRUE | BH108: TRUE
A109: =IF(INTRO!$E$34<>0,INTRO!$E$34,"") -> DRC | B109: ITURI | C109: Kambale | D109: 150072 | E109: 19134 | F109: 52525 | G109: 72035 | H109: 1 | I109: 1 | J109: 1 | K109: 0 | L109: 0 | M109: =IF(INTRO!$E$38="Endemic", IF($H109>0, IF($H109=4,"Unknown", IF($H109=99,"Stopped", $D109)), 0),"Not required") -> 150072 | N109: =IF(INTRO!$E$40="Endemic", IF($I109>0, IF($I109=4,"Unknown",IF($I109=99,"Stopped", $D109)), 0),"Not required") -> 150072 | O109: =IF(INTRO!$E$42="Endemic", IF(AND($J109>1,$J109<5), IF($J109=4, "Unknown", E109+F109), 0),"Not required") -> 0 | P109: =IF(INTRO!$E$44="Endemic", IF(AND($K109>0,$K109<5), IF($K109=4,"Unknown", IF($K109=1, $F109*0.33, IF($K109=2, $F109*0.5+$G109*0.2, SUM(F109:G109)))), 0),"Not required") -> 0 | Q109: 1 | R109: 2 | S109: 0 | T109: 0 | U109: MDA1 (IVM+ALB) | Y109: 14248 | Z109: Kambale | AD109: ='MDA1'!K109 -> 50096 | AE109: ='MDA4'!K109 -> 0 | AF109: ='MDA3'!I109 -> 51362 | AG109: ='T1'!M109 -> 0 | AH109: ='T2'!K109 -> 0 | AI109: =T3_R1!L109 -> 0 | AK109: ='MDA3'!L109 -> 0 | AL109: ='MDA1'!E109 -> NOV-DEC 2022 | AN109: =_xlfn.XLOOKUP($Y109,[1]COUNTRY_INFO!$Y$9:$Y$527,[1]COUNTRY_INFO!D$9:D$527) -> 141619 | AO109: =_xlfn.XLOOKUP($Y109,[1]COUNTRY_INFO!$Y$9:$Y$527,[1]COUNTRY_INFO!E$9:E$527) -> 18551.859 | AP109: =_xlfn.XLOOKUP($Y109,[1]COUNTRY_INFO!$Y$9:$Y$527,[1]COUNTRY_INFO!F$9:F$527) -> 50544 | AQ109: =_xlfn.XLOOKUP($Y109,[1]COUNTRY_INFO!$Y$9:$Y$527,[1]COUNTRY_INFO!G$9:G$527) -> 67000 | AR109: 5.968831866 | AS109: 3.137911947 | AT109: 3.919357392 | AU109: 7.514925373 | AY109: 1 | AZ109: 1 | BA109: 1 | BB109: 0 | BC109: 0 | BD109: TRUE | BE109: TRUE | BF109: TRUE | BG109: TRUE | BH109: TRUE
A110: =IF(INTRO!$E$34<>0,INTRO!$E$34,"") -> DRC | B110: ITURI | C110: Kilo | D110: 36887 | E110: 4426 | F110: 12910 | G110: 18075 | H110: 1 | I110: 4 | J110: 2 | K110: 2 | L110: 0 | M110: =IF(INTRO!$E$38="Endemic", IF($H110>0, IF($H110=4,"Unknown", IF($H110=99,"Stopped", $D110)), 0),"Not required") -> 36887 | N110: =IF(INTRO!$E$40="Endemic", IF($I110>0, IF($I110=4,"Unknown",IF($I110=99,"Stopped", $D110)), 0),"Not required") -> Unknown | O110: =IF(INTRO!$E$42="Endemic", IF(AND($J110>1,$J110<5), IF($J110=4, "Unknown", E110+F110), 0),"Not required") -> 17336 | P110: =IF(INTRO!$E$44="Endemic", IF(AND($K110>0,$K110<5), IF($K110=4,"Unknown", IF($K110=1, $F110*0.33, IF($K110=2, $F110*0.5+$G110*0.2, SUM(F110:G110)))), 0),"Not required") -> 10070 | Q110: 1 | R110: 0 | S110: 1 | T110: 1 | U110: MDA1 (IVM+ALB) | V110: T2 (PZQ) | Y110: 14249 | Z110: Kilo | AD110: ='MDA1'!K110 -> 11978 | AE110: ='MDA4'!K110 -> 0 | AF110: ='MDA3'!I110 -> 0 | AG110: ='T1'!M110 -> 0 | AH110: ='T2'!K110 -> 11824 | AI110: =T3_R1!L110 -> 0 | AK110: ='MDA3'!L110 -> 0 | AN110: =_xlfn.XLOOKUP($Y110,[1]COUNTRY_INFO!$Y$9:$Y$527,[1]COUNTRY_INFO!D$9:D$527) -> 49516 | AO110: =_xlfn.XLOOKUP($Y110,[1]COUNTRY_INFO!$Y$9:$Y$527,[1]COUNTRY_INFO!E$9:E$527) -> 5991.876 | AP110: =_xlfn.XLOOKUP($Y110,[1]COUNTRY_INFO!$Y$9:$Y$527,[1]COUNTRY_INFO!F$9:F$527) -> 11717 | AQ110: =_xlfn.XLOOKUP($Y110,[1]COUNTRY_INFO!$Y$9:$Y$527,[1]COUNTRY_INFO!G$9:G$527) -> 29876 | AR110: -25.50488731 | AS110: -26.13331785 | AT110: 10.18178715 | AU110: -39.49993306 | AV110: pb | AY110: 1 | AZ110: 4 | BA110: 2 | BB110: 2 | BC110: 0 | BD110: TRUE | BE110: TRUE | BF110: TRUE | BG110: TRUE | BH110: TRUE
A111: =IF(INTRO!$E$34<>0,INTRO!$E$34,"") -> DRC | B111: ITURI | C111: Komanda | D111: 279868 | E111: 33584 | F111: 97954 | G111: 137135 | H111: 1 | I111: 1 | J111: 1 | K111: 2 | L111: 0 | M111: =IF(INTRO!$E$38="Endemic", IF($H111>0, IF($H111=4,"Unknown", IF($H111=99,"Stopped", $D111)), 0),"Not required") -> 279868 | N111: =IF(INTRO!$E$40="Endemic", IF($I111>0, IF($I111=4,"Unknown",IF($I111=99,"Stopped", $D111)), 0),"Not required") -> 279868 | O111: =IF(INTRO!$E$42="Endemic", IF(AND($J111>1,$J111<5), IF($J111=4, "Unknown", E111+F111), 0),"Not required") -> 0 | P111: =IF(INTRO!$E$44="Endemic", IF(AND($K111>0,$K111<5), IF($K111=4,"Unknown", IF($K111=1, $F111*0.33, IF($K111=2, $F111*0.5+$G111*0.2, SUM(F111:G111)))), 0),"Not required") -> 76404 | Q111: 1 | R111: 1 | S111: 0 | T111: 0 | U111: MDA1 (IVM+ALB) | Y111: 14250 | Z111: Komanda | AD111: ='MDA1'!K111 -> 40279 | AE111: ='MDA4'!K111 -> 0 | AF111: ='MDA3'!I111 -> 0 | AG111: ='T1'!M111 -> 0 | AH111: ='T2'!K111 -> 0 | AI111: =T3_R1!L111 -> 0 | AK111: ='MDA3'!L111 -> 0 | AN111: =_xlfn.XLOOKUP($Y111,[1]COUNTRY_INFO!$Y$9:$Y$527,[1]COUNTRY_INFO!D$9:D$527) -> 250202 | AO111: =_xlfn.XLOOKUP($Y111,[1]COUNTRY_INFO!$Y$9:$Y$527,[1]COUNTRY_INFO!E$9:E$527) -> 30274.122 | AP111: =_xlfn.XLOOKUP($Y111,[1]COUNTRY_INFO!$Y$9:$Y$527,[1]COUNTRY_INFO!F$9:F$527) -> 86422 | AQ111: =_xlfn.XLOOKUP($Y111,[1]COUNTRY_INFO!$Y$9:$Y$527,[1]COUNTRY_INFO!G$9:G$527) -> 123748 | AR111: 11.85681969 | AS111: 10.93302722 | AT111: 13.34382449 | AU111: 10.81795261 | AY111: 1 | AZ111: 1 | BA111: 1 | BB111: 2 | BC111: 0 | BD111: TRUE | BE111: TRUE | BF111: TRUE | BG111: TRUE | BH111: TRUE
A112: =IF(INTRO!$E$34<>0,INTRO!$E$34,"") -> DRC | B112: ITURI | C112: Laybo | D112: 184119 | E112: 22094 | F112: 64442 | G112: 90217.96 | H112: 0 | I112: 1 | J112: 1 | K112: 0 | L112: 0 | M112: =IF(INTRO!$E$38="Endemic", IF($H112>0, IF($H112=4,"Unknown", IF($H112=99,"Stopped", $D112)), 0),"Not required") -> 0 | N112: =IF(INTRO!$E$40="Endemic", IF($I112>0, IF($I112=4,"Unknown",IF($I112=99,"Stopped", $D112)), 0),"Not required") -> 184119 | O112: =IF(INTRO!$E$42="Endemic", IF(AND($J112>1,$J112<5), IF($J112=4, "Unknown", E112+F112), 0),"Not required") -> 0 | P112: =IF(INTRO!$E$44="Endemic", IF(AND($K112>0,$K112<5), IF($K112=4,"Unknown", IF($K112=1, $F112*0.33, IF($K112=2, $F112*0.5+$G112*0.2, SUM(F112:G112)))), 0),"Not required") -> 0 | Q112: 0 | R112: 2 | S112: 0 | T112: 0 | U112: MDA3 (IVM) | Y112: 14251 | Z112: Laybo | AD112: ='MDA1'!K112 -> 0 | AE112: ='MDA4'!K112 -> 0 | AF112: ='MDA3'!I112 -> 64184 | AG112: ='T1'!M112 -> 0 | AH112: ='T2'!K112 -> 0 | AI112: =T3_R1!L112 -> 0 | AK112: ='MDA3'!L112 -> 64184 | AN112: =_xlfn.XLOOKUP($Y112,[1]COUNTRY_INFO!$Y$9:$Y$527,[1]COUNTRY_INFO!D$9:D$527) -> 179985 | AO112: =_xlfn.XLOOKUP($Y112,[1]COUNTRY_INFO!$Y$9:$Y$527,[1]COUNTRY_INFO!E$9:E$527) -> 21778.185 | AP112: =_xlfn.XLOOKUP($Y112,[1]COUNTRY_INFO!$Y$9:$Y$527,[1]COUNTRY_INFO!F$9:F$527) -> 65011 | AQ112: =_xlfn.XLOOKUP($Y112,[1]COUNTRY_INFO!$Y$9:$Y$527,[1]COUNTRY_INFO!G$9:G$527) -> 86176.4 | AR112: 2.296858072 | AS112: 1.450143802 | AT112: -0.8752364984 | AU112: 4.689868688 | AY112: 0 | AZ112: 1 | BA112: 1 | BB112: 0 | BC112: 0 | BD112: TRUE | BE112: TRUE | BF112: TRUE | BG112: TRUE | BH112: TRUE
A113: =IF(INTRO!$E$34<>0,INTRO!$E$34,"") -> DRC | B113: ITURI | C113: Linga | D113: 139592 | E113: 17798 | F113: 48857 | G113: 67004 | H113: 1 | I113: 4 | J113: 1 | K113: 1 | L113: 0 | M113: =IF(INTRO!$E$38="Endemic", IF($H113>0, IF($H113=4,"Unknown", IF($H113=99,"Stopped", $D113)), 0),"Not required") -> 139592 | N113: =IF(INTRO!$E$40="Endemic", IF($I113>0, IF($I113=4,"Unknown",IF($I113=99,"Stopped", $D113)), 0),"Not required") -> Unknown | O113: =IF(INTRO!$E$42="Endemic", IF(AND($J113>1,$J113<5), IF($J113=4, "Unknown", E113+F113), 0),"Not required") -> 0 | P113: =IF(INTRO!$E$44="Endemic", IF(AND($K113>0,$K113<5), IF($K113=4,"Unknown", IF($K113=1, $F113*0.33, IF($K113=2, $F113*0.5+$G113*0.2, SUM(F113:G113)))), 0),"Not required") -> 16122.81 | Q113: 1 | R113: 0 | S113: 0 | T113: 1 | U113: MDA1 (IVM+ALB) | V113: T2 (PZQ) | Y113: 14253 | Z113: Linga | AD113: ='MDA1'!K113 -> 44638 | AE113: ='MDA4'!K113 -> 0 | AF113: ='MDA3'!I113 -> 0 | AG113: ='T1'!M113 -> 0 | AH113: ='T2'!K113 -> 49553 | AI113: =T3_R1!L113 -> 0 | AK113: ='MDA3'!L113 -> 0 | AN113: =_xlfn.XLOOKUP($Y113,[1]COUNTRY_INFO!$Y$9:$Y$527,[1]COUNTRY_INFO!D$9:D$527) -> 115234 | AO113: =_xlfn.XLOOKUP($Y113,[1]COUNTRY_INFO!$Y$9:$Y$527,[1]COUNTRY_INFO!E$9:E$527) -> 15095.874 | AP113: =_xlfn.XLOOKUP($Y113,[1]COUNTRY_INFO!$Y$9:$Y$527,[1]COUNTRY_INFO!F$9:F$527) -> 41127 | AQ113: =_xlfn.XLOOKUP($Y113,[1]COUNTRY_INFO!$Y$9:$Y$527,[1]COUNTRY_INFO!G$9:G$527) -> 54517 | AR113: 21.13785862 | AS113: 17.89976519 | AT113: 18.79543852 | AU113: 22.90478199 | AV113: pb | AY113: 1 | AZ113: 4 | BA113: 1 | BB113: 1 | BC113: 0 | BD113: TRUE | BE113: TRUE | BF113: TRUE | BG113: TRUE | BH113: TRUE
A114: =IF(INTRO!$E$34<>0,INTRO!$E$34,"") -> DRC | B114: ITURI | C114: Lita | D114: 165243 | E114: 19829 | F114: 57835 | G114: 80969 | H114: 0 | I114: 4 | J114: 1 | K114: 1 | L114: 0 | M114: =IF(INTRO!$E$38="Endemic", IF($H114>0, IF($H114=4,"Unknown", IF($H114=99,"Stopped", $D114)), 0),"Not required") -> 0 | N114: =IF(INTRO!$E$40="Endemic", IF($I114>0, IF($I114=4,"Unknown",IF($I114=99,"Stopped", $D114)), 0),"Not required") -> Unknown | O114: =IF(INTRO!$E$42="Endemic", IF(AND($J114>1,$J114<5), IF($J114=4, "Unknown", E114+F114), 0),"Not required") -> 0 | P114: =IF(INTRO!$E$44="Endemic", IF(AND($K114>0,$K114<5), IF($K114=4,"Unknown", IF($K114=1, $F114*0.33, IF($K114=2, $F114*0.5+$G114*0.2, SUM(F114:G114)))), 0),"Not required") -> 19085.55 | Q114: 0 | R114: 0 | S114: 0 | T114: 0 | Y114: 14254 | Z114: Lita | AD114: ='MDA1'!K114 -> 0 | AE114: ='MDA4'!K114 -> 0 | AF114: ='MDA3'!I114 -> 0 | AG114: ='T1'!M114 -> 0 | AH114: ='T2'!K114 -> 0 | AI114: =T3_R1!L114 -> 0 | AK114: ='MDA3'!L114 -> 0 | AN114: =_xlfn.XLOOKUP($Y114,[1]COUNTRY_INFO!$Y$9:$Y$527,[1]COUNTRY_INFO!D$9:D$527) -> 155757 | AO114: =_xlfn.XLOOKUP($Y114,[1]COUNTRY_INFO!$Y$9:$Y$527,[1]COUNTRY_INFO!E$9:E$527) -> 18846.477 | AP114: =_xlfn.XLOOKUP($Y114,[1]COUNTRY_INFO!$Y$9:$Y$527,[1]COUNTRY_INFO!F$9:F$527) -> 54515 | AQ114: =_xlfn.XLOOKUP($Y114,[1]COUNTRY_INFO!$Y$9:$Y$527,[1]COUNTRY_INFO!G$9:G$527) -> 76321 | AR114: 6.090255976 | AS114: 5.213297955 | AT114: 6.090066954 | AU114: 6.090066954 | AY114: 0 | AZ114: 4 | BA114: 1 | BB114: 1 | BC114: 0 | BD114: TRUE | BE114: TRUE | BF114: TRUE | BG114: TRUE | BH114: TRUE
A115: =IF(INTRO!$E$34<>0,INTRO!$E$34,"") -> DRC | B115: ITURI | C115: Logo | D115: 130387 | E115: 15646 | F115: 45635 | G115: 63890 | H115: 0 | I115: 4 | J115: 1 | K115: 1 | L115: 0 | M115: =IF(INTRO!$E$38="Endemic", IF($H115>0, IF($H115=4,"Unknown", IF($H115=99,"Stopped", $D115)), 0),"Not required") -> 0 | N115: =IF(INTRO!$E$40="Endemic", IF($I115>0, IF($I115=4,"Unknown",IF($I115=99,"Stopped", $D115)), 0),"Not required") -> Unknown | O115: =IF(INTRO!$E$42="Endemic", IF(AND($J115>1,$J115<5), IF($J115=4, "Unknown", E115+F115), 0),"Not required") -> 0 | P115: =IF(INTRO!$E$44="Endemic", IF(AND($K115>0,$K115<5), IF($K115=4,"Unknown", IF($K115=1, $F115*0.33, IF($K115=2, $F115*0.5+$G115*0.2, SUM(F115:G115)))), 0),"Not required") -> 15059.55 | Q115: 0 | R115: 0 | S115: 0 | T115: 0 | Y115: 14255 | Z115: Logo | AD115: ='MDA1'!K115 -> 0 | AE115: ='MDA4'!K115 -> 0 | AF115: ='MDA3'!I115 -> 0 | AG115: ='T1'!M115 -> 0 | AH115: ='T2'!K115 -> 0 | AI115: =T3_R1!L115 -> 0 | AK115: ='MDA3'!L115 -> 0 | AN115: =_xlfn.XLOOKUP($Y115,[1]COUNTRY_INFO!$Y$9:$Y$527,[1]COUNTRY_INFO!D$9:D$527) -> 122902 | AO115: =_xlfn.XLOOKUP($Y115,[1]COUNTRY_INFO!$Y$9:$Y$527,[1]COUNTRY_INFO!E$9:E$527) -> 14870.822 | AP115: =_xlfn.XLOOKUP($Y115,[1]COUNTRY_INFO!$Y$9:$Y$527,[1]COUNTRY_INFO!F$9:F$527) -> 81753 | AQ115: =_xlfn.XLOOKUP($Y115,[1]COUNTRY_INFO!$Y$9:$Y$527,[1]COUNTRY_INFO!G$9:G$527) -> 21485 | AR115: 6.090218223 | AS115: 5.212744796 | AT115: -44.17941849 | AU115: 197.3702583 | AY115: 0 | AZ115: 4 | BA115: 1 | BB115: 1 | BC115: 0 | BD115: TRUE | BE115: TRUE | BF115: TRUE | BG115: TRUE | BH115: TRUE
A116: =IF(INTRO!$E$34<>0,INTRO!$E$34,"") -> DRC | B116: ITURI | C116: Lolwa | D116: 93050 | E116: 11166 | F116: 32568 | G116: 45594 | H116: 1 | I116: 1 | J116: 1 | K116: 2 | L116: 0 | M116: =IF(INTRO!$E$38="Endemic", IF($H116>0, IF($H116=4,"Unknown", IF($H116=99,"Stopped", $D116)), 0),"Not required") -> 93050 | N116: =IF(INTRO!$E$40="Endemic", IF($I116>0, IF($I116=4,"Unknown",IF($I116=99,"Stopped", $D116)), 0),"Not required") -> 93050 | O116: =IF(INTRO!$E$42="Endemic", IF(AND($J116>1,$J116<5), IF($J116=4, "Unknown", E116+F116), 0),"Not required") -> 0 | P116: =IF(INTRO!$E$44="Endemic", IF(AND($K116>0,$K116<5), IF($K116=4,"Unknown", IF($K116=1, $F116*0.33, IF($K116=2, $F116*0.5+$G116*0.2, SUM(F116:G116)))), 0),"Not required") -> 25402.8 | Q116: 1 | R116: 1 | S116: 0 | T116: 0 | U116: MDA1 (IVM+ALB) | Y116: 13992 | Z116: Lolwa | AD116: ='MDA1'!K116 -> 23937 | AE116: ='MDA4'!K116 -> 0 | AF116: ='MDA3'!I116 -> 0 | AG116: ='T1'!M116 -> 0 | AH116: ='T2'!K116 -> 0 | AI116: =T3_R1!L116 -> 0 | AK116: ='MDA3'!L116 -> 0 | AN116: =_xlfn.XLOOKUP($Y116,[1]COUNTRY_INFO!$Y$9:$Y$527,[1]COUNTRY_INFO!D$9:D$527) -> 102248 | AO116: =_xlfn.XLOOKUP($Y116,[1]COUNTRY_INFO!$Y$9:$Y$527,[1]COUNTRY_INFO!E$9:E$527) -> 12372.328 | AP116: =_xlfn.XLOOKUP($Y116,[1]COUNTRY_INFO!$Y$9:$Y$527,[1]COUNTRY_INFO!F$9:F$527) -> 30396 | AQ116: =_xlfn.XLOOKUP($Y116,[1]COUNTRY_INFO!$Y$9:$Y$527,[1]COUNTRY_INFO!G$9:G$527) -> 55492 | AR116: -8.995774978 | AS116: -9.750210308 | AT116: 7.145677063 | AU116: -17.83680531 | AY116: 1 | AZ116: 1 | BA116: 1 | BB116: 2 | BC116: 0 | BD116: TRUE | BE116: TRUE | BF116: TRUE | BG116: TRUE | BH116: TRUE
A117: =IF(INTRO!$E$34<>0,INTRO!$E$34,"") -> DRC | B117: ITURI | C117: Mahagi | D117: 220811 | E117: 26497 | F117: 77284 | G117: 108197 | H117: 0 | I117: 4 | J117: 1 | K117: 1 | L117: 0 | M117: =IF(INTRO!$E$38="Endemic", IF($H117>0, IF($H117=4,"Unknown", IF($H117=99,"Stopped", $D117)), 0),"Not required") -> 0 | N117: =IF(INTRO!$E$40="Endemic", IF($I117>0, IF($I117=4,"Unknown",IF($I117=99,"Stopped", $D117)), 0),"Not required") -> Unknown | O117: =IF(INTRO!$E$42="Endemic", IF(AND($J117>1,$J117<5), IF($J117=4, "Unknown", E117+F117), 0),"Not required") -> 0 | P117: =IF(INTRO!$E$44="Endemic", IF(AND($K117>0,$K117<5), IF($K117=4,"Unknown", IF($K117=1, $F117*0.33, IF($K117=2, $F117*0.5+$G117*0.2, SUM(F117:G117)))), 0),"Not required") -> 25503.72 | Q117: 0 | R117: 0 | S117: 0 | T117: 0 | Y117: 14258 | Z117: Mahagi | AD117: ='MDA1'!K117 -> 0 | AE117: ='MDA4'!K117 -> 0 | AF117: ='MDA3'!I117 -> 0 | AG117: ='T1'!M117 -> 0 | AH117: ='T2'!K117 -> 0 | AI117: =T3_R1!L117 -> 0 | AK117: ='MDA3'!L117 -> 0 | AN117: =_xlfn.XLOOKUP($Y117,[1]COUNTRY_INFO!$Y$9:$Y$527,[1]COUNTRY_INFO!D$9:D$527) -> 208136 | AO117: =_xlfn.XLOOKUP($Y117,[1]COUNTRY_INFO!$Y$9:$Y$527,[1]COUNTRY_INFO!E$9:E$527) -> 25184.696 | AP117: =_xlfn.XLOOKUP($Y117,[1]COUNTRY_INFO!$Y$9:$Y$527,[1]COUNTRY_INFO!F$9:F$527) -> 79714 | AQ117: =_xlfn.XLOOKUP($Y117,[1]COUNTRY_INFO!$Y$9:$Y$527,[1]COUNTRY_INFO!G$9:G$527) -> 95120 | AR117: 6.089768228 | AS117: 5.210720034 | AT117: -3.048398023 | AU117: 13.74789739 | AY117: 0 | AZ117: 4 | BA117: 1 | BB117: 1 | BC117: 0 | BD117: TRUE | BE117: TRUE | BF117: TRUE | BG117: TRUE | BH117: TRUE
A118: =IF(INTRO!$E$34<>0,INTRO!$E$34,"") -> DRC | B118: ITURI | C118: Mambasa | D118: 125934 | E118: 15112 | F118: 44077 | G118: 61708 | H118: 1 | I118: 1 | J118: 1 | K118: 2 | L118: 0 | M118: =IF(INTRO!$E$38="Endemic", IF($H118>0, IF($H118=4,"Unknown", IF($H118=99,"Stopped", $D118)), 0),"Not required") -> 125934 | N118: =IF(INTRO!$E$40="Endemic", IF($I118>0, IF($I118=4,"Unknown",IF($I118=99,"Stopped", $D118)), 0),"Not required") -> 125934 | O118: =IF(INTRO!$E$42="Endemic", IF(AND($J118>1,$J118<5), IF($J118=4, "Unknown", E118+F118), 0),"Not required") -> 0 | P118: =IF(INTRO!$E$44="Endemic", IF(AND($K118>0,$K118<5), IF($K118=4,"Unknown", IF($K118=1, $F118*0.33, IF($K118=2, $F118*0.5+$G118*0.2, SUM(F118:G118)))), 0),"Not required") -> 34380.1 | Q118: 1 | R118: 1 | S118: 0 | T118: 0 | U118: MDA1 (IVM+ALB) | Y118: 14261 | Z118: Mambasa | AD118: ='MDA1'!K118 -> 44077 | AE118: ='MDA4'!K118 -> 0 | AF118: ='MDA3'!I118 -> 0 | AG118: ='T1'!M118 -> 0 | AH118: ='T2'!K118 -> 0 | AI118: =T3_R1!L118 -> 0 | AK118: ='MDA3'!L118 -> 0 | AN118: =_xlfn.XLOOKUP($Y118,[1]COUNTRY_INFO!$Y$9:$Y$527,[1]COUNTRY_INFO!D$9:D$527) -> 119281 | AO118: =_xlfn.XLOOKUP($Y118,[1]COUNTRY_INFO!$Y$9:$Y$527,[1]COUNTRY_INFO!E$9:E$527) -> 14433.041 | AP118: =_xlfn.XLOOKUP($Y118,[1]COUNTRY_INFO!$Y$9:$Y$527,[1]COUNTRY_INFO!F$9:F$527) -> 37065 | AQ118: =_xlfn.XLOOKUP($Y118,[1]COUNTRY_INFO!$Y$9:$Y$527,[1]COUNTRY_INFO!G$9:G$527) -> 63131 | AR118: 5.577585701 | AS118: 4.704199205 | AT118: 18.91811682 | AU118: -2.25404318 | AY118: 1 | AZ118: 1 | BA118: 1 | BB118: 2 | BC118: 0 | BD118: TRUE | BE118: TRUE | BF118: TRUE | BG118: TRUE | BH118: TRUE
A119: =IF(INTRO!$E$34<>0,INTRO!$E$34,"") -> DRC | B119: ITURI | C119: Mandima | D119: 104790 | E119: 12574 | F119: 36677 | G119: 51347 | H119: 1 | I119: 1 | J119: 2 | K119: 1 | L119: 0 | M119: =IF(INTRO!$E$38="Endemic", IF($H119>0, IF($H119=4,"Unknown", IF($H119=99,"Stopped", $D119)), 0),"Not required") -> 104790 | N119: =IF(INTRO!$E$40="Endemic", IF($I119>0, IF($I119=4,"Unknown",IF($I119=99,"Stopped", $D119)), 0),"Not required") -> 104790 | O119: =IF(INTRO!$E$42="Endemic", IF(AND($J119>1,$J119<5), IF($J119=4, "Unknown", E119+F119), 0),"Not required") -> 49251 | P119: =IF(INTRO!$E$44="Endemic", IF(AND($K119>0,$K119<5), IF($K119=4,"Unknown", IF($K119=1, $F119*0.33, IF($K119=2, $F119*0.5+$G119*0.2, SUM(F119:G119)))), 0),"Not required") -> 12103.41 | Q119: 1 | R119: 1 | S119: 1 | T119: 0 | U119: MDA1 (IVM+ALB) | Y119: 14262 | Z119: Mandima | AD119: ='MDA1'!K119 -> 35262 | AE119: ='MDA4'!K119 -> 0 | AF119: ='MDA3'!I119 -> 0 | AG119: ='T1'!M119 -> 0 | AH119: ='T2'!K119 -> 0 | AI119: =T3_R1!L119 -> 0 | AK119: ='MDA3'!L119 -> 0 | AN119: =_xlfn.XLOOKUP($Y119,[1]COUNTRY_INFO!$Y$9:$Y$527,[1]COUNTRY_INFO!D$9:D$527) -> 155936 | AO119: =_xlfn.XLOOKUP($Y119,[1]COUNTRY_INFO!$Y$9:$Y$527,[1]COUNTRY_INFO!E$9:E$527) -> 18868.496 | AP119: =_xlfn.XLOOKUP($Y119,[1]COUNTRY_INFO!$Y$9:$Y$527,[1]COUNTRY_INFO!F$9:F$527) -> 40567 | AQ119: =_xlfn.XLOOKUP($Y119,[1]COUNTRY_INFO!$Y$9:$Y$527,[1]COUNTRY_INFO!G$9:G$527) -> 90419 | AR119: -32.79935358 | AS119: -33.3598184 | AT119: -9.589074864 | AU119: -43.21215674 | AV119: pb | AY119: 1 | AZ119: 1 | BA119: 2 | BB119: 1 | BC119: 0 | BD119: TRUE | BE119: TRUE | BF119: TRUE | BG119: TRUE | BH119: TRUE
A120: =IF(INTRO!$E$34<>0,INTRO!$E$34,"") -> DRC | B120: ITURI | C120: Mangala | D120: 86735 | E120: 10408 | F120: 30357 | G120: 42500 | H120: 1 | I120: 4 | J120: 2 | K120: 1 | L120: 0 | M120: =IF(INTRO!$E$38="Endemic", IF($H120>0, IF($H120=4,"Unknown", IF($H120=99,"Stopped", $D120)), 0),"Not required") -> 86735 | N120: =IF(INTRO!$E$40="Endemic", IF($I120>0, IF($I120=4,"Unknown",IF($I120=99,"Stopped", $D120)), 0),"Not required") -> Unknown | O120: =IF(INTRO!$E$42="Endemic", IF(AND($J120>1,$J120<5), IF($J120=4, "Unknown", E120+F120), 0),"Not required") -> 40765 | P120: =IF(INTRO!$E$44="Endemic", IF(AND($K120>0,$K120<5), IF($K120=4,"Unknown", IF($K120=1, $F120*0.33, IF($K120=2, $F120*0.5+$G120*0.2, SUM(F120:G120)))), 0),"Not required") -> 10017.81 | Q120: 1 | R120: 0 | S120: 1 | T120: 0 | U120: MDA1 (IVM+ALB) | Y120: 14263 | Z120: Mangala | AD120: ='MDA1'!K120 -> 27271 | AE120: ='MDA4'!K120 -> 0 | AF120: ='MDA3'!I120 -> 0 | AG120: ='T1'!M120 -> 0 | AH120: ='T2'!K120 -> 0 | AI120: =T3_R1!L120 -> 0 | AK120: ='MDA3'!L120 -> 0 | AN120: =_xlfn.XLOOKUP($Y120,[1]COUNTRY_INFO!$Y$9:$Y$527,[1]COUNTRY_INFO!D$9:D$527) -> 86375 | AO120: =_xlfn.XLOOKUP($Y120,[1]COUNTRY_INFO!$Y$9:$Y$527,[1]COUNTRY_INFO!E$9:E$527) -> 10451.375 | AP120: =_xlfn.XLOOKUP($Y120,[1]COUNTRY_INFO!$Y$9:$Y$527,[1]COUNTRY_INFO!F$9:F$527) -> 20143 | AQ120: =_xlfn.XLOOKUP($Y120,[1]COUNTRY_INFO!$Y$9:$Y$527,[1]COUNTRY_INFO!G$9:G$527) -> 52412 | AR120: 0.4167872648 | AS120: -0.4150171628 | AT120: 50.70744179 | AU120: -18.91169961 | AY120: 1 | AZ120: 4 | BA120: 2 | BB120: 1 | BC120: 0 | BD120: TRUE | BE120: TRUE | BF120: TRUE | BG120: TRUE | BH120: TRUE
A121: =IF(INTRO!$E$34<>0,INTRO!$E$34,"") -> DRC | B121: ITURI | C121: Mongbwalu | D121: 139269 | E121: 16712 | F121: 48744 | G121: 68242 | H121: 0 | I121: 1 | J121: 2 | K121: 2 | L121: 0 | M121: =IF(INTRO!$E$38="Endemic", IF($H121>0, IF($H121=4,"Unknown", IF($H121=99,"Stopped", $D121)), 0),"Not required") -> 0 | N121: =IF(INTRO!$E$40="Endemic", IF($I121>0, IF($I121=4,"Unknown",IF($I121=99,"Stopped", $D121)), 0),"Not required") -> 139269 | O121: =IF(INTRO!$E$42="Endemic", IF(AND($J121>1,$J121<5), IF($J121=4, "Unknown", E121+F121), 0),"Not required") -> 65456 | P121: =IF(INTRO!$E$44="Endemic", IF(AND($K121>0,$K121<5), IF($K121=4,"Unknown", IF($K121=1, $F121*0.33, IF($K121=2, $F121*0.5+$G121*0.2, SUM(F121:G121)))), 0),"Not required") -> 38020.4 | Q121: 0 | R121: 1 | S121: 1 | T121: 0 | U121: MDA3 (IVM) | V121: T3 (ALB/MBD) | Y121: 14267 | Z121: Mongbwalu | AD121: ='MDA1'!K121 -> 0 | AE121: ='MDA4'!K121 -> 0 | AF121: ='MDA3'!I121 -> 47029 | AG121: ='T1'!M121 -> 0 | AH121: ='T2'!K121 -> 0 | AI121: =T3_R1!L121 -> 27614 | AK121: ='MDA3'!L121 -> 0 | AN121: =_xlfn.XLOOKUP($Y121,[1]COUNTRY_INFO!$Y$9:$Y$527,[1]COUNTRY_INFO!D$9:D$527) -> 149172 | AO121: =_xlfn.XLOOKUP($Y121,[1]COUNTRY_INFO!$Y$9:$Y$527,[1]COUNTRY_INFO!E$9:E$527) -> 18050.292 | AP121: =_xlfn.XLOOKUP($Y121,[1]COUNTRY_INFO!$Y$9:$Y$527,[1]COUNTRY_INFO!F$9:F$527) -> 51503 | AQ121: =_xlfn.XLOOKUP($Y121,[1]COUNTRY_INFO!$Y$9:$Y$527,[1]COUNTRY_INFO!G$9:G$527) -> 73801 | AR121: -6.638645322 | AS121: -7.414240169 | AT121: -5.356969497 | AU121: -7.53241826 | AY121: 0 | AZ121: 1 | BA121: 2 | BB121: 2 | BC121: 0 | BD121: TRUE | BE121: TRUE | BF121: TRUE | BG121: TRUE | BH121: TRUE
A122: =IF(INTRO!$E$34<>0,INTRO!$E$34,"") -> DRC | B122: ITURI | C122: Niania | D122: 105104 | E122: 12613 | F122: 36786 | G122: 51501 | H122: 1 | I122: 1 | J122: 1 | K122: 2 | L122: 0 | M122: =IF(INTRO!$E$38="Endemic", IF($H122>0, IF($H122=4,"Unknown", IF($H122=99,"Stopped", $D122)), 0),"Not required") -> 105104 | N122: =IF(INTRO!$E$40="Endemic", IF($I122>0, IF($I122=4,"Unknown",IF($I122=99,"Stopped", $D122)), 0),"Not required") -> 105104 | O122: =IF(INTRO!$E$42="Endemic", IF(AND($J122>1,$J122<5), IF($J122=4, "Unknown", E122+F122), 0),"Not required") -> 0 | P122: =IF(INTRO!$E$44="Endemic", IF(AND($K122>0,$K122<5), IF($K122=4,"Unknown", IF($K122=1, $F122*0.33, IF($K122=2, $F122*0.5+$G122*0.2, SUM(F122:G122)))), 0),"Not required") -> 28693.2 | Q122: 1 | R122: 1 | S122: 0 | T122: 0 | U122: MDA1 (IVM+ALB) | Y122: 14269 | Z122: Niania | AD122: ='MDA1'!K122 -> 20040 | AE122: ='MDA4'!K122 -> 0 | AF122: ='MDA3'!I122 -> 0 | AG122: ='T1'!M122 -> 0 | AH122: ='T2'!K122 -> 0 | AI122: =T3_R1!L122 -> 0 | AK122: ='MDA3'!L122 -> 0 | AN122: =_xlfn.XLOOKUP($Y122,[1]COUNTRY_INFO!$Y$9:$Y$527,[1]COUNTRY_INFO!D$9:D$527) -> 86189 | AO122: =_xlfn.XLOOKUP($Y122,[1]COUNTRY_INFO!$Y$9:$Y$527,[1]COUNTRY_INFO!E$9:E$527) -> 10428.629 | AP122: =_xlfn.XLOOKUP($Y122,[1]COUNTRY_INFO!$Y$9:$Y$527,[1]COUNTRY_INFO!F$9:F$527) -> 18992 | AQ122: =_xlfn.XLOOKUP($Y122,[1]COUNTRY_INFO!$Y$9:$Y$527,[1]COUNTRY_INFO!G$9:G$527) -> 53407 | AR122: 21.94595598 | AS122: 20.94590765 | AT122: 93.69208088 | AU122: -3.568820567 | AV122: pb | AY122: 1 | AZ122: 1 | BA122: 1 | BB122: 2 | BC122: 0 | BD122: TRUE | BE122: TRUE | BF122: TRUE | BG122: TRUE | BH122: TRUE
A123: =IF(INTRO!$E$34<>0,INTRO!$E$34,"") -> DRC | B123: ITURI | C123: Nizi | D123: 226006 | E123: 27121 | F123: 79102 | G123: 110743 | H123: 1 | I123: 4 | J123: 2 | K123: 1 | L123: 0 | M123: =IF(INTRO!$E$38="Endemic", IF($H123>0, IF($H123=4,"Unknown", IF($H123=99,"Stopped", $D123)), 0),"Not required") -> 226006 | N123: =IF(INTRO!$E$40="Endemic", IF($I123>0, IF($I123=4,"Unknown",IF($I123=99,"Stopped", $D123)), 0),"Not required") -> Unknown | O123: =IF(INTRO!$E$42="Endemic", IF(AND($J123>1,$J123<5), IF($J123=4, "Unknown", E123+F123), 0),"Not required") -> 106223 | P123: =IF(INTRO!$E$44="Endemic", IF(AND($K123>0,$K123<5), IF($K123=4,"Unknown", IF($K123=1, $F123*0.33, IF($K123=2, $F123*0.5+$G123*0.2, SUM(F123:G123)))), 0),"Not required") -> 26103.66 | Q123: 1 | R123: 0 | S123: 1 | T123: 0 | U123: MDA1 (IVM+ALB) | Y123: 14270 | Z123: Nizi | AD123: ='MDA1'!K123 -> 77698 | AE123: ='MDA4'!K123 -> 0 | AF123: ='MDA3'!I123 -> 0 | AG123: ='T1'!M123 -> 0 | AH123: ='T2'!K123 -> 0 | AI123: =T3_R1!L123 -> 0 | AK123: ='MDA3'!L123 -> 0 | AN123: =_xlfn.XLOOKUP($Y123,[1]COUNTRY_INFO!$Y$9:$Y$527,[1]COUNTRY_INFO!D$9:D$527) -> 167184 | AO123: =_xlfn.XLOOKUP($Y123,[1]COUNTRY_INFO!$Y$9:$Y$527,[1]COUNTRY_INFO!E$9:E$527) -> 20228.824 | AP123: =_xlfn.XLOOKUP($Y123,[1]COUNTRY_INFO!$Y$9:$Y$527,[1]COUNTRY_INFO!F$9:F$527) -> 59947 | AQ123: =_xlfn.XLOOKUP($Y123,[1]COUNTRY_INFO!$Y$9:$Y$527,[1]COUNTRY_INFO!G$9:G$527) -> 80488 | AR123: 35.1839889 | AS123: 34.07106612 | AT123: 31.95322535 | AU123: 37.58945433 | AV123: pb | AY123: 1 | AZ123: 4 | BA123: 2 | BB123: 1 | BC123: 0 | BD123: TRUE | BE123: TRUE | BF123: TRUE | BG123: TRUE | BH123: TRUE
A124: =IF(INTRO!$E$34<>0,INTRO!$E$34,"") -> DRC | B124: ITURI | C124: Nyankunde | D124: 117644 | E124: 14117 | F124: 41175 | G124: 57646 | H124: 1 | I124: 1 | J124: 1 | K124: 2 | L124: 0 | M124: =IF(INTRO!$E$38="Endemic", IF($H124>0, IF($H124=4,"Unknown", IF($H124=99,"Stopped", $D124)), 0),"Not required") -> 117644 | N124: =IF(INTRO!$E$40="Endemic", IF($I124>0, IF($I124=4,"Unknown",IF($I124=99,"Stopped", $D124)), 0),"Not required") -> 117644 | O124: =IF(INTRO!$E$42="Endemic", IF(AND($J124>1,$J124<5), IF($J124=4, "Unknown", E124+F124), 0),"Not required") -> 0 | P124: =IF(INTRO!$E$44="Endemic", IF(AND($K124>0,$K124<5), IF($K124=4,"Unknown", IF($K124=1, $F124*0.33, IF($K124=2, $F124*0.5+$G124*0.2, SUM(F124:G124)))), 0),"Not required") -> 32116.7 | Q124: 1 | R124: 1 | S124: 0 | T124: 0 | U124: MDA1 (IVM+ALB) | Y124: 14271 | Z124: Nyankunde | AD124: ='MDA1'!K124 -> 41175 | AE124: ='MDA4'!K124 -> 0 | AF124: ='MDA3'!I124 -> 0 | AG124: ='T1'!M124 -> 0 | AH124: ='T2'!K124 -> 0 | AI124: =T3_R1!L124 -> 0 | AK124: ='MDA3'!L124 -> 0 | AN124: =_xlfn.XLOOKUP($Y124,[1]COUNTRY_INFO!$Y$9:$Y$527,[1]COUNTRY_INFO!D$9:D$527) -> 149951 | AO124: =_xlfn.XLOOKUP($Y124,[1]COUNTRY_INFO!$Y$9:$Y$527,[1]COUNTRY_INFO!E$9:E$527) -> 18143.911 | AP124: =_xlfn.XLOOKUP($Y124,[1]COUNTRY_INFO!$Y$9:$Y$527,[1]COUNTRY_INFO!F$9:F$527) -> 41175 | AQ124: =_xlfn.XLOOKUP($Y124,[1]COUNTRY_INFO!$Y$9:$Y$527,[1]COUNTRY_INFO!G$9:G$527) -> 84784 | AR124: -21.54503805 | AS124: -22.19428325 | AT124: 0 | AU124: -32.00839781 | AV124: pb | AY124: 1 | AZ124: 1 | BA124: 1 | BB124: 2 | BC124: 0 | BD124: TRUE | BE124: TRUE | BF124: TRUE | BG124: TRUE | BH124: TRUE
A125: =IF(INTRO!$E$34<>0,INTRO!$E$34,"") -> DRC | B125: ITURI | C125: Nyarambe | D125: 278930 | E125: 33472 | F125: 97626 | G125: 136675 | H125: 1 | I125: 4 | J125: 0 | K125: 3 | L125: 0 | M125: =IF(INTRO!$E$38="Endemic", IF($H125>0, IF($H125=4,"Unknown", IF($H125=99,"Stopped", $D125)), 0),"Not required") -> 278930 | N125: =IF(INTRO!$E$40="Endemic", IF($I125>0, IF($I125=4,"Unknown",IF($I125=99,"Stopped", $D125)), 0),"Not required") -> Unknown | O125: =IF(INTRO!$E$42="Endemic", IF(AND($J125>1,$J125<5), IF($J125=4, "Unknown", E125+F125), 0),"Not required") -> 0 | P125: =IF(INTRO!$E$44="Endemic", IF(AND($K125>0,$K125<5), IF($K125=4,"Unknown", IF($K125=1, $F125*0.33, IF($K125=2, $F125*0.5+$G125*0.2, SUM(F125:G125)))), 0),"Not required") -> 234301 | Q125: 1 | R125: 0 | S125: 0 | T125: 1 | U125: MDA1 (IVM+ALB) | V125: T2 (PZQ) | Y125: 14272 | Z125: Nyarambe | AD125: ='MDA1'!K125 -> 90510 | AE125: ='MDA4'!K125 -> 0 | AF125: ='MDA3'!I125 -> 0 | AG125: ='T1'!M125 -> 0 | AH125: ='T2'!K125 -> 90510 | AI125: =T3_R1!L125 -> 0 | AK125: ='MDA3'!L125 -> 0 | AN125: =_xlfn.XLOOKUP($Y125,[1]COUNTRY_INFO!$Y$9:$Y$527,[1]COUNTRY_INFO!D$9:D$527) -> 234253 | AO125: =_xlfn.XLOOKUP($Y125,[1]COUNTRY_INFO!$Y$9:$Y$527,[1]COUNTRY_INFO!E$9:E$527) -> 28344.133 | AP125: =_xlfn.XLOOKUP($Y125,[1]COUNTRY_INFO!$Y$9:$Y$527,[1]COUNTRY_INFO!F$9:F$527) -> 46106 | AQ125: =_xlfn.XLOOKUP($Y125,[1]COUNTRY_INFO!$Y$9:$Y$527,[1]COUNTRY_INFO!G$9:G$527) -> 150667 | AR125: 19.07211434 | AS125: 18.09145829 | AT125: 111.7425064 | AU125: -9.286705118 | AY125: 1 | AZ125: 4 | BA125: 0 | BB125: 3 | BC125: 0 | BD125: TRUE | BE125: TRUE | BF125: TRUE | BG125: TRUE | BH125: TRUE
A126: =IF(INTRO!$E$34<>0,INTRO!$E$34,"") -> DRC | B126: ITURI | C126: Rethy | D126: 246929 | E126: 31483 | F126: 86425 | G126: 118526 | H126: 1 | I126: 1 | J126: 1 | K126: 1 | L126: 0 | M126: =IF(INTRO!$E$38="Endemic", IF($H126>0, IF($H126=4,"Unknown", IF($H126=99,"Stopped", $D126)), 0),"Not required") -> 246929 | N126: =IF(INTRO!$E$40="Endemic", IF($I126>0, IF($I126=4,"Unknown",IF($I126=99,"Stopped", $D126)), 0),"Not required") -> 246929 | O126: =IF(INTRO!$E$42="Endemic", IF(AND($J126>1,$J126<5), IF($J126=4, "Unknown", E126+F126), 0),"Not required") -> 0 | P126: =IF(INTRO!$E$44="Endemic", IF(AND($K126>0,$K126<5), IF($K126=4,"Unknown", IF($K126=1, $F126*0.33, IF($K126=2, $F126*0.5+$G126*0.2, SUM(F126:G126)))), 0),"Not required") -> 28520.25 | Q126: 1 | R126: 1 | S126: 0 | T126: 0 | U126: MDA1 (IVM+ALB) | Y126: 14277 | Z126: Rethy | AD126: ='MDA1'!K126 -> 84631 | AE126: ='MDA4'!K126 -> 0 | AF126: ='MDA3'!I126 -> 0 | AG126: ='T1'!M126 -> 0 | AH126: ='T2'!K126 -> 0 | AI126: =T3_R1!L126 -> 0 | AK126: ='MDA3'!L126 -> 0 | AN126: =_xlfn.XLOOKUP($Y126,[1]COUNTRY_INFO!$Y$9:$Y$527,[1]COUNTRY_INFO!D$9:D$527) -> 239682 | AO126: =_xlfn.XLOOKUP($Y126,[1]COUNTRY_INFO!$Y$9:$Y$527,[1]COUNTRY_INFO!E$9:E$527) -> 31398.402 | AP126: =_xlfn.XLOOKUP($Y126,[1]COUNTRY_INFO!$Y$9:$Y$527,[1]COUNTRY_INFO!F$9:F$527) -> 85542 | AQ126: =_xlfn.XLOOKUP($Y126,[1]COUNTRY_INFO!$Y$9:$Y$527,[1]COUNTRY_INFO!G$9:G$527) -> 113394 | AR126: 3.02358959 | AS126: 0.2694340941 | AT126: 1.032241472 | AU126: 4.525812653 | AY126: 1 | AZ126: 1 | BA126: 1 | BB126: 1 | BC126: 0 | BD126: TRUE | BE126: TRUE | BF126: TRUE | BG126: TRUE | BH126: TRUE
A127: =IF(INTRO!$E$34<>0,INTRO!$E$34,"") -> DRC | B127: ITURI | C127: Rimba | D127: 290463 | E127: 34855 | F127: 101662 | G127: 142326.92 | H127: 0 | I127: 1 | J127: 1 | K127: 1 | L127: 0 | M127: =IF(INTRO!$E$38="Endemic", IF($H127>0, IF($H127=4,"Unknown", IF($H127=99,"Stopped", $D127)), 0),"Not required") -> 0 | N127: =IF(INTRO!$E$40="Endemic", IF($I127>0, IF($I127=4,"Unknown",IF($I127=99,"Stopped", $D127)), 0),"Not required") -> 290463 | O127: =IF(INTRO!$E$42="Endemic", IF(AND($J127>1,$J127<5), IF($J127=4, "Unknown", E127+F127), 0),"Not required") -> 0 | P127: =IF(INTRO!$E$44="Endemic", IF(AND($K127>0,$K127<5), IF($K127=4,"Unknown", IF($K127=1, $F127*0.33, IF($K127=2, $F127*0.5+$G127*0.2, SUM(F127:G127)))), 0),"Not required") -> 33548.46 | Q127: 0 | R127: 2 | S127: 0 | T127: 0 | U127: MDA3 (IVM) | Y127: 14278 | Z127: Rimba | AD127: ='MDA1'!K127 -> 0 | AE127: ='MDA4'!K127 -> 0 | AF127: ='MDA3'!I127 -> 101370 | AG127: ='T1'!M127 -> 0 | AH127: ='T2'!K127 -> 0 | AI127: =T3_R1!L127 -> 0 | AK127: ='MDA3'!L127 -> 88191 | AN127: =_xlfn.XLOOKUP($Y127,[1]COUNTRY_INFO!$Y$9:$Y$527,[1]COUNTRY_INFO!D$9:D$527) -> 266406 | AO127: =_xlfn.XLOOKUP($Y127,[1]COUNTRY_INFO!$Y$9:$Y$527,[1]COUNTRY_INFO!E$9:E$527) -> 32235.126 | AP127: =_xlfn.XLOOKUP($Y127,[1]COUNTRY_INFO!$Y$9:$Y$527,[1]COUNTRY_INFO!F$9:F$527) -> 96226 | AQ127: =_xlfn.XLOOKUP($Y127,[1]COUNTRY_INFO!$Y$9:$Y$527,[1]COUNTRY_INFO!G$9:G$527) -> 127555.04 | AR127: 9.030202022 | AS127: 8.127388737 | AT127: 5.64920084 | AU127: 11.58078897 | AY127: 0 | AZ127: 1 | BA127: 1 | BB127: 1 | BC127: 0 | BD127: TRUE | BE127: TRUE | BF127: TRUE | BG127: TRUE | BH127: TRUE
A128: =IF(INTRO!$E$34<>0,INTRO!$E$34,"") -> DRC | B128: ITURI | C128: Rwampara | D128: 181931 | E128: 21832 | F128: 63676 | G128: 89146 | H128: 1 | I128: 1 | J128: 1 | K128: 2 | L128: 0 | M128: =IF(INTRO!$E$38="Endemic", IF($H128>0, IF($H128=4,"Unknown", IF($H128=99,"Stopped", $D128)), 0),"Not required") -> 181931 | N128: =IF(INTRO!$E$40="Endemic", IF($I128>0, IF($I128=4,"Unknown",IF($I128=99,"Stopped", $D128)), 0),"Not required") -> 181931 | O128: =IF(INTRO!$E$42="Endemic", IF(AND($J128>1,$J128<5), IF($J128=4, "Unknown", E128+F128), 0),"Not required") -> 0 | P128: =IF(INTRO!$E$44="Endemic", IF(AND($K128>0,$K128<5), IF($K128=4,"Unknown", IF($K128=1, $F128*0.33, IF($K128=2, $F128*0.5+$G128*0.2, SUM(F128:G128)))), 0),"Not required") -> 49667.2 | Q128: 1 | R128: 1 | S128: 0 | T128: 0 | U128: MDA1 (IVM+ALB) | Y128: 14280 | Z128: Rwampara | AD128: ='MDA1'!K128 -> 63676 | AE128: ='MDA4'!K128 -> 0 | AF128: ='MDA3'!I128 -> 0 | AG128: ='T1'!M128 -> 0 | AH128: ='T2'!K128 -> 0 | AI128: =T3_R1!L128 -> 0 | AK128: ='MDA3'!L128 -> 0 | AN128: =_xlfn.XLOOKUP($Y128,[1]COUNTRY_INFO!$Y$9:$Y$527,[1]COUNTRY_INFO!D$9:D$527) -> 239682 | AO128: =_xlfn.XLOOKUP($Y128,[1]COUNTRY_INFO!$Y$9:$Y$527,[1]COUNTRY_INFO!E$9:E$527) -> 29001.402 | AP128: =_xlfn.XLOOKUP($Y128,[1]COUNTRY_INFO!$Y$9:$Y$527,[1]COUNTRY_INFO!F$9:F$527) -> 26289 | AQ128: =_xlfn.XLOOKUP($Y128,[1]COUNTRY_INFO!$Y$9:$Y$527,[1]COUNTRY_INFO!G$9:G$527) -> 175044 | AR128: -24.09484233 | AS128: -24.72088074 | AT128: 142.2153753 | AU128: -49.07223327 | AV128: pb | AY128: 1 | AZ128: 1 | BA128: 1 | BB128: 2 | BC128: 0 | BD128: TRUE | BE128: TRUE | BF128: TRUE | BG128: TRUE | BH128: TRUE
A129: =IF(INTRO!$E$34<>0,INTRO!$E$34,"") -> DRC | B129: ITURI | C129: Tchomia | D129: 112922 | E129: 14398 | F129: 39523 | G129: 54202 | H129: 1 | I129: 4 | J129: 1 | K129: 3 | L129: 0 | M129: =IF(INTRO!$E$38="Endemic", IF($H129>0, IF($H129=4,"Unknown", IF($H129=99,"Stopped", $D129)), 0),"Not required") -> 112922 | N129: =IF(INTRO!$E$40="Endemic", IF($I129>0, IF($I129=4,"Unknown",IF($I129=99,"Stopped", $D129)), 0),"Not required") -> Unknown | O129: =IF(INTRO!$E$42="Endemic", IF(AND($J129>1,$J129<5), IF($J129=4, "Unknown", E129+F129), 0),"Not required") -> 0 | P129: =IF(INTRO!$E$44="Endemic", IF(AND($K129>0,$K129<5), IF($K129=4,"Unknown", IF($K129=1, $F129*0.33, IF($K129=2, $F129*0.5+$G129*0.2, SUM(F129:G129)))), 0),"Not required") -> 93725 | Q129: 1 | R129: 0 | S129: 0 | T129: 1 | U129: MDA1 (IVM+ALB) | V129: T2 (PZQ) | Y129: 14281 | Z129: Tchomia | AD129: ='MDA1'!K129 -> 36250 | AE129: ='MDA4'!K129 -> 0 | AF129: ='MDA3'!I129 -> 0 | AG129: ='T1'!M129 -> 0 | AH129: ='T2'!K129 -> 28020 | AI129: =T3_R1!L129 -> 0 | AK129: ='MDA3'!L129 -> 0 | AN129: =_xlfn.XLOOKUP($Y129,[1]COUNTRY_INFO!$Y$9:$Y$527,[1]COUNTRY_INFO!D$9:D$527) -> 115634 | AO129: =_xlfn.XLOOKUP($Y129,[1]COUNTRY_INFO!$Y$9:$Y$527,[1]COUNTRY_INFO!E$9:E$527) -> 15148.274 | AP129: =_xlfn.XLOOKUP($Y129,[1]COUNTRY_INFO!$Y$9:$Y$527,[1]COUNTRY_INFO!F$9:F$527) -> 40472 | AQ129: =_xlfn.XLOOKUP($Y129,[1]COUNTRY_INFO!$Y$9:$Y$527,[1]COUNTRY_INFO!G$9:G$527) -> 55504 | AR129: -2.345330958 | AS129: -4.952867898 | AT129: -2.344830994 | AU129: -2.345776881 | AY129: 1 | AZ129: 4 | BA129: 1 | BB129: 3 | BC129: 0 | BD129: TRUE | BE129: TRUE | BF129: TRUE | BG129: TRUE | BH129: TRUE
A130: =IF(INTRO!$E$34<>0,INTRO!$E$34,"") -> DRC | B130: Kasai | C130: Banga Lubaka | D130: 207949 | E130: 24954 | F130: 72782 | G130: 101895 | H130: 1 | I130: 1 | J130: 3 | K130: 0 | L130: 0 | M130: =IF(INTRO!$E$38="Endemic", IF($H130>0, IF($H130=4,"Unknown", IF($H130=99,"Stopped", $D130)), 0),"Not required") -> 207949 | N130: =IF(INTRO!$E$40="Endemic", IF($I130>0, IF($I130=4,"Unknown",IF($I130=99,"Stopped", $D130)), 0),"Not required") -> 207949 | O130: =IF(INTRO!$E$42="Endemic", IF(AND($J130>1,$J130<5), IF($J130=4, "Unknown", E130+F130), 0),"Not required") -> 97736 | P130: =IF(INTRO!$E$44="Endemic", IF(AND($K130>0,$K130<5), IF($K130=4,"Unknown", IF($K130=1, $F130*0.33, IF($K130=2, $F130*0.5+$G130*0.2, SUM(F130:G130)))), 0),"Not required") -> 0 | Q130: 1 | R130: 1 | S130: 1 | T130: 0 | U130: MDA1 (IVM+ALB) | Y130: 13968 | Z130: Banga Lubaka | AD130: ='MDA1'!K130 -> 66708 | AE130: ='MDA4'!K130 -> 0 | AF130: ='MDA3'!I130 -> 0 | AG130: ='T1'!M130 -> 0 | AH130: ='T2'!K130 -> 0 | AI130: =T3_R1!L130 -> 0 | AK130: ='MDA3'!L130 -> 0 | AN130: =_xlfn.XLOOKUP($Y130,[1]COUNTRY_INFO!$Y$9:$Y$527,[1]COUNTRY_INFO!D$9:D$527) -> 207319 | AO130: =_xlfn.XLOOKUP($Y130,[1]COUNTRY_INFO!$Y$9:$Y$527,[1]COUNTRY_INFO!E$9:E$527) -> 25085.559 | AP130: =_xlfn.XLOOKUP($Y130,[1]COUNTRY_INFO!$Y$9:$Y$527,[1]COUNTRY_INFO!F$9:F$527) -> 68634 | AQ130: =_xlfn.XLOOKUP($Y130,[1]COUNTRY_INFO!$Y$9:$Y$527,[1]COUNTRY_INFO!G$9:G$527) -> 105514 | AR130: 0.3038795286 | AS130: -0.5244411735 | AT130: 6.043651834 | AU130: -3.429876604 | AY130: 1 | AZ130: 1 | BA130: 3 | BB130: 0 | BC130: 0 | BD130: TRUE | BE130: TRUE | BF130: TRUE | BG130: TRUE | BH130: TRUE
A131: =IF(INTRO!$E$34<>0,INTRO!$E$34,"") -> DRC | B131: Kasai | C131: Bulape | D131: 232159 | E131: 27859 | F131: 81256 | G131: 113758 | H131: 0 | I131: 1 | J131: 2 | K131: 0 | L131: 0 | M131: =IF(INTRO!$E$38="Endemic", IF($H131>0, IF($H131=4,"Unknown", IF($H131=99,"Stopped", $D131)), 0),"Not required") -> 0 | N131: =IF(INTRO!$E$40="Endemic", IF($I131>0, IF($I131=4,"Unknown",IF($I131=99,"Stopped", $D131)), 0),"Not required") -> 232159 | O131: =IF(INTRO!$E$42="Endemic", IF(AND($J131>1,$J131<5), IF($J131=4, "Unknown", E131+F131), 0),"Not required") -> 109115 | P131: =IF(INTRO!$E$44="Endemic", IF(AND($K131>0,$K131<5), IF($K131=4,"Unknown", IF($K131=1, $F131*0.33, IF($K131=2, $F131*0.5+$G131*0.2, SUM(F131:G131)))), 0),"Not required") -> 0 | Q131: 0 | R131: 1 | S131: 1 | T131: 0 | U131: MDA3 (IVM) | V131: T3 (ALB/MBD) | Y131: 13972 | Z131: Bulape | AD131: ='MDA1'!K131 -> 0 | AE131: ='MDA4'!K131 -> 0 | AF131: ='MDA3'!I131 -> 79712 | AG131: ='T1'!M131 -> 0 | AH131: ='T2'!K131 -> 0 | AI131: =T3_R1!L131 -> 62052 | AK131: ='MDA3'!L131 -> 0 | AN131: =_xlfn.XLOOKUP($Y131,[1]COUNTRY_INFO!$Y$9:$Y$527,[1]COUNTRY_INFO!D$9:D$527) -> 218824 | AO131: =_xlfn.XLOOKUP($Y131,[1]COUNTRY_INFO!$Y$9:$Y$527,[1]COUNTRY_INFO!E$9:E$527) -> 26477.864 | AP131: =_xlfn.XLOOKUP($Y131,[1]COUNTRY_INFO!$Y$9:$Y$527,[1]COUNTRY_INFO!F$9:F$527) -> 76562 | AQ131: =_xlfn.XLOOKUP($Y131,[1]COUNTRY_INFO!$Y$9:$Y$527,[1]COUNTRY_INFO!G$9:G$527) -> 107250 | AR131: 6.093938508 | AS131: 5.216191155 | AT131: 6.130978815 | AU131: 6.068065268 | AY131: 0 | AZ131: 1 | BA131: 2 | BB131: 0 | BC131: 0 | BD131: TRUE | BE131: TRUE | BF131: TRUE | BG131: TRUE | BH131: TRUE
A132: =IF(INTRO!$E$34<>0,INTRO!$E$34,"") -> DRC | B132: Kasai | C132: Dekese | D132: 250463 | E132: 30055 | F132: 87662 | G132: 122727 | H132: 0 | I132: 1 | J132: 3 | K132: 0 | L132: 0 | M132: =IF(INTRO!$E$38="Endemic", IF($H132>0, IF($H132=4,"Unknown", IF($H132=99,"Stopped", $D132)), 0),"Not required") -> 0 | N132: =IF(INTRO!$E$40="Endemic", IF($I132>0, IF($I132=4,"Unknown",IF($I132=99,"Stopped", $D132)), 0),"Not required") -> 250463 | O132: =IF(INTRO!$E$42="Endemic", IF(AND($J132>1,$J132<5), IF($J132=4, "Unknown", E132+F132), 0),"Not required") -> 117717 | P132: =IF(INTRO!$E$44="Endemic", IF(AND($K132>0,$K132<5), IF($K132=4,"Unknown", IF($K132=1, $F132*0.33, IF($K132=2, $F132*0.5+$G132*0.2, SUM(F132:G132)))), 0),"Not required") -> 0 | Q132: 0 | R132: 1 | S132: 1 | T132: 0 | U132: MDA3 (IVM) | V132: T3 (ALB/MBD) | Y132: 13973 | Z132: Dekese | AD132: ='MDA1'!K132 -> 0 | AE132: ='MDA4'!K132 -> 0 | AF132: ='MDA3'!I132 -> 87342 | AG132: ='T1'!M132 -> 0 | AH132: ='T2'!K132 -> 0 | AI132: =T3_R1!L132 -> 68485 | AK132: ='MDA3'!L132 -> 0 | AN132: =_xlfn.XLOOKUP($Y132,[1]COUNTRY_INFO!$Y$9:$Y$527,[1]COUNTRY_INFO!D$9:D$527) -> 224802 | AO132: =_xlfn.XLOOKUP($Y132,[1]COUNTRY_INFO!$Y$9:$Y$527,[1]COUNTRY_INFO!E$9:E$527) -> 27200.722 | AP132: =_xlfn.XLOOKUP($Y132,[1]COUNTRY_INFO!$Y$9:$Y$527,[1]COUNTRY_INFO!F$9:F$527) -> 71939 | AQ132: =_xlfn.XLOOKUP($Y132,[1]COUNTRY_INFO!$Y$9:$Y$527,[1]COUNTRY_INFO!G$9:G$527) -> 116895 | AR132: 11.41493403 | AS132: 10.49339058 | AT132: 21.8560169 | AU132: 4.989092776 | AY132: 0 | AZ132: 1 | BA132: 3 | BB132: 0 | BC132: 0 | BD132: TRUE | BE132: TRUE | BF132: TRUE | BG132: TRUE | BH132: TRUE
A133: =IF(INTRO!$E$34<>0,INTRO!$E$34,"") -> DRC | B133: Kasai | C133: Ilebo | D133: 222661 | E133: 26719 | F133: 77931 | G133: 109104 | H133: 1 | I133: 1 | J133: 2 | K133: 0 | L133: 0 | M133: =IF(INTRO!$E$38="Endemic", IF($H133>0, IF($H133=4,"Unknown", IF($H133=99,"Stopped", $D133)), 0),"Not required") -> 222661 | N133: =IF(INTRO!$E$40="Endemic", IF($I133>0, IF($I133=4,"Unknown",IF($I133=99,"Stopped", $D133)), 0),"Not required") -> 222661 | O133: =IF(INTRO!$E$42="Endemic", IF(AND($J133>1,$J133<5), IF($J133=4, "Unknown", E133+F133), 0),"Not required") -> 104650 | P133: =IF(INTRO!$E$44="Endemic", IF(AND($K133>0,$K133<5), IF($K133=4,"Unknown", IF($K133=1, $F133*0.33, IF($K133=2, $F133*0.5+$G133*0.2, SUM(F133:G133)))), 0),"Not required") -> 0 | Q133: 1 | R133: 1 | S133: 1 | T133: 0 | U133: MDA1 (IVM+ALB) | Y133: 13976 | Z133: Ilebo | AD133: ='MDA1'!K133 -> 71614 | AE133: ='MDA4'!K133 -> 0 | AF133: ='MDA3'!I133 -> 0 | AG133: ='T1'!M133 -> 0 | AH133: ='T2'!K133 -> 0 | AI133: =T3_R1!L133 -> 0 | AK133: ='MDA3'!L133 -> 0 | AN133: =_xlfn.XLOOKUP($Y133,[1]COUNTRY_INFO!$Y$9:$Y$527,[1]COUNTRY_INFO!D$9:D$527) -> 221701 | AO133: =_xlfn.XLOOKUP($Y133,[1]COUNTRY_INFO!$Y$9:$Y$527,[1]COUNTRY_INFO!E$9:E$527) -> 26825.661 | AP133: =_xlfn.XLOOKUP($Y133,[1]COUNTRY_INFO!$Y$9:$Y$527,[1]COUNTRY_INFO!F$9:F$527) -> 73780 | AQ133: =_xlfn.XLOOKUP($Y133,[1]COUNTRY_INFO!$Y$9:$Y$527,[1]COUNTRY_INFO!G$9:G$527) -> 112449 | AR133: 0.4330156382 | AS133: -0.3976080962 | AT133: 5.626185958 | AU133: -2.974681856 | AY133: 1 | AZ133: 1 | BA133: 2 | BB133: 0 | BC133: 0 | BD133: TRUE | BE133: TRUE | BF133: TRUE | BG133: TRUE | BH133: TRUE
A134: =IF(INTRO!$E$34<>0,INTRO!$E$34,"") -> DRC | B134: Kasai | C134: Kakenge | D134: 204117 | E134: 24494 | F134: 71441 | G134: 100017 | H134: 0 | I134: 1 | J134: 2 | K134: 0 | L134: 0 | M134: =IF(INTRO!$E$38="Endemic", IF($H134>0, IF($H134=4,"Unknown", IF($H134=99,"Stopped", $D134)), 0),"Not required") -> 0 | N134: =IF(INTRO!$E$40="Endemic", IF($I134>0, IF($I134=4,"Unknown",IF($I134=99,"Stopped", $D134)), 0),"Not required") -> 204117 | O134: =IF(INTRO!$E$42="Endemic", IF(AND($J134>1,$J134<5), IF($J134=4, "Unknown", E134+F134), 0),"Not required") -> 95935 | P134: =IF(INTRO!$E$44="Endemic", IF(AND($K134>0,$K134<5), IF($K134=4,"Unknown", IF($K134=1, $F134*0.33, IF($K134=2, $F134*0.5+$G134*0.2, SUM(F134:G134)))), 0),"Not required") -> 0 | Q134: 0 | R134: 1 | S134: 1 | T134: 0 | U134: MDA3 (IVM) | V134: T3 (ALB/MBD) | Y134: 13977 | Z134: Kakenge | AD134: ='MDA1'!K134 -> 0 | AE134: ='MDA4'!K134 -> 0 | AF134: ='MDA3'!I134 -> 65222 | AG134: ='T1'!M134 -> 0 | AH134: ='T2'!K134 -> 0 | AI134: =T3_R1!L134 -> 62546 | AK134: ='MDA3'!L134 -> 0 | AN134: =_xlfn.XLOOKUP($Y134,[1]COUNTRY_INFO!$Y$9:$Y$527,[1]COUNTRY_INFO!D$9:D$527) -> 200252 | AO134: =_xlfn.XLOOKUP($Y134,[1]COUNTRY_INFO!$Y$9:$Y$527,[1]COUNTRY_INFO!E$9:E$527) -> 24230.172 | AP134: =_xlfn.XLOOKUP($Y134,[1]COUNTRY_INFO!$Y$9:$Y$527,[1]COUNTRY_INFO!F$9:F$527) -> 59759 | AQ134: =_xlfn.XLOOKUP($Y134,[1]COUNTRY_INFO!$Y$9:$Y$527,[1]COUNTRY_INFO!G$9:G$527) -> 108453 | AR134: 1.930068114 | AS134: 1.088840806 | AT134: 19.54851989 | AU134: -7.778484689 | AY134: 0 | AZ134: 1 | BA134: 2 | BB134: 0 | BC134: 0 | BD134: TRUE | BE134: TRUE | BF134: TRUE | BG134: TRUE | BH134: TRUE
A135: =IF(INTRO!$E$34<>0,INTRO!$E$34,"") -> DRC | B135: Kasai | C135: Kalonda | D135: 464560 | E135: 55748 | F135: 162596 | G135: 227634.4 | H135: 0 | I135: 1 | J135: 1 | K135: 0 | L135: 0 | M135: =IF(INTRO!$E$38="Endemic", IF($H135>0, IF($H135=4,"Unknown", IF($H135=99,"Stopped", $D135)), 0),"Not required") -> 0 | N135: =IF(INTRO!$E$40="Endemic", IF($I135>0, IF($I135=4,"Unknown",IF($I135=99,"Stopped", $D135)), 0),"Not required") -> 464560 | O135: =IF(INTRO!$E$42="Endemic", IF(AND($J135>1,$J135<5), IF($J135=4, "Unknown", E135+F135), 0),"Not required") -> 0 | P135: =IF(INTRO!$E$44="Endemic", IF(AND($K135>0,$K135<5), IF($K135=4,"Unknown", IF($K135=1, $F135*0.33, IF($K135=2, $F135*0.5+$G135*0.2, SUM(F135:G135)))), 0),"Not required") -> 0 | Q135: 0 | R135: 1 | S135: 0 | T135: 0 | U135: MDA3 (IVM) | Y135: 13978 | Z135: Kalonda | AD135: ='MDA1'!K135 -> 0 | AE135: ='MDA4'!K135 -> 0 | AF135: ='MDA3'!I135 -> 159829 | AG135: ='T1'!M135 -> 0 | AH135: ='T2'!K135 -> 0 | AI135: =T3_R1!L135 -> 0 | AK135: ='MDA3'!L135 -> 0 | AN135: =_xlfn.XLOOKUP($Y135,[1]COUNTRY_INFO!$Y$9:$Y$527,[1]COUNTRY_INFO!D$9:D$527) -> 456660 | AO135: =_xlfn.XLOOKUP($Y135,[1]COUNTRY_INFO!$Y$9:$Y$527,[1]COUNTRY_INFO!E$9:E$527) -> 55255.86 | AP135: =_xlfn.XLOOKUP($Y135,[1]COUNTRY_INFO!$Y$9:$Y$527,[1]COUNTRY_INFO!F$9:F$527) -> 164946 | AQ135: =_xlfn.XLOOKUP($Y135,[1]COUNTRY_INFO!$Y$9:$Y$527,[1]COUNTRY_INFO!G$9:G$527) -> 218648.4 | AR135: 1.729952262 | AS135: 0.8906566652 | AT135: -1.424708693 | AU135: 4.109794538 | AY135: 0 | AZ135: 1 | BA135: 1 | BB135: 0 | BC135: 0 | BD135: TRUE | BE135: TRUE | BF135: TRUE | BG135: TRUE | BH135: TRUE
A136: =IF(INTRO!$E$34<>0,INTRO!$E$34,"") -> DRC | B136: Kasai | C136: Kamonya | D136: 503318 | E136: 64173 | F136: 176161 | G136: 241593 | H136: 1 | I136: 1 | J136: 1 | K136: 0 | L136: 0 | M136: =IF(INTRO!$E$38="Endemic", IF($H136>0, IF($H136=4,"Unknown", IF($H136=99,"Stopped", $D136)), 0),"Not required") -> 503318 | N136: =IF(INTRO!$E$40="Endemic", IF($I136>0, IF($I136=4,"Unknown",IF($I136=99,"Stopped", $D136)), 0),"Not required") -> 503318 | O136: =IF(INTRO!$E$42="Endemic", IF(AND($J136>1,$J136<5), IF($J136=4, "Unknown", E136+F136), 0),"Not required") -> 0 | P136: =IF(INTRO!$E$44="Endemic", IF(AND($K136>0,$K136<5), IF($K136=4,"Unknown", IF($K136=1, $F136*0.33, IF($K136=2, $F136*0.5+$G136*0.2, SUM(F136:G136)))), 0),"Not required") -> 0 | Q136: 1 | R136: 1 | S136: 0 | T136: 0 | U136: MDA1 (IVM+ALB) | Y136: 14340 | Z136: Kamonya | AD136: ='MDA1'!K136 -> 172185 | AE136: ='MDA4'!K136 -> 0 | AF136: ='MDA3'!I136 -> 0 | AG136: ='T1'!M136 -> 0 | AH136: ='T2'!K136 -> 0 | AI136: =T3_R1!L136 -> 0 | AK136: ='MDA3'!L136 -> 0 | AN136: =_xlfn.XLOOKUP($Y136,[1]COUNTRY_INFO!$Y$9:$Y$527,[1]COUNTRY_INFO!D$9:D$527) -> 476817 | AO136: =_xlfn.XLOOKUP($Y136,[1]COUNTRY_INFO!$Y$9:$Y$527,[1]COUNTRY_INFO!E$9:E$527) -> 62463.137 | AP136: =_xlfn.XLOOKUP($Y136,[1]COUNTRY_INFO!$Y$9:$Y$527,[1]COUNTRY_INFO!F$9:F$527) -> 170176 | AQ136: =_xlfn.XLOOKUP($Y136,[1]COUNTRY_INFO!$Y$9:$Y$527,[1]COUNTRY_INFO!G$9:G$527) -> 225582 | AR136: 5.557897474 | AS136: 2.737395338 | AT136: 3.516947161 | AU136: 7.097640769 | AY136: 1 | AZ136: 1 | BA136: 1 | BB136: 0 | BC136: 0 | BD136: TRUE | BE136: TRUE | BF136: TRUE | BG136: TRUE | BH136: TRUE
A137: =IF(INTRO!$E$34<>0,INTRO!$E$34,"") -> DRC | B137: Kasai | C137: Kamwesha | D137: 563809 | E137: 71886 | F137: 197333 | G137: 270628 | H137: 1 | I137: 1 | J137: 1 | K137: 0 | L137: 0 | M137: =IF(INTRO!$E$38="Endemic", IF($H137>0, IF($H137=4,"Unknown", IF($H137=99,"Stopped", $D137)), 0),"Not required") -> 563809 | N137: =IF(INTRO!$E$40="Endemic", IF($I137>0, IF($I137=4,"Unknown",IF($I137=99,"Stopped", $D137)), 0),"Not required") -> 563809 | O137: =IF(INTRO!$E$42="Endemic", IF(AND($J137>1,$J137<5), IF($J137=4, "Unknown", E137+F137), 0),"Not required") -> 0 | P137: =IF(INTRO!$E$44="Endemic", IF(AND($K137>0,$K137<5), IF($K137=4,"Unknown", IF($K137=1, $F137*0.33, IF($K137=2, $F137*0.5+$G137*0.2, SUM(F137:G137)))), 0),"Not required") -> 0 | Q137: 1 | R137: 1 | S137: 0 | T137: 0 | U137: MDA1 (IVM+ALB) | Y137: 13979 | Z137: Kamwesha | AD137: ='MDA1'!K137 -> 196325 | AE137: ='MDA4'!K137 -> 0 | AF137: ='MDA3'!I137 -> 0 | AG137: ='T1'!M137 -> 0 | AH137: ='T2'!K137 -> 0 | AI137: =T3_R1!L137 -> 0 | AK137: ='MDA3'!L137 -> 0 | AN137: =_xlfn.XLOOKUP($Y137,[1]COUNTRY_INFO!$Y$9:$Y$527,[1]COUNTRY_INFO!D$9:D$527) -> 521831 | AO137: =_xlfn.XLOOKUP($Y137,[1]COUNTRY_INFO!$Y$9:$Y$527,[1]COUNTRY_INFO!E$9:E$527) -> 68359.591 | AP137: =_xlfn.XLOOKUP($Y137,[1]COUNTRY_INFO!$Y$9:$Y$527,[1]COUNTRY_INFO!F$9:F$527) -> 186242 | AQ137: =_xlfn.XLOOKUP($Y137,[1]COUNTRY_INFO!$Y$9:$Y$527,[1]COUNTRY_INFO!G$9:G$527) -> 246878 | AR137: 8.044366854 | AS137: 5.158616294 | AT137: 5.955155121 | AU137: 9.620136262 | AY137: 1 | AZ137: 1 | BA137: 1 | BB137: 0 | BC137: 0 | BD137: TRUE | BE137: TRUE | BF137: TRUE | BG137: TRUE | BH137: TRUE
A138: =IF(INTRO!$E$34<>0,INTRO!$E$34,"") -> DRC | B138: Kasai | C138: Kanzala | D138: 355580 | E138: 42670 | F138: 124453 | G138: 174234.2 | H138: 0 | I138: 1 | J138: 1 | K138: 0 | L138: 0 | M138: =IF(INTRO!$E$38="Endemic", IF($H138>0, IF($H138=4,"Unknown", IF($H138=99,"Stopped", $D138)), 0),"Not required") -> 0 | N138: =IF(INTRO!$E$40="Endemic", IF($I138>0, IF($I138=4,"Unknown",IF($I138=99,"Stopped", $D138)), 0),"Not required") -> 355580 | O138: =IF(INTRO!$E$42="Endemic", IF(AND($J138>1,$J138<5), IF($J138=4, "Unknown", E138+F138), 0),"Not required") -> 0 | P138: =IF(INTRO!$E$44="Endemic", IF(AND($K138>0,$K138<5), IF($K138=4,"Unknown", IF($K138=1, $F138*0.33, IF($K138=2, $F138*0.5+$G138*0.2, SUM(F138:G138)))), 0),"Not required") -> 0 | Q138: 0 | R138: 1 | S138: 0 | T138: 0 | U138: MDA3 (IVM) | Y138: 13981 | Z138: Kanzala | AD138: ='MDA1'!K138 -> 0 | AE138: ='MDA4'!K138 -> 0 | AF138: ='MDA3'!I138 -> 124431 | AG138: ='T1'!M138 -> 0 | AH138: ='T2'!K138 -> 0 | AI138: =T3_R1!L138 -> 0 | AK138: ='MDA3'!L138 -> 0 | AN138: =_xlfn.XLOOKUP($Y138,[1]COUNTRY_INFO!$Y$9:$Y$527,[1]COUNTRY_INFO!D$9:D$527) -> 293196 | AO138: =_xlfn.XLOOKUP($Y138,[1]COUNTRY_INFO!$Y$9:$Y$527,[1]COUNTRY_INFO!E$9:E$527) -> 35476.716 | AP138: =_xlfn.XLOOKUP($Y138,[1]COUNTRY_INFO!$Y$9:$Y$527,[1]COUNTRY_INFO!F$9:F$527) -> 105902 | AQ138: =_xlfn.XLOOKUP($Y138,[1]COUNTRY_INFO!$Y$9:$Y$527,[1]COUNTRY_INFO!G$9:G$527) -> 140382.64 | AR138: =(D138-AN138)/AN138*100 -> 21.27723434 | AS138: =(E138-AO138)/AO138*100 -> 20.27607065 | AT138: =(F138-AP138)/AP138*100 -> 17.51713849 | AU138: =(G138-AQ138)/AQ138*100 -> 24.11377931 | AV138: pb | AY138: 0 | AZ138: 1 | BA138: 1 | BB138: 0 | BC138: 0 | BD138: =AY138=H138 -> TRUE | BE138: =AZ138=I138 -> TRUE | BF138: =BA138=J138 -> TRUE | BG138: =BB138=K138 -> TRUE | BH138: =BC138=L138 -> TRUE
A139: =IF(INTRO!$E$34<>0,INTRO!$E$34,"") -> DRC | B139: Kasai | C139: Kitangwa | D139: 339807 | E139: 43325 | F139: 118932 | G139: 163108 | H139: 1 | I139: 1 | J139: 1 | K139: 0 | L139: 0 | M139: =IF(INTRO!$E$38="Endemic", IF($H139>0, IF($H139=4,"Unknown", IF($H139=99,"Stopped", $D139)), 0),"Not required") -> 339807 | N139: =IF(INTRO!$E$40="Endemic", IF($I139>0, IF($I139=4,"Unknown",IF($I139=99,"Stopped", $D139)), 0),"Not required") -> 339807 | O139: =IF(INTRO!$E$42="Endemic", IF(AND($J139>1,$J139<5), IF($J139=4, "Unknown", E139+F139), 0),"Not required") -> 0 | P139: =IF(INTRO!$E$44="Endemic", IF(AND($K139>0,$K139<5), IF($K139=4,"Unknown", IF($K139=1, $F139*0.33, IF($K139=2, $F139*0.5+$G139*0.2, SUM(F139:G139)))), 0),"Not required") -> 0 | Q139: 1 | R139: 1 | S139: 0 | T139: 0 | U139: MDA1 (IVM+ALB) | Y139: 13985 | Z139: Kitangwa | AD139: ='MDA1'!K139 -> 118730 | AE139: ='MDA4'!K139 -> 0 | AF139: ='MDA3'!I139 -> 0 | AG139: ='T1'!M139 -> 0 | AH139: ='T2'!K139 -> 0 | AI139: =T3_R1!L139 -> 0 | AK139: ='MDA3'!L139 -> 0 | AN139: =_xlfn.XLOOKUP($Y139,[1]COUNTRY_INFO!$Y$9:$Y$527,[1]COUNTRY_INFO!D$9:D$527) -> 308693 | AO139: =_xlfn.XLOOKUP($Y139,[1]COUNTRY_INFO!$Y$9:$Y$527,[1]COUNTRY_INFO!E$9:E$527) -> 40438.973 | AP139: =_xlfn.XLOOKUP($Y139,[1]COUNTRY_INFO!$Y$9:$Y$527,[1]COUNTRY_INFO!F$9:F$527) -> 110172 | AQ139: =_xlfn.XLOOKUP($Y139,[1]COUNTRY_INFO!$Y$9:$Y$527,[1]COUNTRY_INFO!G$9:G$527) -> 146043 | AR139: 10.0792697 | AS139: 7.136746524 | AT139: 7.951203573 | AU139: 11.68491472 | AY139: 1 | AZ139: 1 | BA139: 1 | BB139: 0 | BC139: 0 | BD139: TRUE | BE139: TRUE | BF139: TRUE | BG139: TRUE | BH139: TRUE
A140: =IF(INTRO!$E$34<>0,INTRO!$E$34,"") -> DRC | B140: Kasai | C140: Luebo | D140: 312766 | E140: 37532 | F140: 109468 | G140: 153255 | H140: 1 | I140: 1 | J140: 3 | K140: 1 | L140: 0 | M140: =IF(INTRO!$E$38="Endemic", IF($H140>0, IF($H140=4,"Unknown", IF($H140=99,"Stopped", $D140)), 0),"Not required") -> 312766 | N140: =IF(INTRO!$E$40="Endemic", IF($I140>0, IF($I140=4,"Unknown",IF($I140=99,"Stopped", $D140)), 0),"Not required") -> 312766 | O140: =IF(INTRO!$E$42="Endemic", IF(AND($J140>1,$J140<5), IF($J140=4, "Unknown", E140+F140), 0),"Not required") -> 147000 | P140: =IF(INTRO!$E$44="Endemic", IF(AND($K140>0,$K140<5), IF($K140=4,"Unknown", IF($K140=1, $F140*0.33, IF($K140=2, $F140*0.5+$G140*0.2, SUM(F140:G140)))), 0),"Not required") -> 36124.44 | Q140: 1 | R140: 1 | S140: 1 | T140: 0 | U140: MDA1 (IVM+ALB) | Y140: 13989 | Z140: Luebo | AD140: ='MDA1'!K140 -> 103294 | AE140: ='MDA4'!K140 -> 0 | AF140: ='MDA3'!I140 -> 0 | AG140: ='T1'!M140 -> 0 | AH140: ='T2'!K140 -> 0 | AI140: =T3_R1!L140 -> 0 | AK140: ='MDA3'!L140 -> 0 | AN140: =_xlfn.XLOOKUP($Y140,[1]COUNTRY_INFO!$Y$9:$Y$527,[1]COUNTRY_INFO!D$9:D$527) -> 314189 | AO140: =_xlfn.XLOOKUP($Y140,[1]COUNTRY_INFO!$Y$9:$Y$527,[1]COUNTRY_INFO!E$9:E$527) -> 38016.629 | AP140: =_xlfn.XLOOKUP($Y140,[1]COUNTRY_INFO!$Y$9:$Y$527,[1]COUNTRY_INFO!F$9:F$527) -> 109966 | AQ140: =_xlfn.XLOOKUP($Y140,[1]COUNTRY_INFO!$Y$9:$Y$527,[1]COUNTRY_INFO!G$9:G$527) -> 153953 | AR140: -0.4529121007 | AS140: -1.274781623 | AT140: -0.4528672499 | AU140: -0.453385124 | AY140: 1 | AZ140: 1 | BA140: 3 | BB140: 1 | BC140: 0 | BD140: TRUE | BE140: TRUE | BF140: TRUE | BG140: TRUE | BH140: TRUE
A141: =IF(INTRO!$E$34<>0,INTRO!$E$34,"") -> DRC | B141: Kasai | C141: Mikope | D141: 213495 | E141: 25619 | F141: 74723 | G141: 104613 | H141: 1 | I141: 1 | J141: 3 | K141: 0 | L141: 0 | M141: =IF(INTRO!$E$38="Endemic", IF($H141>0, IF($H141=4,"Unknown", IF($H141=99,"Stopped", $D141)), 0),"Not required") -> 213495 | N141: =IF(INTRO!$E$40="Endemic", IF($I141>0, IF($I141=4,"Unknown",IF($I141=99,"Stopped", $D141)), 0),"Not required") -> 213495 | O141: =IF(INTRO!$E$42="Endemic", IF(AND($J141>1,$J141<5), IF($J141=4, "Unknown", E141+F141), 0),"Not required") -> 100342 | P141: =IF(INTRO!$E$44="Endemic", IF(AND($K141>0,$K141<5), IF($K141=4,"Unknown", IF($K141=1, $F141*0.33, IF($K141=2, $F141*0.5+$G141*0.2, SUM(F141:G141)))), 0),"Not required") -> 0 | Q141: 1 | R141: 1 | S141: 1 | T141: 0 | U141: MDA1 (IVM+ALB) | Y141: 13994 | Z141: Mikope | AD141: ='MDA1'!K141 -> 70833 | AE141: ='MDA4'!K141 -> 0 | AF141: ='MDA3'!I141 -> 0 | AG141: ='T1'!M141 -> 0 | AH141: ='T2'!K141 -> 0 | AI141: =T3_R1!L141 -> 0 | AK141: ='MDA3'!L141 -> 0 | AN141: =_xlfn.XLOOKUP($Y141,[1]COUNTRY_INFO!$Y$9:$Y$527,[1]COUNTRY_INFO!D$9:D$527) -> 234884 | AO141: =_xlfn.XLOOKUP($Y141,[1]COUNTRY_INFO!$Y$9:$Y$527,[1]COUNTRY_INFO!E$9:E$527) -> 28420.524 | AP141: =_xlfn.XLOOKUP($Y141,[1]COUNTRY_INFO!$Y$9:$Y$527,[1]COUNTRY_INFO!F$9:F$527) -> 67865 | AQ141: =_xlfn.XLOOKUP($Y141,[1]COUNTRY_INFO!$Y$9:$Y$527,[1]COUNTRY_INFO!G$9:G$527) -> 129438 | AR141: -9.106197102 | AS141: -9.857397422 | AT141: 10.10535622 | AU141: -19.17906643 | AY141: 1 | AZ141: 1 | BA141: 3 | BB141: 0 | BC141: 0 | BD141: TRUE | BE141: TRUE | BF141: TRUE | BG141: TRUE | BH141: TRUE
A142: =IF(INTRO!$E$34<>0,INTRO!$E$34,"") -> DRC | B142: Kasai | C142: Mushenge | D142: 223045 | E142: 26765 | F142: 78066 | G142: 109292 | H142: 1 | I142: 1 | J142: 3 | K142: 0 | L142: 0 | M142: =IF(INTRO!$E$38="Endemic", IF($H142>0, IF($H142=4,"Unknown", IF($H142=99,"Stopped", $D142)), 0),"Not required") -> 223045 | N142: =IF(INTRO!$E$40="Endemic", IF($I142>0, IF($I142=4,"Unknown",IF($I142=99,"Stopped", $D142)), 0),"Not required") -> 223045 | O142: =IF(INTRO!$E$42="Endemic", IF(AND($J142>1,$J142<5), IF($J142=4, "Unknown", E142+F142), 0),"Not required") -> 104831 | P142: =IF(INTRO!$E$44="Endemic", IF(AND($K142>0,$K142<5), IF($K142=4,"Unknown", IF($K142=1, $F142*0.33, IF($K142=2, $F142*0.5+$G142*0.2, SUM(F142:G142)))), 0),"Not required") -> 0 | Q142: 1 | R142: 1 | S142: 1 | T142: 0 | U142: MDA1 (IVM+ALB) | Y142: 13995 | Z142: Mushenge | AD142: ='MDA1'!K142 -> 76981 | AE142: ='MDA4'!K142 -> 0 | AF142: ='MDA3'!I142 -> 0 | AG142: ='T1'!M142 -> 0 | AH142: ='T2'!K142 -> 0 | AI142: =T3_R1!L142 -> 0 | AK142: ='MDA3'!L142 -> 0 | AN142: =_xlfn.XLOOKUP($Y142,[1]COUNTRY_INFO!$Y$9:$Y$527,[1]COUNTRY_INFO!D$9:D$527) -> 202525 | AO142: =_xlfn.XLOOKUP($Y142,[1]COUNTRY_INFO!$Y$9:$Y$527,[1]COUNTRY_INFO!E$9:E$527) -> 24505.525 | AP142: =_xlfn.XLOOKUP($Y142,[1]COUNTRY_INFO!$Y$9:$Y$527,[1]COUNTRY_INFO!F$9:F$527) -> 66624 | AQ142: =_xlfn.XLOOKUP($Y142,[1]COUNTRY_INFO!$Y$9:$Y$527,[1]COUNTRY_INFO!G$9:G$527) -> 103497 | AR142: 10.13208246 | AS142: 9.220267674 | AT142: 17.17399135 | AU142: 5.599196112 | AY142: 1 | AZ142: 1 | BA142: 3 | BB142: 0 | BC142: 0 | BD142: TRUE | BE142: TRUE | BF142: TRUE | BG142: TRUE | BH142: TRUE
A143: =IF(INTRO!$E$34<>0,INTRO!$E$34,"") -> DRC | B143: Kasai | C143: Mutenna | D143: 338743 | E143: 43189 | F143: 118560 | G143: 162597 | H143: 1 | I143: 1 | J143: 1 | K143: 0 | L143: 0 | M143: =IF(INTRO!$E$38="Endemic", IF($H143>0, IF($H143=4,"Unknown", IF($H143=99,"Stopped", $D143)), 0),"Not required") -> 338743 | N143: =IF(INTRO!$E$40="Endemic", IF($I143>0, IF($I143=4,"Unknown",IF($I143=99,"Stopped", $D143)), 0),"Not required") -> 338743 | O143: =IF(INTRO!$E$42="Endemic", IF(AND($J143>1,$J143<5), IF($J143=4, "Unknown", E143+F143), 0),"Not required") -> 0 | P143: =IF(INTRO!$E$44="Endemic", IF(AND($K143>0,$K143<5), IF($K143=4,"Unknown", IF($K143=1, $F143*0.33, IF($K143=2, $F143*0.5+$G143*0.2, SUM(F143:G143)))), 0),"Not required") -> 0 | Q143: 1 | R143: 1 | S143: 0 | T143: 0 | U143: MDA1 (IVM+ALB) | Y143: 13997 | Z143: Mutenna | AD143: ='MDA1'!K143 -> 116227 | AE143: ='MDA4'!K143 -> 0 | AF143: ='MDA3'!I143 -> 0 | AG143: ='T1'!M143 -> 0 | AH143: ='T2'!K143 -> 0 | AI143: =T3_R1!L143 -> 0 | AK143: ='MDA3'!L143 -> 0 | AN143: =_xlfn.XLOOKUP($Y143,[1]COUNTRY_INFO!$Y$9:$Y$527,[1]COUNTRY_INFO!D$9:D$527) -> 340890 | AO143: =_xlfn.XLOOKUP($Y143,[1]COUNTRY_INFO!$Y$9:$Y$527,[1]COUNTRY_INFO!E$9:E$527) -> 44656.29 | AP143: =_xlfn.XLOOKUP($Y143,[1]COUNTRY_INFO!$Y$9:$Y$527,[1]COUNTRY_INFO!F$9:F$527) -> 121664 | AQ143: =_xlfn.XLOOKUP($Y143,[1]COUNTRY_INFO!$Y$9:$Y$527,[1]COUNTRY_INFO!G$9:G$527) -> 161275 | AR143: -0.6298219367 | AS143: -3.285740934 | AT143: -2.551288795 | AU143: 0.8197178732 | AY143: 1 | AZ143: 1 | BA143: 1 | BB143: 0 | BC143: 0 | BD143: TRUE | BE143: TRUE | BF143: TRUE | BG143: TRUE | BH143: TRUE
A144: =IF(INTRO!$E$34<>0,INTRO!$E$34,"") -> DRC | B144: Kasai | C144: Mweka | D144: 277942 | E144: 33353 | F144: 97280 | G144: 136191 | H144: 0 | I144: 1 | J144: 2 | K144: 0 | L144: 0 | M144: =IF(INTRO!$E$38="Endemic", IF($H144>0, IF($H144=4,"Unknown", IF($H144=99,"Stopped", $D144)), 0),"Not required") -> 0 | N144: =IF(INTRO!$E$40="Endemic", IF($I144>0, IF($I144=4,"Unknown",IF($I144=99,"Stopped", $D144)), 0),"Not required") -> 277942 | O144: =IF(INTRO!$E$42="Endemic", IF(AND($J144>1,$J144<5), IF($J144=4, "Unknown", E144+F144), 0),"Not required") -> 130633 | P144: =IF(INTRO!$E$44="Endemic", IF(AND($K144>0,$K144<5), IF($K144=4,"Unknown", IF($K144=1, $F144*0.33, IF($K144=2, $F144*0.5+$G144*0.2, SUM(F144:G144)))), 0),"Not required") -> 0 | Q144: 0 | R144: 1 | S144: 1 | T144: 0 | U144: MDA3 (IVM) | V144: T3 (ALB/MBD) | Y144: 13999 | Z144: Mweka | AD144: ='MDA1'!K144 -> 0 | AE144: ='MDA4'!K144 -> 0 | AF144: ='MDA3'!I144 -> 85484 | AG144: ='T1'!M144 -> 0 | AH144: ='T2'!K144 -> 0 | AI144: =T3_R1!L144 -> 85484 | AK144: ='MDA3'!L144 -> 0 | AN144: =_xlfn.XLOOKUP($Y144,[1]COUNTRY_INFO!$Y$9:$Y$527,[1]COUNTRY_INFO!D$9:D$527) -> 288099 | AO144: =_xlfn.XLOOKUP($Y144,[1]COUNTRY_INFO!$Y$9:$Y$527,[1]COUNTRY_INFO!E$9:E$527) -> 34860.139 | AP144: =_xlfn.XLOOKUP($Y144,[1]COUNTRY_INFO!$Y$9:$Y$527,[1]COUNTRY_INFO!F$9:F$527) -> 84562 | AQ144: =_xlfn.XLOOKUP($Y144,[1]COUNTRY_INFO!$Y$9:$Y$527,[1]COUNTRY_INFO!G$9:G$527) -> 157441 | AR144: -3.525524212 | AS144: -4.32338781 | AT144: 15.03985242 | AU144: -13.49711956 | AY144: 0 | AZ144: 1 | BA144: 2 | BB144: 0 | BC144: 0 | BD144: TRUE | BE144: TRUE | BF144: TRUE | BG144: TRUE | BH144: TRUE
A145: =IF(INTRO!$E$34<>0,INTRO!$E$34,"") -> DRC | B145: Kasai | C145: Ndjoko Punda | D145: 203618 | E145: 24434 | F145: 71266 | G145: 99773 | H145: 1 | I145: 1 | J145: 3 | K145: 0 | L145: 0 | M145: =IF(INTRO!$E$38="Endemic", IF($H145>0, IF($H145=4,"Unknown", IF($H145=99,"Stopped", $D145)), 0),"Not required") -> 203618 | N145: =IF(INTRO!$E$40="Endemic", IF($I145>0, IF($I145=4,"Unknown",IF($I145=99,"Stopped", $D145)), 0),"Not required") -> 203618 | O145: =IF(INTRO!$E$42="Endemic", IF(AND($J145>1,$J145<5), IF($J145=4, "Unknown", E145+F145), 0),"Not required") -> 95700 | P145: =IF(INTRO!$E$44="Endemic", IF(AND($K145>0,$K145<5), IF($K145=4,"Unknown", IF($K145=1, $F145*0.33, IF($K145=2, $F145*0.5+$G145*0.2, SUM(F145:G145)))), 0),"Not required") -> 0 | Q145: 1 | R145: 1 | S145: 1 | T145: 0 | U145: MDA1 (IVM+ALB) | Y145: 14003 | Z145: Ndjoko Punda | AD145: ='MDA1'!K145 -> 68598 | AE145: ='MDA4'!K145 -> 0 | AF145: ='MDA3'!I145 -> 0 | AG145: ='T1'!M145 -> 0 | AH145: ='T2'!K145 -> 0 | AI145: =T3_R1!L145 -> 0 | AK145: ='MDA3'!L145 -> 0 | AN145: =_xlfn.XLOOKUP($Y145,[1]COUNTRY_INFO!$Y$9:$Y$527,[1]COUNTRY_INFO!D$9:D$527) -> 199342 | AO145: =_xlfn.XLOOKUP($Y145,[1]COUNTRY_INFO!$Y$9:$Y$527,[1]COUNTRY_INFO!E$9:E$527) -> 24120.662 | AP145: =_xlfn.XLOOKUP($Y145,[1]COUNTRY_INFO!$Y$9:$Y$527,[1]COUNTRY_INFO!F$9:F$527) -> 69861 | AQ145: =_xlfn.XLOOKUP($Y145,[1]COUNTRY_INFO!$Y$9:$Y$527,[1]COUNTRY_INFO!G$9:G$527) -> 97586 | AR145: 2.145057238 | AS145: 1.299043948 | AT145: 2.011136399 | AU145: 2.241100158 | AY145: 1 | AZ145: 1 | BA145: 3 | BB145: 0 | BC145: 0 | BD145: TRUE | BE145: TRUE | BF145: TRUE | BG145: TRUE | BH145: TRUE
A146: =IF(INTRO!$E$34<>0,INTRO!$E$34,"") -> DRC | B146: Kasai | C146: Nyanga | D146: 158460 | E146: 20203 | F146: 55461 | G146: 76061 | H146: 1 | I146: 1 | J146: 1 | K146: 0 | L146: 0 | M146: =IF(INTRO!$E$38="Endemic", IF($H146>0, IF($H146=4,"Unknown", IF($H146=99,"Stopped", $D146)), 0),"Not required") -> 158460 | N146: =IF(INTRO!$E$40="Endemic", IF($I146>0, IF($I146=4,"Unknown",IF($I146=99,"Stopped", $D146)), 0),"Not required") -> 158460 | O146: =IF(INTRO!$E$42="Endemic", IF(AND($J146>1,$J146<5), IF($J146=4, "Unknown", E146+F146), 0),"Not required") -> 0 | P146: =IF(INTRO!$E$44="Endemic", IF(AND($K146>0,$K146<5), IF($K146=4,"Unknown", IF($K146=1, $F146*0.33, IF($K146=2, $F146*0.5+$G146*0.2, SUM(F146:G146)))), 0),"Not required") -> 0 | Q146: 1 | R146: 1 | S146: 0 | T146: 0 | U146: MDA1 (IVM+ALB) | Y146: 14004 | Z146: Nyanga | AD146: ='MDA1'!K146 -> 54352 | AE146: ='MDA4'!K146 -> 0 | AF146: ='MDA3'!I146 -> 0 | AG146: ='T1'!M146 -> 0 | AH146: ='T2'!K146 -> 0 | AI146: =T3_R1!L146 -> 0 | AK146: ='MDA3'!L146 -> 0 | AN146: =_xlfn.XLOOKUP($Y146,[1]COUNTRY_INFO!$Y$9:$Y$527,[1]COUNTRY_INFO!D$9:D$527) -> 146237 | AO146: =_xlfn.XLOOKUP($Y146,[1]COUNTRY_INFO!$Y$9:$Y$527,[1]COUNTRY_INFO!E$9:E$527) -> 19156.757 | AP146: =_xlfn.XLOOKUP($Y146,[1]COUNTRY_INFO!$Y$9:$Y$527,[1]COUNTRY_INFO!F$9:F$527) -> 52192 | AQ146: =_xlfn.XLOOKUP($Y146,[1]COUNTRY_INFO!$Y$9:$Y$527,[1]COUNTRY_INFO!G$9:G$527) -> 69185 | AR146: 8.358349802 | AS146: 5.46148286 | AT146: 6.263412017 | AU146: 9.938570499 | AY146: 1 | AZ146: 1 | BA146: 1 | BB146: 0 | BC146: 0 | BD146: TRUE | BE146: TRUE | BF146: TRUE | BG146: TRUE | BH146: TRUE
A147: =IF(INTRO!$E$34<>0,INTRO!$E$34,"") -> DRC | B147: Kasai | C147: Tshikapa | D147: 501387 | E147: 60167 | F147: 175485 | G147: 245680.08 | H147: 0 | I147: 1 | J147: 1 | K147: 0 | L147: 0 | M147: =IF(INTRO!$E$38="Endemic", IF($H147>0, IF($H147=4,"Unknown", IF($H147=99,"Stopped", $D147)), 0),"Not required") -> 0 | N147: =IF(INTRO!$E$40="Endemic", IF($I147>0, IF($I147=4,"Unknown",IF($I147=99,"Stopped", $D147)), 0),"Not required") -> 501387 | O147: =IF(INTRO!$E$42="Endemic", IF(AND($J147>1,$J147<5), IF($J147=4, "Unknown", E147+F147), 0),"Not required") -> 0 | P147: =IF(INTRO!$E$44="Endemic", IF(AND($K147>0,$K147<5), IF($K147=4,"Unknown", IF($K147=1, $F147*0.33, IF($K147=2, $F147*0.5+$G147*0.2, SUM(F147:G147)))), 0),"Not required") -> 0 | Q147: 0 | R147: 1 | S147: 0 | T147: 0 | U147: MDA3 (IVM) | Y147: 14006 | Z147: Tshikapa | AD147: ='MDA1'!K147 -> 0 | AE147: ='MDA4'!K147 -> 0 | AF147: ='MDA3'!I147 -> 175480 | AG147: ='T1'!M147 -> 0 | AH147: ='T2'!K147 -> 0 | AI147: =T3_R1!L147 -> 0 | AK147: ='MDA3'!L147 -> 0 | AN147: =_xlfn.XLOOKUP($Y147,[1]COUNTRY_INFO!$Y$9:$Y$527,[1]COUNTRY_INFO!D$9:D$527) -> 456358 | AO147: =_xlfn.XLOOKUP($Y147,[1]COUNTRY_INFO!$Y$9:$Y$527,[1]COUNTRY_INFO!E$9:E$527) -> 55219.318 | AP147: =_xlfn.XLOOKUP($Y147,[1]COUNTRY_INFO!$Y$9:$Y$527,[1]COUNTRY_INFO!F$9:F$527) -> 164837 | AQ147: =_xlfn.XLOOKUP($Y147,[1]COUNTRY_INFO!$Y$9:$Y$527,[1]COUNTRY_INFO!G$9:G$527) -> 218503.72 | AR147: 9.867034214 | AS147: 8.960056334 | AT147: 6.459714749 | AU147: 12.43748161 | AY147: 0 | AZ147: 1 | BA147: 1 | BB147: 0 | BC147: 0 | BD147: TRUE | BE147: TRUE | BF147: TRUE | BG147: TRUE | BH147: TRUE
A148: =IF(INTRO!$E$34<>0,INTRO!$E$34,"") -> DRC | B148: Kasai Central | C148: Bena Leke | D148: 385078 | E148: 46209 | F148: 134777 | G148: 188689 | H148: 0 | I148: 1 | J148: 3 | K148: 0 | L148: 0 | M148: =IF(INTRO!$E$38="Endemic", IF($H148>0, IF($H148=4,"Unknown", IF($H148=99,"Stopped", $D148)), 0),"Not required") -> 0 | N148: =IF(INTRO!$E$40="Endemic", IF($I148>0, IF($I148=4,"Unknown",IF($I148=99,"Stopped", $D148)), 0),"Not required") -> 385078 | O148: =IF(INTRO!$E$42="Endemic", IF(AND($J148>1,$J148<5), IF($J148=4, "Unknown", E148+F148), 0),"Not required") -> 180986 | P148: =IF(INTRO!$E$44="Endemic", IF(AND($K148>0,$K148<5), IF($K148=4,"Unknown", IF($K148=1, $F148*0.33, IF($K148=2, $F148*0.5+$G148*0.2, SUM(F148:G148)))), 0),"Not required") -> 0 | Q148: 0 | R148: 1 | S148: 1 | T148: 0 | U148: MDA3 (IVM) | V148: T3 (ALB/MBD) | Y148: 13969 | Z148: Bena Leke | AD148: ='MDA1'!K148 -> 0 | AE148: ='MDA4'!K148 -> 0 | AF148: ='MDA3'!I148 -> 124130 | AG148: ='T1'!M148 -> 0 | AH148: ='T2'!K148 -> 0 | AI148: =T3_R1!L148 -> 114928 | AK148: ='MDA3'!L148 -> 0 | AN148: =_xlfn.XLOOKUP($Y148,[1]COUNTRY_INFO!$Y$9:$Y$527,[1]COUNTRY_INFO!D$9:D$527) -> 340575 | AO148: =_xlfn.XLOOKUP($Y148,[1]COUNTRY_INFO!$Y$9:$Y$527,[1]COUNTRY_INFO!E$9:E$527) -> 41209.575 | AP148: =_xlfn.XLOOKUP($Y148,[1]COUNTRY_INFO!$Y$9:$Y$527,[1]COUNTRY_INFO!F$9:F$527) -> 100739 | AQ148: =_xlfn.XLOOKUP($Y148,[1]COUNTRY_INFO!$Y$9:$Y$527,[1]COUNTRY_INFO!G$9:G$527) -> 185344 | AR148: 13.06701901 | AS148: 12.13170725 | AT148: 33.78830443 | AU148: 1.804752244 | AY148: 0 | AZ148: 1 | BA148: 3 | BB148: 0 | BC148: 0 | BD148: TRUE | BE148: TRUE | BF148: TRUE | BG148: TRUE | BH148: TRUE
A149: =IF(INTRO!$E$34<>0,INTRO!$E$34,"") -> DRC | B149: Kasai Central | C149: Bena Tshadi | D149: 152215 | E149: 18265 | F149: 53275 | G149: 74586 | H149: 0 | I149: 1 | J149: 3 | K149: 0 | L149: 0 | M149: =IF(INTRO!$E$38="Endemic", IF($H149>0, IF($H149=4,"Unknown", IF($H149=99,"Stopped", $D149)), 0),"Not required") -> 0 | N149: =IF(INTRO!$E$40="Endemic", IF($I149>0, IF($I149=4,"Unknown",IF($I149=99,"Stopped", $D149)), 0),"Not required") -> 152215 | O149: =IF(INTRO!$E$42="Endemic", IF(AND($J149>1,$J149<5), IF($J149=4, "Unknown", E149+F149), 0),"Not required") -> 71540 | P149: =IF(INTRO!$E$44="Endemic", IF(AND($K149>0,$K149<5), IF($K149=4,"Unknown", IF($K149=1, $F149*0.33, IF($K149=2, $F149*0.5+$G149*0.2, SUM(F149:G149)))), 0),"Not required") -> 0 | Q149: 0 | R149: 1 | S149: 1 | T149: 0 | U149: MDA3 (IVM) | V149: T3 (ALB/MBD) | Y149: 13982 | Z149: Bena Tshadi | AD149: ='MDA1'!K149 -> 0 | AE149: ='MDA4'!K149 -> 0 | AF149: ='MDA3'!I149 -> 51540 | AG149: ='T1'!M149 -> 0 | AH149: ='T2'!K149 -> 0 | AI149: =T3_R1!L149 -> 45155 | AK149: ='MDA3'!L149 -> 0 | AN149: =_xlfn.XLOOKUP($Y149,[1]COUNTRY_INFO!$Y$9:$Y$527,[1]COUNTRY_INFO!D$9:D$527) -> 133899 | AO149: =_xlfn.XLOOKUP($Y149,[1]COUNTRY_INFO!$Y$9:$Y$527,[1]COUNTRY_INFO!E$9:E$527) -> 16201.939 | AP149: =_xlfn.XLOOKUP($Y149,[1]COUNTRY_INFO!$Y$9:$Y$527,[1]COUNTRY_INFO!F$9:F$527) -> 43709 | AQ149: =_xlfn.XLOOKUP($Y149,[1]COUNTRY_INFO!$Y$9:$Y$527,[1]COUNTRY_INFO!G$9:G$527) -> 68766 | AR149: 13.67896698 | AS149: 12.73342036 | AT149: 21.88565284 | AU149: 8.463484862 | AY149: 0 | AZ149: 1 | BA149: 3 | BB149: 0 | BC149: 0 | BD149: TRUE | BE149: TRUE | BF149: TRUE | BG149: TRUE | BH149: TRUE
A150: =IF(INTRO!$E$34<>0,INTRO!$E$34,"") -> DRC | B150: Kasai Central | C150: Bilonda | D150: 116933 | E150: 14032 | F150: 40927 | G150: 57297 | H150: 1 | I150: 1 | J150: 2 | K150: 0 | L150: 0 | M150: =IF(INTRO!$E$38="Endemic", IF($H150>0, IF($H150=4,"Unknown", IF($H150=99,"Stopped", $D150)), 0),"Not required") -> 116933 | N150: =IF(INTRO!$E$40="Endemic", IF($I150>0, IF($I150=4,"Unknown",IF($I150=99,"Stopped", $D150)), 0),"Not required") -> 116933 | O150: =IF(INTRO!$E$42="Endemic", IF(AND($J150>1,$J150<5), IF($J150=4, "Unknown", E150+F150), 0),"Not required") -> 54959 | P150: =IF(INTRO!$E$44="Endemic", IF(AND($K150>0,$K150<5), IF($K150=4,"Unknown", IF($K150=1, $F150*0.33, IF($K150=2, $F150*0.5+$G150*0.2, SUM(F150:G150)))), 0),"Not required") -> 0 | Q150: 1 | R150: 1 | S150: 1 | T150: 0 | U150: MDA1 (IVM+ALB) | Y150: 13970 | Z150: Bilonda | AD150: ='MDA1'!K150 -> 37606 | AE150: ='MDA4'!K150 -> 0 | AF150: ='MDA3'!I150 -> 0 | AG150: ='T1'!M150 -> 0 | AH150: ='T2'!K150 -> 0 | AI150: =T3_R1!L150 -> 0 | AK150: ='MDA3'!L150 -> 0 | AN150: =_xlfn.XLOOKUP($Y150,[1]COUNTRY_INFO!$Y$9:$Y$527,[1]COUNTRY_INFO!D$9:D$527) -> 113556 | AO150: =_xlfn.XLOOKUP($Y150,[1]COUNTRY_INFO!$Y$9:$Y$527,[1]COUNTRY_INFO!E$9:E$527) -> 13740.316 | AP150: =_xlfn.XLOOKUP($Y150,[1]COUNTRY_INFO!$Y$9:$Y$527,[1]COUNTRY_INFO!F$9:F$527) -> 38449 | AQ150: =_xlfn.XLOOKUP($Y150,[1]COUNTRY_INFO!$Y$9:$Y$527,[1]COUNTRY_INFO!G$9:G$527) -> 56938 | AR150: 2.973863116 | AS150: 2.122833274 | AT150: 6.444901038 | AU150: 0.6305103797 | AY150: 1 | AZ150: 1 | BA150: 2 | BB150: 0 | BC150: 0 | BD150: TRUE | BE150: TRUE | BF150: TRUE | BG150: TRUE | BH150: TRUE
A151: =IF(INTRO!$E$34<>0,INTRO!$E$34,"") -> DRC | B151: Kasai Central | C151: Bobozo | D151: 68188 | E151: 8182 | F151: 23866 | G151: 33412 | H151: 0 | I151: 1 | J151: 2 | K151: 0 | L151: 0 | M151: =IF(INTRO!$E$38="Endemic", IF($H151>0, IF($H151=4,"Unknown", IF($H151=99,"Stopped", $D151)), 0),"Not required") -> 0 | N151: =IF(INTRO!$E$40="Endemic", IF($I151>0, IF($I151=4,"Unknown",IF($I151=99,"Stopped", $D151)), 0),"Not required") -> 68188 | O151: =IF(INTRO!$E$42="Endemic", IF(AND($J151>1,$J151<5), IF($J151=4, "Unknown", E151+F151), 0),"Not required") -> 32048 | P151: =IF(INTRO!$E$44="Endemic", IF(AND($K151>0,$K151<5), IF($K151=4,"Unknown", IF($K151=1, $F151*0.33, IF($K151=2, $F151*0.5+$G151*0.2, SUM(F151:G151)))), 0),"Not required") -> 0 | Q151: 0 | R151: 1 | S151: 1 | T151: 0 | U151: MDA3 (IVM) | V151: T3 (ALB/MBD) | Y151: 13971 | Z151: Bobozo | AD151: ='MDA1'!K151 -> 0 | AE151: ='MDA4'!K151 -> 0 | AF151: ='MDA3'!I151 -> 23735 | AG151: ='T1'!M151 -> 0 | AH151: ='T2'!K151 -> 0 | AI151: =T3_R1!L151 -> 18181 | AK151: ='MDA3'!L151 -> 0 | AN151: =_xlfn.XLOOKUP($Y151,[1]COUNTRY_INFO!$Y$9:$Y$527,[1]COUNTRY_INFO!D$9:D$527) -> 62486 | AO151: =_xlfn.XLOOKUP($Y151,[1]COUNTRY_INFO!$Y$9:$Y$527,[1]COUNTRY_INFO!E$9:E$527) -> 7561.046 | AP151: =_xlfn.XLOOKUP($Y151,[1]COUNTRY_INFO!$Y$9:$Y$527,[1]COUNTRY_INFO!F$9:F$527) -> 21479 | AQ151: =_xlfn.XLOOKUP($Y151,[1]COUNTRY_INFO!$Y$9:$Y$527,[1]COUNTRY_INFO!G$9:G$527) -> 31009 | AR151: 9.125244055 | AS151: 8.212540963 | AT151: 11.11318032 | AU151: 7.749363088 | AY151: 0 | AZ151: 1 | BA151: 2 | BB151: 0 | BC151: 0 | BD151: TRUE | BE151: TRUE | BF151: TRUE | BG151: TRUE | BH151: TRUE
A152: =IF(INTRO!$E$34<>0,INTRO!$E$34,"") -> DRC | B152: Kasai Central | C152: Bukonde | D152: 133663 | E152: 16039 | F152: 46782 | G152: 65495 | H152: 0 | I152: 1 | J152: 2 | K152: 1 | L152: 0 | M152: =IF(INTRO!$E$38="Endemic", IF($H152>0, IF($H152=4,"Unknown", IF($H152=99,"Stopped", $D152)), 0),"Not required") -> 0 | N152: =IF(INTRO!$E$40="Endemic", IF($I152>0, IF($I152=4,"Unknown",IF($I152=99,"Stopped", $D152)), 0),"Not required") -> 133663 | O152: =IF(INTRO!$E$42="Endemic", IF(AND($J152>1,$J152<5), IF($J152=4, "Unknown", E152+F152), 0),"Not required") -> 62821 | P152: =IF(INTRO!$E$44="Endemic", IF(AND($K152>0,$K152<5), IF($K152=4,"Unknown", IF($K152=1, $F152*0.33, IF($K152=2, $F152*0.5+$G152*0.2, SUM(F152:G152)))), 0),"Not required") -> 15438.06 | Q152: 0 | R152: 1 | S152: 1 | T152: 0 | U152: MDA3 (IVM) | V152: T3 (ALB/MBD) | Y152: 14338 | Z152: Bukonde | AD152: ='MDA1'!K152 -> 0 | AE152: ='MDA4'!K152 -> 0 | AF152: ='MDA3'!I152 -> 44034 | AG152: ='T1'!M152 -> 0 | AH152: ='T2'!K152 -> 0 | AI152: =T3_R1!L152 -> 36933 | AK152: ='MDA3'!L152 -> 0 | AN152: =_xlfn.XLOOKUP($Y152,[1]COUNTRY_INFO!$Y$9:$Y$527,[1]COUNTRY_INFO!D$9:D$527) -> 125966 | AO152: =_xlfn.XLOOKUP($Y152,[1]COUNTRY_INFO!$Y$9:$Y$527,[1]COUNTRY_INFO!E$9:E$527) -> 15242.326 | AP152: =_xlfn.XLOOKUP($Y152,[1]COUNTRY_INFO!$Y$9:$Y$527,[1]COUNTRY_INFO!F$9:F$527) -> 38208 | AQ152: =_xlfn.XLOOKUP($Y152,[1]COUNTRY_INFO!$Y$9:$Y$527,[1]COUNTRY_INFO!G$9:G$527) -> 67603 | AR152: 6.110378991 | AS152: 5.226721958 | AT152: 22.44032663 | AU152: -3.118204813 | AY152: 0 | AZ152: 1 | BA152: 2 | BB152: 1 | BC152: 0 | BD152: TRUE | BE152: TRUE | BF152: TRUE | BG152: TRUE | BH152: TRUE
A153: =IF(INTRO!$E$34<>0,INTRO!$E$34,"") -> DRC | B153: Kasai Central | C153: Demba | D153: 451046 | E153: 54125 | F153: 157866 | G153: 221013 | H153: 0 | I153: 1 | J153: 2 | K153: 0 | L153: 0 | M153: =IF(INTRO!$E$38="Endemic", IF($H153>0, IF($H153=4,"Unknown", IF($H153=99,"Stopped", $D153)), 0),"Not required") -> 0 | N153: =IF(INTRO!$E$40="Endemic", IF($I153>0, IF($I153=4,"Unknown",IF($I153=99,"Stopped", $D153)), 0),"Not required") -> 451046 | O153: =IF(INTRO!$E$42="Endemic", IF(AND($J153>1,$J153<5), IF($J153=4, "Unknown", E153+F153), 0),"Not required") -> 211991 | P153: =IF(INTRO!$E$44="Endemic", IF(AND($K153>0,$K153<5), IF($K153=4,"Unknown", IF($K153=1, $F153*0.33, IF($K153=2, $F153*0.5+$G153*0.2, SUM(F153:G153)))), 0),"Not required") -> 0 | Q153: 0 | R153: 1 | S153: 1 | T153: 0 | U153: MDA3 (IVM) | V153: T3 (ALB/MBD) | Y153: 13974 | Z153: Demba | AD153: ='MDA1'!K153 -> 0 | AE153: ='MDA4'!K153 -> 0 | AF153: ='MDA3'!I153 -> 150538 | AG153: ='T1'!M153 -> 0 | AH153: ='T2'!K153 -> 0 | AI153: =T3_R1!L153 -> 129274 | AK153: ='MDA3'!L153 -> 0 | AN153: =_xlfn.XLOOKUP($Y153,[1]COUNTRY_INFO!$Y$9:$Y$527,[1]COUNTRY_INFO!D$9:D$527) -> 404622 | AO153: =_xlfn.XLOOKUP($Y153,[1]COUNTRY_INFO!$Y$9:$Y$527,[1]COUNTRY_INFO!E$9:E$527) -> 48959.742 | AP153: =_xlfn.XLOOKUP($Y153,[1]COUNTRY_INFO!$Y$9:$Y$527,[1]COUNTRY_INFO!F$9:F$527) -> 135795 | AQ153: =_xlfn.XLOOKUP($Y153,[1]COUNTRY_INFO!$Y$9:$Y$527,[1]COUNTRY_INFO!G$9:G$527) -> 204087 | AR153: 11.47342458 | AS153: 10.55001066 | AT153: 16.25317574 | AU153: 8.29352188 | AY153: 0 | AZ153: 1 | BA153: 2 | BB153: 0 | BC153: 0 | BD153: TRUE | BE153: TRUE | BF153: TRUE | BG153: TRUE | BH153: TRUE
A154: =IF(INTRO!$E$34<>0,INTRO!$E$34,"") -> DRC | B154: Kasai Central | C154: Dibaya | D154: 225932 | E154: 27112 | F154: 79076 | G154: 110707 | H154: 0 | I154: 1 | J154: 2 | K154: 0 | L154: 0 | M154: =IF(INTRO!$E$38="Endemic", IF($H154>0, IF($H154=4,"Unknown", IF($H154=99,"Stopped", $D154)), 0),"Not required") -> 0 | N154: =IF(INTRO!$E$40="Endemic", IF($I154>0, IF($I154=4,"Unknown",IF($I154=99,"Stopped", $D154)), 0),"Not required") -> 225932 | O154: =IF(INTRO!$E$42="Endemic", IF(AND($J154>1,$J154<5), IF($J154=4, "Unknown", E154+F154), 0),"Not required") -> 106188 | P154: =IF(INTRO!$E$44="Endemic", IF(AND($K154>0,$K154<5), IF($K154=4,"Unknown", IF($K154=1, $F154*0.33, IF($K154=2, $F154*0.5+$G154*0.2, SUM(F154:G154)))), 0),"Not required") -> 0 | Q154: 0 | R154: 1 | S154: 1 | T154: 0 | U154: MDA3 (IVM) | V154: T3 (ALB/MBD) | Y154: 13975 | Z154: Dibaya | AD154: ='MDA1'!K154 -> 0 | AE154: ='MDA4'!K154 -> 0 | AF154: ='MDA3'!I154 -> 77196 | AG154: ='T1'!M154 -> 0 | AH154: ='T2'!K154 -> 0 | AI154: =T3_R1!L154 -> 62252 | AK154: ='MDA3'!L154 -> 0 | AN154: =_xlfn.XLOOKUP($Y154,[1]COUNTRY_INFO!$Y$9:$Y$527,[1]COUNTRY_INFO!D$9:D$527) -> 202708 | AO154: =_xlfn.XLOOKUP($Y154,[1]COUNTRY_INFO!$Y$9:$Y$527,[1]COUNTRY_INFO!E$9:E$527) -> 24527.388 | AP154: =_xlfn.XLOOKUP($Y154,[1]COUNTRY_INFO!$Y$9:$Y$527,[1]COUNTRY_INFO!F$9:F$527) -> 82272 | AQ154: =_xlfn.XLOOKUP($Y154,[1]COUNTRY_INFO!$Y$9:$Y$527,[1]COUNTRY_INFO!G$9:G$527) -> 88003 | AR154: 11.45687393 | AS154: 10.53765692 | AT154: -3.884675224 | AU154: 25.79912048 | AY154: 0 | AZ154: 1 | BA154: 2 | BB154: 0 | BC154: 0 | BD154: TRUE | BE154: TRUE | BF154: TRUE | BG154: TRUE | BH154: TRUE
A155: =IF(INTRO!$E$34<>0,INTRO!$E$34,"") -> DRC | B155: Kasai Central | C155: Kalomda | D155: 203504 | E155: 24421 | F155: 71226 | G155: 99717 | H155: 1 | I155: 1 | J155: 2 | K155: 0 | L155: 0 | M155: =IF(INTRO!$E$38="Endemic", IF($H155>0, IF($H155=4,"Unknown", IF($H155=99,"Stopped", $D155)), 0),"Not required") -> 203504 | N155: =IF(INTRO!$E$40="Endemic", IF($I155>0, IF($I155=4,"Unknown",IF($I155=99,"Stopped", $D155)), 0),"Not required") -> 203504 | O155: =IF(INTRO!$E$42="Endemic", IF(AND($J155>1,$J155<5), IF($J155=4, "Unknown", E155+F155), 0),"Not required") -> 95647 | P155: =IF(INTRO!$E$44="Endemic", IF(AND($K155>0,$K155<5), IF($K155=4,"Unknown", IF($K155=1, $F155*0.33, IF($K155=2, $F155*0.5+$G155*0.2, SUM(F155:G155)))), 0),"Not required") -> 0 | Q155: 1 | R155: 1 | S155: 1 | T155: 0 | U155: MDA1 (IVM+ALB) | Y155: 14332 | Z155: Kalomda | AD155: ='MDA1'!K155 -> 67806 | AE155: ='MDA4'!K155 -> 0 | AF155: ='MDA3'!I155 -> 0 | AG155: ='T1'!M155 -> 0 | AH155: ='T2'!K155 -> 0 | AI155: =T3_R1!L155 -> 0 | AK155: ='MDA3'!L155 -> 0 | AN155: =_xlfn.XLOOKUP($Y155,[1]COUNTRY_INFO!$Y$9:$Y$527,[1]COUNTRY_INFO!D$9:D$527) -> 175558 | AO155: =_xlfn.XLOOKUP($Y155,[1]COUNTRY_INFO!$Y$9:$Y$527,[1]COUNTRY_INFO!E$9:E$527) -> 21242.238 | AP155: =_xlfn.XLOOKUP($Y155,[1]COUNTRY_INFO!$Y$9:$Y$527,[1]COUNTRY_INFO!F$9:F$527) -> 52345 | AQ155: =_xlfn.XLOOKUP($Y155,[1]COUNTRY_INFO!$Y$9:$Y$527,[1]COUNTRY_INFO!G$9:G$527) -> 95124 | AR155: 15.91838595 | AS155: 14.96434604 | AT155: 36.0703028 | AU155: 4.828434464 | AY155: 1 | AZ155: 1 | BA155: 2 | BB155: 0 | BC155: 0 | BD155: TRUE | BE155: TRUE | BF155: TRUE | BG155: TRUE | BH155: TRUE
A156: =IF(INTRO!$E$34<>0,INTRO!$E$34,"") -> DRC | B156: Kasai Central | C156: Kananga | D156: 397119 | E156: 47654 | F156: 138992 | G156: 194588 | H156: 1 | I156: 1 | J156: 2 | K156: 0 | L156: 0 | M156: =IF(INTRO!$E$38="Endemic", IF($H156>0, IF($H156=4,"Unknown", IF($H156=99,"Stopped", $D156)), 0),"Not required") -> 397119 | N156: =IF(INTRO!$E$40="Endemic", IF($I156>0, IF($I156=4,"Unknown",IF($I156=99,"Stopped", $D156)), 0),"Not required") -> 397119 | O156: =IF(INTRO!$E$42="Endemic", IF(AND($J156>1,$J156<5), IF($J156=4, "Unknown", E156+F156), 0),"Not required") -> 186646 | P156: =IF(INTRO!$E$44="Endemic", IF(AND($K156>0,$K156<5), IF($K156=4,"Unknown", IF($K156=1, $F156*0.33, IF($K156=2, $F156*0.5+$G156*0.2, SUM(F156:G156)))), 0),"Not required") -> 0 | Q156: 1 | R156: 1 | S156: 1 | T156: 0 | U156: MDA1 (IVM+ALB) | Y156: 13980 | Z156: Kananga | AD156: ='MDA1'!K156 -> 132394 | AE156: ='MDA4'!K156 -> 0 | AF156: ='MDA3'!I156 -> 0 | AG156: ='T1'!M156 -> 0 | AH156: ='T2'!K156 -> 0 | AI156: =T3_R1!L156 -> 0 | AK156: ='MDA3'!L156 -> 0 | AN156: =_xlfn.XLOOKUP($Y156,[1]COUNTRY_INFO!$Y$9:$Y$527,[1]COUNTRY_INFO!D$9:D$527) -> 352265 | AO156: =_xlfn.XLOOKUP($Y156,[1]COUNTRY_INFO!$Y$9:$Y$527,[1]COUNTRY_INFO!E$9:E$527) -> 42623.665 | AP156: =_xlfn.XLOOKUP($Y156,[1]COUNTRY_INFO!$Y$9:$Y$527,[1]COUNTRY_INFO!F$9:F$527) -> 108229 | AQ156: =_xlfn.XLOOKUP($Y156,[1]COUNTRY_INFO!$Y$9:$Y$527,[1]COUNTRY_INFO!G$9:G$527) -> 187674 | AR156: 12.73302769 | AS156: 11.80174206 | AT156: 28.42398987 | AU156: 3.68404787 | AY156: 1 | AZ156: 1 | BA156: 2 | BB156: 0 | BC156: 0 | BD156: TRUE | BE156: TRUE | BF156: TRUE | BG156: TRUE | BH156: TRUE
A157: =IF(INTRO!$E$34<>0,INTRO!$E$34,"") -> DRC | B157: Kasai Central | C157: Katende | D157: 126403 | E157: 15168 | F157: 44241 | G157: 61938 | H157: 1 | I157: 1 | J157: 3 | K157: 0 | L157: 0 | M157: =IF(INTRO!$E$38="Endemic", IF($H157>0, IF($H157=4,"Unknown", IF($H157=99,"Stopped", $D157)), 0),"Not required") -> 126403 | N157: =IF(INTRO!$E$40="Endemic", IF($I157>0, IF($I157=4,"Unknown",IF($I157=99,"Stopped", $D157)), 0),"Not required") -> 126403 | O157: =IF(INTRO!$E$42="Endemic", IF(AND($J157>1,$J157<5), IF($J157=4, "Unknown", E157+F157), 0),"Not required") -> 59409 | P157: =IF(INTRO!$E$44="Endemic", IF(AND($K157>0,$K157<5), IF($K157=4,"Unknown", IF($K157=1, $F157*0.33, IF($K157=2, $F157*0.5+$G157*0.2, SUM(F157:G157)))), 0),"Not required") -> 0 | Q157: 1 | R157: 1 | S157: 1 | T157: 0 | U157: MDA1 (IVM+ALB) | Y157: 13983 | Z157: Katende | AD157: ='MDA1'!K157 -> 41893 | AE157: ='MDA4'!K157 -> 0 | AF157: ='MDA3'!I157 -> 0 | AG157: ='T1'!M157 -> 0 | AH157: ='T2'!K157 -> 0 | AI157: =T3_R1!L157 -> 0 | AK157: ='MDA3'!L157 -> 0 | AN157: =_xlfn.XLOOKUP($Y157,[1]COUNTRY_INFO!$Y$9:$Y$527,[1]COUNTRY_INFO!D$9:D$527) -> 122721 | AO157: =_xlfn.XLOOKUP($Y157,[1]COUNTRY_INFO!$Y$9:$Y$527,[1]COUNTRY_INFO!E$9:E$527) -> 14848.881 | AP157: =_xlfn.XLOOKUP($Y157,[1]COUNTRY_INFO!$Y$9:$Y$527,[1]COUNTRY_INFO!F$9:F$527) -> 34568 | AQ157: =_xlfn.XLOOKUP($Y157,[1]COUNTRY_INFO!$Y$9:$Y$527,[1]COUNTRY_INFO!G$9:G$527) -> 68518 | AR157: 3.000301497 | AS157: 2.149111438 | AT157: 27.98252719 | AU157: -9.603315917 | AY157: 1 | AZ157: 1 | BA157: 3 | BB157: 0 | BC157: 0 | BD157: TRUE | BE157: TRUE | BF157: TRUE | BG157: TRUE | BH157: TRUE
A158: =IF(INTRO!$E$34<>0,INTRO!$E$34,"") -> DRC | B158: Kasai Central | C158: Katoka | D158: 156720 | E158: 18806 | F158: 54852 | G158: 76792.8 | H158: 0 | I158: 1 | J158: 1 | K158: 1 | L158: 0 | M158: =IF(INTRO!$E$38="Endemic", IF($H158>0, IF($H158=4,"Unknown", IF($H158=99,"Stopped", $D158)), 0),"Not required") -> 0 | N158: =IF(INTRO!$E$40="Endemic", IF($I158>0, IF($I158=4,"Unknown",IF($I158=99,"Stopped", $D158)), 0),"Not required") -> 156720 | O158: =IF(INTRO!$E$42="Endemic", IF(AND($J158>1,$J158<5), IF($J158=4, "Unknown", E158+F158), 0),"Not required") -> 0 | P158: =IF(INTRO!$E$44="Endemic", IF(AND($K158>0,$K158<5), IF($K158=4,"Unknown", IF($K158=1, $F158*0.33, IF($K158=2, $F158*0.5+$G158*0.2, SUM(F158:G158)))), 0),"Not required") -> 18101.16 | Q158: 0 | R158: 1 | S158: 0 | T158: 0 | U158: MDA3 (IVM) | Y158: 13984 | Z158: Katoka | AD158: ='MDA1'!K158 -> 0 | AE158: ='MDA4'!K158 -> 0 | AF158: ='MDA3'!I158 -> 54845 | AG158: ='T1'!M158 -> 0 | AH158: ='T2'!K158 -> 0 | AI158: =T3_R1!L158 -> 0 | AK158: ='MDA3'!L158 -> 0 | AN158: =_xlfn.XLOOKUP($Y158,[1]COUNTRY_INFO!$Y$9:$Y$527,[1]COUNTRY_INFO!D$9:D$527) -> 150154 | AO158: =_xlfn.XLOOKUP($Y158,[1]COUNTRY_INFO!$Y$9:$Y$527,[1]COUNTRY_INFO!E$9:E$527) -> 18168.634 | AP158: =_xlfn.XLOOKUP($Y158,[1]COUNTRY_INFO!$Y$9:$Y$527,[1]COUNTRY_INFO!F$9:F$527) -> 54236 | AQ158: =_xlfn.XLOOKUP($Y158,[1]COUNTRY_INFO!$Y$9:$Y$527,[1]COUNTRY_INFO!G$9:G$527) -> 71893.36 | AR158: 4.37284388 | AS158: 3.508056797 | AT158: 1.135776975 | AU158: 6.814871359 | AY158: 0 | AZ158: 1 | BA158: 1 | BB158: 1 | BC158: 0 | BD158: TRUE | BE158: TRUE | BF158: TRUE | BG158: TRUE | BH158: TRUE
A159: =IF(INTRO!$E$34<>0,INTRO!$E$34,"") -> DRC | B159: Kasai Central | C159: Luambo | D159: 415211 | E159: 49825 | F159: 145324 | G159: 203453 | H159: 1 | I159: 1 | J159: 3 | K159: 1 | L159: 0 | M159: =IF(INTRO!$E$38="Endemic", IF($H159>0, IF($H159=4,"Unknown", IF($H159=99,"Stopped", $D159)), 0),"Not required") -> 415211 | N159: =IF(INTRO!$E$40="Endemic", IF($I159>0, IF($I159=4,"Unknown",IF($I159=99,"Stopped", $D159)), 0),"Not required") -> 415211 | O159: =IF(INTRO!$E$42="Endemic", IF(AND($J159>1,$J159<5), IF($J159=4, "Unknown", E159+F159), 0),"Not required") -> 195149 | P159: =IF(INTRO!$E$44="Endemic", IF(AND($K159>0,$K159<5), IF($K159=4,"Unknown", IF($K159=1, $F159*0.33, IF($K159=2, $F159*0.5+$G159*0.2, SUM(F159:G159)))), 0),"Not required") -> 47956.92 | Q159: 1 | R159: 1 | S159: 1 | T159: 0 | U159: MDA1 (IVM+ALB) | Y159: 13986 | Z159: Luambo | AD159: ='MDA1'!K159 -> 142536 | AE159: ='MDA4'!K159 -> 0 | AF159: ='MDA3'!I159 -> 0 | AG159: ='T1'!M159 -> 0 | AH159: ='T2'!K159 -> 0 | AI159: =T3_R1!L159 -> 0 | AK159: ='MDA3'!L159 -> 0 | AN159: =_xlfn.XLOOKUP($Y159,[1]COUNTRY_INFO!$Y$9:$Y$527,[1]COUNTRY_INFO!D$9:D$527) -> 369830 | AO159: =_xlfn.XLOOKUP($Y159,[1]COUNTRY_INFO!$Y$9:$Y$527,[1]COUNTRY_INFO!E$9:E$527) -> 44749.63 | AP159: =_xlfn.XLOOKUP($Y159,[1]COUNTRY_INFO!$Y$9:$Y$527,[1]COUNTRY_INFO!F$9:F$527) -> 122593 | AQ159: =_xlfn.XLOOKUP($Y159,[1]COUNTRY_INFO!$Y$9:$Y$527,[1]COUNTRY_INFO!G$9:G$527) -> 188064 | AR159: 12.27077306 | AS159: 11.34170271 | AT159: 18.5418417 | AU159: 8.182852646 | AY159: 1 | AZ159: 1 | BA159: 3 | BB159: 1 | BC159: 0 | BD159: TRUE | BE159: TRUE | BF159: TRUE | BG159: TRUE | BH159: TRUE
A160: =IF(INTRO!$E$34<>0,INTRO!$E$34,"") -> DRC | B160: Kasai Central | C160: Lubondaie | D160: 186618 | E160: 22394 | F160: 65316 | G160: 91443 | H160: 0 | I160: 1 | J160: 3 | K160: 1 | L160: 0 | M160: =IF(INTRO!$E$38="Endemic", IF($H160>0, IF($H160=4,"Unknown", IF($H160=99,"Stopped", $D160)), 0),"Not required") -> 0 | N160: =IF(INTRO!$E$40="Endemic", IF($I160>0, IF($I160=4,"Unknown",IF($I160=99,"Stopped", $D160)), 0),"Not required") -> 186618 | O160: =IF(INTRO!$E$42="Endemic", IF(AND($J160>1,$J160<5), IF($J160=4, "Unknown", E160+F160), 0),"Not required") -> 87710 | P160: =IF(INTRO!$E$44="Endemic", IF(AND($K160>0,$K160<5), IF($K160=4,"Unknown", IF($K160=1, $F160*0.33, IF($K160=2, $F160*0.5+$G160*0.2, SUM(F160:G160)))), 0),"Not required") -> 21554.28 | Q160: 0 | R160: 1 | S160: 1 | T160: 0 | U160: MDA3 (IVM) | V160: T3 (ALB/MBD) | Y160: 13987 | Z160: Lubondaie | AD160: ='MDA1'!K160 -> 0 | AE160: ='MDA4'!K160 -> 0 | AF160: ='MDA3'!I160 -> 63654 | AG160: ='T1'!M160 -> 0 | AH160: ='T2'!K160 -> 0 | AI160: =T3_R1!L160 -> 51070 | AK160: ='MDA3'!L160 -> 0 | AN160: =_xlfn.XLOOKUP($Y160,[1]COUNTRY_INFO!$Y$9:$Y$527,[1]COUNTRY_INFO!D$9:D$527) -> 180363 | AO160: =_xlfn.XLOOKUP($Y160,[1]COUNTRY_INFO!$Y$9:$Y$527,[1]COUNTRY_INFO!E$9:E$527) -> 21823.843 | AP160: =_xlfn.XLOOKUP($Y160,[1]COUNTRY_INFO!$Y$9:$Y$527,[1]COUNTRY_INFO!F$9:F$527) -> 59807 | AQ160: =_xlfn.XLOOKUP($Y160,[1]COUNTRY_INFO!$Y$9:$Y$527,[1]COUNTRY_INFO!G$9:G$527) -> 91698 | AR160: 3.468006188 | AS160: 2.612541705 | AT160: 9.211296337 | AU160: -0.2780867631 | AY160: 0 | AZ160: 1 | BA160: 3 | BB160: 1 | BC160: 0 | BD160: TRUE | BE160: TRUE | BF160: TRUE | BG160: TRUE | BH160: TRUE
A161: =IF(INTRO!$E$34<>0,INTRO!$E$34,"") -> DRC | B161: Kasai Central | C161: Lubunga 1 | D161: 146114 | E161: 17533 | F161: 51140 | G161: 71596 | H161: 0 | I161: 1 | J161: 3 | K161: 2 | L161: 0 | M161: =IF(INTRO!$E$38="Endemic", IF($H161>0, IF($H161=4,"Unknown", IF($H161=99,"Stopped", $D161)), 0),"Not required") -> 0 | N161: =IF(INTRO!$E$40="Endemic", IF($I161>0, IF($I161=4,"Unknown",IF($I161=99,"Stopped", $D161)), 0),"Not required") -> 146114 | O161: =IF(INTRO!$E$42="Endemic", IF(AND($J161>1,$J161<5), IF($J161=4, "Unknown", E161+F161), 0),"Not required") -> 68673 | P161: =IF(INTRO!$E$44="Endemic", IF(AND($K161>0,$K161<5), IF($K161=4,"Unknown", IF($K161=1, $F161*0.33, IF($K161=2, $F161*0.5+$G161*0.2, SUM(F161:G161)))), 0),"Not required") -> 39889.2 | Q161: 0 | R161: 1 | S161: 1 | T161: 0 | U161: MDA3 (IVM) | V161: T3 (ALB/MBD) | Y161: 13988 | Z161: Lubunga (Kasaï) | AD161: ='MDA1'!K161 -> 0 | AE161: ='MDA4'!K161 -> 0 | AF161: ='MDA3'!I161 -> 48393 | AG161: ='T1'!M161 -> 0 | AH161: ='T2'!K161 -> 0 | AI161: =T3_R1!L161 -> 31524 | AK161: ='MDA3'!L161 -> 0 | AN161: =_xlfn.XLOOKUP($Y161,[1]COUNTRY_INFO!$Y$9:$Y$527,[1]COUNTRY_INFO!D$9:D$527) -> 125215 | AO161: =_xlfn.XLOOKUP($Y161,[1]COUNTRY_INFO!$Y$9:$Y$527,[1]COUNTRY_INFO!E$9:E$527) -> 15150.615 | AP161: =_xlfn.XLOOKUP($Y161,[1]COUNTRY_INFO!$Y$9:$Y$527,[1]COUNTRY_INFO!F$9:F$527) -> 32924 | AQ161: =_xlfn.XLOOKUP($Y161,[1]COUNTRY_INFO!$Y$9:$Y$527,[1]COUNTRY_INFO!G$9:G$527) -> 72257 | AR161: 16.69049235 | AS161: 15.7246752 | AT161: 55.32742073 | AU161: -0.9147902625 | AY161: 0 | AZ161: 1 | BA161: 3 | BB161: 2 | BC161: 0 | BD161: TRUE | BE161: TRUE | BF161: TRUE | BG161: TRUE | BH161: TRUE
A162: =IF(INTRO!$E$34<>0,INTRO!$E$34,"") -> DRC | B162: Kasai Central | C162: Luiza | D162: 244648 | E162: 29358 | F162: 85627 | G162: 119877 | H162: 0 | I162: 1 | J162: 2 | K162: 0 | L162: 0 | M162: =IF(INTRO!$E$38="Endemic", IF($H162>0, IF($H162=4,"Unknown", IF($H162=99,"Stopped", $D162)), 0),"Not required") -> 0 | N162: =IF(INTRO!$E$40="Endemic", IF($I162>0, IF($I162=4,"Unknown",IF($I162=99,"Stopped", $D162)), 0),"Not required") -> 244648 | O162: =IF(INTRO!$E$42="Endemic", IF(AND($J162>1,$J162<5), IF($J162=4, "Unknown", E162+F162), 0),"Not required") -> 114985 | P162: =IF(INTRO!$E$44="Endemic", IF(AND($K162>0,$K162<5), IF($K162=4,"Unknown", IF($K162=1, $F162*0.33, IF($K162=2, $F162*0.5+$G162*0.2, SUM(F162:G162)))), 0),"Not required") -> 0 | Q162: 0 | R162: 1 | S162: 1 | T162: 0 | U162: MDA3 (IVM) | V162: T3 (ALB/MBD) | Y162: 13990 | Z162: Luiza | AD162: ='MDA1'!K162 -> 0 | AE162: ='MDA4'!K162 -> 0 | AF162: ='MDA3'!I162 -> 82227 | AG162: ='T1'!M162 -> 0 | AH162: ='T2'!K162 -> 0 | AI162: =T3_R1!L162 -> 64205 | AK162: ='MDA3'!L162 -> 0 | AN162: =_xlfn.XLOOKUP($Y162,[1]COUNTRY_INFO!$Y$9:$Y$527,[1]COUNTRY_INFO!D$9:D$527) -> 204235 | AO162: =_xlfn.XLOOKUP($Y162,[1]COUNTRY_INFO!$Y$9:$Y$527,[1]COUNTRY_INFO!E$9:E$527) -> 24712.835 | AP162: =_xlfn.XLOOKUP($Y162,[1]COUNTRY_INFO!$Y$9:$Y$527,[1]COUNTRY_INFO!F$9:F$527) -> 67826 | AQ162: =_xlfn.XLOOKUP($Y162,[1]COUNTRY_INFO!$Y$9:$Y$527,[1]COUNTRY_INFO!G$9:G$527) -> 103731 | AR162: 19.78749969 | AS162: 18.79656867 | AT162: 26.24509775 | AU162: 15.56526014 | AY162: 0 | AZ162: 1 | BA162: 2 | BB162: 0 | BC162: 0 | BD162: TRUE | BE162: TRUE | BF162: TRUE | BG162: TRUE | BH162: TRUE
A163: =IF(INTRO!$E$34<>0,INTRO!$E$34,"") -> DRC | B163: Kasai Central | C163: Lukonga | D163: 348673 | E163: 41841 | F163: 122036 | G163: 170849 | H163: 1 | I163: 1 | J163: 2 | K163: 1 | L163: 0 | M163: =IF(INTRO!$E$38="Endemic", IF($H163>0, IF($H163=4,"Unknown", IF($H163=99,"Stopped", $D163)), 0),"Not required") -> 348673 | N163: =IF(INTRO!$E$40="Endemic", IF($I163>0, IF($I163=4,"Unknown",IF($I163=99,"Stopped", $D163)), 0),"Not required") -> 348673 | O163: =IF(INTRO!$E$42="Endemic", IF(AND($J163>1,$J163<5), IF($J163=4, "Unknown", E163+F163), 0),"Not required") -> 163877 | P163: =IF(INTRO!$E$44="Endemic", IF(AND($K163>0,$K163<5), IF($K163=4,"Unknown", IF($K163=1, $F163*0.33, IF($K163=2, $F163*0.5+$G163*0.2, SUM(F163:G163)))), 0),"Not required") -> 40271.88 | Q163: 1 | R163: 1 | S163: 1 | T163: 0 | U163: MDA1 (IVM+ALB) | Y163: 13991 | Z163: Lukonga | AD163: ='MDA1'!K163 -> 118113 | AE163: ='MDA4'!K163 -> 0 | AF163: ='MDA3'!I163 -> 0 | AG163: ='T1'!M163 -> 0 | AH163: ='T2'!K163 -> 0 | AI163: =T3_R1!L163 -> 0 | AK163: ='MDA3'!L163 -> 0 | AN163: =_xlfn.XLOOKUP($Y163,[1]COUNTRY_INFO!$Y$9:$Y$527,[1]COUNTRY_INFO!D$9:D$527) -> 321874 | AO163: =_xlfn.XLOOKUP($Y163,[1]COUNTRY_INFO!$Y$9:$Y$527,[1]COUNTRY_INFO!E$9:E$527) -> 38946.914 | AP163: =_xlfn.XLOOKUP($Y163,[1]COUNTRY_INFO!$Y$9:$Y$527,[1]COUNTRY_INFO!F$9:F$527) -> 98800 | AQ163: =_xlfn.XLOOKUP($Y163,[1]COUNTRY_INFO!$Y$9:$Y$527,[1]COUNTRY_INFO!G$9:G$527) -> 171574 | AR163: 8.32592878 | AS163: 7.430848051 | AT163: 23.51821862 | AU163: -0.4225581965 | AY163: 1 | AZ163: 1 | BA163: 2 | BB163: 1 | BC163: 0 | BD163: TRUE | BE163: TRUE | BF163: TRUE | BG163: TRUE | BH163: TRUE
A164: =IF(INTRO!$E$34<>0,INTRO!$E$34,"") -> DRC | B164: Kasai Central | C164: Mikalayi | D164: 303432 | E164: 36412 | F164: 106201 | G164: 148682 | H164: 0 | I164: 1 | J164: 3 | K164: 0 | L164: 0 | M164: =IF(INTRO!$E$38="Endemic", IF($H164>0, IF($H164=4,"Unknown", IF($H164=99,"Stopped", $D164)), 0),"Not required") -> 0 | N164: =IF(INTRO!$E$40="Endemic", IF($I164>0, IF($I164=4,"Unknown",IF($I164=99,"Stopped", $D164)), 0),"Not required") -> 303432 | O164: =IF(INTRO!$E$42="Endemic", IF(AND($J164>1,$J164<5), IF($J164=4, "Unknown", E164+F164), 0),"Not required") -> 142613 | P164: =IF(INTRO!$E$44="Endemic", IF(AND($K164>0,$K164<5), IF($K164=4,"Unknown", IF($K164=1, $F164*0.33, IF($K164=2, $F164*0.5+$G164*0.2, SUM(F164:G164)))), 0),"Not required") -> 0 | Q164: 0 | R164: 1 | S164: 1 | T164: 0 | U164: MDA3 (IVM) | V164: T3 (ALB/MBD) | Y164: 13993 | Z164: Mikalayi | AD164: ='MDA1'!K164 -> 0 | AE164: ='MDA4'!K164 -> 0 | AF164: ='MDA3'!I164 -> 103749 | AG164: ='T1'!M164 -> 0 | AH164: ='T2'!K164 -> 0 | AI164: =T3_R1!L164 -> 93660 | AK164: ='MDA3'!L164 -> 0 | AN164: =_xlfn.XLOOKUP($Y164,[1]COUNTRY_INFO!$Y$9:$Y$527,[1]COUNTRY_INFO!D$9:D$527) -> 271181 | AO164: =_xlfn.XLOOKUP($Y164,[1]COUNTRY_INFO!$Y$9:$Y$527,[1]COUNTRY_INFO!E$9:E$527) -> 32812.941 | AP164: =_xlfn.XLOOKUP($Y164,[1]COUNTRY_INFO!$Y$9:$Y$527,[1]COUNTRY_INFO!F$9:F$527) -> 81482 | AQ164: =_xlfn.XLOOKUP($Y164,[1]COUNTRY_INFO!$Y$9:$Y$527,[1]COUNTRY_INFO!G$9:G$527) -> 146310 | AR164: 11.89279485 | AS164: 10.96841335 | AT164: 30.33676149 | AU164: 1.621215228 | AY164: 0 | AZ164: 1 | BA164: 3 | BB164: 0 | BC164: 0 | BD164: TRUE | BE164: TRUE | BF164: TRUE | BG164: TRUE | BH164: TRUE
A165: =IF(INTRO!$E$34<>0,INTRO!$E$34,"") -> DRC | B165: Kasai Central | C165: Musuika | D165: 317888 | E165: 38146 | F165: 111261 | G165: 155765 | H165: 1 | I165: 1 | J165: 3 | K165: 0 | L165: 0 | M165: =IF(INTRO!$E$38="Endemic", IF($H165>0, IF($H165=4,"Unknown", IF($H165=99,"Stopped", $D165)), 0),"Not required") -> 317888 | N165: =IF(INTRO!$E$40="Endemic", IF($I165>0, IF($I165=4,"Unknown",IF($I165=99,"Stopped", $D165)), 0),"Not required") -> 317888 | O165: =IF(INTRO!$E$42="Endemic", IF(AND($J165>1,$J165<5), IF($J165=4, "Unknown", E165+F165), 0),"Not required") -> 149407 | P165: =IF(INTRO!$E$44="Endemic", IF(AND($K165>0,$K165<5), IF($K165=4,"Unknown", IF($K165=1, $F165*0.33, IF($K165=2, $F165*0.5+$G165*0.2, SUM(F165:G165)))), 0),"Not required") -> 0 | Q165: 1 | R165: 1 | S165: 1 | T165: 0 | U165: MDA1 (IVM+ALB) | Y165: 13996 | Z165: Musuika | AD165: ='MDA1'!K165 -> 109385 | AE165: ='MDA4'!K165 -> 0 | AF165: ='MDA3'!I165 -> 0 | AG165: ='T1'!M165 -> 0 | AH165: ='T2'!K165 -> 0 | AI165: =T3_R1!L165 -> 0 | AK165: ='MDA3'!L165 -> 0 | AN165: =_xlfn.XLOOKUP($Y165,[1]COUNTRY_INFO!$Y$9:$Y$527,[1]COUNTRY_INFO!D$9:D$527) -> 277951 | AO165: =_xlfn.XLOOKUP($Y165,[1]COUNTRY_INFO!$Y$9:$Y$527,[1]COUNTRY_INFO!E$9:E$527) -> 33631.911 | AP165: =_xlfn.XLOOKUP($Y165,[1]COUNTRY_INFO!$Y$9:$Y$527,[1]COUNTRY_INFO!F$9:F$527) -> 81092 | AQ165: =_xlfn.XLOOKUP($Y165,[1]COUNTRY_INFO!$Y$9:$Y$527,[1]COUNTRY_INFO!G$9:G$527) -> 152387 | AR165: 14.36835989 | AS165: 13.42204135 | AT165: 37.20342327 | AU165: 2.216724524 | AY165: 1 | AZ165: 1 | BA165: 3 | BB165: 0 | BC165: 0 | BD165: TRUE | BE165: TRUE | BF165: TRUE | BG165: TRUE | BH165: TRUE
A166: =IF(INTRO!$E$34<>0,INTRO!$E$34,"") -> DRC | B166: Kasai Central | C166: Mutoto | D166: 165473 | E166: 19857 | F166: 57916 | G166: 81081 | H166: 1 | I166: 1 | J166: 3 | K166: 0 | L166: 0 | M166: =IF(INTRO!$E$38="Endemic", IF($H166>0, IF($H166=4,"Unknown", IF($H166=99,"Stopped", $D166)), 0),"Not required") -> 165473 | N166: =IF(INTRO!$E$40="Endemic", IF($I166>0, IF($I166=4,"Unknown",IF($I166=99,"Stopped", $D166)), 0),"Not required") -> 165473 | O166: =IF(INTRO!$E$42="Endemic", IF(AND($J166>1,$J166<5), IF($J166=4, "Unknown", E166+F166), 0),"Not required") -> 77773 | P166: =IF(INTRO!$E$44="Endemic", IF(AND($K166>0,$K166<5), IF($K166=4,"Unknown", IF($K166=1, $F166*0.33, IF($K166=2, $F166*0.5+$G166*0.2, SUM(F166:G166)))), 0),"Not required") -> 0 | Q166: 1 | R166: 1 | S166: 1 | T166: 0 | U166: MDA1 (IVM+ALB) | Y166: 13998 | Z166: Mutoto | AD166: ='MDA1'!K166 -> 54186 | AE166: ='MDA4'!K166 -> 0 | AF166: ='MDA3'!I166 -> 0 | AG166: ='T1'!M166 -> 0 | AH166: ='T2'!K166 -> 0 | AI166: =T3_R1!L166 -> 0 | AK166: ='MDA3'!L166 -> 0 | AN166: =_xlfn.XLOOKUP($Y166,[1]COUNTRY_INFO!$Y$9:$Y$527,[1]COUNTRY_INFO!D$9:D$527) -> 155980 | AO166: =_xlfn.XLOOKUP($Y166,[1]COUNTRY_INFO!$Y$9:$Y$527,[1]COUNTRY_INFO!E$9:E$527) -> 18873.78 | AP166: =_xlfn.XLOOKUP($Y166,[1]COUNTRY_INFO!$Y$9:$Y$527,[1]COUNTRY_INFO!F$9:F$527) -> 77731 | AQ166: =_xlfn.XLOOKUP($Y166,[1]COUNTRY_INFO!$Y$9:$Y$527,[1]COUNTRY_INFO!G$9:G$527) -> 53292 | AR166: 6.086036671 | AS166: 5.2094493 | AT166: -25.49176004 | AU166: 52.14478721 | AY166: 1 | AZ166: 1 | BA166: 3 | BB166: 0 | BC166: 0 | BD166: TRUE | BE166: TRUE | BF166: TRUE | BG166: TRUE | BH166: TRUE
A167: =IF(INTRO!$E$34<>0,INTRO!$E$34,"") -> DRC | B167: Kasai Central | C167: Mwetshi | D167: 159542 | E167: 19145 | F167: 55840 | G167: 78175 | H167: 0 | I167: 1 | J167: 3 | K167: 1 | L167: 0 | M167: =IF(INTRO!$E$38="Endemic", IF($H167>0, IF($H167=4,"Unknown", IF($H167=99,"Stopped", $D167)), 0),"Not required") -> 0 | N167: =IF(INTRO!$E$40="Endemic", IF($I167>0, IF($I167=4,"Unknown",IF($I167=99,"Stopped", $D167)), 0),"Not required") -> 159542 | O167: =IF(INTRO!$E$42="Endemic", IF(AND($J167>1,$J167<5), IF($J167=4, "Unknown", E167+F167), 0),"Not required") -> 74985 | P167: =IF(INTRO!$E$44="Endemic", IF(AND($K167>0,$K167<5), IF($K167=4,"Unknown", IF($K167=1, $F167*0.33, IF($K167=2, $F167*0.5+$G167*0.2, SUM(F167:G167)))), 0),"Not required") -> 18427.2 | Q167: 0 | R167: 1 | S167: 1 | T167: 0 | U167: MDA3 (IVM) | V167: T3 (ALB/MBD) | Y167: 14000 | Z167: Mwetshi | AD167: ='MDA1'!K167 -> 0 | AE167: ='MDA4'!K167 -> 0 | AF167: ='MDA3'!I167 -> 54069 | AG167: ='T1'!M167 -> 0 | AH167: ='T2'!K167 -> 0 | AI167: =T3_R1!L167 -> 44800 | AK167: ='MDA3'!L167 -> 0 | AN167: =_xlfn.XLOOKUP($Y167,[1]COUNTRY_INFO!$Y$9:$Y$527,[1]COUNTRY_INFO!D$9:D$527) -> 155980 | AO167: =_xlfn.XLOOKUP($Y167,[1]COUNTRY_INFO!$Y$9:$Y$527,[1]COUNTRY_INFO!E$9:E$527) -> 18873.78 | AP167: =_xlfn.XLOOKUP($Y167,[1]COUNTRY_INFO!$Y$9:$Y$527,[1]COUNTRY_INFO!F$9:F$527) -> 43065 | AQ167: =_xlfn.XLOOKUP($Y167,[1]COUNTRY_INFO!$Y$9:$Y$527,[1]COUNTRY_INFO!G$9:G$527) -> 87958 | AR167: 2.283626106 | AS167: 1.437020035 | AT167: 29.6644607 | AU167: -11.12235385 | AY167: 0 | AZ167: 1 | BA167: 3 | BB167: 1 | BC167: 0 | BD167: TRUE | BE167: TRUE | BF167: TRUE | BG167: TRUE | BH167: TRUE
A168: =IF(INTRO!$E$34<>0,INTRO!$E$34,"") -> DRC | B168: Kasai Central | C168: Ndekesha | D168: 225080 | E168: 27010 | F168: 78778 | G168: 110289 | H168: 0 | I168: 1 | J168: 2 | K168: 0 | L168: 0 | M168: =IF(INTRO!$E$38="Endemic", IF($H168>0, IF($H168=4,"Unknown", IF($H168=99,"Stopped", $D168)), 0),"Not required") -> 0 | N168: =IF(INTRO!$E$40="Endemic", IF($I168>0, IF($I168=4,"Unknown",IF($I168=99,"Stopped", $D168)), 0),"Not required") -> 225080 | O168: =IF(INTRO!$E$42="Endemic", IF(AND($J168>1,$J168<5), IF($J168=4, "Unknown", E168+F168), 0),"Not required") -> 105788 | P168: =IF(INTRO!$E$44="Endemic", IF(AND($K168>0,$K168<5), IF($K168=4,"Unknown", IF($K168=1, $F168*0.33, IF($K168=2, $F168*0.5+$G168*0.2, SUM(F168:G168)))), 0),"Not required") -> 0 | Q168: 0 | R168: 1 | S168: 1 | T168: 0 | U168: MDA3 (IVM) | V168: T3 (ALB/MBD) | Y168: 14001 | Z168: Ndekesha | AD168: ='MDA1'!K168 -> 0 | AE168: ='MDA4'!K168 -> 0 | AF168: ='MDA3'!I168 -> 76070 | AG168: ='T1'!M168 -> 0 | AH168: ='T2'!K168 -> 0 | AI168: =T3_R1!L168 -> 68993 | AK168: ='MDA3'!L168 -> 0 | AN168: =_xlfn.XLOOKUP($Y168,[1]COUNTRY_INFO!$Y$9:$Y$527,[1]COUNTRY_INFO!D$9:D$527) -> 201881 | AO168: =_xlfn.XLOOKUP($Y168,[1]COUNTRY_INFO!$Y$9:$Y$527,[1]COUNTRY_INFO!E$9:E$527) -> 24427.641 | AP168: =_xlfn.XLOOKUP($Y168,[1]COUNTRY_INFO!$Y$9:$Y$527,[1]COUNTRY_INFO!F$9:F$527) -> 65360 | AQ168: =_xlfn.XLOOKUP($Y168,[1]COUNTRY_INFO!$Y$9:$Y$527,[1]COUNTRY_INFO!G$9:G$527) -> 104220 | AR168: 11.49142317 | AS168: 10.57146288 | AT168: 20.52937576 | AU168: 5.823258492 | AY168: 0 | AZ168: 1 | BA168: 2 | BB168: 0 | BC168: 0 | BD168: TRUE | BE168: TRUE | BF168: TRUE | BG168: TRUE | BH168: TRUE
A169: =IF(INTRO!$E$34<>0,INTRO!$E$34,"") -> DRC | B169: Kasai Central | C169: Ndesha | D169: 129058 | E169: 15487 | F169: 45170 | G169: 63239 | H169: 0 | I169: 1 | J169: 2 | K169: 0 | L169: 0 | M169: =IF(INTRO!$E$38="Endemic", IF($H169>0, IF($H169=4,"Unknown", IF($H169=99,"Stopped", $D169)), 0),"Not required") -> 0 | N169: =IF(INTRO!$E$40="Endemic", IF($I169>0, IF($I169=4,"Unknown",IF($I169=99,"Stopped", $D169)), 0),"Not required") -> 129058 | O169: =IF(INTRO!$E$42="Endemic", IF(AND($J169>1,$J169<5), IF($J169=4, "Unknown", E169+F169), 0),"Not required") -> 60657 | P169: =IF(INTRO!$E$44="Endemic", IF(AND($K169>0,$K169<5), IF($K169=4,"Unknown", IF($K169=1, $F169*0.33, IF($K169=2, $F169*0.5+$G169*0.2, SUM(F169:G169)))), 0),"Not required") -> 0 | Q169: 0 | R169: 1 | S169: 1 | T169: 0 | U169: MDA3 (IVM) | V169: T3 (ALB/MBD) | Y169: 14002 | Z169: Ndesha | AD169: ='MDA1'!K169 -> 0 | AE169: ='MDA4'!K169 -> 0 | AF169: ='MDA3'!I169 -> 42746 | AG169: ='T1'!M169 -> 0 | AH169: ='T2'!K169 -> 0 | AI169: =T3_R1!L169 -> 39175 | AK169: ='MDA3'!L169 -> 0 | AN169: =_xlfn.XLOOKUP($Y169,[1]COUNTRY_INFO!$Y$9:$Y$527,[1]COUNTRY_INFO!D$9:D$527) -> 123858 | AO169: =_xlfn.XLOOKUP($Y169,[1]COUNTRY_INFO!$Y$9:$Y$527,[1]COUNTRY_INFO!E$9:E$527) -> 14986.538 | AP169: =_xlfn.XLOOKUP($Y169,[1]COUNTRY_INFO!$Y$9:$Y$527,[1]COUNTRY_INFO!F$9:F$527) -> 37733 | AQ169: =_xlfn.XLOOKUP($Y169,[1]COUNTRY_INFO!$Y$9:$Y$527,[1]COUNTRY_INFO!G$9:G$527) -> 66308 | AR169: 4.198356182 | AS169: 3.339410343 | AT169: 19.70953807 | AU169: -4.628400796 | AY169: 0 | AZ169: 1 | BA169: 2 | BB169: 0 | BC169: 0 | BD169: TRUE | BE169: TRUE | BF169: TRUE | BG169: TRUE | BH169: TRUE
A170: =IF(INTRO!$E$34<>0,INTRO!$E$34,"") -> DRC | B170: Kasai Central | C170: Tshibala | D170: 334421 | E170: 40130 | F170: 117047 | G170: 163867 | H170: 1 | I170: 1 | J170: 2 | K170: 0 | L170: 0 | M170: =IF(INTRO!$E$38="Endemic", IF($H170>0, IF($H170=4,"Unknown", IF($H170=99,"Stopped", $D170)), 0),"Not required") -> 334421 | N170: =IF(INTRO!$E$40="Endemic", IF($I170>0, IF($I170=4,"Unknown",IF($I170=99,"Stopped", $D170)), 0),"Not required") -> 334421 | O170: =IF(INTRO!$E$42="Endemic", IF(AND($J170>1,$J170<5), IF($J170=4, "Unknown", E170+F170), 0),"Not required") -> 157177 | P170: =IF(INTRO!$E$44="Endemic", IF(AND($K170>0,$K170<5), IF($K170=4,"Unknown", IF($K170=1, $F170*0.33, IF($K170=2, $F170*0.5+$G170*0.2, SUM(F170:G170)))), 0),"Not required") -> 0 | Q170: 1 | R170: 1 | S170: 1 | T170: 0 | U170: MDA1 (IVM+ALB) | Y170: 14005 | Z170: Tshibala | AD170: ='MDA1'!K170 -> 113168 | AE170: ='MDA4'!K170 -> 0 | AF170: ='MDA3'!I170 -> 0 | AG170: ='T1'!M170 -> 0 | AH170: ='T2'!K170 -> 0 | AI170: =T3_R1!L170 -> 0 | AK170: ='MDA3'!L170 -> 0 | AN170: =_xlfn.XLOOKUP($Y170,[1]COUNTRY_INFO!$Y$9:$Y$527,[1]COUNTRY_INFO!D$9:D$527) -> 291393 | AO170: =_xlfn.XLOOKUP($Y170,[1]COUNTRY_INFO!$Y$9:$Y$527,[1]COUNTRY_INFO!E$9:E$527) -> 35258.673 | AP170: =_xlfn.XLOOKUP($Y170,[1]COUNTRY_INFO!$Y$9:$Y$527,[1]COUNTRY_INFO!F$9:F$527) -> 100316 | AQ170: =_xlfn.XLOOKUP($Y170,[1]COUNTRY_INFO!$Y$9:$Y$527,[1]COUNTRY_INFO!G$9:G$527) -> 144454 | AR170: 14.76631216 | AS170: 13.81596806 | AT170: 16.67829658 | AU170: 13.4388802 | AY170: 1 | AZ170: 1 | BA170: 2 | BB170: 0 | BC170: 0 | BD170: TRUE | BE170: TRUE | BF170: TRUE | BG170: TRUE | BH170: TRUE
A171: =IF(INTRO!$E$34<>0,INTRO!$E$34,"") -> DRC | B171: Kasai Central | C171: Tshikaji | D171: 164955 | E171: 19795 | F171: 57734 | G171: 80828 | H171: 0 | I171: 1 | J171: 3 | K171: 0 | L171: 0 | M171: =IF(INTRO!$E$38="Endemic", IF($H171>0, IF($H171=4,"Unknown", IF($H171=99,"Stopped", $D171)), 0),"Not required") -> 0 | N171: =IF(INTRO!$E$40="Endemic", IF($I171>0, IF($I171=4,"Unknown",IF($I171=99,"Stopped", $D171)), 0),"Not required") -> 164955 | O171: =IF(INTRO!$E$42="Endemic", IF(AND($J171>1,$J171<5), IF($J171=4, "Unknown", E171+F171), 0),"Not required") -> 77529 | P171: =IF(INTRO!$E$44="Endemic", IF(AND($K171>0,$K171<5), IF($K171=4,"Unknown", IF($K171=1, $F171*0.33, IF($K171=2, $F171*0.5+$G171*0.2, SUM(F171:G171)))), 0),"Not required") -> 0 | Q171: 0 | R171: 1 | S171: 1 | T171: 0 | U171: MDA3 (IVM) | V171: T3 (ALB/MBD) | Y171: 14058 | Z171: Tshikaji | AD171: ='MDA1'!K171 -> 0 | AE171: ='MDA4'!K171 -> 0 | AF171: ='MDA3'!I171 -> 55416 | AG171: ='T1'!M171 -> 0 | AH171: ='T2'!K171 -> 0 | AI171: =T3_R1!L171 -> 44639 | AK171: ='MDA3'!L171 -> 0 | AN171: =_xlfn.XLOOKUP($Y171,[1]COUNTRY_INFO!$Y$9:$Y$527,[1]COUNTRY_INFO!D$9:D$527) -> 150442 | AO171: =_xlfn.XLOOKUP($Y171,[1]COUNTRY_INFO!$Y$9:$Y$527,[1]COUNTRY_INFO!E$9:E$527) -> 18203.762 | AP171: =_xlfn.XLOOKUP($Y171,[1]COUNTRY_INFO!$Y$9:$Y$527,[1]COUNTRY_INFO!F$9:F$527) -> 44635 | AQ171: =_xlfn.XLOOKUP($Y171,[1]COUNTRY_INFO!$Y$9:$Y$527,[1]COUNTRY_INFO!G$9:G$527) -> 81736 | AR171: 9.646907114 | AS171: 8.741259087 | AT171: 29.34692506 | AU171: -1.110893609 | AY171: 0 | AZ171: 1 | BA171: 3 | BB171: 0 | BC171: 0 | BD171: TRUE | BE171: TRUE | BF171: TRUE | BG171: TRUE | BH171: TRUE
A172: =IF(INTRO!$E$34<>0,INTRO!$E$34,"") -> DRC | B172: Kasai Central | C172: Tshikula | D172: 164980 | E172: 19798 | F172: 57743 | G172: 80840 | H172: 0 | I172: 1 | J172: 2 | K172: 0 | L172: 0 | M172: =IF(INTRO!$E$38="Endemic", IF($H172>0, IF($H172=4,"Unknown", IF($H172=99,"Stopped", $D172)), 0),"Not required") -> 0 | N172: =IF(INTRO!$E$40="Endemic", IF($I172>0, IF($I172=4,"Unknown",IF($I172=99,"Stopped", $D172)), 0),"Not required") -> 164980 | O172: =IF(INTRO!$E$42="Endemic", IF(AND($J172>1,$J172<5), IF($J172=4, "Unknown", E172+F172), 0),"Not required") -> 77541 | P172: =IF(INTRO!$E$44="Endemic", IF(AND($K172>0,$K172<5), IF($K172=4,"Unknown", IF($K172=1, $F172*0.33, IF($K172=2, $F172*0.5+$G172*0.2, SUM(F172:G172)))), 0),"Not required") -> 0 | Q172: 0 | R172: 1 | S172: 1 | T172: 0 | U172: MDA3 (IVM) | V172: T3 (ALB/MBD) | Y172: 14007 | Z172: Tshikula | AD172: ='MDA1'!K172 -> 0 | AE172: ='MDA4'!K172 -> 0 | AF172: ='MDA3'!I172 -> 55136 | AG172: ='T1'!M172 -> 0 | AH172: ='T2'!K172 -> 0 | AI172: =T3_R1!L172 -> 51927 | AK172: ='MDA3'!L172 -> 0 | AN172: =_xlfn.XLOOKUP($Y172,[1]COUNTRY_INFO!$Y$9:$Y$527,[1]COUNTRY_INFO!D$9:D$527) -> 160184 | AO172: =_xlfn.XLOOKUP($Y172,[1]COUNTRY_INFO!$Y$9:$Y$527,[1]COUNTRY_INFO!E$9:E$527) -> 19381.824 | AP172: =_xlfn.XLOOKUP($Y172,[1]COUNTRY_INFO!$Y$9:$Y$527,[1]COUNTRY_INFO!F$9:F$527) -> 44914 | AQ172: =_xlfn.XLOOKUP($Y172,[1]COUNTRY_INFO!$Y$9:$Y$527,[1]COUNTRY_INFO!G$9:G$527) -> 89641 | AR172: 2.994056835 | AS172: 2.147248886 | AT172: 28.56347687 | AU172: -9.818052007 | AY172: 0 | AZ172: 1 | BA172: 2 | BB172: 0 | BC172: 0 | BD172: TRUE | BE172: TRUE | BF172: TRUE | BG172: TRUE | BH172: TRUE
A173: =IF(INTRO!$E$34<>0,INTRO!$E$34,"") -> DRC | B173: Kasai Central | C173: Yangala | D173: 229198 | E173: 27504 | F173: 80219 | G173: 112307 | H173: 1 | I173: 1 | J173: 2 | K173: 1 | L173: 0 | M173: =IF(INTRO!$E$38="Endemic", IF($H173>0, IF($H173=4,"Unknown", IF($H173=99,"Stopped", $D173)), 0),"Not required") -> 229198 | N173: =IF(INTRO!$E$40="Endemic", IF($I173>0, IF($I173=4,"Unknown",IF($I173=99,"Stopped", $D173)), 0),"Not required") -> 229198 | O173: =IF(INTRO!$E$42="Endemic", IF(AND($J173>1,$J173<5), IF($J173=4, "Unknown", E173+F173), 0),"Not required") -> 107723 | P173: =IF(INTRO!$E$44="Endemic", IF(AND($K173>0,$K173<5), IF($K173=4,"Unknown", IF($K173=1, $F173*0.33, IF($K173=2, $F173*0.5+$G173*0.2, SUM(F173:G173)))), 0),"Not required") -> 26472.27 | Q173: 1 | R173: 1 | S173: 1 | T173: 0 | U173: MDA1 (IVM+ALB) | Y173: 14008 | Z173: Yangala | AD173: ='MDA1'!K173 -> 76018 | AE173: ='MDA4'!K173 -> 0 | AF173: ='MDA3'!I173 -> 0 | AG173: ='T1'!M173 -> 0 | AH173: ='T2'!K173 -> 0 | AI173: =T3_R1!L173 -> 0 | AK173: ='MDA3'!L173 -> 0 | AN173: =_xlfn.XLOOKUP($Y173,[1]COUNTRY_INFO!$Y$9:$Y$527,[1]COUNTRY_INFO!D$9:D$527) -> 189235 | AO173: =_xlfn.XLOOKUP($Y173,[1]COUNTRY_INFO!$Y$9:$Y$527,[1]COUNTRY_INFO!E$9:E$527) -> 22897.835 | AP173: =_xlfn.XLOOKUP($Y173,[1]COUNTRY_INFO!$Y$9:$Y$527,[1]COUNTRY_INFO!F$9:F$527) -> 66136 | AQ173: =_xlfn.XLOOKUP($Y173,[1]COUNTRY_INFO!$Y$9:$Y$527,[1]COUNTRY_INFO!G$9:G$527) -> 92821 | AR173: 21.11818638 | AS173: 20.11615945 | AT173: 21.29400024 | AU173: 20.99309424 | AV173: pb | AY173: 1 | AZ173: 1 | BA173: 2 | BB173: 1 | BC173: 0 | BD173: TRUE | BE173: TRUE | BF173: TRUE | BG173: TRUE | BH173: TRUE
A174: =IF(INTRO!$E$34<>0,INTRO!$E$34,"") -> DRC | B174: KASAI ORIENTAL | C174: Bibanga | D174: 184407 | E174: 23512 | F174: 64542 | G174: 88516 | H174: 1 | I174: 1 | J174: 1 | K174: 2 | L174: 0 | M174: =IF(INTRO!$E$38="Endemic", IF($H174>0, IF($H174=4,"Unknown", IF($H174=99,"Stopped", $D174)), 0),"Not required") -> 184407 | N174: =IF(INTRO!$E$40="Endemic", IF($I174>0, IF($I174=4,"Unknown",IF($I174=99,"Stopped", $D174)), 0),"Not required") -> 184407 | O174: =IF(INTRO!$E$42="Endemic", IF(AND($J174>1,$J174<5), IF($J174=4, "Unknown", E174+F174), 0),"Not required") -> 0 | P174: =IF(INTRO!$E$44="Endemic", IF(AND($K174>0,$K174<5), IF($K174=4,"Unknown", IF($K174=1, $F174*0.33, IF($K174=2, $F174*0.5+$G174*0.2, SUM(F174:G174)))), 0),"Not required") -> 49974.2 | Q174: 1 | R174: 1 | S174: 0 | T174: 1 | U174: MDA1 (IVM+ALB) | V174: T2 (PZQ) | Y174: 14010 | Z174: Bibanga | AD174: ='MDA1'!K174 -> 55018 | AE174: ='MDA4'!K174 -> 0 | AF174: ='MDA3'!I174 -> 0 | AG174: ='T1'!M174 -> 0 | AH174: ='T2'!K174 -> 58203 | AI174: =T3_R1!L174 -> 0 | AK174: ='MDA3'!L174 -> 0 | AN174: =_xlfn.XLOOKUP($Y174,[1]COUNTRY_INFO!$Y$9:$Y$527,[1]COUNTRY_INFO!D$9:D$527) -> 178813 | AO174: =_xlfn.XLOOKUP($Y174,[1]COUNTRY_INFO!$Y$9:$Y$527,[1]COUNTRY_INFO!E$9:E$527) -> 23424.293 | AP174: =_xlfn.XLOOKUP($Y174,[1]COUNTRY_INFO!$Y$9:$Y$527,[1]COUNTRY_INFO!F$9:F$527) -> 63818 | AQ174: =_xlfn.XLOOKUP($Y174,[1]COUNTRY_INFO!$Y$9:$Y$527,[1]COUNTRY_INFO!G$9:G$527) -> 84597 | AR174: 3.12840789 | AS174: 0.3744275227 | AT174: 1.134476167 | AU174: 4.632551982 | AY174: 1 | AZ174: 1 | BA174: 1 | BB174: 2 | BC174: 0 | BD174: TRUE | BE174: TRUE | BF174: TRUE | BG174: TRUE | BH174: TRUE
A175: =IF(INTRO!$E$34<>0,INTRO!$E$34,"") -> DRC | B175: KASAI ORIENTAL | C175: Bimpemba | D175: 375006 | E175: 45001 | F175: 131252 | G175: 183753 | H175: 0 | I175: 4 | J175: 1 | K175: 2 | L175: 0 | M175: =IF(INTRO!$E$38="Endemic", IF($H175>0, IF($H175=4,"Unknown", IF($H175=99,"Stopped", $D175)), 0),"Not required") -> 0 | N175: =IF(INTRO!$E$40="Endemic", IF($I175>0, IF($I175=4,"Unknown",IF($I175=99,"Stopped", $D175)), 0),"Not required") -> Unknown | O175: =IF(INTRO!$E$42="Endemic", IF(AND($J175>1,$J175<5), IF($J175=4, "Unknown", E175+F175), 0),"Not required") -> 0 | P175: =IF(INTRO!$E$44="Endemic", IF(AND($K175>0,$K175<5), IF($K175=4,"Unknown", IF($K175=1, $F175*0.33, IF($K175=2, $F175*0.5+$G175*0.2, SUM(F175:G175)))), 0),"Not required") -> 102376.6 | Q175: 0 | R175: 0 | S175: 0 | T175: 0 | Y175: 14011 | Z175: Bimpemba | AD175: ='MDA1'!K175 -> 0 | AE175: ='MDA4'!K175 -> 0 | AF175: ='MDA3'!I175 -> 0 | AG175: ='T1'!M175 -> 0 | AH175: ='T2'!K175 -> 0 | AI175: =T3_R1!L175 -> 0 | AK175: ='MDA3'!L175 -> 0 | AN175: =_xlfn.XLOOKUP($Y175,[1]COUNTRY_INFO!$Y$9:$Y$527,[1]COUNTRY_INFO!D$9:D$527) -> 353479 | AO175: =_xlfn.XLOOKUP($Y175,[1]COUNTRY_INFO!$Y$9:$Y$527,[1]COUNTRY_INFO!E$9:E$527) -> 42771.319 | AP175: =_xlfn.XLOOKUP($Y175,[1]COUNTRY_INFO!$Y$9:$Y$527,[1]COUNTRY_INFO!F$9:F$527) -> 123718 | AQ175: =_xlfn.XLOOKUP($Y175,[1]COUNTRY_INFO!$Y$9:$Y$527,[1]COUNTRY_INFO!G$9:G$527) -> 173204 | AR175: 6.090036466 | AS175: 5.213028385 | AT175: 6.089655507 | AU175: 6.090505993 | AY175: 0 | AZ175: 4 | BA175: 1 | BB175: 2 | BC175: 0 | BD175: TRUE | BE175: TRUE | BF175: TRUE | BG175: TRUE | BH175: TRUE
A176: =IF(INTRO!$E$34<>0,INTRO!$E$34,"") -> DRC | B176: KASAI ORIENTAL | C176: Bonzola | D176: 196092 | E176: 25002 | F176: 68632 | G176: 94124 | H176: 1 | I176: 4 | J176: 1 | K176: 1 | L176: 0 | M176: =IF(INTRO!$E$38="Endemic", IF($H176>0, IF($H176=4,"Unknown", IF($H176=99,"Stopped", $D176)), 0),"Not required") -> 196092 | N176: =IF(INTRO!$E$40="Endemic", IF($I176>0, IF($I176=4,"Unknown",IF($I176=99,"Stopped", $D176)), 0),"Not required") -> Unknown | O176: =IF(INTRO!$E$42="Endemic", IF(AND($J176>1,$J176<5), IF($J176=4, "Unknown", E176+F176), 0),"Not required") -> 0 | P176: =IF(INTRO!$E$44="Endemic", IF(AND($K176>0,$K176<5), IF($K176=4,"Unknown", IF($K176=1, $F176*0.33, IF($K176=2, $F176*0.5+$G176*0.2, SUM(F176:G176)))), 0),"Not required") -> 22648.56 | Q176: 1 | R176: 0 | S176: 0 | T176: 0 | U176: MDA1 (IVM+ALB) | Y176: 14012 | Z176: Bonzola | AD176: ='MDA1'!K176 -> 63517 | AE176: ='MDA4'!K176 -> 0 | AF176: ='MDA3'!I176 -> 0 | AG176: ='T1'!M176 -> 0 | AH176: ='T2'!K176 -> 0 | AI176: =T3_R1!L176 -> 0 | AK176: ='MDA3'!L176 -> 0 | AN176: =_xlfn.XLOOKUP($Y176,[1]COUNTRY_INFO!$Y$9:$Y$527,[1]COUNTRY_INFO!D$9:D$527) -> 213455 | AO176: =_xlfn.XLOOKUP($Y176,[1]COUNTRY_INFO!$Y$9:$Y$527,[1]COUNTRY_INFO!E$9:E$527) -> 27962.255 | AP176: =_xlfn.XLOOKUP($Y176,[1]COUNTRY_INFO!$Y$9:$Y$527,[1]COUNTRY_INFO!F$9:F$527) -> 76182 | AQ176: =_xlfn.XLOOKUP($Y176,[1]COUNTRY_INFO!$Y$9:$Y$527,[1]COUNTRY_INFO!G$9:G$527) -> 100986 | AR176: -8.134267176 | AS176: -10.58661041 | AT176: -9.910477541 | AU176: -6.795001287 | AY176: 1 | AZ176: 4 | BA176: 1 | BB176: 1 | BC176: 0 | BD176: TRUE | BE176: TRUE | BF176: TRUE | BG176: TRUE | BH176: TRUE
A177: =IF(INTRO!$E$34<>0,INTRO!$E$34,"") -> DRC | B177: KASAI ORIENTAL | C177: Dibindi | D177: 302729 | E177: 36328 | F177: 107403 | G177: 146889 | H177: 0 | I177: 4 | J177: 2 | K177: 2 | L177: 0 | M177: =IF(INTRO!$E$38="Endemic", IF($H177>0, IF($H177=4,"Unknown", IF($H177=99,"Stopped", $D177)), 0),"Not required") -> 0 | N177: =IF(INTRO!$E$40="Endemic", IF($I177>0, IF($I177=4,"Unknown",IF($I177=99,"Stopped", $D177)), 0),"Not required") -> Unknown | O177: =IF(INTRO!$E$42="Endemic", IF(AND($J177>1,$J177<5), IF($J177=4, "Unknown", E177+F177), 0),"Not required") -> 143731 | P177: =IF(INTRO!$E$44="Endemic", IF(AND($K177>0,$K177<5), IF($K177=4,"Unknown", IF($K177=1, $F177*0.33, IF($K177=2, $F177*0.5+$G177*0.2, SUM(F177:G177)))), 0),"Not required") -> 83079.3 | Q177: 0 | R177: 0 | S177: 1 | T177: 0 | U177: T3 (ALB/MBD) | Y177: 14013 | Z177: Dibindi | AD177: ='MDA1'!K177 -> 0 | AE177: ='MDA4'!K177 -> 0 | AF177: ='MDA3'!I177 -> 0 | AG177: ='T1'!M177 -> 0 | AH177: ='T2'!K177 -> 0 | AI177: =T3_R1!L177 -> 89393 | AK177: ='MDA3'!L177 -> 0 | AN177: =_xlfn.XLOOKUP($Y177,[1]COUNTRY_INFO!$Y$9:$Y$527,[1]COUNTRY_INFO!D$9:D$527) -> 303177 | AO177: =_xlfn.XLOOKUP($Y177,[1]COUNTRY_INFO!$Y$9:$Y$527,[1]COUNTRY_INFO!E$9:E$527) -> 36684.097 | AP177: =_xlfn.XLOOKUP($Y177,[1]COUNTRY_INFO!$Y$9:$Y$527,[1]COUNTRY_INFO!F$9:F$527) -> 102762 | AQ177: =_xlfn.XLOOKUP($Y177,[1]COUNTRY_INFO!$Y$9:$Y$527,[1]COUNTRY_INFO!G$9:G$527) -> 151907 | AR177: -0.1477684653 | AS177: -0.9707121863 | AT177: 4.516260875 | AU177: -3.30333691 | AY177: 0 | AZ177: 4 | BA177: 2 | BB177: 2 | BC177: 0 | BD177: TRUE | BE177: TRUE | BF177: TRUE | BG177: TRUE | BH177: TRUE
A178: =IF(INTRO!$E$34<>0,INTRO!$E$34,"") -> DRC | B178: KASAI ORIENTAL | C178: Diulu | D178: 49255 | E178: 5911 | F178: 17239 | G178: 24135 | H178: 0 | I178: 4 | J178: 1 | K178: 2 | L178: 0 | M178: =IF(INTRO!$E$38="Endemic", IF($H178>0, IF($H178=4,"Unknown", IF($H178=99,"Stopped", $D178)), 0),"Not required") -> 0 | N178: =IF(INTRO!$E$40="Endemic", IF($I178>0, IF($I178=4,"Unknown",IF($I178=99,"Stopped", $D178)), 0),"Not required") -> Unknown | O178: =IF(INTRO!$E$42="Endemic", IF(AND($J178>1,$J178<5), IF($J178=4, "Unknown", E178+F178), 0),"Not required") -> 0 | P178: =IF(INTRO!$E$44="Endemic", IF(AND($K178>0,$K178<5), IF($K178=4,"Unknown", IF($K178=1, $F178*0.33, IF($K178=2, $F178*0.5+$G178*0.2, SUM(F178:G178)))), 0),"Not required") -> 13446.5 | Q178: 0 | R178: 0 | S178: 0 | T178: 0 | Y178: 14014 | Z178: Diulu | AD178: ='MDA1'!K178 -> 0 | AE178: ='MDA4'!K178 -> 0 | AF178: ='MDA3'!I178 -> 0 | AG178: ='T1'!M178 -> 0 | AH178: ='T2'!K178 -> 0 | AI178: =T3_R1!L178 -> 0 | AK178: ='MDA3'!L178 -> 0 | AN178: =_xlfn.XLOOKUP($Y178,[1]COUNTRY_INFO!$Y$9:$Y$527,[1]COUNTRY_INFO!D$9:D$527) -> 46428 | AO178: =_xlfn.XLOOKUP($Y178,[1]COUNTRY_INFO!$Y$9:$Y$527,[1]COUNTRY_INFO!E$9:E$527) -> 5617.308 | AP178: =_xlfn.XLOOKUP($Y178,[1]COUNTRY_INFO!$Y$9:$Y$527,[1]COUNTRY_INFO!F$9:F$527) -> 16250 | AQ178: =_xlfn.XLOOKUP($Y178,[1]COUNTRY_INFO!$Y$9:$Y$527,[1]COUNTRY_INFO!G$9:G$527) -> 22750 | AR178: 6.088998018 | AS178: 5.228340693 | AT178: 6.086153846 | AU178: 6.087912088 | AY178: 0 | AZ178: 4 | BA178: 1 | BB178: 2 | BC178: 0 | BD178: TRUE | BE178: TRUE | BF178: TRUE | BG178: TRUE | BH178: TRUE
A179: =IF(INTRO!$E$34<>0,INTRO!$E$34,"") -> DRC | B179: KASAI ORIENTAL | C179: Kabeya Kamuanga | D179: 250135 | E179: 30017 | F179: 87547 | G179: 122566.4 | H179: 0 | I179: 1 | J179: 1 | K179: 2 | L179: 0 | M179: =IF(INTRO!$E$38="Endemic", IF($H179>0, IF($H179=4,"Unknown", IF($H179=99,"Stopped", $D179)), 0),"Not required") -> 0 | N179: =IF(INTRO!$E$40="Endemic", IF($I179>0, IF($I179=4,"Unknown",IF($I179=99,"Stopped", $D179)), 0),"Not required") -> 250135 | O179: =IF(INTRO!$E$42="Endemic", IF(AND($J179>1,$J179<5), IF($J179=4, "Unknown", E179+F179), 0),"Not required") -> 0 | P179: =IF(INTRO!$E$44="Endemic", IF(AND($K179>0,$K179<5), IF($K179=4,"Unknown", IF($K179=1, $F179*0.33, IF($K179=2, $F179*0.5+$G179*0.2, SUM(F179:G179)))), 0),"Not required") -> 68286.78 | Q179: 0 | R179: 1 | S179: 0 | T179: 1 | U179: MDA3 (IVM) | V179: T2 (PZQ) | Y179: 14016 | Z179: Kabeya Kamuanga | AD179: ='MDA1'!K179 -> 0 | AE179: ='MDA4'!K179 -> 0 | AF179: ='MDA3'!I179 -> 87480 | AG179: ='T1'!M179 -> 0 | AH179: ='T2'!K179 -> 85885 | AI179: =T3_R1!L179 -> 0 | AK179: ='MDA3'!L179 -> 0 | AN179: =_xlfn.XLOOKUP($Y179,[1]COUNTRY_INFO!$Y$9:$Y$527,[1]COUNTRY_INFO!D$9:D$527) -> 243320 | AO179: =_xlfn.XLOOKUP($Y179,[1]COUNTRY_INFO!$Y$9:$Y$527,[1]COUNTRY_INFO!E$9:E$527) -> 29441.72 | AP179: =_xlfn.XLOOKUP($Y179,[1]COUNTRY_INFO!$Y$9:$Y$527,[1]COUNTRY_INFO!F$9:F$527) -> 87887 | AQ179: =_xlfn.XLOOKUP($Y179,[1]COUNTRY_INFO!$Y$9:$Y$527,[1]COUNTRY_INFO!G$9:G$527) -> 116501.8 | AR179: 2.800838402 | AS179: 1.953961929 | AT179: -0.3868604003 | AU179: 5.205584806 | AY179: 0 | AZ179: 1 | BA179: 1 | BB179: 2 | BC179: 0 | BD179: TRUE | BE179: TRUE | BF179: TRUE | BG179: TRUE | BH179: TRUE
A180: =IF(INTRO!$E$34<>0,INTRO!$E$34,"") -> DRC | B180: KASAI ORIENTAL | C180: Kansele | D180: 308640 | E180: 37036 | F180: 108976 | G180: 150282 | H180: 0 | I180: 4 | J180: 2 | K180: 1 | L180: 0 | M180: =IF(INTRO!$E$38="Endemic", IF($H180>0, IF($H180=4,"Unknown", IF($H180=99,"Stopped", $D180)), 0),"Not required") -> 0 | N180: =IF(INTRO!$E$40="Endemic", IF($I180>0, IF($I180=4,"Unknown",IF($I180=99,"Stopped", $D180)), 0),"Not required") -> Unknown | O180: =IF(INTRO!$E$42="Endemic", IF(AND($J180>1,$J180<5), IF($J180=4, "Unknown", E180+F180), 0),"Not required") -> 146012 | P180: =IF(INTRO!$E$44="Endemic", IF(AND($K180>0,$K180<5), IF($K180=4,"Unknown", IF($K180=1, $F180*0.33, IF($K180=2, $F180*0.5+$G180*0.2, SUM(F180:G180)))), 0),"Not required") -> 35962.08 | Q180: 0 | R180: 0 | S180: 1 | T180: 0 | U180: T3 (ALB/MBD) | Y180: 14024 | Z180: Kansele | AD180: ='MDA1'!K180 -> 0 | AE180: ='MDA4'!K180 -> 0 | AF180: ='MDA3'!I180 -> 0 | AG180: ='T1'!M180 -> 0 | AH180: ='T2'!K180 -> 0 | AI180: =T3_R1!L180 -> 95256 | AK180: ='MDA3'!L180 -> 0 | AN180: =_xlfn.XLOOKUP($Y180,[1]COUNTRY_INFO!$Y$9:$Y$527,[1]COUNTRY_INFO!D$9:D$527) -> 301072 | AO180: =_xlfn.XLOOKUP($Y180,[1]COUNTRY_INFO!$Y$9:$Y$527,[1]COUNTRY_INFO!E$9:E$527) -> 36430.192 | AP180: =_xlfn.XLOOKUP($Y180,[1]COUNTRY_INFO!$Y$9:$Y$527,[1]COUNTRY_INFO!F$9:F$527) -> 105513 | AQ180: =_xlfn.XLOOKUP($Y180,[1]COUNTRY_INFO!$Y$9:$Y$527,[1]COUNTRY_INFO!G$9:G$527) -> 147387 | AR180: 2.513684434 | AS180: 1.662928375 | AT180: 3.282060031 | AU180: 1.964216654 | AY180: 0 | AZ180: 4 | BA180: 2 | BB180: 1 | BC180: 0 | BD180: TRUE | BE180: TRUE | BF180: TRUE | BG180: TRUE | BH180: TRUE
A181: =IF(INTRO!$E$34<>0,INTRO!$E$34,"") -> DRC | B181: KASAI ORIENTAL | C181: Kasansa | D181: 252916 | E181: 30350 | F181: 88521 | G181: 123928.44 | H181: 0 | I181: 1 | J181: 1 | K181: 2 | L181: 0 | M181: =IF(INTRO!$E$38="Endemic", IF($H181>0, IF($H181=4,"Unknown", IF($H181=99,"Stopped", $D181)), 0),"Not required") -> 0 | N181: =IF(INTRO!$E$40="Endemic", IF($I181>0, IF($I181=4,"Unknown",IF($I181=99,"Stopped", $D181)), 0),"Not required") -> 252916 | O181: =IF(INTRO!$E$42="Endemic", IF(AND($J181>1,$J181<5), IF($J181=4, "Unknown", E181+F181), 0),"Not required") -> 0 | P181: =IF(INTRO!$E$44="Endemic", IF(AND($K181>0,$K181<5), IF($K181=4,"Unknown", IF($K181=1, $F181*0.33, IF($K181=2, $F181*0.5+$G181*0.2, SUM(F181:G181)))), 0),"Not required") -> 69046.188 | Q181: 0 | R181: 1 | S181: 0 | T181: 1 | U181: MDA3 (IVM) | V181: T2 (PZQ) | Y181: 14025 | Z181: Kasansa | AD181: ='MDA1'!K181 -> 0 | AE181: ='MDA4'!K181 -> 0 | AF181: ='MDA3'!I181 -> 87041 | AG181: ='T1'!M181 -> 0 | AH181: ='T2'!K181 -> 73716 | AI181: =T3_R1!L181 -> 0 | AK181: ='MDA3'!L181 -> 0 | AN181: =_xlfn.XLOOKUP($Y181,[1]COUNTRY_INFO!$Y$9:$Y$527,[1]COUNTRY_INFO!D$9:D$527) -> 237465 | AO181: =_xlfn.XLOOKUP($Y181,[1]COUNTRY_INFO!$Y$9:$Y$527,[1]COUNTRY_INFO!E$9:E$527) -> 28733.265 | AP181: =_xlfn.XLOOKUP($Y181,[1]COUNTRY_INFO!$Y$9:$Y$527,[1]COUNTRY_INFO!F$9:F$527) -> 85772 | AQ181: =_xlfn.XLOOKUP($Y181,[1]COUNTRY_INFO!$Y$9:$Y$527,[1]COUNTRY_INFO!G$9:G$527) -> 113698.6 | AR181: 6.506643084 | AS181: 5.626701316 | AT181: 3.205008628 | AU181: 8.997331541 | AY181: 0 | AZ181: 1 | BA181: 1 | BB181: 2 | BC181: 0 | BD181: TRUE | BE181: TRUE | BF181: TRUE | BG181: TRUE | BH181: TRUE
A182: =IF(INTRO!$E$34<>0,INTRO!$E$34,"") -> DRC | B182: KASAI ORIENTAL | C182: Lubilanji | D182: 281493 | E182: 33779 | F182: 98523 | G182: 137931 | H182: 1 | I182: 4 | J182: 2 | K182: 2 | L182: 0 | M182: =IF(INTRO!$E$38="Endemic", IF($H182>0, IF($H182=4,"Unknown", IF($H182=99,"Stopped", $D182)), 0),"Not required") -> 281493 | N182: =IF(INTRO!$E$40="Endemic", IF($I182>0, IF($I182=4,"Unknown",IF($I182=99,"Stopped", $D182)), 0),"Not required") -> Unknown | O182: =IF(INTRO!$E$42="Endemic", IF(AND($J182>1,$J182<5), IF($J182=4, "Unknown", E182+F182), 0),"Not required") -> 132302 | P182: =IF(INTRO!$E$44="Endemic", IF(AND($K182>0,$K182<5), IF($K182=4,"Unknown", IF($K182=1, $F182*0.33, IF($K182=2, $F182*0.5+$G182*0.2, SUM(F182:G182)))), 0),"Not required") -> 76847.7 | Q182: 1 | R182: 0 | S182: 1 | T182: 0 | U182: MDA1 (IVM+ALB) | Y182: 14031 | Z182: Lubilanji | AD182: ='MDA1'!K182 -> 90546 | AE182: ='MDA4'!K182 -> 0 | AF182: ='MDA3'!I182 -> 0 | AG182: ='T1'!M182 -> 0 | AH182: ='T2'!K182 -> 0 | AI182: =T3_R1!L182 -> 0 | AK182: ='MDA3'!L182 -> 0 | AN182: =_xlfn.XLOOKUP($Y182,[1]COUNTRY_INFO!$Y$9:$Y$527,[1]COUNTRY_INFO!D$9:D$527) -> 268662 | AO182: =_xlfn.XLOOKUP($Y182,[1]COUNTRY_INFO!$Y$9:$Y$527,[1]COUNTRY_INFO!E$9:E$527) -> 32508.182 | AP182: =_xlfn.XLOOKUP($Y182,[1]COUNTRY_INFO!$Y$9:$Y$527,[1]COUNTRY_INFO!F$9:F$527) -> 92667 | AQ182: =_xlfn.XLOOKUP($Y182,[1]COUNTRY_INFO!$Y$9:$Y$527,[1]COUNTRY_INFO!G$9:G$527) -> 133009 | AR182: 4.775889408 | AS182: 3.909225068 | AT182: 6.319401729 | AU182: 3.70050147 | AY182: 1 | AZ182: 4 | BA182: 2 | BB182: 2 | BC182: 0 | BD182: TRUE | BE182: TRUE | BF182: TRUE | BG182: TRUE | BH182: TRUE
A183: =IF(INTRO!$E$34<>0,INTRO!$E$34,"") -> DRC | B183: KASAI ORIENTAL | C183: Lukelenge | D183: 332326 | E183: 39879 | F183: 116314 | G183: 162840 | H183: 0 | I183: 4 | J183: 1 | K183: 2 | L183: 0 | M183: =IF(INTRO!$E$38="Endemic", IF($H183>0, IF($H183=4,"Unknown", IF($H183=99,"Stopped", $D183)), 0),"Not required") -> 0 | N183: =IF(INTRO!$E$40="Endemic", IF($I183>0, IF($I183=4,"Unknown",IF($I183=99,"Stopped", $D183)), 0),"Not required") -> Unknown | O183: =IF(INTRO!$E$42="Endemic", IF(AND($J183>1,$J183<5), IF($J183=4, "Unknown", E183+F183), 0),"Not required") -> 0 | P183: =IF(INTRO!$E$44="Endemic", IF(AND($K183>0,$K183<5), IF($K183=4,"Unknown", IF($K183=1, $F183*0.33, IF($K183=2, $F183*0.5+$G183*0.2, SUM(F183:G183)))), 0),"Not required") -> 90725 | Q183: 0 | R183: 0 | S183: 0 | T183: 1 | U183: T2 (PZQ) | Y183: 14033 | Z183: Lukelenge | AD183: ='MDA1'!K183 -> 0 | AE183: ='MDA4'!K183 -> 0 | AF183: ='MDA3'!I183 -> 0 | AG183: ='T1'!M183 -> 0 | AH183: ='T2'!K183 -> 100597 | AI183: =T3_R1!L183 -> 0 | AK183: ='MDA3'!L183 -> 0 | AN183: =_xlfn.XLOOKUP($Y183,[1]COUNTRY_INFO!$Y$9:$Y$527,[1]COUNTRY_INFO!D$9:D$527) -> 313249 | AO183: =_xlfn.XLOOKUP($Y183,[1]COUNTRY_INFO!$Y$9:$Y$527,[1]COUNTRY_INFO!E$9:E$527) -> 37903.289 | AP183: =_xlfn.XLOOKUP($Y183,[1]COUNTRY_INFO!$Y$9:$Y$527,[1]COUNTRY_INFO!F$9:F$527) -> 109637 | AQ183: =_xlfn.XLOOKUP($Y183,[1]COUNTRY_INFO!$Y$9:$Y$527,[1]COUNTRY_INFO!G$9:G$527) -> 153492 | AR183: 6.090043384 | AS183: 5.212505437 | AT183: 6.090097321 | AU183: 6.090219686 | AY183: 0 | AZ183: 4 | BA183: 1 | BB183: 2 | BC183: 0 | BD183: TRUE | BE183: TRUE | BF183: TRUE | BG183: TRUE | BH183: TRUE
A184: =IF(INTRO!$E$34<>0,INTRO!$E$34,"") -> DRC | B184: KASAI ORIENTAL | C184: Miabi | D184: 205891 | E184: 24707 | F184: 72062 | G184: 100886.44 | H184: 0 | I184: 1 | J184: 1 | K184: 1 | L184: 0 | M184: =IF(INTRO!$E$38="Endemic", IF($H184>0, IF($H184=4,"Unknown", IF($H184=99,"Stopped", $D184)), 0),"Not required") -> 0 | N184: =IF(INTRO!$E$40="Endemic", IF($I184>0, IF($I184=4,"Unknown",IF($I184=99,"Stopped", $D184)), 0),"Not required") -> 205891 | O184: =IF(INTRO!$E$42="Endemic", IF(AND($J184>1,$J184<5), IF($J184=4, "Unknown", E184+F184), 0),"Not required") -> 0 | P184: =IF(INTRO!$E$44="Endemic", IF(AND($K184>0,$K184<5), IF($K184=4,"Unknown", IF($K184=1, $F184*0.33, IF($K184=2, $F184*0.5+$G184*0.2, SUM(F184:G184)))), 0),"Not required") -> 23780.46 | Q184: 0 | R184: 1 | S184: 0 | T184: 0 | U184: MDA3 (IVM) | Y184: 14037 | Z184: Miabi | AD184: ='MDA1'!K184 -> 0 | AE184: ='MDA4'!K184 -> 0 | AF184: ='MDA3'!I184 -> 70865 | AG184: ='T1'!M184 -> 0 | AH184: ='T2'!K184 -> 0 | AI184: =T3_R1!L184 -> 0 | AK184: ='MDA3'!L184 -> 0 | AN184: =_xlfn.XLOOKUP($Y184,[1]COUNTRY_INFO!$Y$9:$Y$527,[1]COUNTRY_INFO!D$9:D$527) -> 178745 | AO184: =_xlfn.XLOOKUP($Y184,[1]COUNTRY_INFO!$Y$9:$Y$527,[1]COUNTRY_INFO!E$9:E$527) -> 21628.145 | AP184: =_xlfn.XLOOKUP($Y184,[1]COUNTRY_INFO!$Y$9:$Y$527,[1]COUNTRY_INFO!F$9:F$527) -> 64563 | AQ184: =_xlfn.XLOOKUP($Y184,[1]COUNTRY_INFO!$Y$9:$Y$527,[1]COUNTRY_INFO!G$9:G$527) -> 85582.8 | AR184: 15.18699824 | AS184: 14.23540946 | AT184: 11.61501169 | AU184: 17.88167716 | AY184: 0 | AZ184: 1 | BA184: 1 | BB184: 1 | BC184: 0 | BD184: TRUE | BE184: TRUE | BF184: TRUE | BG184: TRUE | BH184: TRUE
A185: =IF(INTRO!$E$34<>0,INTRO!$E$34,"") -> DRC | B185: KASAI ORIENTAL | C185: Mpokolo | D185: 317603 | E185: 40495 | F185: 111161 | G185: 152449 | H185: 1 | I185: 4 | J185: 1 | K185: 2 | L185: 0 | M185: =IF(INTRO!$E$38="Endemic", IF($H185>0, IF($H185=4,"Unknown", IF($H185=99,"Stopped", $D185)), 0),"Not required") -> 317603 | N185: =IF(INTRO!$E$40="Endemic", IF($I185>0, IF($I185=4,"Unknown",IF($I185=99,"Stopped", $D185)), 0),"Not required") -> Unknown | O185: =IF(INTRO!$E$42="Endemic", IF(AND($J185>1,$J185<5), IF($J185=4, "Unknown", E185+F185), 0),"Not required") -> 0 | P185: =IF(INTRO!$E$44="Endemic", IF(AND($K185>0,$K185<5), IF($K185=4,"Unknown", IF($K185=1, $F185*0.33, IF($K185=2, $F185*0.5+$G185*0.2, SUM(F185:G185)))), 0),"Not required") -> 86070.3 | Q185: 1 | R185: 0 | S185: 0 | T185: 1 | U185: MDA1 (IVM+ALB) | V185: T2 (PZQ) | Y185: 14039 | Z185: Mpokolo | AD185: ='MDA1'!K185 -> 105045 | AE185: ='MDA4'!K185 -> 0 | AF185: ='MDA3'!I185 -> 0 | AG185: ='T1'!M185 -> 0 | AH185: ='T2'!K185 -> 92995 | AI185: =T3_R1!L185 -> 0 | AK185: ='MDA3'!L185 -> 0 | AN185: =_xlfn.XLOOKUP($Y185,[1]COUNTRY_INFO!$Y$9:$Y$527,[1]COUNTRY_INFO!D$9:D$527) -> 310052 | AO185: =_xlfn.XLOOKUP($Y185,[1]COUNTRY_INFO!$Y$9:$Y$527,[1]COUNTRY_INFO!E$9:E$527) -> 40616.972 | AP185: =_xlfn.XLOOKUP($Y185,[1]COUNTRY_INFO!$Y$9:$Y$527,[1]COUNTRY_INFO!F$9:F$527) -> 110657 | AQ185: =_xlfn.XLOOKUP($Y185,[1]COUNTRY_INFO!$Y$9:$Y$527,[1]COUNTRY_INFO!G$9:G$527) -> 146686 | AR185: 2.435397933 | AS185: -0.3002981118 | AT185: 0.455461471 | AU185: 3.928800295 | AY185: 1 | AZ185: 4 | BA185: 1 | BB185: 2 | BC185: 0 | BD185: TRUE | BE185: TRUE | BF185: TRUE | BG185: TRUE | BH185: TRUE
A186: =IF(INTRO!$E$34<>0,INTRO!$E$34,"") -> DRC | B186: KASAI ORIENTAL | C186: Mukumbi | D186: 194921 | E186: 23390 | F186: 68222 | G186: 95512 | H186: 1 | I186: 1 | J186: 1 | K186: 2 | L186: 0 | M186: =IF(INTRO!$E$38="Endemic", IF($H186>0, IF($H186=4,"Unknown", IF($H186=99,"Stopped", $D186)), 0),"Not required") -> 194921 | N186: =IF(INTRO!$E$40="Endemic", IF($I186>0, IF($I186=4,"Unknown",IF($I186=99,"Stopped", $D186)), 0),"Not required") -> 194921 | O186: =IF(INTRO!$E$42="Endemic", IF(AND($J186>1,$J186<5), IF($J186=4, "Unknown", E186+F186), 0),"Not required") -> 0 | P186: =IF(INTRO!$E$44="Endemic", IF(AND($K186>0,$K186<5), IF($K186=4,"Unknown", IF($K186=1, $F186*0.33, IF($K186=2, $F186*0.5+$G186*0.2, SUM(F186:G186)))), 0),"Not required") -> 53213.4 | Q186: 1 | R186: 1 | S186: 0 | T186: 0 | U186: MDA1 (IVM+ALB) | Y186: 14040 | Z186: Mukumbi | AD186: ='MDA1'!K186 -> 68222 | AE186: ='MDA4'!K186 -> 0 | AF186: ='MDA3'!I186 -> 0 | AG186: ='T1'!M186 -> 0 | AH186: ='T2'!K186 -> 0 | AI186: =T3_R1!L186 -> 0 | AK186: ='MDA3'!L186 -> 0 | AN186: =_xlfn.XLOOKUP($Y186,[1]COUNTRY_INFO!$Y$9:$Y$527,[1]COUNTRY_INFO!D$9:D$527) -> 174041 | AO186: =_xlfn.XLOOKUP($Y186,[1]COUNTRY_INFO!$Y$9:$Y$527,[1]COUNTRY_INFO!E$9:E$527) -> 21059.401 | AP186: =_xlfn.XLOOKUP($Y186,[1]COUNTRY_INFO!$Y$9:$Y$527,[1]COUNTRY_INFO!F$9:F$527) -> 61260 | AQ186: =_xlfn.XLOOKUP($Y186,[1]COUNTRY_INFO!$Y$9:$Y$527,[1]COUNTRY_INFO!G$9:G$527) -> 84934 | AR186: 11.99717308 | AS186: 11.06678675 | AT186: 11.36467516 | AU186: 12.45437634 | AY186: 1 | AZ186: 1 | BA186: 1 | BB186: 2 | BC186: 0 | BD186: TRUE | BE186: TRUE | BF186: TRUE | BG186: TRUE | BH186: TRUE
A187: =IF(INTRO!$E$34<>0,INTRO!$E$34,"") -> DRC | B187: KASAI ORIENTAL | C187: Muya | D187: 399284 | E187: 47914 | F187: 139749 | G187: 195650 | H187: 0 | I187: 4 | J187: 1 | K187: 2 | L187: 0 | M187: =IF(INTRO!$E$38="Endemic", IF($H187>0, IF($H187=4,"Unknown", IF($H187=99,"Stopped", $D187)), 0),"Not required") -> 0 | N187: =IF(INTRO!$E$40="Endemic", IF($I187>0, IF($I187=4,"Unknown",IF($I187=99,"Stopped", $D187)), 0),"Not required") -> Unknown | O187: =IF(INTRO!$E$42="Endemic", IF(AND($J187>1,$J187<5), IF($J187=4, "Unknown", E187+F187), 0),"Not required") -> 0 | P187: =IF(INTRO!$E$44="Endemic", IF(AND($K187>0,$K187<5), IF($K187=4,"Unknown", IF($K187=1, $F187*0.33, IF($K187=2, $F187*0.5+$G187*0.2, SUM(F187:G187)))), 0),"Not required") -> 109004.5 | Q187: 0 | R187: 0 | S187: 0 | T187: 1 | U187: T2 (PZQ) | Y187: 14042 | Z187: Muya | AD187: ='MDA1'!K187 -> 0 | AE187: ='MDA4'!K187 -> 0 | AF187: ='MDA3'!I187 -> 0 | AG187: ='T1'!M187 -> 0 | AH187: ='T2'!K187 -> 108881 | AI187: =T3_R1!L187 -> 0 | AK187: ='MDA3'!L187 -> 0 | AN187: =_xlfn.XLOOKUP($Y187,[1]COUNTRY_INFO!$Y$9:$Y$527,[1]COUNTRY_INFO!D$9:D$527) -> 376363 | AO187: =_xlfn.XLOOKUP($Y187,[1]COUNTRY_INFO!$Y$9:$Y$527,[1]COUNTRY_INFO!E$9:E$527) -> 45539.843 | AP187: =_xlfn.XLOOKUP($Y187,[1]COUNTRY_INFO!$Y$9:$Y$527,[1]COUNTRY_INFO!F$9:F$527) -> 131727 | AQ187: =_xlfn.XLOOKUP($Y187,[1]COUNTRY_INFO!$Y$9:$Y$527,[1]COUNTRY_INFO!G$9:G$527) -> 184418 | AR187: 6.09013107 | AS187: 5.213362286 | AT187: 6.089867681 | AU187: 6.090511772 | AY187: 0 | AZ187: 4 | BA187: 1 | BB187: 2 | BC187: 0 | BD187: TRUE | BE187: TRUE | BF187: TRUE | BG187: TRUE | BH187: TRUE
A188: =IF(INTRO!$E$34<>0,INTRO!$E$34,"") -> DRC | B188: KASAI ORIENTAL | C188: Nzaba | D188: 289046 | E188: 34685 | F188: 101166 | G188: 141633 | H188: 0 | I188: 4 | J188: 1 | K188: 1 | L188: 0 | M188: =IF(INTRO!$E$38="Endemic", IF($H188>0, IF($H188=4,"Unknown", IF($H188=99,"Stopped", $D188)), 0),"Not required") -> 0 | N188: =IF(INTRO!$E$40="Endemic", IF($I188>0, IF($I188=4,"Unknown",IF($I188=99,"Stopped", $D188)), 0),"Not required") -> Unknown | O188: =IF(INTRO!$E$42="Endemic", IF(AND($J188>1,$J188<5), IF($J188=4, "Unknown", E188+F188), 0),"Not required") -> 0 | P188: =IF(INTRO!$E$44="Endemic", IF(AND($K188>0,$K188<5), IF($K188=4,"Unknown", IF($K188=1, $F188*0.33, IF($K188=2, $F188*0.5+$G188*0.2, SUM(F188:G188)))), 0),"Not required") -> 33384.78 | Q188: 0 | R188: 0 | S188: 0 | T188: 0 | Y188: 14045 | Z188: Nzaba | AD188: ='MDA1'!K188 -> 0 | AE188: ='MDA4'!K188 -> 0 | AF188: ='MDA3'!I188 -> 0 | AG188: ='T1'!M188 -> 0 | AH188: ='T2'!K188 -> 0 | AI188: =T3_R1!L188 -> 0 | AK188: ='MDA3'!L188 -> 0 | AN188: =_xlfn.XLOOKUP($Y188,[1]COUNTRY_INFO!$Y$9:$Y$527,[1]COUNTRY_INFO!D$9:D$527) -> 272454 | AO188: =_xlfn.XLOOKUP($Y188,[1]COUNTRY_INFO!$Y$9:$Y$527,[1]COUNTRY_INFO!E$9:E$527) -> 32967.294 | AP188: =_xlfn.XLOOKUP($Y188,[1]COUNTRY_INFO!$Y$9:$Y$527,[1]COUNTRY_INFO!F$9:F$527) -> 115567 | AQ188: =_xlfn.XLOOKUP($Y188,[1]COUNTRY_INFO!$Y$9:$Y$527,[1]COUNTRY_INFO!G$9:G$527) -> 113294 | AR188: 6.089835348 | AS188: 5.210333611 | AT188: -12.46116971 | AU188: 25.01368122 | AY188: 0 | AZ188: 4 | BA188: 1 | BB188: 1 | BC188: 0 | BD188: TRUE | BE188: TRUE | BF188: TRUE | BG188: TRUE | BH188: TRUE
A189: =IF(INTRO!$E$34<>0,INTRO!$E$34,"") -> DRC | B189: KASAI ORIENTAL | C189: Tshilenge | D189: 345070 | E189: 41408 | F189: 120775 | G189: 169084 | H189: 0 | I189: 1 | J189: 2 | K189: 2 | L189: 0 | M189: =IF(INTRO!$E$38="Endemic", IF($H189>0, IF($H189=4,"Unknown", IF($H189=99,"Stopped", $D189)), 0),"Not required") -> 0 | N189: =IF(INTRO!$E$40="Endemic", IF($I189>0, IF($I189=4,"Unknown",IF($I189=99,"Stopped", $D189)), 0),"Not required") -> 345070 | O189: =IF(INTRO!$E$42="Endemic", IF(AND($J189>1,$J189<5), IF($J189=4, "Unknown", E189+F189), 0),"Not required") -> 162183 | P189: =IF(INTRO!$E$44="Endemic", IF(AND($K189>0,$K189<5), IF($K189=4,"Unknown", IF($K189=1, $F189*0.33, IF($K189=2, $F189*0.5+$G189*0.2, SUM(F189:G189)))), 0),"Not required") -> 94204.3 | Q189: 0 | R189: 1 | S189: 1 | T189: 1 | U189: MDA3 (IVM) | V189: T1 (PZQ+ALB/MBD) | Y189: 14049 | Z189: Tshilenge | AD189: ='MDA1'!K189 -> 0 | AE189: ='MDA4'!K189 -> 0 | AF189: ='MDA3'!I189 -> 120774 | AG189: ='T1'!M189 -> 121089 | AH189: ='T2'!K189 -> 0 | AI189: =T3_R1!L189 -> 0 | AK189: ='MDA3'!L189 -> 0 | AN189: =_xlfn.XLOOKUP($Y189,[1]COUNTRY_INFO!$Y$9:$Y$527,[1]COUNTRY_INFO!D$9:D$527) -> 345587 | AO189: =_xlfn.XLOOKUP($Y189,[1]COUNTRY_INFO!$Y$9:$Y$527,[1]COUNTRY_INFO!E$9:E$527) -> 41816.107 | AP189: =_xlfn.XLOOKUP($Y189,[1]COUNTRY_INFO!$Y$9:$Y$527,[1]COUNTRY_INFO!F$9:F$527) -> 120932 | AQ189: =_xlfn.XLOOKUP($Y189,[1]COUNTRY_INFO!$Y$9:$Y$527,[1]COUNTRY_INFO!G$9:G$527) -> 169361 | AR189: -0.1496005347 | AS189: -0.9759564658 | AT189: -0.1298250256 | AU189: -0.1635559544 | AY189: 0 | AZ189: 1 | BA189: 2 | BB189: 2 | BC189: 0 | BD189: TRUE | BE189: TRUE | BF189: TRUE | BG189: TRUE | BH189: TRUE
A190: =IF(INTRO!$E$34<>0,INTRO!$E$34,"") -> DRC | B190: KASAI ORIENTAL | C190: Tshilundu | D190: 217030 | E190: 26044 | F190: 75961 | G190: 106344.2 | H190: 0 | I190: 1 | J190: 1 | K190: 1 | L190: 0 | M190: =IF(INTRO!$E$38="Endemic", IF($H190>0, IF($H190=4,"Unknown", IF($H190=99,"Stopped", $D190)), 0),"Not required") -> 0 | N190: =IF(INTRO!$E$40="Endemic", IF($I190>0, IF($I190=4,"Unknown",IF($I190=99,"Stopped", $D190)), 0),"Not required") -> 217030 | O190: =IF(INTRO!$E$42="Endemic", IF(AND($J190>1,$J190<5), IF($J190=4, "Unknown", E190+F190), 0),"Not required") -> 0 | P190: =IF(INTRO!$E$44="Endemic", IF(AND($K190>0,$K190<5), IF($K190=4,"Unknown", IF($K190=1, $F190*0.33, IF($K190=2, $F190*0.5+$G190*0.2, SUM(F190:G190)))), 0),"Not required") -> 25067.13 | Q190: 0 | R190: 1 | S190: 0 | T190: 0 | U190: MDA3 (IVM) | Y190: 14050 | Z190: Tshilundu | AD190: ='MDA1'!K190 -> 0 | AE190: ='MDA4'!K190 -> 0 | AF190: ='MDA3'!I190 -> 74779 | AG190: ='T1'!M190 -> 0 | AH190: ='T2'!K190 -> 0 | AI190: =T3_R1!L190 -> 0 | AK190: ='MDA3'!L190 -> 0 | AN190: =_xlfn.XLOOKUP($Y190,[1]COUNTRY_INFO!$Y$9:$Y$527,[1]COUNTRY_INFO!D$9:D$527) -> 300802 | AO190: =_xlfn.XLOOKUP($Y190,[1]COUNTRY_INFO!$Y$9:$Y$527,[1]COUNTRY_INFO!E$9:E$527) -> 36397.042 | AP190: =_xlfn.XLOOKUP($Y190,[1]COUNTRY_INFO!$Y$9:$Y$527,[1]COUNTRY_INFO!F$9:F$527) -> 108650 | AQ190: =_xlfn.XLOOKUP($Y190,[1]COUNTRY_INFO!$Y$9:$Y$527,[1]COUNTRY_INFO!G$9:G$527) -> 144023.68 | AR190: -27.84954887 | AS190: -28.4447346 | AT190: -30.08651634 | AU190: -26.16200336 | AV190: pb | AY190: 0 | AZ190: 1 | BA190: 1 | BB190: 1 | BC190: 0 | BD190: TRUE | BE190: TRUE | BF190: TRUE | BG190: TRUE | BH190: TRUE
A191: =IF(INTRO!$E$34<>0,INTRO!$E$34,"") -> DRC | B191: KASAI ORIENTAL | C191: Tshitenge | D191: 291540 | E191: 37171 | F191: 102039 | G191: 139939 | H191: 1 | I191: 1 | J191: 1 | K191: 2 | L191: 0 | M191: =IF(INTRO!$E$38="Endemic", IF($H191>0, IF($H191=4,"Unknown", IF($H191=99,"Stopped", $D191)), 0),"Not required") -> 291540 | N191: =IF(INTRO!$E$40="Endemic", IF($I191>0, IF($I191=4,"Unknown",IF($I191=99,"Stopped", $D191)), 0),"Not required") -> 291540 | O191: =IF(INTRO!$E$42="Endemic", IF(AND($J191>1,$J191<5), IF($J191=4, "Unknown", E191+F191), 0),"Not required") -> 0 | P191: =IF(INTRO!$E$44="Endemic", IF(AND($K191>0,$K191<5), IF($K191=4,"Unknown", IF($K191=1, $F191*0.33, IF($K191=2, $F191*0.5+$G191*0.2, SUM(F191:G191)))), 0),"Not required") -> 79007.3 | Q191: 1 | R191: 1 | S191: 0 | T191: 1 | U191: MDA1 (IVM+ALB) | V191: T2 (PZQ) | Y191: 14057 | Z191: Tshitenge | AD191: ='MDA1'!K191 -> 73579 | AE191: ='MDA4'!K191 -> 0 | AF191: ='MDA3'!I191 -> 0 | AG191: ='T1'!M191 -> 0 | AH191: ='T2'!K191 -> 85708 | AI191: =T3_R1!L191 -> 0 | AK191: ='MDA3'!L191 -> 0 | AN191: =_xlfn.XLOOKUP($Y191,[1]COUNTRY_INFO!$Y$9:$Y$527,[1]COUNTRY_INFO!D$9:D$527) -> 274814 | AO191: =_xlfn.XLOOKUP($Y191,[1]COUNTRY_INFO!$Y$9:$Y$527,[1]COUNTRY_INFO!E$9:E$527) -> 36000.254 | AP191: =_xlfn.XLOOKUP($Y191,[1]COUNTRY_INFO!$Y$9:$Y$527,[1]COUNTRY_INFO!F$9:F$527) -> 98081 | AQ191: =_xlfn.XLOOKUP($Y191,[1]COUNTRY_INFO!$Y$9:$Y$527,[1]COUNTRY_INFO!G$9:G$527) -> 130015 | AR191: 6.086298369 | AS191: 3.252049277 | AT191: 4.035440095 | AU191: 7.632965427 | AY191: 1 | AZ191: 1 | BA191: 1 | BB191: 2 | BC191: 0 | BD191: TRUE | BE191: TRUE | BF191: TRUE | BG191: TRUE | BH191: TRUE
A192: =IF(INTRO!$E$34<>0,INTRO!$E$34,"") -> DRC | B192: KASAI ORIENTAL | C192: Tshitshimbi | D192: 219180 | E192: 26302 | F192: 76713 | G192: 107398.2 | H192: 0 | I192: 1 | J192: 1 | K192: 2 | L192: 0 | M192: =IF(INTRO!$E$38="Endemic", IF($H192>0, IF($H192=4,"Unknown", IF($H192=99,"Stopped", $D192)), 0),"Not required") -> 0 | N192: =IF(INTRO!$E$40="Endemic", IF($I192>0, IF($I192=4,"Unknown",IF($I192=99,"Stopped", $D192)), 0),"Not required") -> 219180 | O192: =IF(INTRO!$E$42="Endemic", IF(AND($J192>1,$J192<5), IF($J192=4, "Unknown", E192+F192), 0),"Not required") -> 0 | P192: =IF(INTRO!$E$44="Endemic", IF(AND($K192>0,$K192<5), IF($K192=4,"Unknown", IF($K192=1, $F192*0.33, IF($K192=2, $F192*0.5+$G192*0.2, SUM(F192:G192)))), 0),"Not required") -> 59836.14 | Q192: 0 | R192: 1 | S192: 0 | T192: 1 | U192: MDA3 (IVM) | V192: T2 (PZQ) | Y192: 14051 | Z192: Tshitshimbi | AD192: ='MDA1'!K192 -> 0 | AE192: ='MDA4'!K192 -> 0 | AF192: ='MDA3'!I192 -> 75868 | AG192: ='T1'!M192 -> 0 | AH192: ='T2'!K192 -> 61590 | AI192: =T3_R1!L192 -> 0 | AK192: ='MDA3'!L192 -> 0 | AN192: =_xlfn.XLOOKUP($Y192,[1]COUNTRY_INFO!$Y$9:$Y$527,[1]COUNTRY_INFO!D$9:D$527) -> 208687 | AO192: =_xlfn.XLOOKUP($Y192,[1]COUNTRY_INFO!$Y$9:$Y$527,[1]COUNTRY_INFO!E$9:E$527) -> 25251.127 | AP192: =_xlfn.XLOOKUP($Y192,[1]COUNTRY_INFO!$Y$9:$Y$527,[1]COUNTRY_INFO!F$9:F$527) -> 75378 | AQ192: =_xlfn.XLOOKUP($Y192,[1]COUNTRY_INFO!$Y$9:$Y$527,[1]COUNTRY_INFO!G$9:G$527) -> 99919.08 | AR192: 5.02810429 | AS192: 4.161687516 | AT192: 1.771073788 | AU192: 7.485177005 | AY192: 0 | AZ192: 1 | BA192: 1 | BB192: 2 | BC192: 0 | BD192: TRUE | BE192: TRUE | BF192: TRUE | BG192: TRUE | BH192: TRUE
A193: =IF(INTRO!$E$34<>0,INTRO!$E$34,"") -> DRC | B193: KINSHASA | C193: Bandalungwa | D193: 227653 | E193: 27318 | F193: 79679 | G193: 111550 | H193: 0 | I193: 4 | J193: 1 | K193: 0 | L193: 0 | M193: =IF(INTRO!$E$38="Endemic", IF($H193>0, IF($H193=4,"Unknown", IF($H193=99,"Stopped", $D193)), 0),"Not required") -> 0 | N193: =IF(INTRO!$E$40="Endemic", IF($I193>0, IF($I193=4,"Unknown",IF($I193=99,"Stopped", $D193)), 0),"Not required") -> Unknown | O193: =IF(INTRO!$E$42="Endemic", IF(AND($J193>1,$J193<5), IF($J193=4, "Unknown", E193+F193), 0),"Not required") -> 0 | P193: =IF(INTRO!$E$44="Endemic", IF(AND($K193>0,$K193<5), IF($K193=4,"Unknown", IF($K193=1, $F193*0.33, IF($K193=2, $F193*0.5+$G193*0.2, SUM(F193:G193)))), 0),"Not required") -> 0 | Q193: 0 | R193: 0 | S193: 0 | T193: 0 | Y193: 14126 | Z193: Bandalungwa | AD193: ='MDA1'!K193 -> 0 | AE193: ='MDA4'!K193 -> 0 | AF193: ='MDA3'!I193 -> 0 | AG193: ='T1'!M193 -> 0 | AH193: ='T2'!K193 -> 0 | AI193: =T3_R1!L193 -> 0 | AK193: ='MDA3'!L193 -> 0 | AN193: =_xlfn.XLOOKUP($Y193,[1]COUNTRY_INFO!$Y$9:$Y$527,[1]COUNTRY_INFO!D$9:D$527) -> 214585 | AO193: =_xlfn.XLOOKUP($Y193,[1]COUNTRY_INFO!$Y$9:$Y$527,[1]COUNTRY_INFO!E$9:E$527) -> 25965.185 | AP193: =_xlfn.XLOOKUP($Y193,[1]COUNTRY_INFO!$Y$9:$Y$527,[1]COUNTRY_INFO!F$9:F$527) -> 75105 | AQ193: =_xlfn.XLOOKUP($Y193,[1]COUNTRY_INFO!$Y$9:$Y$527,[1]COUNTRY_INFO!G$9:G$527) -> 105146 | AR193: 6.089894447 | AS193: 5.210111155 | AT193: 6.09014047 | AU193: 6.090578814 | AY193: 0 | AZ193: 4 | BA193: 1 | BB193: 0 | BC193: 0 | BD193: TRUE | BE193: TRUE | BF193: TRUE | BG193: TRUE | BH193: TRUE
